Workbook

Sheet Navigation Pane
B2: Brisbane City Council
B3: Local Government Infrastructure Plan (LGIP)
B6: Version No | D6: 1 | F6: Date | J6: Author | K6: BCC
B8: Comments | D8: LGIP amendment 1B - Parks - Schedule of Works model consultation version 3 Aug 2023
D10: Inputs | I10: Calculation | N10: Outputs
C12: General Input Sheet | H12: Calculation Function | M12: Summary Cost Schedule
C13: l General inputs l Financial inputs | H13: Catchment based summary of demand, infrastructure (existing and new) and cost allocation Infrastructure Cost calculation for each catchment Optional Discounted Cashflow | M13: l Summary of demand and cost allocation by catchment l Final costs by catchment
M15: Summary Cash flow Projections
C16: l Unit Cost of Passive Assets l Unit Cost of Land | M16: l Summary of forecast Capital Expenditure and anticipated IC revenues
C19: l Estimates of current and future demand (per cost catchment)
C21: Asset Inputs
C22: Existing Trunk Assets (& Catchments Served)
C23: Future Trunk Assets (& Catchments Served)

Sheet General Input Sheet
B2: ='Navigation Pane'!B2 -> Brisbane City Council
A3: Return to Navigation Pane
B4: General Input Sheet
B6: General Inputs | E6: Reference | G6: Value | I6: Comments
C8: Base Year | E8: YEAR | G8: 2021
G9: =YEAR -> 2021
C10: Term (between 15 and 30 years) | E10: TERM | G10: 15
B12: Application of Discounted Cash flow
C14: Calculate charges using Discounted Cash flow? (Y/N) | E14: DCFTRIGGER | G14: Yes
B16: General Financial Inputs
B18: Discount Rate (WACC):
C19: Average 10 Year Bond Rate | E19: TenYr
B21: Option 1 | C21: Basic Margin on 10 Yr. Bond Rate | E21: Margin | I21: 3.5% is the baseline figure quoted in LG Bulletin 06/01
C23: WACC: | E23: WACC1 | G23: 0.0591
B25: Option 2 | C25: Capital Structure (% Debt) | E25: Capstr
C26: Market Risk Premium | E26: Risk
C27: Asset Beta | E27: AssetBeta
C28: Cost of Debt | E28: Debt
C30: WACC: | E30: WACC2 | G30: 0.0591
C32: WACC Option to be applied in the calculation? | E32: WACC1 | G32: =IF(G14="No",0,IF(E32="WACC1",WACC1,IF(E32="WACC2",WACC2,"Error"))) -> 0.0591
B34: Escalation Rates
C35: Capital Escalation - Future Cap X | E35: PPI | G35: =(G38/G48)^(1/(E38-E48))-1 -> 0.01820477729 | I35: ten (10) yr. average Roads and Bridges Index (ABS 6427, Table 15, Index 3101)
C37: Capital Indexation Rates - Historical (June Qtr.)
E38: =YEAR -> 2021 | G38: 119.78 | I38: Roads and Bridges Index (ABS 6427, Table 15, Index 3101)
E39: =E38-1 -> 2020 | G39: 118.02
E40: =E39-1 -> 2019 | G40: 114.56
E41: 2018 | G41: 112.03
E42: =E41-1 -> 2017 | G42: 110.64
E43: =E42-1 -> 2016 | G43: 110.54
E44: =E43-1 -> 2015
E45: 2014
E46: 2013
E47: 2012
E48: 2011 | G48: 100.0076
C50: Land Escalation | E50: LandInd | G50: =(G52/G62)^(1/(E52-E62))-1 -> 0.02011185319 | I50: ten (10) yr. average Consumer Price Index Roads between 2011 - 2021 (Mar Qtr.)
E52: =YEAR -> 2021 | G52: 117.5284486 | I52: three (3) yr. rolling average Consumer Price Index (ABS 6427, Table 17, Index 3101, Series ID: A2333727L)
E53: =E52-1 -> 2020
E54: =E53-1 -> 2019
E55: 2018
E56: =E55-1 -> 2017
E57: =E56-1 -> 2016 | G57: 108.2858073
E58: =E57-1 -> 2015
E59: 2014
E60: 2013
E61: 2012
E62: 2011 | G62: 96.30859889
G67: =Chargeind -> 
G69: =Chargeind -> 

Sheet Exist Trunk Assets - Parks
B2: ='Navigation Pane'!B2 -> Brisbane City Council
B3: Parks
B5: EXISTING TRUNK ASSETS
B8: Land Valuation Type | D8: Location
H10: Asset Data | P10: Catchment Asset Allocation | V10: Asset Usage | AB10: Cost Allocation
B11: Basic Asset Data | G11: Asset Attributes | I11: Basic Asset Valuation | N11: Refined Asset Value | P11: ='Catchment Demand - Parks'!$C8 -> East | Q11: ='Catchment Demand - Parks'!$C9 -> North | R11: ='Catchment Demand - Parks'!$C10 -> South | S11: ='Catchment Demand - Parks'!$C11 -> West | U11: =P11 -> East | V11: =Q11 -> North | W11: =R11 -> South | X11: =S11 -> West | Y11: TOTALS | AA11: =P11 -> East | AB11: =Q11 -> North | AC11: =R11 -> South | AD11: =S11 -> West | AE11: TOTALS
B12: Asset ID | C12: LGIP ID | D12: Asset Class | E12: Service Catchment | F12: Description | G12: Embellishment Area Factor | H12: Embellishment Area (m2) | I12: Construction Unit Rate ($/m) | J12: Total Construction Cost ($) | K12: Size of land (m2) | L12: Land Unit Rate ($/m2) | M12: Land Value | N12: Valuation Year | O12: Current Replacement Cost
P13: 1 | Q13: =P13+1 -> 2 | R13: =Q13+1 -> 3 | S13: 4
B14: Councils ID (from GIS, FAR, AMA etc.) | C14: ID from the LGIP drawings | D14: Local/District Park | U14: 1 | V14: 1 | W14: 1 | X14: 1 | AA14: =SUM(AA15:AA2680) -> 2404804072 | AB14: =SUM(AB15:AB2680) -> 2341273417 | AC14: =SUM(AC15:AC2680) -> 2511530905 | AD14: =SUM(AD15:AD2680) -> 2389924916 | AE14: =SUM(AE15:AE2680) -> 9647533309
B15: South Metropolitan | C15: EXIT-PK-3735 | D15: Metropolitan | E15: South | F15: General Recreation | G15: 0.5 | H15: 0 | I15: 359.5863806 | J15: =Table1[[#This Row],[Embellishment Area (m2)]]*Table1[[#This Row],[Construction Unit Rate ($/m)]]*Table1[[#This Row],[Embellishment Area Factor]] -> 0 | K15: 0 | L15: 107.0413135 | M15: =Table1[[#This Row],[Size of land (m2)]]*Table1[[#This Row],[Land Unit Rate ($/m2)]] -> 0 | N15: 2021 | O15: =ROUND(IF(Table1[[#This Row],[Valuation Year]]=2016,(Table1[[#This Row],[Total Construction Cost ($)]]+Table1[[#This Row],[Land Value]])*('General Input Sheet'!$G$38/'General Input Sheet'!$G$43),Table1[[#This Row],[Total Construction Cost ($)]]+Table1[[#This Row],[Land Value]]),0) -> 0 | P15: =_xlfn.IFS(Table1[[#This Row],[Asset Class]]<>"Local","y",P$11=$E15,"y",Table1[[#This Row],[Asset Class]]="Local","") -> y | Q15: =_xlfn.IFS(Table1[[#This Row],[Asset Class]]<>"Local","y",Q$11=$E15,"y",Table1[[#This Row],[Asset Class]]="Local","") -> y | R15: =_xlfn.IFS(Table1[[#This Row],[Asset Class]]<>"Local","y",R$11=$E15,"y",Table1[[#This Row],[Asset Class]]="Local","") -> y | S15: =_xlfn.IFS(Table1[[#This Row],[Asset Class]]<>"Local","y",S$11=$E15,"y",Table1[[#This Row],[Asset Class]]="Local","") -> y | U15: =IF(Table1[[#This Row],[Asset Class]]<>"Local",0.25,IF(P15="y",1,"")) -> 0.25 | V15: =IF(Table1[[#This Row],[Asset Class]]<>"Local",0.25,IF(Q15="y",1,"")) -> 0.25 | W15: =IF(Table1[[#This Row],[Asset Class]]<>"Local",0.25,IF(R15="y",1,"")) -> 0.25 | X15: =IF(Table1[[#This Row],[Asset Class]]<>"Local",0.25,IF(S15="y",1,"")) -> 0.25 | Y15: =SUM(U15:X15) -> 1 | AA15: =IF(U15="","",(U15/$Y15)*$O15) -> 0 | AB15: =IF(V15="","",(V15/$Y15)*$O15) -> 0 | AC15: =IF(W15="","",(W15/$Y15)*$O15) -> 0 | AD15: =IF(X15="","",(X15/$Y15)*$O15) -> 0 | AE15: =SUM(AA15:AD15) -> 0
B16: East District | C16: EXIT-PK-3736 | D16: District | E16: East | F16: Access Recreation Corridor | G16: 0.5 | H16: 0 | I16: 295.9181569 | J16: =Table1[[#This Row],[Embellishment Area (m2)]]*Table1[[#This Row],[Construction Unit Rate ($/m)]]*Table1[[#This Row],[Embellishment Area Factor]] -> 0 | K16: 0 | L16: 157.2622192 | M16: =Table1[[#This Row],[Size of land (m2)]]*Table1[[#This Row],[Land Unit Rate ($/m2)]] -> 0 | N16: 2021 | O16: =ROUND(IF(Table1[[#This Row],[Valuation Year]]=2016,(Table1[[#This Row],[Total Construction Cost ($)]]+Table1[[#This Row],[Land Value]])*('General Input Sheet'!$G$38/'General Input Sheet'!$G$43),Table1[[#This Row],[Total Construction Cost ($)]]+Table1[[#This Row],[Land Value]]),0) -> 0 | P16: =_xlfn.IFS(Table1[[#This Row],[Asset Class]]<>"Local","y",P$11=$E16,"y",Table1[[#This Row],[Asset Class]]="Local","") -> y | Q16: =_xlfn.IFS(Table1[[#This Row],[Asset Class]]<>"Local","y",Q$11=$E16,"y",Table1[[#This Row],[Asset Class]]="Local","") -> y | R16: =_xlfn.IFS(Table1[[#This Row],[Asset Class]]<>"Local","y",R$11=$E16,"y",Table1[[#This Row],[Asset Class]]="Local","") -> y | S16: =_xlfn.IFS(Table1[[#This Row],[Asset Class]]<>"Local","y",S$11=$E16,"y",Table1[[#This Row],[Asset Class]]="Local","") -> y | U16: =IF(Table1[[#This Row],[Asset Class]]<>"Local",0.25,IF(P16="y",1,"")) -> 0.25 | V16: =IF(Table1[[#This Row],[Asset Class]]<>"Local",0.25,IF(Q16="y",1,"")) -> 0.25 | W16: =IF(Table1[[#This Row],[Asset Class]]<>"Local",0.25,IF(R16="y",1,"")) -> 0.25 | X16: =IF(Table1[[#This Row],[Asset Class]]<>"Local",0.25,IF(S16="y",1,"")) -> 0.25 | Y16: 1 | AA16: 0 | AB16: 0 | AC16: 0 | AD16: 0 | AE16: 0
B17: East Local | C17: EXIT-PK-3737 | D17: Local | E17: East | F17: Access Recreation Corridor | G17: 0.5 | H17: 4523.12285 | I17: 111.6204104 | J17: =Table1[[#This Row],[Embellishment Area (m2)]]*Table1[[#This Row],[Construction Unit Rate ($/m)]]*Table1[[#This Row],[Embellishment Area Factor]] -> 252436.4143 | K17: 9046.2457 | L17: 66.12572262 | M17: =Table1[[#This Row],[Size of land (m2)]]*Table1[[#This Row],[Land Unit Rate ($/m2)]] -> 598189.5339 | N17: 2021 | O17: =ROUND(IF(Table1[[#This Row],[Valuation Year]]=2016,(Table1[[#This Row],[Total Construction Cost ($)]]+Table1[[#This Row],[Land Value]])*('General Input Sheet'!$G$38/'General Input Sheet'!$G$43),Table1[[#This Row],[Total Construction Cost ($)]]+Table1[[#This Row],[Land Value]]),0) -> 850626 | P17: =_xlfn.IFS(Table1[[#This Row],[Asset Class]]<>"Local","y",P$11=$E17,"y",Table1[[#This Row],[Asset Class]]="Local","") -> y | Q17: =_xlfn.IFS(Table1[[#This Row],[Asset Class]]<>"Local","y",Q$11=$E17,"y",Table1[[#This Row],[Asset Class]]="Local","") ->  | R17: =_xlfn.IFS(Table1[[#This Row],[Asset Class]]<>"Local","y",R$11=$E17,"y",Table1[[#This Row],[Asset Class]]="Local","") ->  | S17: =_xlfn.IFS(Table1[[#This Row],[Asset Class]]<>"Local","y",S$11=$E17,"y",Table1[[#This Row],[Asset Class]]="Local","") ->  | U17: =IF(Table1[[#This Row],[Asset Class]]<>"Local",0.25,IF(P17="y",1,"")) -> 1 | V17: =IF(Table1[[#This Row],[Asset Class]]<>"Local",0.25,IF(Q17="y",1,"")) ->  | W17: =IF(Table1[[#This Row],[Asset Class]]<>"Local",0.25,IF(R17="y",1,"")) ->  | X17: =IF(Table1[[#This Row],[Asset Class]]<>"Local",0.25,IF(S17="y",1,"")) ->  | Y17: 1 | AA17: 850626 | AE17: 850626
B18: D0001 West Local | C18: EXIT-PK-3738 | D18: Local | E18: West | F18: General Recreation | G18: 0.5 | H18: 3709.047526 | I18: 77.37164549 | J18: =Table1[[#This Row],[Embellishment Area (m2)]]*Table1[[#This Row],[Construction Unit Rate ($/m)]]*Table1[[#This Row],[Embellishment Area Factor]] -> 143487.5551 | K18: 7418.095052 | L18: 51.91969533 | M18: =Table1[[#This Row],[Size of land (m2)]]*Table1[[#This Row],[Land Unit Rate ($/m2)]] -> 385145.235 | N18: 2021 | O18: =ROUND(IF(Table1[[#This Row],[Valuation Year]]=2016,(Table1[[#This Row],[Total Construction Cost ($)]]+Table1[[#This Row],[Land Value]])*('General Input Sheet'!$G$38/'General Input Sheet'!$G$43),Table1[[#This Row],[Total Construction Cost ($)]]+Table1[[#This Row],[Land Value]]),0) -> 528633 | P18: =_xlfn.IFS(Table1[[#This Row],[Asset Class]]<>"Local","y",P$11=$E18,"y",Table1[[#This Row],[Asset Class]]="Local","") ->  | Q18: =_xlfn.IFS(Table1[[#This Row],[Asset Class]]<>"Local","y",Q$11=$E18,"y",Table1[[#This Row],[Asset Class]]="Local","") ->  | R18: =_xlfn.IFS(Table1[[#This Row],[Asset Class]]<>"Local","y",R$11=$E18,"y",Table1[[#This Row],[Asset Class]]="Local","") ->  | S18: =_xlfn.IFS(Table1[[#This Row],[Asset Class]]<>"Local","y",S$11=$E18,"y",Table1[[#This Row],[Asset Class]]="Local","") -> y | U18: =IF(Table1[[#This Row],[Asset Class]]<>"Local",0.25,IF(P18="y",1,"")) ->  | V18: =IF(Table1[[#This Row],[Asset Class]]<>"Local",0.25,IF(Q18="y",1,"")) ->  | W18: =IF(Table1[[#This Row],[Asset Class]]<>"Local",0.25,IF(R18="y",1,"")) ->  | X18: =IF(Table1[[#This Row],[Asset Class]]<>"Local",0.25,IF(S18="y",1,"")) -> 1 | Y18: 1 | AD18: 528633 | AE18: 528633
B19: D0001 West Local | C19: EXIT-PK-3739 | D19: Local | E19: West | F19: Access Recreation Corridor | G19: 0.5 | H19: 1255.019727 | I19: 77.37164549 | J19: =Table1[[#This Row],[Embellishment Area (m2)]]*Table1[[#This Row],[Construction Unit Rate ($/m)]]*Table1[[#This Row],[Embellishment Area Factor]] -> 48551.47068 | K19: 2510.039453 | L19: 51.91969533 | M19: =Table1[[#This Row],[Size of land (m2)]]*Table1[[#This Row],[Land Unit Rate ($/m2)]] -> 130320.4837 | N19: 2021 | O19: =ROUND(IF(Table1[[#This Row],[Valuation Year]]=2016,(Table1[[#This Row],[Total Construction Cost ($)]]+Table1[[#This Row],[Land Value]])*('General Input Sheet'!$G$38/'General Input Sheet'!$G$43),Table1[[#This Row],[Total Construction Cost ($)]]+Table1[[#This Row],[Land Value]]),0) -> 178872 | P19: =_xlfn.IFS(Table1[[#This Row],[Asset Class]]<>"Local","y",P$11=$E19,"y",Table1[[#This Row],[Asset Class]]="Local","") ->  | Q19: =_xlfn.IFS(Table1[[#This Row],[Asset Class]]<>"Local","y",Q$11=$E19,"y",Table1[[#This Row],[Asset Class]]="Local","") ->  | R19: =_xlfn.IFS(Table1[[#This Row],[Asset Class]]<>"Local","y",R$11=$E19,"y",Table1[[#This Row],[Asset Class]]="Local","") ->  | S19: =_xlfn.IFS(Table1[[#This Row],[Asset Class]]<>"Local","y",S$11=$E19,"y",Table1[[#This Row],[Asset Class]]="Local","") -> y | U19: =IF(Table1[[#This Row],[Asset Class]]<>"Local",0.25,IF(P19="y",1,"")) ->  | V19: =IF(Table1[[#This Row],[Asset Class]]<>"Local",0.25,IF(Q19="y",1,"")) ->  | W19: =IF(Table1[[#This Row],[Asset Class]]<>"Local",0.25,IF(R19="y",1,"")) ->  | X19: =IF(Table1[[#This Row],[Asset Class]]<>"Local",0.25,IF(S19="y",1,"")) -> 1 | Y19: 1 | AD19: 178872 | AE19: 178872
B20: D0001 West Local | C20: EXIT-PK-3740 | D20: Local | E20: West | F20: Access Recreation Corridor | G20: 0.5 | H20: 5921.795721 | I20: 77.37164549 | J20: =Table1[[#This Row],[Embellishment Area (m2)]]*Table1[[#This Row],[Construction Unit Rate ($/m)]]*Table1[[#This Row],[Embellishment Area Factor]] -> 229089.5396 | K20: 11843.59144 | L20: 51.91969533 | M20: =Table1[[#This Row],[Size of land (m2)]]*Table1[[#This Row],[Land Unit Rate ($/m2)]] -> 614915.6592 | N20: 2021 | O20: =ROUND(IF(Table1[[#This Row],[Valuation Year]]=2016,(Table1[[#This Row],[Total Construction Cost ($)]]+Table1[[#This Row],[Land Value]])*('General Input Sheet'!$G$38/'General Input Sheet'!$G$43),Table1[[#This Row],[Total Construction Cost ($)]]+Table1[[#This Row],[Land Value]]),0) -> 844005 | P20: =_xlfn.IFS(Table1[[#This Row],[Asset Class]]<>"Local","y",P$11=$E20,"y",Table1[[#This Row],[Asset Class]]="Local","") ->  | Q20: =_xlfn.IFS(Table1[[#This Row],[Asset Class]]<>"Local","y",Q$11=$E20,"y",Table1[[#This Row],[Asset Class]]="Local","") ->  | R20: =_xlfn.IFS(Table1[[#This Row],[Asset Class]]<>"Local","y",R$11=$E20,"y",Table1[[#This Row],[Asset Class]]="Local","") ->  | S20: =_xlfn.IFS(Table1[[#This Row],[Asset Class]]<>"Local","y",S$11=$E20,"y",Table1[[#This Row],[Asset Class]]="Local","") -> y | U20: =IF(Table1[[#This Row],[Asset Class]]<>"Local",0.25,IF(P20="y",1,"")) ->  | V20: =IF(Table1[[#This Row],[Asset Class]]<>"Local",0.25,IF(Q20="y",1,"")) ->  | W20: =IF(Table1[[#This Row],[Asset Class]]<>"Local",0.25,IF(R20="y",1,"")) ->  | X20: =IF(Table1[[#This Row],[Asset Class]]<>"Local",0.25,IF(S20="y",1,"")) -> 1 | Y20: 1 | AD20: 844005 | AE20: 844005
B21: D0002 East Local | C21: EXIT-PK-3741 | D21: Local | E21: East | F21: General Recreation | G21: 0.5 | H21: 4833.888369 | I21: 111.6204104 | J21: =Table1[[#This Row],[Embellishment Area (m2)]]*Table1[[#This Row],[Construction Unit Rate ($/m)]]*Table1[[#This Row],[Embellishment Area Factor]] -> 269780.3017 | K21: 0 | L21: 66.12572262 | M21: =Table1[[#This Row],[Size of land (m2)]]*Table1[[#This Row],[Land Unit Rate ($/m2)]] -> 0 | N21: 2021 | O21: =ROUND(IF(Table1[[#This Row],[Valuation Year]]=2016,(Table1[[#This Row],[Total Construction Cost ($)]]+Table1[[#This Row],[Land Value]])*('General Input Sheet'!$G$38/'General Input Sheet'!$G$43),Table1[[#This Row],[Total Construction Cost ($)]]+Table1[[#This Row],[Land Value]]),0) -> 269780 | P21: =_xlfn.IFS(Table1[[#This Row],[Asset Class]]<>"Local","y",P$11=$E21,"y",Table1[[#This Row],[Asset Class]]="Local","") -> y | Q21: =_xlfn.IFS(Table1[[#This Row],[Asset Class]]<>"Local","y",Q$11=$E21,"y",Table1[[#This Row],[Asset Class]]="Local","") ->  | R21: =_xlfn.IFS(Table1[[#This Row],[Asset Class]]<>"Local","y",R$11=$E21,"y",Table1[[#This Row],[Asset Class]]="Local","") ->  | S21: =_xlfn.IFS(Table1[[#This Row],[Asset Class]]<>"Local","y",S$11=$E21,"y",Table1[[#This Row],[Asset Class]]="Local","") ->  | U21: =IF(Table1[[#This Row],[Asset Class]]<>"Local",0.25,IF(P21="y",1,"")) -> 1 | V21: =IF(Table1[[#This Row],[Asset Class]]<>"Local",0.25,IF(Q21="y",1,"")) ->  | W21: =IF(Table1[[#This Row],[Asset Class]]<>"Local",0.25,IF(R21="y",1,"")) ->  | X21: =IF(Table1[[#This Row],[Asset Class]]<>"Local",0.25,IF(S21="y",1,"")) ->  | Y21: 1 | AA21: 269780 | AE21: 269780
B22: D0002 East Metropolitan | C22: EXIT-PK-3742 | D22: Metropolitan | E22: East | F22: Access Recreation Corridor | G22: 0.5 | H22: 872.4442838 | I22: 407.0646101 | J22: =Table1[[#This Row],[Embellishment Area (m2)]]*Table1[[#This Row],[Construction Unit Rate ($/m)]]*Table1[[#This Row],[Embellishment Area Factor]] -> 177570.5961 | K22: 0 | L22: 112.7890879 | M22: =Table1[[#This Row],[Size of land (m2)]]*Table1[[#This Row],[Land Unit Rate ($/m2)]] -> 0 | N22: 2021 | O22: =ROUND(IF(Table1[[#This Row],[Valuation Year]]=2016,(Table1[[#This Row],[Total Construction Cost ($)]]+Table1[[#This Row],[Land Value]])*('General Input Sheet'!$G$38/'General Input Sheet'!$G$43),Table1[[#This Row],[Total Construction Cost ($)]]+Table1[[#This Row],[Land Value]]),0) -> 177571 | P22: =_xlfn.IFS(Table1[[#This Row],[Asset Class]]<>"Local","y",P$11=$E22,"y",Table1[[#This Row],[Asset Class]]="Local","") -> y | Q22: =_xlfn.IFS(Table1[[#This Row],[Asset Class]]<>"Local","y",Q$11=$E22,"y",Table1[[#This Row],[Asset Class]]="Local","") -> y | R22: =_xlfn.IFS(Table1[[#This Row],[Asset Class]]<>"Local","y",R$11=$E22,"y",Table1[[#This Row],[Asset Class]]="Local","") -> y | S22: =_xlfn.IFS(Table1[[#This Row],[Asset Class]]<>"Local","y",S$11=$E22,"y",Table1[[#This Row],[Asset Class]]="Local","") -> y | U22: =IF(Table1[[#This Row],[Asset Class]]<>"Local",0.25,IF(P22="y",1,"")) -> 0.25 | V22: =IF(Table1[[#This Row],[Asset Class]]<>"Local",0.25,IF(Q22="y",1,"")) -> 0.25 | W22: =IF(Table1[[#This Row],[Asset Class]]<>"Local",0.25,IF(R22="y",1,"")) -> 0.25 | X22: =IF(Table1[[#This Row],[Asset Class]]<>"Local",0.25,IF(S22="y",1,"")) -> 0.25 | Y22: 1 | AA22: 44392.75 | AB22: 44392.75 | AC22: 44392.75 | AD22: 44392.75 | AE22: 177571
B23: D0003 East Local | C23: EXIT-PK-3743 | D23: Local | E23: East | F23: General Recreation | G23: 0.5 | H23: 9368.309552 | I23: 111.6204104 | J23: =Table1[[#This Row],[Embellishment Area (m2)]]*Table1[[#This Row],[Construction Unit Rate ($/m)]]*Table1[[#This Row],[Embellishment Area Factor]] -> 522847.2782 | K23: 18736.6191 | L23: 66.12572262 | M23: =Table1[[#This Row],[Size of land (m2)]]*Table1[[#This Row],[Land Unit Rate ($/m2)]] -> 1238972.478 | N23: 2021 | O23: =ROUND(IF(Table1[[#This Row],[Valuation Year]]=2016,(Table1[[#This Row],[Total Construction Cost ($)]]+Table1[[#This Row],[Land Value]])*('General Input Sheet'!$G$38/'General Input Sheet'!$G$43),Table1[[#This Row],[Total Construction Cost ($)]]+Table1[[#This Row],[Land Value]]),0) -> 1761820 | P23: =_xlfn.IFS(Table1[[#This Row],[Asset Class]]<>"Local","y",P$11=$E23,"y",Table1[[#This Row],[Asset Class]]="Local","") -> y | Q23: =_xlfn.IFS(Table1[[#This Row],[Asset Class]]<>"Local","y",Q$11=$E23,"y",Table1[[#This Row],[Asset Class]]="Local","") ->  | R23: =_xlfn.IFS(Table1[[#This Row],[Asset Class]]<>"Local","y",R$11=$E23,"y",Table1[[#This Row],[Asset Class]]="Local","") ->  | S23: =_xlfn.IFS(Table1[[#This Row],[Asset Class]]<>"Local","y",S$11=$E23,"y",Table1[[#This Row],[Asset Class]]="Local","") ->  | U23: =IF(Table1[[#This Row],[Asset Class]]<>"Local",0.25,IF(P23="y",1,"")) -> 1 | V23: =IF(Table1[[#This Row],[Asset Class]]<>"Local",0.25,IF(Q23="y",1,"")) ->  | W23: =IF(Table1[[#This Row],[Asset Class]]<>"Local",0.25,IF(R23="y",1,"")) ->  | X23: =IF(Table1[[#This Row],[Asset Class]]<>"Local",0.25,IF(S23="y",1,"")) ->  | Y23: 1 | AA23: 1761820 | AE23: 1761820
B24: D0004 South Local | C24: EXIT-PK-3744 | D24: Local | E24: South | F24: General Recreation | G24: 0.5 | H24: 4624.814979 | I24: 143.9630596 | J24: =Table1[[#This Row],[Embellishment Area (m2)]]*Table1[[#This Row],[Construction Unit Rate ($/m)]]*Table1[[#This Row],[Embellishment Area Factor]] -> 332901.2571 | K24: 9249.629958 | L24: 39.02749481 | M24: =Table1[[#This Row],[Size of land (m2)]]*Table1[[#This Row],[Land Unit Rate ($/m2)]] -> 360989.8852 | N24: 2021 | O24: =ROUND(IF(Table1[[#This Row],[Valuation Year]]=2016,(Table1[[#This Row],[Total Construction Cost ($)]]+Table1[[#This Row],[Land Value]])*('General Input Sheet'!$G$38/'General Input Sheet'!$G$43),Table1[[#This Row],[Total Construction Cost ($)]]+Table1[[#This Row],[Land Value]]),0) -> 693891 | P24: =_xlfn.IFS(Table1[[#This Row],[Asset Class]]<>"Local","y",P$11=$E24,"y",Table1[[#This Row],[Asset Class]]="Local","") ->  | Q24: =_xlfn.IFS(Table1[[#This Row],[Asset Class]]<>"Local","y",Q$11=$E24,"y",Table1[[#This Row],[Asset Class]]="Local","") ->  | R24: =_xlfn.IFS(Table1[[#This Row],[Asset Class]]<>"Local","y",R$11=$E24,"y",Table1[[#This Row],[Asset Class]]="Local","") -> y | S24: =_xlfn.IFS(Table1[[#This Row],[Asset Class]]<>"Local","y",S$11=$E24,"y",Table1[[#This Row],[Asset Class]]="Local","") ->  | U24: =IF(Table1[[#This Row],[Asset Class]]<>"Local",0.25,IF(P24="y",1,"")) ->  | V24: =IF(Table1[[#This Row],[Asset Class]]<>"Local",0.25,IF(Q24="y",1,"")) ->  | W24: =IF(Table1[[#This Row],[Asset Class]]<>"Local",0.25,IF(R24="y",1,"")) -> 1 | X24: =IF(Table1[[#This Row],[Asset Class]]<>"Local",0.25,IF(S24="y",1,"")) ->  | Y24: 1 | AC24: 693891 | AE24: 693891
B25: D0005 West Local | C25: EXIT-PK-3745 | D25: Local | E25: West | F25: General Recreation | G25: 0.5 | H25: 3813.315876 | I25: 77.37164549 | J25: =Table1[[#This Row],[Embellishment Area (m2)]]*Table1[[#This Row],[Construction Unit Rate ($/m)]]*Table1[[#This Row],[Embellishment Area Factor]] -> 147521.2621 | K25: 7626.631753 | L25: 51.91969533 | M25: =Table1[[#This Row],[Size of land (m2)]]*Table1[[#This Row],[Land Unit Rate ($/m2)]] -> 395972.397 | N25: 2021 | O25: =ROUND(IF(Table1[[#This Row],[Valuation Year]]=2016,(Table1[[#This Row],[Total Construction Cost ($)]]+Table1[[#This Row],[Land Value]])*('General Input Sheet'!$G$38/'General Input Sheet'!$G$43),Table1[[#This Row],[Total Construction Cost ($)]]+Table1[[#This Row],[Land Value]]),0) -> 543494 | P25: =_xlfn.IFS(Table1[[#This Row],[Asset Class]]<>"Local","y",P$11=$E25,"y",Table1[[#This Row],[Asset Class]]="Local","") ->  | Q25: =_xlfn.IFS(Table1[[#This Row],[Asset Class]]<>"Local","y",Q$11=$E25,"y",Table1[[#This Row],[Asset Class]]="Local","") ->  | R25: =_xlfn.IFS(Table1[[#This Row],[Asset Class]]<>"Local","y",R$11=$E25,"y",Table1[[#This Row],[Asset Class]]="Local","") ->  | S25: =_xlfn.IFS(Table1[[#This Row],[Asset Class]]<>"Local","y",S$11=$E25,"y",Table1[[#This Row],[Asset Class]]="Local","") -> y | U25: =IF(Table1[[#This Row],[Asset Class]]<>"Local",0.25,IF(P25="y",1,"")) ->  | V25: =IF(Table1[[#This Row],[Asset Class]]<>"Local",0.25,IF(Q25="y",1,"")) ->  | W25: =IF(Table1[[#This Row],[Asset Class]]<>"Local",0.25,IF(R25="y",1,"")) ->  | X25: =IF(Table1[[#This Row],[Asset Class]]<>"Local",0.25,IF(S25="y",1,"")) -> 1 | Y25: 1 | AD25: 543494 | AE25: 543494
B26: D0005 West District | C26: EXIT-PK-3746 | D26: District | E26: West | F26: Access Recreation Corridor | G26: 0.5 | H26: 7087.084456 | I26: 566.2872492 | J26: =Table1[[#This Row],[Embellishment Area (m2)]]*Table1[[#This Row],[Construction Unit Rate ($/m)]]*Table1[[#This Row],[Embellishment Area Factor]] -> 2006662.781 | K26: 14174.16891 | L26: 75.67690339 | M26: =Table1[[#This Row],[Size of land (m2)]]*Table1[[#This Row],[Land Unit Rate ($/m2)]] -> 1072657.211 | N26: 2021 | O26: =ROUND(IF(Table1[[#This Row],[Valuation Year]]=2016,(Table1[[#This Row],[Total Construction Cost ($)]]+Table1[[#This Row],[Land Value]])*('General Input Sheet'!$G$38/'General Input Sheet'!$G$43),Table1[[#This Row],[Total Construction Cost ($)]]+Table1[[#This Row],[Land Value]]),0) -> 3079320 | P26: =_xlfn.IFS(Table1[[#This Row],[Asset Class]]<>"Local","y",P$11=$E26,"y",Table1[[#This Row],[Asset Class]]="Local","") -> y | Q26: =_xlfn.IFS(Table1[[#This Row],[Asset Class]]<>"Local","y",Q$11=$E26,"y",Table1[[#This Row],[Asset Class]]="Local","") -> y | R26: =_xlfn.IFS(Table1[[#This Row],[Asset Class]]<>"Local","y",R$11=$E26,"y",Table1[[#This Row],[Asset Class]]="Local","") -> y | S26: =_xlfn.IFS(Table1[[#This Row],[Asset Class]]<>"Local","y",S$11=$E26,"y",Table1[[#This Row],[Asset Class]]="Local","") -> y | U26: =IF(Table1[[#This Row],[Asset Class]]<>"Local",0.25,IF(P26="y",1,"")) -> 0.25 | V26: =IF(Table1[[#This Row],[Asset Class]]<>"Local",0.25,IF(Q26="y",1,"")) -> 0.25 | W26: =IF(Table1[[#This Row],[Asset Class]]<>"Local",0.25,IF(R26="y",1,"")) -> 0.25 | X26: =IF(Table1[[#This Row],[Asset Class]]<>"Local",0.25,IF(S26="y",1,"")) -> 0.25 | Y26: 1 | AA26: 769830 | AB26: 769830 | AC26: 769830 | AD26: 769830 | AE26: 3079320
B27: D0006 East District | C27: EXIT-PK-3747 | D27: District | E27: East | F27: Specialised Outdoor Sport | G27: 0.5 | H27: 22187.05085 | I27: 295.9181569 | J27: =Table1[[#This Row],[Embellishment Area (m2)]]*Table1[[#This Row],[Construction Unit Rate ($/m)]]*Table1[[#This Row],[Embellishment Area Factor]] -> 3282775.598 | K27: 44374.1017 | L27: 157.2622192 | M27: =Table1[[#This Row],[Size of land (m2)]]*Table1[[#This Row],[Land Unit Rate ($/m2)]] -> 6978369.708 | N27: 2021 | O27: =ROUND(IF(Table1[[#This Row],[Valuation Year]]=2016,(Table1[[#This Row],[Total Construction Cost ($)]]+Table1[[#This Row],[Land Value]])*('General Input Sheet'!$G$38/'General Input Sheet'!$G$43),Table1[[#This Row],[Total Construction Cost ($)]]+Table1[[#This Row],[Land Value]]),0) -> 10261145 | P27: =_xlfn.IFS(Table1[[#This Row],[Asset Class]]<>"Local","y",P$11=$E27,"y",Table1[[#This Row],[Asset Class]]="Local","") -> y | Q27: =_xlfn.IFS(Table1[[#This Row],[Asset Class]]<>"Local","y",Q$11=$E27,"y",Table1[[#This Row],[Asset Class]]="Local","") -> y | R27: =_xlfn.IFS(Table1[[#This Row],[Asset Class]]<>"Local","y",R$11=$E27,"y",Table1[[#This Row],[Asset Class]]="Local","") -> y | S27: =_xlfn.IFS(Table1[[#This Row],[Asset Class]]<>"Local","y",S$11=$E27,"y",Table1[[#This Row],[Asset Class]]="Local","") -> y | U27: =IF(Table1[[#This Row],[Asset Class]]<>"Local",0.25,IF(P27="y",1,"")) -> 0.25 | V27: =IF(Table1[[#This Row],[Asset Class]]<>"Local",0.25,IF(Q27="y",1,"")) -> 0.25 | W27: =IF(Table1[[#This Row],[Asset Class]]<>"Local",0.25,IF(R27="y",1,"")) -> 0.25 | X27: =IF(Table1[[#This Row],[Asset Class]]<>"Local",0.25,IF(S27="y",1,"")) -> 0.25 | Y27: 1 | AA27: 2565286.25 | AB27: 2565286.25 | AC27: 2565286.25 | AD27: 2565286.25 | AE27: 10261145
B28: D0006 East Local | C28: EXIT-PK-3748 | D28: Local | E28: East | F28: General Recreation | G28: 0.5 | H28: 3867.291203 | I28: 111.6204104 | J28: =Table1[[#This Row],[Embellishment Area (m2)]]*Table1[[#This Row],[Construction Unit Rate ($/m)]]*Table1[[#This Row],[Embellishment Area Factor]] -> 215834.3155 | K28: 7734.582406 | L28: 66.12572262 | M28: =Table1[[#This Row],[Size of land (m2)]]*Table1[[#This Row],[Land Unit Rate ($/m2)]] -> 511454.8508 | N28: 2021 | O28: =ROUND(IF(Table1[[#This Row],[Valuation Year]]=2016,(Table1[[#This Row],[Total Construction Cost ($)]]+Table1[[#This Row],[Land Value]])*('General Input Sheet'!$G$38/'General Input Sheet'!$G$43),Table1[[#This Row],[Total Construction Cost ($)]]+Table1[[#This Row],[Land Value]]),0) -> 727289 | P28: =_xlfn.IFS(Table1[[#This Row],[Asset Class]]<>"Local","y",P$11=$E28,"y",Table1[[#This Row],[Asset Class]]="Local","") -> y | Q28: =_xlfn.IFS(Table1[[#This Row],[Asset Class]]<>"Local","y",Q$11=$E28,"y",Table1[[#This Row],[Asset Class]]="Local","") ->  | R28: =_xlfn.IFS(Table1[[#This Row],[Asset Class]]<>"Local","y",R$11=$E28,"y",Table1[[#This Row],[Asset Class]]="Local","") ->  | S28: =_xlfn.IFS(Table1[[#This Row],[Asset Class]]<>"Local","y",S$11=$E28,"y",Table1[[#This Row],[Asset Class]]="Local","") ->  | U28: =IF(Table1[[#This Row],[Asset Class]]<>"Local",0.25,IF(P28="y",1,"")) -> 1 | V28: =IF(Table1[[#This Row],[Asset Class]]<>"Local",0.25,IF(Q28="y",1,"")) ->  | W28: =IF(Table1[[#This Row],[Asset Class]]<>"Local",0.25,IF(R28="y",1,"")) ->  | X28: =IF(Table1[[#This Row],[Asset Class]]<>"Local",0.25,IF(S28="y",1,"")) ->  | Y28: 1 | AA28: 727289 | AE28: 727289
B29: D0006 East Local | C29: EXIT-PK-3749 | D29: Local | E29: East | F29: General Recreation | G29: 0.5 | H29: 4508.232527 | I29: 111.6204104 | J29: =Table1[[#This Row],[Embellishment Area (m2)]]*Table1[[#This Row],[Construction Unit Rate ($/m)]]*Table1[[#This Row],[Embellishment Area Factor]] -> 251605.3823 | K29: 9016.465054 | L29: 66.12572262 | M29: =Table1[[#This Row],[Size of land (m2)]]*Table1[[#This Row],[Land Unit Rate ($/m2)]] -> 596220.2672 | N29: 2021 | O29: =ROUND(IF(Table1[[#This Row],[Valuation Year]]=2016,(Table1[[#This Row],[Total Construction Cost ($)]]+Table1[[#This Row],[Land Value]])*('General Input Sheet'!$G$38/'General Input Sheet'!$G$43),Table1[[#This Row],[Total Construction Cost ($)]]+Table1[[#This Row],[Land Value]]),0) -> 847826 | P29: =_xlfn.IFS(Table1[[#This Row],[Asset Class]]<>"Local","y",P$11=$E29,"y",Table1[[#This Row],[Asset Class]]="Local","") -> y | Q29: =_xlfn.IFS(Table1[[#This Row],[Asset Class]]<>"Local","y",Q$11=$E29,"y",Table1[[#This Row],[Asset Class]]="Local","") ->  | R29: =_xlfn.IFS(Table1[[#This Row],[Asset Class]]<>"Local","y",R$11=$E29,"y",Table1[[#This Row],[Asset Class]]="Local","") ->  | S29: =_xlfn.IFS(Table1[[#This Row],[Asset Class]]<>"Local","y",S$11=$E29,"y",Table1[[#This Row],[Asset Class]]="Local","") ->  | U29: =IF(Table1[[#This Row],[Asset Class]]<>"Local",0.25,IF(P29="y",1,"")) -> 1 | V29: =IF(Table1[[#This Row],[Asset Class]]<>"Local",0.25,IF(Q29="y",1,"")) ->  | W29: =IF(Table1[[#This Row],[Asset Class]]<>"Local",0.25,IF(R29="y",1,"")) ->  | X29: =IF(Table1[[#This Row],[Asset Class]]<>"Local",0.25,IF(S29="y",1,"")) ->  | Y29: 1 | AA29: 847826 | AE29: 847826
B30: D0006 East District | C30: EXIT-PK-3750 | D30: District | E30: East | F30: General Outdoor Sport | G30: 0.5 | H30: 26626.49146 | I30: 295.9181569 | J30: =Table1[[#This Row],[Embellishment Area (m2)]]*Table1[[#This Row],[Construction Unit Rate ($/m)]]*Table1[[#This Row],[Embellishment Area Factor]] -> 3939631.139 | K30: 53252.98292 | L30: 157.2622192 | M30: =Table1[[#This Row],[Size of land (m2)]]*Table1[[#This Row],[Land Unit Rate ($/m2)]] -> 8374682.272 | N30: 2021 | O30: =ROUND(IF(Table1[[#This Row],[Valuation Year]]=2016,(Table1[[#This Row],[Total Construction Cost ($)]]+Table1[[#This Row],[Land Value]])*('General Input Sheet'!$G$38/'General Input Sheet'!$G$43),Table1[[#This Row],[Total Construction Cost ($)]]+Table1[[#This Row],[Land Value]]),0) -> 12314313 | P30: =_xlfn.IFS(Table1[[#This Row],[Asset Class]]<>"Local","y",P$11=$E30,"y",Table1[[#This Row],[Asset Class]]="Local","") -> y | Q30: =_xlfn.IFS(Table1[[#This Row],[Asset Class]]<>"Local","y",Q$11=$E30,"y",Table1[[#This Row],[Asset Class]]="Local","") -> y | R30: =_xlfn.IFS(Table1[[#This Row],[Asset Class]]<>"Local","y",R$11=$E30,"y",Table1[[#This Row],[Asset Class]]="Local","") -> y | S30: =_xlfn.IFS(Table1[[#This Row],[Asset Class]]<>"Local","y",S$11=$E30,"y",Table1[[#This Row],[Asset Class]]="Local","") -> y | U30: =IF(Table1[[#This Row],[Asset Class]]<>"Local",0.25,IF(P30="y",1,"")) -> 0.25 | V30: =IF(Table1[[#This Row],[Asset Class]]<>"Local",0.25,IF(Q30="y",1,"")) -> 0.25 | W30: =IF(Table1[[#This Row],[Asset Class]]<>"Local",0.25,IF(R30="y",1,"")) -> 0.25 | X30: =IF(Table1[[#This Row],[Asset Class]]<>"Local",0.25,IF(S30="y",1,"")) -> 0.25 | Y30: 1 | AA30: 3078578.25 | AB30: 3078578.25 | AC30: 3078578.25 | AD30: 3078578.25 | AE30: 12314313
B31: D0007 East Local | C31: EXIT-PK-3752 | D31: Local | E31: East | F31: General Recreation | G31: 0.5 | H31: 12946.22899 | I31: 111.6204104 | J31: =Table1[[#This Row],[Embellishment Area (m2)]]*Table1[[#This Row],[Construction Unit Rate ($/m)]]*Table1[[#This Row],[Embellishment Area Factor]] -> 722531.6963 | K31: 0 | L31: 66.12572262 | M31: =Table1[[#This Row],[Size of land (m2)]]*Table1[[#This Row],[Land Unit Rate ($/m2)]] -> 0 | N31: 2021 | O31: =ROUND(IF(Table1[[#This Row],[Valuation Year]]=2016,(Table1[[#This Row],[Total Construction Cost ($)]]+Table1[[#This Row],[Land Value]])*('General Input Sheet'!$G$38/'General Input Sheet'!$G$43),Table1[[#This Row],[Total Construction Cost ($)]]+Table1[[#This Row],[Land Value]]),0) -> 722532 | P31: =_xlfn.IFS(Table1[[#This Row],[Asset Class]]<>"Local","y",P$11=$E31,"y",Table1[[#This Row],[Asset Class]]="Local","") -> y | Q31: =_xlfn.IFS(Table1[[#This Row],[Asset Class]]<>"Local","y",Q$11=$E31,"y",Table1[[#This Row],[Asset Class]]="Local","") ->  | R31: =_xlfn.IFS(Table1[[#This Row],[Asset Class]]<>"Local","y",R$11=$E31,"y",Table1[[#This Row],[Asset Class]]="Local","") ->  | S31: =_xlfn.IFS(Table1[[#This Row],[Asset Class]]<>"Local","y",S$11=$E31,"y",Table1[[#This Row],[Asset Class]]="Local","") ->  | U31: =IF(Table1[[#This Row],[Asset Class]]<>"Local",0.25,IF(P31="y",1,"")) -> 1 | V31: =IF(Table1[[#This Row],[Asset Class]]<>"Local",0.25,IF(Q31="y",1,"")) ->  | W31: =IF(Table1[[#This Row],[Asset Class]]<>"Local",0.25,IF(R31="y",1,"")) ->  | X31: =IF(Table1[[#This Row],[Asset Class]]<>"Local",0.25,IF(S31="y",1,"")) ->  | Y31: 1 | AA31: 722532 | AE31: 722532
B32: D0007 East District | C32: EXIT-PK-3753 | D32: District | E32: East | F32: General Outdoor Sport | G32: 0.5 | H32: 36530.24299 | I32: 295.9181569 | J32: =Table1[[#This Row],[Embellishment Area (m2)]]*Table1[[#This Row],[Construction Unit Rate ($/m)]]*Table1[[#This Row],[Embellishment Area Factor]] -> 5404981.089 | K32: 0 | L32: 157.2622192 | M32: =Table1[[#This Row],[Size of land (m2)]]*Table1[[#This Row],[Land Unit Rate ($/m2)]] -> 0 | N32: 2021 | O32: =ROUND(IF(Table1[[#This Row],[Valuation Year]]=2016,(Table1[[#This Row],[Total Construction Cost ($)]]+Table1[[#This Row],[Land Value]])*('General Input Sheet'!$G$38/'General Input Sheet'!$G$43),Table1[[#This Row],[Total Construction Cost ($)]]+Table1[[#This Row],[Land Value]]),0) -> 5404981 | P32: =_xlfn.IFS(Table1[[#This Row],[Asset Class]]<>"Local","y",P$11=$E32,"y",Table1[[#This Row],[Asset Class]]="Local","") -> y | Q32: =_xlfn.IFS(Table1[[#This Row],[Asset Class]]<>"Local","y",Q$11=$E32,"y",Table1[[#This Row],[Asset Class]]="Local","") -> y | R32: =_xlfn.IFS(Table1[[#This Row],[Asset Class]]<>"Local","y",R$11=$E32,"y",Table1[[#This Row],[Asset Class]]="Local","") -> y | S32: =_xlfn.IFS(Table1[[#This Row],[Asset Class]]<>"Local","y",S$11=$E32,"y",Table1[[#This Row],[Asset Class]]="Local","") -> y | U32: =IF(Table1[[#This Row],[Asset Class]]<>"Local",0.25,IF(P32="y",1,"")) -> 0.25 | V32: =IF(Table1[[#This Row],[Asset Class]]<>"Local",0.25,IF(Q32="y",1,"")) -> 0.25 | W32: =IF(Table1[[#This Row],[Asset Class]]<>"Local",0.25,IF(R32="y",1,"")) -> 0.25 | X32: =IF(Table1[[#This Row],[Asset Class]]<>"Local",0.25,IF(S32="y",1,"")) -> 0.25 | Y32: 1 | AA32: 1351245.25 | AB32: 1351245.25 | AC32: 1351245.25 | AD32: 1351245.25 | AE32: 5404981
B33: D0008 North Local | C33: EXIT-PK-3754 | D33: Local | E33: North | F33: General Recreation | G33: 0.5 | H33: 19372.92037 | I33: 115.6419902 | J33: =Table1[[#This Row],[Embellishment Area (m2)]]*Table1[[#This Row],[Construction Unit Rate ($/m)]]*Table1[[#This Row],[Embellishment Area Factor]] -> 1120161.534 | K33: 38745.84074 | L33: 85.33182696 | M33: =Table1[[#This Row],[Size of land (m2)]]*Table1[[#This Row],[Land Unit Rate ($/m2)]] -> 3306253.378 | N33: 2021 | O33: =ROUND(IF(Table1[[#This Row],[Valuation Year]]=2016,(Table1[[#This Row],[Total Construction Cost ($)]]+Table1[[#This Row],[Land Value]])*('General Input Sheet'!$G$38/'General Input Sheet'!$G$43),Table1[[#This Row],[Total Construction Cost ($)]]+Table1[[#This Row],[Land Value]]),0) -> 4426415 | P33: =_xlfn.IFS(Table1[[#This Row],[Asset Class]]<>"Local","y",P$11=$E33,"y",Table1[[#This Row],[Asset Class]]="Local","") ->  | Q33: =_xlfn.IFS(Table1[[#This Row],[Asset Class]]<>"Local","y",Q$11=$E33,"y",Table1[[#This Row],[Asset Class]]="Local","") -> y | R33: =_xlfn.IFS(Table1[[#This Row],[Asset Class]]<>"Local","y",R$11=$E33,"y",Table1[[#This Row],[Asset Class]]="Local","") ->  | S33: =_xlfn.IFS(Table1[[#This Row],[Asset Class]]<>"Local","y",S$11=$E33,"y",Table1[[#This Row],[Asset Class]]="Local","") ->  | U33: =IF(Table1[[#This Row],[Asset Class]]<>"Local",0.25,IF(P33="y",1,"")) ->  | V33: =IF(Table1[[#This Row],[Asset Class]]<>"Local",0.25,IF(Q33="y",1,"")) -> 1 | W33: =IF(Table1[[#This Row],[Asset Class]]<>"Local",0.25,IF(R33="y",1,"")) ->  | X33: =IF(Table1[[#This Row],[Asset Class]]<>"Local",0.25,IF(S33="y",1,"")) ->  | Y33: 1 | AB33: 4426415 | AE33: 4426415
B34: D0009 South Local | C34: EXIT-PK-3755 | D34: Local | E34: South | F34: General Recreation | G34: 0.5 | H34: 6180.218638 | I34: 143.9630596 | J34: =Table1[[#This Row],[Embellishment Area (m2)]]*Table1[[#This Row],[Construction Unit Rate ($/m)]]*Table1[[#This Row],[Embellishment Area Factor]] -> 444861.5919 | K34: 12360.43728 | L34: 39.02749481 | M34: =Table1[[#This Row],[Size of land (m2)]]*Table1[[#This Row],[Land Unit Rate ($/m2)]] -> 482396.9016 | N34: 2021 | O34: =ROUND(IF(Table1[[#This Row],[Valuation Year]]=2016,(Table1[[#This Row],[Total Construction Cost ($)]]+Table1[[#This Row],[Land Value]])*('General Input Sheet'!$G$38/'General Input Sheet'!$G$43),Table1[[#This Row],[Total Construction Cost ($)]]+Table1[[#This Row],[Land Value]]),0) -> 927258 | P34: =_xlfn.IFS(Table1[[#This Row],[Asset Class]]<>"Local","y",P$11=$E34,"y",Table1[[#This Row],[Asset Class]]="Local","") ->  | Q34: =_xlfn.IFS(Table1[[#This Row],[Asset Class]]<>"Local","y",Q$11=$E34,"y",Table1[[#This Row],[Asset Class]]="Local","") ->  | R34: =_xlfn.IFS(Table1[[#This Row],[Asset Class]]<>"Local","y",R$11=$E34,"y",Table1[[#This Row],[Asset Class]]="Local","") -> y | S34: =_xlfn.IFS(Table1[[#This Row],[Asset Class]]<>"Local","y",S$11=$E34,"y",Table1[[#This Row],[Asset Class]]="Local","") ->  | U34: =IF(Table1[[#This Row],[Asset Class]]<>"Local",0.25,IF(P34="y",1,"")) ->  | V34: =IF(Table1[[#This Row],[Asset Class]]<>"Local",0.25,IF(Q34="y",1,"")) ->  | W34: =IF(Table1[[#This Row],[Asset Class]]<>"Local",0.25,IF(R34="y",1,"")) -> 1 | X34: =IF(Table1[[#This Row],[Asset Class]]<>"Local",0.25,IF(S34="y",1,"")) ->  | Y34: 1 | AC34: 927258 | AE34: 927258
B35: D0010 South District | C35: EXIT-PK-3757 | D35: District | E35: South | F35: Access Recreation Corridor | G35: 0.5 | H35: 8719.6686 | I35: 452.8789863 | J35: =Table1[[#This Row],[Embellishment Area (m2)]]*Table1[[#This Row],[Construction Unit Rate ($/m)]]*Table1[[#This Row],[Embellishment Area Factor]] -> 1974477.338 | K35: 17439.3372 | L35: 140.1454607 | M35: =Table1[[#This Row],[Size of land (m2)]]*Table1[[#This Row],[Land Unit Rate ($/m2)]] -> 2444043.946 | N35: 2021 | O35: =ROUND(IF(Table1[[#This Row],[Valuation Year]]=2016,(Table1[[#This Row],[Total Construction Cost ($)]]+Table1[[#This Row],[Land Value]])*('General Input Sheet'!$G$38/'General Input Sheet'!$G$43),Table1[[#This Row],[Total Construction Cost ($)]]+Table1[[#This Row],[Land Value]]),0) -> 4418521 | P35: =_xlfn.IFS(Table1[[#This Row],[Asset Class]]<>"Local","y",P$11=$E35,"y",Table1[[#This Row],[Asset Class]]="Local","") -> y | Q35: =_xlfn.IFS(Table1[[#This Row],[Asset Class]]<>"Local","y",Q$11=$E35,"y",Table1[[#This Row],[Asset Class]]="Local","") -> y | R35: =_xlfn.IFS(Table1[[#This Row],[Asset Class]]<>"Local","y",R$11=$E35,"y",Table1[[#This Row],[Asset Class]]="Local","") -> y | S35: =_xlfn.IFS(Table1[[#This Row],[Asset Class]]<>"Local","y",S$11=$E35,"y",Table1[[#This Row],[Asset Class]]="Local","") -> y | U35: =IF(Table1[[#This Row],[Asset Class]]<>"Local",0.25,IF(P35="y",1,"")) -> 0.25 | V35: =IF(Table1[[#This Row],[Asset Class]]<>"Local",0.25,IF(Q35="y",1,"")) -> 0.25 | W35: =IF(Table1[[#This Row],[Asset Class]]<>"Local",0.25,IF(R35="y",1,"")) -> 0.25 | X35: =IF(Table1[[#This Row],[Asset Class]]<>"Local",0.25,IF(S35="y",1,"")) -> 0.25 | Y35: 1 | AA35: 1104630.25 | AB35: 1104630.25 | AC35: 1104630.25 | AD35: 1104630.25 | AE35: 4418521
B36: D0010 South District | C36: EXIT-PK-3758 | D36: District | E36: South | F36: General Recreation | G36: 0.5 | H36: 645.4502281 | I36: 452.8789863 | J36: =Table1[[#This Row],[Embellishment Area (m2)]]*Table1[[#This Row],[Construction Unit Rate ($/m)]]*Table1[[#This Row],[Embellishment Area Factor]] -> 146155.4225 | K36: 1290.900456 | L36: 140.1454607 | M36: =Table1[[#This Row],[Size of land (m2)]]*Table1[[#This Row],[Land Unit Rate ($/m2)]] -> 180913.8391 | N36: 2021 | O36: =ROUND(IF(Table1[[#This Row],[Valuation Year]]=2016,(Table1[[#This Row],[Total Construction Cost ($)]]+Table1[[#This Row],[Land Value]])*('General Input Sheet'!$G$38/'General Input Sheet'!$G$43),Table1[[#This Row],[Total Construction Cost ($)]]+Table1[[#This Row],[Land Value]]),0) -> 327069 | P36: =_xlfn.IFS(Table1[[#This Row],[Asset Class]]<>"Local","y",P$11=$E36,"y",Table1[[#This Row],[Asset Class]]="Local","") -> y | Q36: =_xlfn.IFS(Table1[[#This Row],[Asset Class]]<>"Local","y",Q$11=$E36,"y",Table1[[#This Row],[Asset Class]]="Local","") -> y | R36: =_xlfn.IFS(Table1[[#This Row],[Asset Class]]<>"Local","y",R$11=$E36,"y",Table1[[#This Row],[Asset Class]]="Local","") -> y | S36: =_xlfn.IFS(Table1[[#This Row],[Asset Class]]<>"Local","y",S$11=$E36,"y",Table1[[#This Row],[Asset Class]]="Local","") -> y | U36: =IF(Table1[[#This Row],[Asset Class]]<>"Local",0.25,IF(P36="y",1,"")) -> 0.25 | V36: =IF(Table1[[#This Row],[Asset Class]]<>"Local",0.25,IF(Q36="y",1,"")) -> 0.25 | W36: =IF(Table1[[#This Row],[Asset Class]]<>"Local",0.25,IF(R36="y",1,"")) -> 0.25 | X36: =IF(Table1[[#This Row],[Asset Class]]<>"Local",0.25,IF(S36="y",1,"")) -> 0.25 | Y36: 1 | AA36: 81767.25 | AB36: 81767.25 | AC36: 81767.25 | AD36: 81767.25 | AE36: 327069
B37: D0010 South District | C37: EXIT-PK-3759 | D37: District | E37: South | F37: General Recreation | G37: 0.5 | H37: 24838.90508 | I37: 452.8789863 | J37: =Table1[[#This Row],[Embellishment Area (m2)]]*Table1[[#This Row],[Construction Unit Rate ($/m)]]*Table1[[#This Row],[Embellishment Area Factor]] -> 5624509.076 | K37: 49677.81015 | L37: 140.1454607 | M37: =Table1[[#This Row],[Size of land (m2)]]*Table1[[#This Row],[Land Unit Rate ($/m2)]] -> 6962119.59 | N37: 2021 | O37: =ROUND(IF(Table1[[#This Row],[Valuation Year]]=2016,(Table1[[#This Row],[Total Construction Cost ($)]]+Table1[[#This Row],[Land Value]])*('General Input Sheet'!$G$38/'General Input Sheet'!$G$43),Table1[[#This Row],[Total Construction Cost ($)]]+Table1[[#This Row],[Land Value]]),0) -> 12586629 | P37: =_xlfn.IFS(Table1[[#This Row],[Asset Class]]<>"Local","y",P$11=$E37,"y",Table1[[#This Row],[Asset Class]]="Local","") -> y | Q37: =_xlfn.IFS(Table1[[#This Row],[Asset Class]]<>"Local","y",Q$11=$E37,"y",Table1[[#This Row],[Asset Class]]="Local","") -> y | R37: =_xlfn.IFS(Table1[[#This Row],[Asset Class]]<>"Local","y",R$11=$E37,"y",Table1[[#This Row],[Asset Class]]="Local","") -> y | S37: =_xlfn.IFS(Table1[[#This Row],[Asset Class]]<>"Local","y",S$11=$E37,"y",Table1[[#This Row],[Asset Class]]="Local","") -> y | U37: =IF(Table1[[#This Row],[Asset Class]]<>"Local",0.25,IF(P37="y",1,"")) -> 0.25 | V37: =IF(Table1[[#This Row],[Asset Class]]<>"Local",0.25,IF(Q37="y",1,"")) -> 0.25 | W37: =IF(Table1[[#This Row],[Asset Class]]<>"Local",0.25,IF(R37="y",1,"")) -> 0.25 | X37: =IF(Table1[[#This Row],[Asset Class]]<>"Local",0.25,IF(S37="y",1,"")) -> 0.25 | Y37: 1 | AA37: 3146657.25 | AB37: 3146657.25 | AC37: 3146657.25 | AD37: 3146657.25 | AE37: 12586629
B38: D0010 South District | C38: EXIT-PK-3761 | D38: District | E38: South | F38: General Outdoor Sport | G38: 0.5 | H38: 16190.9152 | I38: 452.8789863 | J38: =Table1[[#This Row],[Embellishment Area (m2)]]*Table1[[#This Row],[Construction Unit Rate ($/m)]]*Table1[[#This Row],[Embellishment Area Factor]] -> 3666262.631 | K38: 32381.8304 | L38: 140.1454607 | M38: =Table1[[#This Row],[Size of land (m2)]]*Table1[[#This Row],[Land Unit Rate ($/m2)]] -> 4538166.539 | N38: 2021 | O38: =ROUND(IF(Table1[[#This Row],[Valuation Year]]=2016,(Table1[[#This Row],[Total Construction Cost ($)]]+Table1[[#This Row],[Land Value]])*('General Input Sheet'!$G$38/'General Input Sheet'!$G$43),Table1[[#This Row],[Total Construction Cost ($)]]+Table1[[#This Row],[Land Value]]),0) -> 8204429 | P38: =_xlfn.IFS(Table1[[#This Row],[Asset Class]]<>"Local","y",P$11=$E38,"y",Table1[[#This Row],[Asset Class]]="Local","") -> y | Q38: =_xlfn.IFS(Table1[[#This Row],[Asset Class]]<>"Local","y",Q$11=$E38,"y",Table1[[#This Row],[Asset Class]]="Local","") -> y | R38: =_xlfn.IFS(Table1[[#This Row],[Asset Class]]<>"Local","y",R$11=$E38,"y",Table1[[#This Row],[Asset Class]]="Local","") -> y | S38: =_xlfn.IFS(Table1[[#This Row],[Asset Class]]<>"Local","y",S$11=$E38,"y",Table1[[#This Row],[Asset Class]]="Local","") -> y | U38: =IF(Table1[[#This Row],[Asset Class]]<>"Local",0.25,IF(P38="y",1,"")) -> 0.25 | V38: =IF(Table1[[#This Row],[Asset Class]]<>"Local",0.25,IF(Q38="y",1,"")) -> 0.25 | W38: =IF(Table1[[#This Row],[Asset Class]]<>"Local",0.25,IF(R38="y",1,"")) -> 0.25 | X38: =IF(Table1[[#This Row],[Asset Class]]<>"Local",0.25,IF(S38="y",1,"")) -> 0.25 | Y38: 1 | AA38: 2051107.25 | AB38: 2051107.25 | AC38: 2051107.25 | AD38: 2051107.25 | AE38: 8204429
B39: D0010 South District | C39: EXIT-PK-3762 | D39: District | E39: South | F39: General Recreation | G39: 0.5 | H39: 22323.56627 | I39: 452.8789863 | J39: =Table1[[#This Row],[Embellishment Area (m2)]]*Table1[[#This Row],[Construction Unit Rate ($/m)]]*Table1[[#This Row],[Embellishment Area Factor]] -> 5054937.032 | K39: 44647.13254 | L39: 140.1454607 | M39: =Table1[[#This Row],[Size of land (m2)]]*Table1[[#This Row],[Land Unit Rate ($/m2)]] -> 6257092.959 | N39: 2021 | O39: =ROUND(IF(Table1[[#This Row],[Valuation Year]]=2016,(Table1[[#This Row],[Total Construction Cost ($)]]+Table1[[#This Row],[Land Value]])*('General Input Sheet'!$G$38/'General Input Sheet'!$G$43),Table1[[#This Row],[Total Construction Cost ($)]]+Table1[[#This Row],[Land Value]]),0) -> 11312030 | P39: =_xlfn.IFS(Table1[[#This Row],[Asset Class]]<>"Local","y",P$11=$E39,"y",Table1[[#This Row],[Asset Class]]="Local","") -> y | Q39: =_xlfn.IFS(Table1[[#This Row],[Asset Class]]<>"Local","y",Q$11=$E39,"y",Table1[[#This Row],[Asset Class]]="Local","") -> y | R39: =_xlfn.IFS(Table1[[#This Row],[Asset Class]]<>"Local","y",R$11=$E39,"y",Table1[[#This Row],[Asset Class]]="Local","") -> y | S39: =_xlfn.IFS(Table1[[#This Row],[Asset Class]]<>"Local","y",S$11=$E39,"y",Table1[[#This Row],[Asset Class]]="Local","") -> y | U39: =IF(Table1[[#This Row],[Asset Class]]<>"Local",0.25,IF(P39="y",1,"")) -> 0.25 | V39: =IF(Table1[[#This Row],[Asset Class]]<>"Local",0.25,IF(Q39="y",1,"")) -> 0.25 | W39: =IF(Table1[[#This Row],[Asset Class]]<>"Local",0.25,IF(R39="y",1,"")) -> 0.25 | X39: =IF(Table1[[#This Row],[Asset Class]]<>"Local",0.25,IF(S39="y",1,"")) -> 0.25 | Y39: 1 | AA39: 2828007.5 | AB39: 2828007.5 | AC39: 2828007.5 | AD39: 2828007.5 | AE39: 11312030
B40: D0011 South District | C40: EXIT-PK-3763 | D40: District | E40: South | F40: General Recreation | G40: 0.5 | H40: 18128.91219 | I40: 452.8789863 | J40: =Table1[[#This Row],[Embellishment Area (m2)]]*Table1[[#This Row],[Construction Unit Rate ($/m)]]*Table1[[#This Row],[Embellishment Area Factor]] -> 4105101.689 | K40: 36257.82439 | L40: 140.1454607 | M40: =Table1[[#This Row],[Size of land (m2)]]*Table1[[#This Row],[Land Unit Rate ($/m2)]] -> 5081369.503 | N40: 2021 | O40: =ROUND(IF(Table1[[#This Row],[Valuation Year]]=2016,(Table1[[#This Row],[Total Construction Cost ($)]]+Table1[[#This Row],[Land Value]])*('General Input Sheet'!$G$38/'General Input Sheet'!$G$43),Table1[[#This Row],[Total Construction Cost ($)]]+Table1[[#This Row],[Land Value]]),0) -> 9186471 | P40: =_xlfn.IFS(Table1[[#This Row],[Asset Class]]<>"Local","y",P$11=$E40,"y",Table1[[#This Row],[Asset Class]]="Local","") -> y | Q40: =_xlfn.IFS(Table1[[#This Row],[Asset Class]]<>"Local","y",Q$11=$E40,"y",Table1[[#This Row],[Asset Class]]="Local","") -> y | R40: =_xlfn.IFS(Table1[[#This Row],[Asset Class]]<>"Local","y",R$11=$E40,"y",Table1[[#This Row],[Asset Class]]="Local","") -> y | S40: =_xlfn.IFS(Table1[[#This Row],[Asset Class]]<>"Local","y",S$11=$E40,"y",Table1[[#This Row],[Asset Class]]="Local","") -> y | U40: =IF(Table1[[#This Row],[Asset Class]]<>"Local",0.25,IF(P40="y",1,"")) -> 0.25 | V40: =IF(Table1[[#This Row],[Asset Class]]<>"Local",0.25,IF(Q40="y",1,"")) -> 0.25 | W40: =IF(Table1[[#This Row],[Asset Class]]<>"Local",0.25,IF(R40="y",1,"")) -> 0.25 | X40: =IF(Table1[[#This Row],[Asset Class]]<>"Local",0.25,IF(S40="y",1,"")) -> 0.25 | Y40: 1 | AA40: 2296617.75 | AB40: 2296617.75 | AC40: 2296617.75 | AD40: 2296617.75 | AE40: 9186471
B41: D0012 South Local | C41: EXIT-PK-3764 | D41: Local | E41: South | F41: General Recreation | G41: 0.5 | H41: 7931.483093 | I41: 143.9630596 | J41: =Table1[[#This Row],[Embellishment Area (m2)]]*Table1[[#This Row],[Construction Unit Rate ($/m)]]*Table1[[#This Row],[Embellishment Area Factor]] -> 570920.2865 | K41: 15862.96619 | L41: 39.02749481 | M41: =Table1[[#This Row],[Size of land (m2)]]*Table1[[#This Row],[Land Unit Rate ($/m2)]] -> 619091.8305 | N41: 2021 | O41: =ROUND(IF(Table1[[#This Row],[Valuation Year]]=2016,(Table1[[#This Row],[Total Construction Cost ($)]]+Table1[[#This Row],[Land Value]])*('General Input Sheet'!$G$38/'General Input Sheet'!$G$43),Table1[[#This Row],[Total Construction Cost ($)]]+Table1[[#This Row],[Land Value]]),0) -> 1190012 | P41: =_xlfn.IFS(Table1[[#This Row],[Asset Class]]<>"Local","y",P$11=$E41,"y",Table1[[#This Row],[Asset Class]]="Local","") ->  | Q41: =_xlfn.IFS(Table1[[#This Row],[Asset Class]]<>"Local","y",Q$11=$E41,"y",Table1[[#This Row],[Asset Class]]="Local","") ->  | R41: =_xlfn.IFS(Table1[[#This Row],[Asset Class]]<>"Local","y",R$11=$E41,"y",Table1[[#This Row],[Asset Class]]="Local","") -> y | S41: =_xlfn.IFS(Table1[[#This Row],[Asset Class]]<>"Local","y",S$11=$E41,"y",Table1[[#This Row],[Asset Class]]="Local","") ->  | U41: =IF(Table1[[#This Row],[Asset Class]]<>"Local",0.25,IF(P41="y",1,"")) ->  | V41: =IF(Table1[[#This Row],[Asset Class]]<>"Local",0.25,IF(Q41="y",1,"")) ->  | W41: =IF(Table1[[#This Row],[Asset Class]]<>"Local",0.25,IF(R41="y",1,"")) -> 1 | X41: =IF(Table1[[#This Row],[Asset Class]]<>"Local",0.25,IF(S41="y",1,"")) ->  | Y41: 1 | AC41: 1190012 | AE41: 1190012
B42: D0013 West District | C42: EXIT-PK-3765 | D42: District | E42: West | F42: General Recreation | G42: 0.5 | H42: 27049.31187 | I42: 566.2872492 | J42: =Table1[[#This Row],[Embellishment Area (m2)]]*Table1[[#This Row],[Construction Unit Rate ($/m)]]*Table1[[#This Row],[Embellishment Area Factor]] -> 7658840.207 | K42: 54098.62374 | L42: 75.67690339 | M42: =Table1[[#This Row],[Size of land (m2)]]*Table1[[#This Row],[Land Unit Rate ($/m2)]] -> 4094016.322 | N42: 2021 | O42: =ROUND(IF(Table1[[#This Row],[Valuation Year]]=2016,(Table1[[#This Row],[Total Construction Cost ($)]]+Table1[[#This Row],[Land Value]])*('General Input Sheet'!$G$38/'General Input Sheet'!$G$43),Table1[[#This Row],[Total Construction Cost ($)]]+Table1[[#This Row],[Land Value]]),0) -> 11752857 | P42: =_xlfn.IFS(Table1[[#This Row],[Asset Class]]<>"Local","y",P$11=$E42,"y",Table1[[#This Row],[Asset Class]]="Local","") -> y | Q42: =_xlfn.IFS(Table1[[#This Row],[Asset Class]]<>"Local","y",Q$11=$E42,"y",Table1[[#This Row],[Asset Class]]="Local","") -> y | R42: =_xlfn.IFS(Table1[[#This Row],[Asset Class]]<>"Local","y",R$11=$E42,"y",Table1[[#This Row],[Asset Class]]="Local","") -> y | S42: =_xlfn.IFS(Table1[[#This Row],[Asset Class]]<>"Local","y",S$11=$E42,"y",Table1[[#This Row],[Asset Class]]="Local","") -> y | U42: =IF(Table1[[#This Row],[Asset Class]]<>"Local",0.25,IF(P42="y",1,"")) -> 0.25 | V42: =IF(Table1[[#This Row],[Asset Class]]<>"Local",0.25,IF(Q42="y",1,"")) -> 0.25 | W42: =IF(Table1[[#This Row],[Asset Class]]<>"Local",0.25,IF(R42="y",1,"")) -> 0.25 | X42: =IF(Table1[[#This Row],[Asset Class]]<>"Local",0.25,IF(S42="y",1,"")) -> 0.25 | Y42: 1 | AA42: 2938214.25 | AB42: 2938214.25 | AC42: 2938214.25 | AD42: 2938214.25 | AE42: 11752857
B43: D0014 West Local | C43: EXIT-PK-3770 | D43: Local | E43: West | F43: General Recreation | G43: 0.5 | H43: 2206.035613 | I43: 77.37164549 | J43: =Table1[[#This Row],[Embellishment Area (m2)]]*Table1[[#This Row],[Construction Unit Rate ($/m)]]*Table1[[#This Row],[Embellishment Area Factor]] -> 85342.30268 | K43: 0 | L43: 51.91969533 | M43: =Table1[[#This Row],[Size of land (m2)]]*Table1[[#This Row],[Land Unit Rate ($/m2)]] -> 0 | N43: 2021 | O43: =ROUND(IF(Table1[[#This Row],[Valuation Year]]=2016,(Table1[[#This Row],[Total Construction Cost ($)]]+Table1[[#This Row],[Land Value]])*('General Input Sheet'!$G$38/'General Input Sheet'!$G$43),Table1[[#This Row],[Total Construction Cost ($)]]+Table1[[#This Row],[Land Value]]),0) -> 85342 | P43: =_xlfn.IFS(Table1[[#This Row],[Asset Class]]<>"Local","y",P$11=$E43,"y",Table1[[#This Row],[Asset Class]]="Local","") ->  | Q43: =_xlfn.IFS(Table1[[#This Row],[Asset Class]]<>"Local","y",Q$11=$E43,"y",Table1[[#This Row],[Asset Class]]="Local","") ->  | R43: =_xlfn.IFS(Table1[[#This Row],[Asset Class]]<>"Local","y",R$11=$E43,"y",Table1[[#This Row],[Asset Class]]="Local","") ->  | S43: =_xlfn.IFS(Table1[[#This Row],[Asset Class]]<>"Local","y",S$11=$E43,"y",Table1[[#This Row],[Asset Class]]="Local","") -> y | U43: =IF(Table1[[#This Row],[Asset Class]]<>"Local",0.25,IF(P43="y",1,"")) ->  | V43: =IF(Table1[[#This Row],[Asset Class]]<>"Local",0.25,IF(Q43="y",1,"")) ->  | W43: =IF(Table1[[#This Row],[Asset Class]]<>"Local",0.25,IF(R43="y",1,"")) ->  | X43: =IF(Table1[[#This Row],[Asset Class]]<>"Local",0.25,IF(S43="y",1,"")) -> 1 | Y43: 1 | AD43: 85342 | AE43: 85342
B44: D0014 West District | C44: EXIT-PK-3772 | D44: District | E44: West | F44: Specialised Outdoor Sport | G44: 0.5 | H44: 6468.117507 | I44: 566.2872492 | J44: =Table1[[#This Row],[Embellishment Area (m2)]]*Table1[[#This Row],[Construction Unit Rate ($/m)]]*Table1[[#This Row],[Embellishment Area Factor]] -> 1831406.235 | K44: 0 | L44: 75.67690339 | M44: =Table1[[#This Row],[Size of land (m2)]]*Table1[[#This Row],[Land Unit Rate ($/m2)]] -> 0 | N44: 2021 | O44: =ROUND(IF(Table1[[#This Row],[Valuation Year]]=2016,(Table1[[#This Row],[Total Construction Cost ($)]]+Table1[[#This Row],[Land Value]])*('General Input Sheet'!$G$38/'General Input Sheet'!$G$43),Table1[[#This Row],[Total Construction Cost ($)]]+Table1[[#This Row],[Land Value]]),0) -> 1831406 | P44: =_xlfn.IFS(Table1[[#This Row],[Asset Class]]<>"Local","y",P$11=$E44,"y",Table1[[#This Row],[Asset Class]]="Local","") -> y | Q44: =_xlfn.IFS(Table1[[#This Row],[Asset Class]]<>"Local","y",Q$11=$E44,"y",Table1[[#This Row],[Asset Class]]="Local","") -> y | R44: =_xlfn.IFS(Table1[[#This Row],[Asset Class]]<>"Local","y",R$11=$E44,"y",Table1[[#This Row],[Asset Class]]="Local","") -> y | S44: =_xlfn.IFS(Table1[[#This Row],[Asset Class]]<>"Local","y",S$11=$E44,"y",Table1[[#This Row],[Asset Class]]="Local","") -> y | U44: =IF(Table1[[#This Row],[Asset Class]]<>"Local",0.25,IF(P44="y",1,"")) -> 0.25 | V44: =IF(Table1[[#This Row],[Asset Class]]<>"Local",0.25,IF(Q44="y",1,"")) -> 0.25 | W44: =IF(Table1[[#This Row],[Asset Class]]<>"Local",0.25,IF(R44="y",1,"")) -> 0.25 | X44: =IF(Table1[[#This Row],[Asset Class]]<>"Local",0.25,IF(S44="y",1,"")) -> 0.25 | Y44: 1 | AA44: 457851.5 | AB44: 457851.5 | AC44: 457851.5 | AD44: 457851.5 | AE44: 1831406
B45: D0014 West Local | C45: EXIT-PK-3773 | D45: Local | E45: West | F45: General Recreation | G45: 0.5 | H45: 1648.392135 | I45: 77.37164549 | J45: =Table1[[#This Row],[Embellishment Area (m2)]]*Table1[[#This Row],[Construction Unit Rate ($/m)]]*Table1[[#This Row],[Embellishment Area Factor]] -> 63769.40594 | K45: 0 | L45: 51.91969533 | M45: =Table1[[#This Row],[Size of land (m2)]]*Table1[[#This Row],[Land Unit Rate ($/m2)]] -> 0 | N45: 2021 | O45: =ROUND(IF(Table1[[#This Row],[Valuation Year]]=2016,(Table1[[#This Row],[Total Construction Cost ($)]]+Table1[[#This Row],[Land Value]])*('General Input Sheet'!$G$38/'General Input Sheet'!$G$43),Table1[[#This Row],[Total Construction Cost ($)]]+Table1[[#This Row],[Land Value]]),0) -> 63769 | P45: =_xlfn.IFS(Table1[[#This Row],[Asset Class]]<>"Local","y",P$11=$E45,"y",Table1[[#This Row],[Asset Class]]="Local","") ->  | Q45: =_xlfn.IFS(Table1[[#This Row],[Asset Class]]<>"Local","y",Q$11=$E45,"y",Table1[[#This Row],[Asset Class]]="Local","") ->  | R45: =_xlfn.IFS(Table1[[#This Row],[Asset Class]]<>"Local","y",R$11=$E45,"y",Table1[[#This Row],[Asset Class]]="Local","") ->  | S45: =_xlfn.IFS(Table1[[#This Row],[Asset Class]]<>"Local","y",S$11=$E45,"y",Table1[[#This Row],[Asset Class]]="Local","") -> y | U45: =IF(Table1[[#This Row],[Asset Class]]<>"Local",0.25,IF(P45="y",1,"")) ->  | V45: =IF(Table1[[#This Row],[Asset Class]]<>"Local",0.25,IF(Q45="y",1,"")) ->  | W45: =IF(Table1[[#This Row],[Asset Class]]<>"Local",0.25,IF(R45="y",1,"")) ->  | X45: =IF(Table1[[#This Row],[Asset Class]]<>"Local",0.25,IF(S45="y",1,"")) -> 1 | Y45: 1 | AD45: 63769 | AE45: 63769
B46: D0015 West Local | C46: EXIT-PK-3774 | D46: Local | E46: West | F46: General Recreation | G46: 0.5 | H46: 5926.504262 | I46: 77.37164549 | J46: =Table1[[#This Row],[Embellishment Area (m2)]]*Table1[[#This Row],[Construction Unit Rate ($/m)]]*Table1[[#This Row],[Embellishment Area Factor]] -> 229271.6934 | K46: 11853.00852 | L46: 51.91969533 | M46: =Table1[[#This Row],[Size of land (m2)]]*Table1[[#This Row],[Land Unit Rate ($/m2)]] -> 615404.5913 | N46: 2021 | O46: =ROUND(IF(Table1[[#This Row],[Valuation Year]]=2016,(Table1[[#This Row],[Total Construction Cost ($)]]+Table1[[#This Row],[Land Value]])*('General Input Sheet'!$G$38/'General Input Sheet'!$G$43),Table1[[#This Row],[Total Construction Cost ($)]]+Table1[[#This Row],[Land Value]]),0) -> 844676 | P46: =_xlfn.IFS(Table1[[#This Row],[Asset Class]]<>"Local","y",P$11=$E46,"y",Table1[[#This Row],[Asset Class]]="Local","") ->  | Q46: =_xlfn.IFS(Table1[[#This Row],[Asset Class]]<>"Local","y",Q$11=$E46,"y",Table1[[#This Row],[Asset Class]]="Local","") ->  | R46: =_xlfn.IFS(Table1[[#This Row],[Asset Class]]<>"Local","y",R$11=$E46,"y",Table1[[#This Row],[Asset Class]]="Local","") ->  | S46: =_xlfn.IFS(Table1[[#This Row],[Asset Class]]<>"Local","y",S$11=$E46,"y",Table1[[#This Row],[Asset Class]]="Local","") -> y | U46: =IF(Table1[[#This Row],[Asset Class]]<>"Local",0.25,IF(P46="y",1,"")) ->  | V46: =IF(Table1[[#This Row],[Asset Class]]<>"Local",0.25,IF(Q46="y",1,"")) ->  | W46: =IF(Table1[[#This Row],[Asset Class]]<>"Local",0.25,IF(R46="y",1,"")) ->  | X46: =IF(Table1[[#This Row],[Asset Class]]<>"Local",0.25,IF(S46="y",1,"")) -> 1 | Y46: 1 | AD46: 844676 | AE46: 844676
B47: D0015 West Local | C47: EXIT-PK-3775 | D47: Local | E47: West | F47: General Recreation | G47: 0.5 | H47: 1110.231878 | I47: 77.37164549 | J47: =Table1[[#This Row],[Embellishment Area (m2)]]*Table1[[#This Row],[Construction Unit Rate ($/m)]]*Table1[[#This Row],[Embellishment Area Factor]] -> 42950.23362 | K47: 2220.463755 | L47: 51.91969533 | M47: =Table1[[#This Row],[Size of land (m2)]]*Table1[[#This Row],[Land Unit Rate ($/m2)]] -> 115285.8016 | N47: 2021 | O47: =ROUND(IF(Table1[[#This Row],[Valuation Year]]=2016,(Table1[[#This Row],[Total Construction Cost ($)]]+Table1[[#This Row],[Land Value]])*('General Input Sheet'!$G$38/'General Input Sheet'!$G$43),Table1[[#This Row],[Total Construction Cost ($)]]+Table1[[#This Row],[Land Value]]),0) -> 158236 | P47: =_xlfn.IFS(Table1[[#This Row],[Asset Class]]<>"Local","y",P$11=$E47,"y",Table1[[#This Row],[Asset Class]]="Local","") ->  | Q47: =_xlfn.IFS(Table1[[#This Row],[Asset Class]]<>"Local","y",Q$11=$E47,"y",Table1[[#This Row],[Asset Class]]="Local","") ->  | R47: =_xlfn.IFS(Table1[[#This Row],[Asset Class]]<>"Local","y",R$11=$E47,"y",Table1[[#This Row],[Asset Class]]="Local","") ->  | S47: =_xlfn.IFS(Table1[[#This Row],[Asset Class]]<>"Local","y",S$11=$E47,"y",Table1[[#This Row],[Asset Class]]="Local","") -> y | U47: =IF(Table1[[#This Row],[Asset Class]]<>"Local",0.25,IF(P47="y",1,"")) ->  | V47: =IF(Table1[[#This Row],[Asset Class]]<>"Local",0.25,IF(Q47="y",1,"")) ->  | W47: =IF(Table1[[#This Row],[Asset Class]]<>"Local",0.25,IF(R47="y",1,"")) ->  | X47: =IF(Table1[[#This Row],[Asset Class]]<>"Local",0.25,IF(S47="y",1,"")) -> 1 | Y47: 1 | AD47: 158236 | AE47: 158236
B48: D0016 North Local | C48: EXIT-PK-3777 | D48: Local | E48: North | F48: General Recreation | G48: 0.5 | H48: 7935.771179 | I48: 115.6419902 | J48: =Table1[[#This Row],[Embellishment Area (m2)]]*Table1[[#This Row],[Construction Unit Rate ($/m)]]*Table1[[#This Row],[Embellishment Area Factor]] -> 458854.1865 | K48: 15871.54236 | L48: 85.33182696 | M48: =Table1[[#This Row],[Size of land (m2)]]*Table1[[#This Row],[Land Unit Rate ($/m2)]] -> 1354347.706 | N48: 2021 | O48: =ROUND(IF(Table1[[#This Row],[Valuation Year]]=2016,(Table1[[#This Row],[Total Construction Cost ($)]]+Table1[[#This Row],[Land Value]])*('General Input Sheet'!$G$38/'General Input Sheet'!$G$43),Table1[[#This Row],[Total Construction Cost ($)]]+Table1[[#This Row],[Land Value]]),0) -> 1813202 | P48: =_xlfn.IFS(Table1[[#This Row],[Asset Class]]<>"Local","y",P$11=$E48,"y",Table1[[#This Row],[Asset Class]]="Local","") ->  | Q48: =_xlfn.IFS(Table1[[#This Row],[Asset Class]]<>"Local","y",Q$11=$E48,"y",Table1[[#This Row],[Asset Class]]="Local","") -> y | R48: =_xlfn.IFS(Table1[[#This Row],[Asset Class]]<>"Local","y",R$11=$E48,"y",Table1[[#This Row],[Asset Class]]="Local","") ->  | S48: =_xlfn.IFS(Table1[[#This Row],[Asset Class]]<>"Local","y",S$11=$E48,"y",Table1[[#This Row],[Asset Class]]="Local","") ->  | U48: =IF(Table1[[#This Row],[Asset Class]]<>"Local",0.25,IF(P48="y",1,"")) ->  | V48: =IF(Table1[[#This Row],[Asset Class]]<>"Local",0.25,IF(Q48="y",1,"")) -> 1 | W48: =IF(Table1[[#This Row],[Asset Class]]<>"Local",0.25,IF(R48="y",1,"")) ->  | X48: =IF(Table1[[#This Row],[Asset Class]]<>"Local",0.25,IF(S48="y",1,"")) ->  | Y48: 1 | AB48: 1813202 | AE48: 1813202
B49: D0017 West Local | C49: EXIT-PK-3778 | D49: Local | E49: West | F49: General Outdoor Sport | G49: 0.5 | H49: 6536.816719 | I49: 77.37164549 | J49: =Table1[[#This Row],[Embellishment Area (m2)]]*Table1[[#This Row],[Construction Unit Rate ($/m)]]*Table1[[#This Row],[Embellishment Area Factor]] -> 252882.1329 | K49: 13073.63344 | L49: 51.91969533 | M49: =Table1[[#This Row],[Size of land (m2)]]*Table1[[#This Row],[Land Unit Rate ($/m2)]] -> 678779.0649 | N49: 2021 | O49: =ROUND(IF(Table1[[#This Row],[Valuation Year]]=2016,(Table1[[#This Row],[Total Construction Cost ($)]]+Table1[[#This Row],[Land Value]])*('General Input Sheet'!$G$38/'General Input Sheet'!$G$43),Table1[[#This Row],[Total Construction Cost ($)]]+Table1[[#This Row],[Land Value]]),0) -> 931661 | P49: =_xlfn.IFS(Table1[[#This Row],[Asset Class]]<>"Local","y",P$11=$E49,"y",Table1[[#This Row],[Asset Class]]="Local","") ->  | Q49: =_xlfn.IFS(Table1[[#This Row],[Asset Class]]<>"Local","y",Q$11=$E49,"y",Table1[[#This Row],[Asset Class]]="Local","") ->  | R49: =_xlfn.IFS(Table1[[#This Row],[Asset Class]]<>"Local","y",R$11=$E49,"y",Table1[[#This Row],[Asset Class]]="Local","") ->  | S49: =_xlfn.IFS(Table1[[#This Row],[Asset Class]]<>"Local","y",S$11=$E49,"y",Table1[[#This Row],[Asset Class]]="Local","") -> y | U49: =IF(Table1[[#This Row],[Asset Class]]<>"Local",0.25,IF(P49="y",1,"")) ->  | V49: =IF(Table1[[#This Row],[Asset Class]]<>"Local",0.25,IF(Q49="y",1,"")) ->  | W49: =IF(Table1[[#This Row],[Asset Class]]<>"Local",0.25,IF(R49="y",1,"")) ->  | X49: =IF(Table1[[#This Row],[Asset Class]]<>"Local",0.25,IF(S49="y",1,"")) -> 1 | Y49: 1 | AD49: 931661 | AE49: 931661
B50: D0017 West District | C50: EXIT-PK-3779 | D50: District | E50: West | F50: General Recreation | G50: 0.5 | H50: 4345.015498 | I50: 566.2872492 | J50: =Table1[[#This Row],[Embellishment Area (m2)]]*Table1[[#This Row],[Construction Unit Rate ($/m)]]*Table1[[#This Row],[Embellishment Area Factor]] -> 1230263.437 | K50: 8690.030997 | L50: 75.67690339 | M50: =Table1[[#This Row],[Size of land (m2)]]*Table1[[#This Row],[Land Unit Rate ($/m2)]] -> 657634.6362 | N50: 2021 | O50: =ROUND(IF(Table1[[#This Row],[Valuation Year]]=2016,(Table1[[#This Row],[Total Construction Cost ($)]]+Table1[[#This Row],[Land Value]])*('General Input Sheet'!$G$38/'General Input Sheet'!$G$43),Table1[[#This Row],[Total Construction Cost ($)]]+Table1[[#This Row],[Land Value]]),0) -> 1887898 | P50: =_xlfn.IFS(Table1[[#This Row],[Asset Class]]<>"Local","y",P$11=$E50,"y",Table1[[#This Row],[Asset Class]]="Local","") -> y | Q50: =_xlfn.IFS(Table1[[#This Row],[Asset Class]]<>"Local","y",Q$11=$E50,"y",Table1[[#This Row],[Asset Class]]="Local","") -> y | R50: =_xlfn.IFS(Table1[[#This Row],[Asset Class]]<>"Local","y",R$11=$E50,"y",Table1[[#This Row],[Asset Class]]="Local","") -> y | S50: =_xlfn.IFS(Table1[[#This Row],[Asset Class]]<>"Local","y",S$11=$E50,"y",Table1[[#This Row],[Asset Class]]="Local","") -> y | U50: =IF(Table1[[#This Row],[Asset Class]]<>"Local",0.25,IF(P50="y",1,"")) -> 0.25 | V50: =IF(Table1[[#This Row],[Asset Class]]<>"Local",0.25,IF(Q50="y",1,"")) -> 0.25 | W50: =IF(Table1[[#This Row],[Asset Class]]<>"Local",0.25,IF(R50="y",1,"")) -> 0.25 | X50: =IF(Table1[[#This Row],[Asset Class]]<>"Local",0.25,IF(S50="y",1,"")) -> 0.25 | Y50: 1 | AA50: 471974.5 | AB50: 471974.5 | AC50: 471974.5 | AD50: 471974.5 | AE50: 1887898
B51: D0018 North District | C51: EXIT-PK-3782 | D51: District | E51: North | F51: General Outdoor Sport | G51: 0.5 | H51: 21245.07101 | I51: 406.7929851 | J51: =Table1[[#This Row],[Embellishment Area (m2)]]*Table1[[#This Row],[Construction Unit Rate ($/m)]]*Table1[[#This Row],[Embellishment Area Factor]] -> 4321172.927 | K51: 42490.14202 | L51: 77.24906051 | M51: =Table1[[#This Row],[Size of land (m2)]]*Table1[[#This Row],[Land Unit Rate ($/m2)]] -> 3282323.552 | N51: 2021 | O51: =ROUND(IF(Table1[[#This Row],[Valuation Year]]=2016,(Table1[[#This Row],[Total Construction Cost ($)]]+Table1[[#This Row],[Land Value]])*('General Input Sheet'!$G$38/'General Input Sheet'!$G$43),Table1[[#This Row],[Total Construction Cost ($)]]+Table1[[#This Row],[Land Value]]),0) -> 7603496 | P51: =_xlfn.IFS(Table1[[#This Row],[Asset Class]]<>"Local","y",P$11=$E51,"y",Table1[[#This Row],[Asset Class]]="Local","") -> y | Q51: =_xlfn.IFS(Table1[[#This Row],[Asset Class]]<>"Local","y",Q$11=$E51,"y",Table1[[#This Row],[Asset Class]]="Local","") -> y | R51: =_xlfn.IFS(Table1[[#This Row],[Asset Class]]<>"Local","y",R$11=$E51,"y",Table1[[#This Row],[Asset Class]]="Local","") -> y | S51: =_xlfn.IFS(Table1[[#This Row],[Asset Class]]<>"Local","y",S$11=$E51,"y",Table1[[#This Row],[Asset Class]]="Local","") -> y | U51: =IF(Table1[[#This Row],[Asset Class]]<>"Local",0.25,IF(P51="y",1,"")) -> 0.25 | V51: =IF(Table1[[#This Row],[Asset Class]]<>"Local",0.25,IF(Q51="y",1,"")) -> 0.25 | W51: =IF(Table1[[#This Row],[Asset Class]]<>"Local",0.25,IF(R51="y",1,"")) -> 0.25 | X51: =IF(Table1[[#This Row],[Asset Class]]<>"Local",0.25,IF(S51="y",1,"")) -> 0.25 | Y51: 1 | AA51: 1900874 | AB51: 1900874 | AC51: 1900874 | AD51: 1900874 | AE51: 7603496
B52: D0018 North Local | C52: EXIT-PK-3783 | D52: Local | E52: North | F52: General Recreation | G52: 0.5 | H52: 5194.44812 | I52: 115.6419902 | J52: =Table1[[#This Row],[Embellishment Area (m2)]]*Table1[[#This Row],[Construction Unit Rate ($/m)]]*Table1[[#This Row],[Embellishment Area Factor]] -> 300348.1593 | K52: 10388.89624 | L52: 85.33182696 | M52: =Table1[[#This Row],[Size of land (m2)]]*Table1[[#This Row],[Land Unit Rate ($/m2)]] -> 886503.4963 | N52: 2021 | O52: =ROUND(IF(Table1[[#This Row],[Valuation Year]]=2016,(Table1[[#This Row],[Total Construction Cost ($)]]+Table1[[#This Row],[Land Value]])*('General Input Sheet'!$G$38/'General Input Sheet'!$G$43),Table1[[#This Row],[Total Construction Cost ($)]]+Table1[[#This Row],[Land Value]]),0) -> 1186852 | P52: =_xlfn.IFS(Table1[[#This Row],[Asset Class]]<>"Local","y",P$11=$E52,"y",Table1[[#This Row],[Asset Class]]="Local","") ->  | Q52: =_xlfn.IFS(Table1[[#This Row],[Asset Class]]<>"Local","y",Q$11=$E52,"y",Table1[[#This Row],[Asset Class]]="Local","") -> y | R52: =_xlfn.IFS(Table1[[#This Row],[Asset Class]]<>"Local","y",R$11=$E52,"y",Table1[[#This Row],[Asset Class]]="Local","") ->  | S52: =_xlfn.IFS(Table1[[#This Row],[Asset Class]]<>"Local","y",S$11=$E52,"y",Table1[[#This Row],[Asset Class]]="Local","") ->  | U52: =IF(Table1[[#This Row],[Asset Class]]<>"Local",0.25,IF(P52="y",1,"")) ->  | V52: =IF(Table1[[#This Row],[Asset Class]]<>"Local",0.25,IF(Q52="y",1,"")) -> 1 | W52: =IF(Table1[[#This Row],[Asset Class]]<>"Local",0.25,IF(R52="y",1,"")) ->  | X52: =IF(Table1[[#This Row],[Asset Class]]<>"Local",0.25,IF(S52="y",1,"")) ->  | Y52: 1 | AB52: 1186852 | AE52: 1186852
B53: D0019 North Local | C53: EXIT-PK-3784 | D53: Local | E53: North | F53: General Recreation | G53: 0.5 | H53: 7265.909934 | I53: 115.6419902 | J53: =Table1[[#This Row],[Embellishment Area (m2)]]*Table1[[#This Row],[Construction Unit Rate ($/m)]]*Table1[[#This Row],[Embellishment Area Factor]] -> 420122.1428 | K53: 14531.81987 | L53: 85.33182696 | M53: =Table1[[#This Row],[Size of land (m2)]]*Table1[[#This Row],[Land Unit Rate ($/m2)]] -> 1240026.738 | N53: 2021 | O53: =ROUND(IF(Table1[[#This Row],[Valuation Year]]=2016,(Table1[[#This Row],[Total Construction Cost ($)]]+Table1[[#This Row],[Land Value]])*('General Input Sheet'!$G$38/'General Input Sheet'!$G$43),Table1[[#This Row],[Total Construction Cost ($)]]+Table1[[#This Row],[Land Value]]),0) -> 1660149 | P53: =_xlfn.IFS(Table1[[#This Row],[Asset Class]]<>"Local","y",P$11=$E53,"y",Table1[[#This Row],[Asset Class]]="Local","") ->  | Q53: =_xlfn.IFS(Table1[[#This Row],[Asset Class]]<>"Local","y",Q$11=$E53,"y",Table1[[#This Row],[Asset Class]]="Local","") -> y | R53: =_xlfn.IFS(Table1[[#This Row],[Asset Class]]<>"Local","y",R$11=$E53,"y",Table1[[#This Row],[Asset Class]]="Local","") ->  | S53: =_xlfn.IFS(Table1[[#This Row],[Asset Class]]<>"Local","y",S$11=$E53,"y",Table1[[#This Row],[Asset Class]]="Local","") ->  | U53: =IF(Table1[[#This Row],[Asset Class]]<>"Local",0.25,IF(P53="y",1,"")) ->  | V53: =IF(Table1[[#This Row],[Asset Class]]<>"Local",0.25,IF(Q53="y",1,"")) -> 1 | W53: =IF(Table1[[#This Row],[Asset Class]]<>"Local",0.25,IF(R53="y",1,"")) ->  | X53: =IF(Table1[[#This Row],[Asset Class]]<>"Local",0.25,IF(S53="y",1,"")) ->  | Y53: 1 | AB53: 1660149 | AE53: 1660149
B54: D0020 West Local | C54: EXIT-PK-3786 | D54: Local | E54: West | F54: General Recreation | G54: 0.5 | H54: 9778.471184 | I54: 77.37164549 | J54: =Table1[[#This Row],[Embellishment Area (m2)]]*Table1[[#This Row],[Construction Unit Rate ($/m)]]*Table1[[#This Row],[Embellishment Area Factor]] -> 378288.2029 | K54: 19556.94237 | L54: 51.91969533 | M54: =Table1[[#This Row],[Size of land (m2)]]*Table1[[#This Row],[Land Unit Rate ($/m2)]] -> 1015390.489 | N54: 2021 | O54: =ROUND(IF(Table1[[#This Row],[Valuation Year]]=2016,(Table1[[#This Row],[Total Construction Cost ($)]]+Table1[[#This Row],[Land Value]])*('General Input Sheet'!$G$38/'General Input Sheet'!$G$43),Table1[[#This Row],[Total Construction Cost ($)]]+Table1[[#This Row],[Land Value]]),0) -> 1393679 | P54: =_xlfn.IFS(Table1[[#This Row],[Asset Class]]<>"Local","y",P$11=$E54,"y",Table1[[#This Row],[Asset Class]]="Local","") ->  | Q54: =_xlfn.IFS(Table1[[#This Row],[Asset Class]]<>"Local","y",Q$11=$E54,"y",Table1[[#This Row],[Asset Class]]="Local","") ->  | R54: =_xlfn.IFS(Table1[[#This Row],[Asset Class]]<>"Local","y",R$11=$E54,"y",Table1[[#This Row],[Asset Class]]="Local","") ->  | S54: =_xlfn.IFS(Table1[[#This Row],[Asset Class]]<>"Local","y",S$11=$E54,"y",Table1[[#This Row],[Asset Class]]="Local","") -> y | U54: =IF(Table1[[#This Row],[Asset Class]]<>"Local",0.25,IF(P54="y",1,"")) ->  | V54: =IF(Table1[[#This Row],[Asset Class]]<>"Local",0.25,IF(Q54="y",1,"")) ->  | W54: =IF(Table1[[#This Row],[Asset Class]]<>"Local",0.25,IF(R54="y",1,"")) ->  | X54: =IF(Table1[[#This Row],[Asset Class]]<>"Local",0.25,IF(S54="y",1,"")) -> 1 | Y54: 1 | AD54: 1393679 | AE54: 1393679
B55: D0021 East Local | C55: EXIT-PK-3787 | D55: Local | E55: East | F55: General Outdoor Sport | G55: 0.5 | H55: 4252.859497 | I55: 111.6204104 | J55: =Table1[[#This Row],[Embellishment Area (m2)]]*Table1[[#This Row],[Construction Unit Rate ($/m)]]*Table1[[#This Row],[Embellishment Area Factor]] -> 237352.9611 | K55: 8505.718994 | L55: 66.12572262 | M55: =Table1[[#This Row],[Size of land (m2)]]*Table1[[#This Row],[Land Unit Rate ($/m2)]] -> 562446.8149 | N55: 2021 | O55: =ROUND(IF(Table1[[#This Row],[Valuation Year]]=2016,(Table1[[#This Row],[Total Construction Cost ($)]]+Table1[[#This Row],[Land Value]])*('General Input Sheet'!$G$38/'General Input Sheet'!$G$43),Table1[[#This Row],[Total Construction Cost ($)]]+Table1[[#This Row],[Land Value]]),0) -> 799800 | P55: =_xlfn.IFS(Table1[[#This Row],[Asset Class]]<>"Local","y",P$11=$E55,"y",Table1[[#This Row],[Asset Class]]="Local","") -> y | Q55: =_xlfn.IFS(Table1[[#This Row],[Asset Class]]<>"Local","y",Q$11=$E55,"y",Table1[[#This Row],[Asset Class]]="Local","") ->  | R55: =_xlfn.IFS(Table1[[#This Row],[Asset Class]]<>"Local","y",R$11=$E55,"y",Table1[[#This Row],[Asset Class]]="Local","") ->  | S55: =_xlfn.IFS(Table1[[#This Row],[Asset Class]]<>"Local","y",S$11=$E55,"y",Table1[[#This Row],[Asset Class]]="Local","") ->  | U55: =IF(Table1[[#This Row],[Asset Class]]<>"Local",0.25,IF(P55="y",1,"")) -> 1 | V55: =IF(Table1[[#This Row],[Asset Class]]<>"Local",0.25,IF(Q55="y",1,"")) ->  | W55: =IF(Table1[[#This Row],[Asset Class]]<>"Local",0.25,IF(R55="y",1,"")) ->  | X55: =IF(Table1[[#This Row],[Asset Class]]<>"Local",0.25,IF(S55="y",1,"")) ->  | Y55: 1 | AA55: 799800 | AE55: 799800
B56: D0021 East District | C56: EXIT-PK-3788 | D56: District | E56: East | F56: Access Recreation Corridor | G56: 0.5 | H56: 10889.72657 | I56: 295.9181569 | J56: =Table1[[#This Row],[Embellishment Area (m2)]]*Table1[[#This Row],[Construction Unit Rate ($/m)]]*Table1[[#This Row],[Embellishment Area Factor]] -> 1611233.908 | K56: 21779.45313 | L56: 157.2622192 | M56: =Table1[[#This Row],[Size of land (m2)]]*Table1[[#This Row],[Land Unit Rate ($/m2)]] -> 3425085.132 | N56: 2021 | O56: =ROUND(IF(Table1[[#This Row],[Valuation Year]]=2016,(Table1[[#This Row],[Total Construction Cost ($)]]+Table1[[#This Row],[Land Value]])*('General Input Sheet'!$G$38/'General Input Sheet'!$G$43),Table1[[#This Row],[Total Construction Cost ($)]]+Table1[[#This Row],[Land Value]]),0) -> 5036319 | P56: =_xlfn.IFS(Table1[[#This Row],[Asset Class]]<>"Local","y",P$11=$E56,"y",Table1[[#This Row],[Asset Class]]="Local","") -> y | Q56: =_xlfn.IFS(Table1[[#This Row],[Asset Class]]<>"Local","y",Q$11=$E56,"y",Table1[[#This Row],[Asset Class]]="Local","") -> y | R56: =_xlfn.IFS(Table1[[#This Row],[Asset Class]]<>"Local","y",R$11=$E56,"y",Table1[[#This Row],[Asset Class]]="Local","") -> y | S56: =_xlfn.IFS(Table1[[#This Row],[Asset Class]]<>"Local","y",S$11=$E56,"y",Table1[[#This Row],[Asset Class]]="Local","") -> y | U56: =IF(Table1[[#This Row],[Asset Class]]<>"Local",0.25,IF(P56="y",1,"")) -> 0.25 | V56: =IF(Table1[[#This Row],[Asset Class]]<>"Local",0.25,IF(Q56="y",1,"")) -> 0.25 | W56: =IF(Table1[[#This Row],[Asset Class]]<>"Local",0.25,IF(R56="y",1,"")) -> 0.25 | X56: =IF(Table1[[#This Row],[Asset Class]]<>"Local",0.25,IF(S56="y",1,"")) -> 0.25 | Y56: 1 | AA56: 1259079.75 | AB56: 1259079.75 | AC56: 1259079.75 | AD56: 1259079.75 | AE56: 5036319
B57: D0022 South District | C57: EXIT-PK-3789 | D57: District | E57: South | F57: General Recreation | G57: 0.5 | H57: 3051.475878 | I57: 452.8789863 | J57: =Table1[[#This Row],[Embellishment Area (m2)]]*Table1[[#This Row],[Construction Unit Rate ($/m)]]*Table1[[#This Row],[Embellishment Area Factor]] -> 690974.6512 | K57: 6102.951755 | L57: 140.1454607 | M57: =Table1[[#This Row],[Size of land (m2)]]*Table1[[#This Row],[Land Unit Rate ($/m2)]] -> 855300.9853 | N57: 2021 | O57: =ROUND(IF(Table1[[#This Row],[Valuation Year]]=2016,(Table1[[#This Row],[Total Construction Cost ($)]]+Table1[[#This Row],[Land Value]])*('General Input Sheet'!$G$38/'General Input Sheet'!$G$43),Table1[[#This Row],[Total Construction Cost ($)]]+Table1[[#This Row],[Land Value]]),0) -> 1546276 | P57: =_xlfn.IFS(Table1[[#This Row],[Asset Class]]<>"Local","y",P$11=$E57,"y",Table1[[#This Row],[Asset Class]]="Local","") -> y | Q57: =_xlfn.IFS(Table1[[#This Row],[Asset Class]]<>"Local","y",Q$11=$E57,"y",Table1[[#This Row],[Asset Class]]="Local","") -> y | R57: =_xlfn.IFS(Table1[[#This Row],[Asset Class]]<>"Local","y",R$11=$E57,"y",Table1[[#This Row],[Asset Class]]="Local","") -> y | S57: =_xlfn.IFS(Table1[[#This Row],[Asset Class]]<>"Local","y",S$11=$E57,"y",Table1[[#This Row],[Asset Class]]="Local","") -> y | U57: =IF(Table1[[#This Row],[Asset Class]]<>"Local",0.25,IF(P57="y",1,"")) -> 0.25 | V57: =IF(Table1[[#This Row],[Asset Class]]<>"Local",0.25,IF(Q57="y",1,"")) -> 0.25 | W57: =IF(Table1[[#This Row],[Asset Class]]<>"Local",0.25,IF(R57="y",1,"")) -> 0.25 | X57: =IF(Table1[[#This Row],[Asset Class]]<>"Local",0.25,IF(S57="y",1,"")) -> 0.25 | Y57: 1 | AA57: 386569 | AB57: 386569 | AC57: 386569 | AD57: 386569 | AE57: 1546276
B58: D0022 South District | C58: EXIT-PK-3790 | D58: District | E58: South | F58: General Outdoor Sport | G58: 0.5 | H58: 20404.19282 | I58: 452.8789863 | J58: =Table1[[#This Row],[Embellishment Area (m2)]]*Table1[[#This Row],[Construction Unit Rate ($/m)]]*Table1[[#This Row],[Embellishment Area Factor]] -> 4620315.08 | K58: 40808.38563 | L58: 140.1454607 | M58: =Table1[[#This Row],[Size of land (m2)]]*Table1[[#This Row],[Land Unit Rate ($/m2)]] -> 5719110.005 | N58: 2021 | O58: =ROUND(IF(Table1[[#This Row],[Valuation Year]]=2016,(Table1[[#This Row],[Total Construction Cost ($)]]+Table1[[#This Row],[Land Value]])*('General Input Sheet'!$G$38/'General Input Sheet'!$G$43),Table1[[#This Row],[Total Construction Cost ($)]]+Table1[[#This Row],[Land Value]]),0) -> 10339425 | P58: =_xlfn.IFS(Table1[[#This Row],[Asset Class]]<>"Local","y",P$11=$E58,"y",Table1[[#This Row],[Asset Class]]="Local","") -> y | Q58: =_xlfn.IFS(Table1[[#This Row],[Asset Class]]<>"Local","y",Q$11=$E58,"y",Table1[[#This Row],[Asset Class]]="Local","") -> y | R58: =_xlfn.IFS(Table1[[#This Row],[Asset Class]]<>"Local","y",R$11=$E58,"y",Table1[[#This Row],[Asset Class]]="Local","") -> y | S58: =_xlfn.IFS(Table1[[#This Row],[Asset Class]]<>"Local","y",S$11=$E58,"y",Table1[[#This Row],[Asset Class]]="Local","") -> y | U58: =IF(Table1[[#This Row],[Asset Class]]<>"Local",0.25,IF(P58="y",1,"")) -> 0.25 | V58: =IF(Table1[[#This Row],[Asset Class]]<>"Local",0.25,IF(Q58="y",1,"")) -> 0.25 | W58: =IF(Table1[[#This Row],[Asset Class]]<>"Local",0.25,IF(R58="y",1,"")) -> 0.25 | X58: =IF(Table1[[#This Row],[Asset Class]]<>"Local",0.25,IF(S58="y",1,"")) -> 0.25 | Y58: 1 | AA58: 2584856.25 | AB58: 2584856.25 | AC58: 2584856.25 | AD58: 2584856.25 | AE58: 10339425
B59: D0023 South District | C59: EXIT-PK-3791 | D59: District | E59: South | F59: General Recreation | G59: 0.5 | H59: 11536.53749 | I59: 452.8789863 | J59: =Table1[[#This Row],[Embellishment Area (m2)]]*Table1[[#This Row],[Construction Unit Rate ($/m)]]*Table1[[#This Row],[Embellishment Area Factor]] -> 2612327.701 | K59: 23073.07497 | L59: 140.1454607 | M59: =Table1[[#This Row],[Size of land (m2)]]*Table1[[#This Row],[Land Unit Rate ($/m2)]] -> 3233586.722 | N59: 2021 | O59: =ROUND(IF(Table1[[#This Row],[Valuation Year]]=2016,(Table1[[#This Row],[Total Construction Cost ($)]]+Table1[[#This Row],[Land Value]])*('General Input Sheet'!$G$38/'General Input Sheet'!$G$43),Table1[[#This Row],[Total Construction Cost ($)]]+Table1[[#This Row],[Land Value]]),0) -> 5845914 | P59: =_xlfn.IFS(Table1[[#This Row],[Asset Class]]<>"Local","y",P$11=$E59,"y",Table1[[#This Row],[Asset Class]]="Local","") -> y | Q59: =_xlfn.IFS(Table1[[#This Row],[Asset Class]]<>"Local","y",Q$11=$E59,"y",Table1[[#This Row],[Asset Class]]="Local","") -> y | R59: =_xlfn.IFS(Table1[[#This Row],[Asset Class]]<>"Local","y",R$11=$E59,"y",Table1[[#This Row],[Asset Class]]="Local","") -> y | S59: =_xlfn.IFS(Table1[[#This Row],[Asset Class]]<>"Local","y",S$11=$E59,"y",Table1[[#This Row],[Asset Class]]="Local","") -> y | U59: =IF(Table1[[#This Row],[Asset Class]]<>"Local",0.25,IF(P59="y",1,"")) -> 0.25 | V59: =IF(Table1[[#This Row],[Asset Class]]<>"Local",0.25,IF(Q59="y",1,"")) -> 0.25 | W59: =IF(Table1[[#This Row],[Asset Class]]<>"Local",0.25,IF(R59="y",1,"")) -> 0.25 | X59: =IF(Table1[[#This Row],[Asset Class]]<>"Local",0.25,IF(S59="y",1,"")) -> 0.25 | Y59: 1 | AA59: 1461478.5 | AB59: 1461478.5 | AC59: 1461478.5 | AD59: 1461478.5 | AE59: 5845914
B60: D0024 West Local | C60: EXIT-PK-3792 | D60: Local | E60: West | F60: General Recreation | G60: 0.5 | H60: 4063.001888 | I60: 77.37164549 | J60: =Table1[[#This Row],[Embellishment Area (m2)]]*Table1[[#This Row],[Construction Unit Rate ($/m)]]*Table1[[#This Row],[Embellishment Area Factor]] -> 157180.5709 | K60: 0 | L60: 51.91969533 | M60: =Table1[[#This Row],[Size of land (m2)]]*Table1[[#This Row],[Land Unit Rate ($/m2)]] -> 0 | N60: 2021 | O60: =ROUND(IF(Table1[[#This Row],[Valuation Year]]=2016,(Table1[[#This Row],[Total Construction Cost ($)]]+Table1[[#This Row],[Land Value]])*('General Input Sheet'!$G$38/'General Input Sheet'!$G$43),Table1[[#This Row],[Total Construction Cost ($)]]+Table1[[#This Row],[Land Value]]),0) -> 157181 | P60: =_xlfn.IFS(Table1[[#This Row],[Asset Class]]<>"Local","y",P$11=$E60,"y",Table1[[#This Row],[Asset Class]]="Local","") ->  | Q60: =_xlfn.IFS(Table1[[#This Row],[Asset Class]]<>"Local","y",Q$11=$E60,"y",Table1[[#This Row],[Asset Class]]="Local","") ->  | R60: =_xlfn.IFS(Table1[[#This Row],[Asset Class]]<>"Local","y",R$11=$E60,"y",Table1[[#This Row],[Asset Class]]="Local","") ->  | S60: =_xlfn.IFS(Table1[[#This Row],[Asset Class]]<>"Local","y",S$11=$E60,"y",Table1[[#This Row],[Asset Class]]="Local","") -> y | U60: =IF(Table1[[#This Row],[Asset Class]]<>"Local",0.25,IF(P60="y",1,"")) ->  | V60: =IF(Table1[[#This Row],[Asset Class]]<>"Local",0.25,IF(Q60="y",1,"")) ->  | W60: =IF(Table1[[#This Row],[Asset Class]]<>"Local",0.25,IF(R60="y",1,"")) ->  | X60: =IF(Table1[[#This Row],[Asset Class]]<>"Local",0.25,IF(S60="y",1,"")) -> 1 | Y60: 1 | AD60: 157181 | AE60: 157181
B61: D0025 East District | C61: EXIT-PK-3793 | D61: District | E61: East | F61: Access Recreation Corridor | G61: 0.5 | H61: 4333.393781 | I61: 295.9181569 | J61: =Table1[[#This Row],[Embellishment Area (m2)]]*Table1[[#This Row],[Construction Unit Rate ($/m)]]*Table1[[#This Row],[Embellishment Area Factor]] -> 641164.9505 | K61: 8666.787562 | L61: 157.2622192 | M61: =Table1[[#This Row],[Size of land (m2)]]*Table1[[#This Row],[Land Unit Rate ($/m2)]] -> 1362958.245 | N61: 2021 | O61: =ROUND(IF(Table1[[#This Row],[Valuation Year]]=2016,(Table1[[#This Row],[Total Construction Cost ($)]]+Table1[[#This Row],[Land Value]])*('General Input Sheet'!$G$38/'General Input Sheet'!$G$43),Table1[[#This Row],[Total Construction Cost ($)]]+Table1[[#This Row],[Land Value]]),0) -> 2004123 | P61: =_xlfn.IFS(Table1[[#This Row],[Asset Class]]<>"Local","y",P$11=$E61,"y",Table1[[#This Row],[Asset Class]]="Local","") -> y | Q61: =_xlfn.IFS(Table1[[#This Row],[Asset Class]]<>"Local","y",Q$11=$E61,"y",Table1[[#This Row],[Asset Class]]="Local","") -> y | R61: =_xlfn.IFS(Table1[[#This Row],[Asset Class]]<>"Local","y",R$11=$E61,"y",Table1[[#This Row],[Asset Class]]="Local","") -> y | S61: =_xlfn.IFS(Table1[[#This Row],[Asset Class]]<>"Local","y",S$11=$E61,"y",Table1[[#This Row],[Asset Class]]="Local","") -> y | U61: =IF(Table1[[#This Row],[Asset Class]]<>"Local",0.25,IF(P61="y",1,"")) -> 0.25 | V61: =IF(Table1[[#This Row],[Asset Class]]<>"Local",0.25,IF(Q61="y",1,"")) -> 0.25 | W61: =IF(Table1[[#This Row],[Asset Class]]<>"Local",0.25,IF(R61="y",1,"")) -> 0.25 | X61: =IF(Table1[[#This Row],[Asset Class]]<>"Local",0.25,IF(S61="y",1,"")) -> 0.25 | Y61: 1 | AA61: 501030.75 | AB61: 501030.75 | AC61: 501030.75 | AD61: 501030.75 | AE61: 2004123
B62: D0025 East District | C62: EXIT-PK-3794 | D62: District | E62: East | F62: Specialised Outdoor Sport | G62: 0.5 | H62: 28942.35856 | I62: 295.9181569 | J62: =Table1[[#This Row],[Embellishment Area (m2)]]*Table1[[#This Row],[Construction Unit Rate ($/m)]]*Table1[[#This Row],[Embellishment Area Factor]] -> 4282284.701 | K62: 57884.71711 | L62: 157.2622192 | M62: =Table1[[#This Row],[Size of land (m2)]]*Table1[[#This Row],[Land Unit Rate ($/m2)]] -> 9103079.07 | N62: 2021 | O62: =ROUND(IF(Table1[[#This Row],[Valuation Year]]=2016,(Table1[[#This Row],[Total Construction Cost ($)]]+Table1[[#This Row],[Land Value]])*('General Input Sheet'!$G$38/'General Input Sheet'!$G$43),Table1[[#This Row],[Total Construction Cost ($)]]+Table1[[#This Row],[Land Value]]),0) -> 13385364 | P62: =_xlfn.IFS(Table1[[#This Row],[Asset Class]]<>"Local","y",P$11=$E62,"y",Table1[[#This Row],[Asset Class]]="Local","") -> y | Q62: =_xlfn.IFS(Table1[[#This Row],[Asset Class]]<>"Local","y",Q$11=$E62,"y",Table1[[#This Row],[Asset Class]]="Local","") -> y | R62: =_xlfn.IFS(Table1[[#This Row],[Asset Class]]<>"Local","y",R$11=$E62,"y",Table1[[#This Row],[Asset Class]]="Local","") -> y | S62: =_xlfn.IFS(Table1[[#This Row],[Asset Class]]<>"Local","y",S$11=$E62,"y",Table1[[#This Row],[Asset Class]]="Local","") -> y | U62: =IF(Table1[[#This Row],[Asset Class]]<>"Local",0.25,IF(P62="y",1,"")) -> 0.25 | V62: =IF(Table1[[#This Row],[Asset Class]]<>"Local",0.25,IF(Q62="y",1,"")) -> 0.25 | W62: =IF(Table1[[#This Row],[Asset Class]]<>"Local",0.25,IF(R62="y",1,"")) -> 0.25 | X62: =IF(Table1[[#This Row],[Asset Class]]<>"Local",0.25,IF(S62="y",1,"")) -> 0.25 | Y62: 1 | AA62: 3346341 | AB62: 3346341 | AC62: 3346341 | AD62: 3346341 | AE62: 13385364
B63: D0025 East Local | C63: EXIT-PK-3795 | D63: Local | E63: East | F63: General Recreation | G63: 0.5 | H63: 8556.932213 | I63: 111.6204104 | J63: =Table1[[#This Row],[Embellishment Area (m2)]]*Table1[[#This Row],[Construction Unit Rate ($/m)]]*Table1[[#This Row],[Embellishment Area Factor]] -> 477564.1425 | K63: 17113.86443 | L63: 66.12572262 | M63: =Table1[[#This Row],[Size of land (m2)]]*Table1[[#This Row],[Land Unit Rate ($/m2)]] -> 1131666.652 | N63: 2021 | O63: =ROUND(IF(Table1[[#This Row],[Valuation Year]]=2016,(Table1[[#This Row],[Total Construction Cost ($)]]+Table1[[#This Row],[Land Value]])*('General Input Sheet'!$G$38/'General Input Sheet'!$G$43),Table1[[#This Row],[Total Construction Cost ($)]]+Table1[[#This Row],[Land Value]]),0) -> 1609231 | P63: =_xlfn.IFS(Table1[[#This Row],[Asset Class]]<>"Local","y",P$11=$E63,"y",Table1[[#This Row],[Asset Class]]="Local","") -> y | Q63: =_xlfn.IFS(Table1[[#This Row],[Asset Class]]<>"Local","y",Q$11=$E63,"y",Table1[[#This Row],[Asset Class]]="Local","") ->  | R63: =_xlfn.IFS(Table1[[#This Row],[Asset Class]]<>"Local","y",R$11=$E63,"y",Table1[[#This Row],[Asset Class]]="Local","") ->  | S63: =_xlfn.IFS(Table1[[#This Row],[Asset Class]]<>"Local","y",S$11=$E63,"y",Table1[[#This Row],[Asset Class]]="Local","") ->  | U63: =IF(Table1[[#This Row],[Asset Class]]<>"Local",0.25,IF(P63="y",1,"")) -> 1 | V63: =IF(Table1[[#This Row],[Asset Class]]<>"Local",0.25,IF(Q63="y",1,"")) ->  | W63: =IF(Table1[[#This Row],[Asset Class]]<>"Local",0.25,IF(R63="y",1,"")) ->  | X63: =IF(Table1[[#This Row],[Asset Class]]<>"Local",0.25,IF(S63="y",1,"")) ->  | Y63: 1 | AA63: 1609231 | AE63: 1609231
B64: D0026 East Local | C64: EXIT-PK-3796 | D64: Local | E64: East | F64: General Recreation | G64: 0.5 | H64: 1363.858945 | I64: 111.6204104 | J64: =Table1[[#This Row],[Embellishment Area (m2)]]*Table1[[#This Row],[Construction Unit Rate ($/m)]]*Table1[[#This Row],[Embellishment Area Factor]] -> 76117.24756 | K64: 0 | L64: 66.12572262 | M64: =Table1[[#This Row],[Size of land (m2)]]*Table1[[#This Row],[Land Unit Rate ($/m2)]] -> 0 | N64: 2021 | O64: =ROUND(IF(Table1[[#This Row],[Valuation Year]]=2016,(Table1[[#This Row],[Total Construction Cost ($)]]+Table1[[#This Row],[Land Value]])*('General Input Sheet'!$G$38/'General Input Sheet'!$G$43),Table1[[#This Row],[Total Construction Cost ($)]]+Table1[[#This Row],[Land Value]]),0) -> 76117 | P64: =_xlfn.IFS(Table1[[#This Row],[Asset Class]]<>"Local","y",P$11=$E64,"y",Table1[[#This Row],[Asset Class]]="Local","") -> y | Q64: =_xlfn.IFS(Table1[[#This Row],[Asset Class]]<>"Local","y",Q$11=$E64,"y",Table1[[#This Row],[Asset Class]]="Local","") ->  | R64: =_xlfn.IFS(Table1[[#This Row],[Asset Class]]<>"Local","y",R$11=$E64,"y",Table1[[#This Row],[Asset Class]]="Local","") ->  | S64: =_xlfn.IFS(Table1[[#This Row],[Asset Class]]<>"Local","y",S$11=$E64,"y",Table1[[#This Row],[Asset Class]]="Local","") ->  | U64: =IF(Table1[[#This Row],[Asset Class]]<>"Local",0.25,IF(P64="y",1,"")) -> 1 | V64: =IF(Table1[[#This Row],[Asset Class]]<>"Local",0.25,IF(Q64="y",1,"")) ->  | W64: =IF(Table1[[#This Row],[Asset Class]]<>"Local",0.25,IF(R64="y",1,"")) ->  | X64: =IF(Table1[[#This Row],[Asset Class]]<>"Local",0.25,IF(S64="y",1,"")) ->  | Y64: 1 | AA64: 76117 | AE64: 76117
B65: D0027 East Local | C65: EXIT-PK-3797 | D65: Local | E65: East | F65: General Recreation | G65: 0.5 | H65: 11671.01517 | I65: 111.6204104 | J65: =Table1[[#This Row],[Embellishment Area (m2)]]*Table1[[#This Row],[Construction Unit Rate ($/m)]]*Table1[[#This Row],[Embellishment Area Factor]] -> 651361.7511 | K65: 23342.03033 | L65: 66.12572262 | M65: =Table1[[#This Row],[Size of land (m2)]]*Table1[[#This Row],[Land Unit Rate ($/m2)]] -> 1543508.623 | N65: 2021 | O65: =ROUND(IF(Table1[[#This Row],[Valuation Year]]=2016,(Table1[[#This Row],[Total Construction Cost ($)]]+Table1[[#This Row],[Land Value]])*('General Input Sheet'!$G$38/'General Input Sheet'!$G$43),Table1[[#This Row],[Total Construction Cost ($)]]+Table1[[#This Row],[Land Value]]),0) -> 2194870 | P65: =_xlfn.IFS(Table1[[#This Row],[Asset Class]]<>"Local","y",P$11=$E65,"y",Table1[[#This Row],[Asset Class]]="Local","") -> y | Q65: =_xlfn.IFS(Table1[[#This Row],[Asset Class]]<>"Local","y",Q$11=$E65,"y",Table1[[#This Row],[Asset Class]]="Local","") ->  | R65: =_xlfn.IFS(Table1[[#This Row],[Asset Class]]<>"Local","y",R$11=$E65,"y",Table1[[#This Row],[Asset Class]]="Local","") ->  | S65: =_xlfn.IFS(Table1[[#This Row],[Asset Class]]<>"Local","y",S$11=$E65,"y",Table1[[#This Row],[Asset Class]]="Local","") ->  | U65: =IF(Table1[[#This Row],[Asset Class]]<>"Local",0.25,IF(P65="y",1,"")) -> 1 | V65: =IF(Table1[[#This Row],[Asset Class]]<>"Local",0.25,IF(Q65="y",1,"")) ->  | W65: =IF(Table1[[#This Row],[Asset Class]]<>"Local",0.25,IF(R65="y",1,"")) ->  | X65: =IF(Table1[[#This Row],[Asset Class]]<>"Local",0.25,IF(S65="y",1,"")) ->  | Y65: 1 | AA65: 2194870 | AE65: 2194870
B66: D0027 East District | C66: EXIT-PK-3798 | D66: District | E66: East | F66: Specialised Outdoor Sport | G66: 0.5 | H66: 5499.939517 | I66: 295.9181569 | J66: =Table1[[#This Row],[Embellishment Area (m2)]]*Table1[[#This Row],[Construction Unit Rate ($/m)]]*Table1[[#This Row],[Embellishment Area Factor]] -> 813765.9825 | K66: 10999.87903 | L66: 157.2622192 | M66: =Table1[[#This Row],[Size of land (m2)]]*Table1[[#This Row],[Land Unit Rate ($/m2)]] -> 1729865.387 | N66: 2021 | O66: =ROUND(IF(Table1[[#This Row],[Valuation Year]]=2016,(Table1[[#This Row],[Total Construction Cost ($)]]+Table1[[#This Row],[Land Value]])*('General Input Sheet'!$G$38/'General Input Sheet'!$G$43),Table1[[#This Row],[Total Construction Cost ($)]]+Table1[[#This Row],[Land Value]]),0) -> 2543631 | P66: =_xlfn.IFS(Table1[[#This Row],[Asset Class]]<>"Local","y",P$11=$E66,"y",Table1[[#This Row],[Asset Class]]="Local","") -> y | Q66: =_xlfn.IFS(Table1[[#This Row],[Asset Class]]<>"Local","y",Q$11=$E66,"y",Table1[[#This Row],[Asset Class]]="Local","") -> y | R66: =_xlfn.IFS(Table1[[#This Row],[Asset Class]]<>"Local","y",R$11=$E66,"y",Table1[[#This Row],[Asset Class]]="Local","") -> y | S66: =_xlfn.IFS(Table1[[#This Row],[Asset Class]]<>"Local","y",S$11=$E66,"y",Table1[[#This Row],[Asset Class]]="Local","") -> y | U66: =IF(Table1[[#This Row],[Asset Class]]<>"Local",0.25,IF(P66="y",1,"")) -> 0.25 | V66: =IF(Table1[[#This Row],[Asset Class]]<>"Local",0.25,IF(Q66="y",1,"")) -> 0.25 | W66: =IF(Table1[[#This Row],[Asset Class]]<>"Local",0.25,IF(R66="y",1,"")) -> 0.25 | X66: =IF(Table1[[#This Row],[Asset Class]]<>"Local",0.25,IF(S66="y",1,"")) -> 0.25 | Y66: 1 | AA66: 635907.75 | AB66: 635907.75 | AC66: 635907.75 | AD66: 635907.75 | AE66: 2543631
B67: D0028 East District | C67: EXIT-PK-3800 | D67: District | E67: East | F67: Specialised Outdoor Sport | G67: 0.5 | H67: 7524.183242 | I67: 295.9181569 | J67: =Table1[[#This Row],[Embellishment Area (m2)]]*Table1[[#This Row],[Construction Unit Rate ($/m)]]*Table1[[#This Row],[Embellishment Area Factor]] -> 1113271.219 | K67: 0 | L67: 157.2622192 | M67: =Table1[[#This Row],[Size of land (m2)]]*Table1[[#This Row],[Land Unit Rate ($/m2)]] -> 0 | N67: 2021 | O67: =ROUND(IF(Table1[[#This Row],[Valuation Year]]=2016,(Table1[[#This Row],[Total Construction Cost ($)]]+Table1[[#This Row],[Land Value]])*('General Input Sheet'!$G$38/'General Input Sheet'!$G$43),Table1[[#This Row],[Total Construction Cost ($)]]+Table1[[#This Row],[Land Value]]),0) -> 1113271 | P67: =_xlfn.IFS(Table1[[#This Row],[Asset Class]]<>"Local","y",P$11=$E67,"y",Table1[[#This Row],[Asset Class]]="Local","") -> y | Q67: =_xlfn.IFS(Table1[[#This Row],[Asset Class]]<>"Local","y",Q$11=$E67,"y",Table1[[#This Row],[Asset Class]]="Local","") -> y | R67: =_xlfn.IFS(Table1[[#This Row],[Asset Class]]<>"Local","y",R$11=$E67,"y",Table1[[#This Row],[Asset Class]]="Local","") -> y | S67: =_xlfn.IFS(Table1[[#This Row],[Asset Class]]<>"Local","y",S$11=$E67,"y",Table1[[#This Row],[Asset Class]]="Local","") -> y | U67: =IF(Table1[[#This Row],[Asset Class]]<>"Local",0.25,IF(P67="y",1,"")) -> 0.25 | V67: =IF(Table1[[#This Row],[Asset Class]]<>"Local",0.25,IF(Q67="y",1,"")) -> 0.25 | W67: =IF(Table1[[#This Row],[Asset Class]]<>"Local",0.25,IF(R67="y",1,"")) -> 0.25 | X67: =IF(Table1[[#This Row],[Asset Class]]<>"Local",0.25,IF(S67="y",1,"")) -> 0.25 | Y67: 1 | AA67: 278317.75 | AB67: 278317.75 | AC67: 278317.75 | AD67: 278317.75 | AE67: 1113271
B68: D0028 East Local | C68: EXIT-PK-3804 | D68: Local | E68: East | F68: General Recreation | G68: 0.5 | H68: 9691.803327 | I68: 111.6204104 | J68: =Table1[[#This Row],[Embellishment Area (m2)]]*Table1[[#This Row],[Construction Unit Rate ($/m)]]*Table1[[#This Row],[Embellishment Area Factor]] -> 540901.5322 | K68: 0 | L68: 66.12572262 | M68: =Table1[[#This Row],[Size of land (m2)]]*Table1[[#This Row],[Land Unit Rate ($/m2)]] -> 0 | N68: 2021 | O68: =ROUND(IF(Table1[[#This Row],[Valuation Year]]=2016,(Table1[[#This Row],[Total Construction Cost ($)]]+Table1[[#This Row],[Land Value]])*('General Input Sheet'!$G$38/'General Input Sheet'!$G$43),Table1[[#This Row],[Total Construction Cost ($)]]+Table1[[#This Row],[Land Value]]),0) -> 540902 | P68: =_xlfn.IFS(Table1[[#This Row],[Asset Class]]<>"Local","y",P$11=$E68,"y",Table1[[#This Row],[Asset Class]]="Local","") -> y | Q68: =_xlfn.IFS(Table1[[#This Row],[Asset Class]]<>"Local","y",Q$11=$E68,"y",Table1[[#This Row],[Asset Class]]="Local","") ->  | R68: =_xlfn.IFS(Table1[[#This Row],[Asset Class]]<>"Local","y",R$11=$E68,"y",Table1[[#This Row],[Asset Class]]="Local","") ->  | S68: =_xlfn.IFS(Table1[[#This Row],[Asset Class]]<>"Local","y",S$11=$E68,"y",Table1[[#This Row],[Asset Class]]="Local","") ->  | U68: =IF(Table1[[#This Row],[Asset Class]]<>"Local",0.25,IF(P68="y",1,"")) -> 1 | V68: =IF(Table1[[#This Row],[Asset Class]]<>"Local",0.25,IF(Q68="y",1,"")) ->  | W68: =IF(Table1[[#This Row],[Asset Class]]<>"Local",0.25,IF(R68="y",1,"")) ->  | X68: =IF(Table1[[#This Row],[Asset Class]]<>"Local",0.25,IF(S68="y",1,"")) ->  | Y68: 1 | AA68: 540902 | AE68: 540902
B69: D0028 East Local | C69: EXIT-PK-3806 | D69: Local | E69: East | F69: General Outdoor Sport | G69: 0.5 | H69: 2096.30301 | I69: 111.6204104 | J69: =Table1[[#This Row],[Embellishment Area (m2)]]*Table1[[#This Row],[Construction Unit Rate ($/m)]]*Table1[[#This Row],[Embellishment Area Factor]] -> 116995.1011 | K69: 0 | L69: 66.12572262 | M69: =Table1[[#This Row],[Size of land (m2)]]*Table1[[#This Row],[Land Unit Rate ($/m2)]] -> 0 | N69: 2021 | O69: =ROUND(IF(Table1[[#This Row],[Valuation Year]]=2016,(Table1[[#This Row],[Total Construction Cost ($)]]+Table1[[#This Row],[Land Value]])*('General Input Sheet'!$G$38/'General Input Sheet'!$G$43),Table1[[#This Row],[Total Construction Cost ($)]]+Table1[[#This Row],[Land Value]]),0) -> 116995 | P69: =_xlfn.IFS(Table1[[#This Row],[Asset Class]]<>"Local","y",P$11=$E69,"y",Table1[[#This Row],[Asset Class]]="Local","") -> y | Q69: =_xlfn.IFS(Table1[[#This Row],[Asset Class]]<>"Local","y",Q$11=$E69,"y",Table1[[#This Row],[Asset Class]]="Local","") ->  | R69: =_xlfn.IFS(Table1[[#This Row],[Asset Class]]<>"Local","y",R$11=$E69,"y",Table1[[#This Row],[Asset Class]]="Local","") ->  | S69: =_xlfn.IFS(Table1[[#This Row],[Asset Class]]<>"Local","y",S$11=$E69,"y",Table1[[#This Row],[Asset Class]]="Local","") ->  | U69: =IF(Table1[[#This Row],[Asset Class]]<>"Local",0.25,IF(P69="y",1,"")) -> 1 | V69: =IF(Table1[[#This Row],[Asset Class]]<>"Local",0.25,IF(Q69="y",1,"")) ->  | W69: =IF(Table1[[#This Row],[Asset Class]]<>"Local",0.25,IF(R69="y",1,"")) ->  | X69: =IF(Table1[[#This Row],[Asset Class]]<>"Local",0.25,IF(S69="y",1,"")) ->  | Y69: 1 | AA69: 116995 | AE69: 116995
B70: D0029 East Local | C70: EXIT-PK-3807 | D70: Local | E70: East | F70: General Recreation | G70: 0.5 | H70: 4385.848242 | I70: 111.6204104 | J70: =Table1[[#This Row],[Embellishment Area (m2)]]*Table1[[#This Row],[Construction Unit Rate ($/m)]]*Table1[[#This Row],[Embellishment Area Factor]] -> 244775.0903 | K70: 0 | L70: 66.12572262 | M70: =Table1[[#This Row],[Size of land (m2)]]*Table1[[#This Row],[Land Unit Rate ($/m2)]] -> 0 | N70: 2021 | O70: =ROUND(IF(Table1[[#This Row],[Valuation Year]]=2016,(Table1[[#This Row],[Total Construction Cost ($)]]+Table1[[#This Row],[Land Value]])*('General Input Sheet'!$G$38/'General Input Sheet'!$G$43),Table1[[#This Row],[Total Construction Cost ($)]]+Table1[[#This Row],[Land Value]]),0) -> 244775 | P70: =_xlfn.IFS(Table1[[#This Row],[Asset Class]]<>"Local","y",P$11=$E70,"y",Table1[[#This Row],[Asset Class]]="Local","") -> y | Q70: =_xlfn.IFS(Table1[[#This Row],[Asset Class]]<>"Local","y",Q$11=$E70,"y",Table1[[#This Row],[Asset Class]]="Local","") ->  | R70: =_xlfn.IFS(Table1[[#This Row],[Asset Class]]<>"Local","y",R$11=$E70,"y",Table1[[#This Row],[Asset Class]]="Local","") ->  | S70: =_xlfn.IFS(Table1[[#This Row],[Asset Class]]<>"Local","y",S$11=$E70,"y",Table1[[#This Row],[Asset Class]]="Local","") ->  | U70: =IF(Table1[[#This Row],[Asset Class]]<>"Local",0.25,IF(P70="y",1,"")) -> 1 | V70: =IF(Table1[[#This Row],[Asset Class]]<>"Local",0.25,IF(Q70="y",1,"")) ->  | W70: =IF(Table1[[#This Row],[Asset Class]]<>"Local",0.25,IF(R70="y",1,"")) ->  | X70: =IF(Table1[[#This Row],[Asset Class]]<>"Local",0.25,IF(S70="y",1,"")) ->  | Y70: 1 | AA70: 244775 | AE70: 244775
B71: D0029 East District | C71: EXIT-PK-3808 | D71: District | E71: East | F71: General Outdoor Sport | G71: 0.5 | H71: 17790.27889 | I71: 295.9181569 | J71: =Table1[[#This Row],[Embellishment Area (m2)]]*Table1[[#This Row],[Construction Unit Rate ($/m)]]*Table1[[#This Row],[Embellishment Area Factor]] -> 2632233.27 | K71: 0 | L71: 157.2622192 | M71: =Table1[[#This Row],[Size of land (m2)]]*Table1[[#This Row],[Land Unit Rate ($/m2)]] -> 0 | N71: 2021 | O71: =ROUND(IF(Table1[[#This Row],[Valuation Year]]=2016,(Table1[[#This Row],[Total Construction Cost ($)]]+Table1[[#This Row],[Land Value]])*('General Input Sheet'!$G$38/'General Input Sheet'!$G$43),Table1[[#This Row],[Total Construction Cost ($)]]+Table1[[#This Row],[Land Value]]),0) -> 2632233 | P71: =_xlfn.IFS(Table1[[#This Row],[Asset Class]]<>"Local","y",P$11=$E71,"y",Table1[[#This Row],[Asset Class]]="Local","") -> y | Q71: =_xlfn.IFS(Table1[[#This Row],[Asset Class]]<>"Local","y",Q$11=$E71,"y",Table1[[#This Row],[Asset Class]]="Local","") -> y | R71: =_xlfn.IFS(Table1[[#This Row],[Asset Class]]<>"Local","y",R$11=$E71,"y",Table1[[#This Row],[Asset Class]]="Local","") -> y | S71: =_xlfn.IFS(Table1[[#This Row],[Asset Class]]<>"Local","y",S$11=$E71,"y",Table1[[#This Row],[Asset Class]]="Local","") -> y | U71: =IF(Table1[[#This Row],[Asset Class]]<>"Local",0.25,IF(P71="y",1,"")) -> 0.25 | V71: =IF(Table1[[#This Row],[Asset Class]]<>"Local",0.25,IF(Q71="y",1,"")) -> 0.25 | W71: =IF(Table1[[#This Row],[Asset Class]]<>"Local",0.25,IF(R71="y",1,"")) -> 0.25 | X71: =IF(Table1[[#This Row],[Asset Class]]<>"Local",0.25,IF(S71="y",1,"")) -> 0.25 | Y71: 1 | AA71: 658058.25 | AB71: 658058.25 | AC71: 658058.25 | AD71: 658058.25 | AE71: 2632233
B72: D0030 East District | C72: EXIT-PK-3810 | D72: District | E72: East | F72: General Recreation | G72: 0.5 | H72: 718.3602372 | I72: 295.9181569 | J72: =Table1[[#This Row],[Embellishment Area (m2)]]*Table1[[#This Row],[Construction Unit Rate ($/m)]]*Table1[[#This Row],[Embellishment Area Factor]] -> 106287.9187 | K72: 1436.720474 | L72: 157.2622192 | M72: =Table1[[#This Row],[Size of land (m2)]]*Table1[[#This Row],[Land Unit Rate ($/m2)]] -> 225941.8501 | N72: 2021 | O72: =ROUND(IF(Table1[[#This Row],[Valuation Year]]=2016,(Table1[[#This Row],[Total Construction Cost ($)]]+Table1[[#This Row],[Land Value]])*('General Input Sheet'!$G$38/'General Input Sheet'!$G$43),Table1[[#This Row],[Total Construction Cost ($)]]+Table1[[#This Row],[Land Value]]),0) -> 332230 | P72: =_xlfn.IFS(Table1[[#This Row],[Asset Class]]<>"Local","y",P$11=$E72,"y",Table1[[#This Row],[Asset Class]]="Local","") -> y | Q72: =_xlfn.IFS(Table1[[#This Row],[Asset Class]]<>"Local","y",Q$11=$E72,"y",Table1[[#This Row],[Asset Class]]="Local","") -> y | R72: =_xlfn.IFS(Table1[[#This Row],[Asset Class]]<>"Local","y",R$11=$E72,"y",Table1[[#This Row],[Asset Class]]="Local","") -> y | S72: =_xlfn.IFS(Table1[[#This Row],[Asset Class]]<>"Local","y",S$11=$E72,"y",Table1[[#This Row],[Asset Class]]="Local","") -> y | U72: =IF(Table1[[#This Row],[Asset Class]]<>"Local",0.25,IF(P72="y",1,"")) -> 0.25 | V72: =IF(Table1[[#This Row],[Asset Class]]<>"Local",0.25,IF(Q72="y",1,"")) -> 0.25 | W72: =IF(Table1[[#This Row],[Asset Class]]<>"Local",0.25,IF(R72="y",1,"")) -> 0.25 | X72: =IF(Table1[[#This Row],[Asset Class]]<>"Local",0.25,IF(S72="y",1,"")) -> 0.25 | Y72: 1 | AA72: 83057.5 | AB72: 83057.5 | AC72: 83057.5 | AD72: 83057.5 | AE72: 332230
B73: D0030 East District | C73: EXIT-PK-3811 | D73: District | E73: East | F73: General Recreation | G73: 0.5 | H73: 6384.770164 | I73: 295.9181569 | J73: =Table1[[#This Row],[Embellishment Area (m2)]]*Table1[[#This Row],[Construction Unit Rate ($/m)]]*Table1[[#This Row],[Embellishment Area Factor]] -> 944684.7097 | K73: 12769.54033 | L73: 157.2622192 | M73: =Table1[[#This Row],[Size of land (m2)]]*Table1[[#This Row],[Land Unit Rate ($/m2)]] -> 2008166.25 | N73: 2021 | O73: =ROUND(IF(Table1[[#This Row],[Valuation Year]]=2016,(Table1[[#This Row],[Total Construction Cost ($)]]+Table1[[#This Row],[Land Value]])*('General Input Sheet'!$G$38/'General Input Sheet'!$G$43),Table1[[#This Row],[Total Construction Cost ($)]]+Table1[[#This Row],[Land Value]]),0) -> 2952851 | P73: =_xlfn.IFS(Table1[[#This Row],[Asset Class]]<>"Local","y",P$11=$E73,"y",Table1[[#This Row],[Asset Class]]="Local","") -> y | Q73: =_xlfn.IFS(Table1[[#This Row],[Asset Class]]<>"Local","y",Q$11=$E73,"y",Table1[[#This Row],[Asset Class]]="Local","") -> y | R73: =_xlfn.IFS(Table1[[#This Row],[Asset Class]]<>"Local","y",R$11=$E73,"y",Table1[[#This Row],[Asset Class]]="Local","") -> y | S73: =_xlfn.IFS(Table1[[#This Row],[Asset Class]]<>"Local","y",S$11=$E73,"y",Table1[[#This Row],[Asset Class]]="Local","") -> y | U73: =IF(Table1[[#This Row],[Asset Class]]<>"Local",0.25,IF(P73="y",1,"")) -> 0.25 | V73: =IF(Table1[[#This Row],[Asset Class]]<>"Local",0.25,IF(Q73="y",1,"")) -> 0.25 | W73: =IF(Table1[[#This Row],[Asset Class]]<>"Local",0.25,IF(R73="y",1,"")) -> 0.25 | X73: =IF(Table1[[#This Row],[Asset Class]]<>"Local",0.25,IF(S73="y",1,"")) -> 0.25 | Y73: 1 | AA73: 738212.75 | AB73: 738212.75 | AC73: 738212.75 | AD73: 738212.75 | AE73: 2952851
B74: D0030 East District | C74: EXIT-PK-3813 | D74: District | E74: East | F74: General Outdoor Sport | G74: 0.5 | H74: 18992.00226 | I74: 295.9181569 | J74: =Table1[[#This Row],[Embellishment Area (m2)]]*Table1[[#This Row],[Construction Unit Rate ($/m)]]*Table1[[#This Row],[Embellishment Area Factor]] -> 2810039.153 | K74: 37984.00453 | L74: 157.2622192 | M74: =Table1[[#This Row],[Size of land (m2)]]*Table1[[#This Row],[Land Unit Rate ($/m2)]] -> 5973448.845 | N74: 2021 | O74: =ROUND(IF(Table1[[#This Row],[Valuation Year]]=2016,(Table1[[#This Row],[Total Construction Cost ($)]]+Table1[[#This Row],[Land Value]])*('General Input Sheet'!$G$38/'General Input Sheet'!$G$43),Table1[[#This Row],[Total Construction Cost ($)]]+Table1[[#This Row],[Land Value]]),0) -> 8783488 | P74: =_xlfn.IFS(Table1[[#This Row],[Asset Class]]<>"Local","y",P$11=$E74,"y",Table1[[#This Row],[Asset Class]]="Local","") -> y | Q74: =_xlfn.IFS(Table1[[#This Row],[Asset Class]]<>"Local","y",Q$11=$E74,"y",Table1[[#This Row],[Asset Class]]="Local","") -> y | R74: =_xlfn.IFS(Table1[[#This Row],[Asset Class]]<>"Local","y",R$11=$E74,"y",Table1[[#This Row],[Asset Class]]="Local","") -> y | S74: =_xlfn.IFS(Table1[[#This Row],[Asset Class]]<>"Local","y",S$11=$E74,"y",Table1[[#This Row],[Asset Class]]="Local","") -> y | U74: =IF(Table1[[#This Row],[Asset Class]]<>"Local",0.25,IF(P74="y",1,"")) -> 0.25 | V74: =IF(Table1[[#This Row],[Asset Class]]<>"Local",0.25,IF(Q74="y",1,"")) -> 0.25 | W74: =IF(Table1[[#This Row],[Asset Class]]<>"Local",0.25,IF(R74="y",1,"")) -> 0.25 | X74: =IF(Table1[[#This Row],[Asset Class]]<>"Local",0.25,IF(S74="y",1,"")) -> 0.25 | Y74: 1 | AA74: 2195872 | AB74: 2195872 | AC74: 2195872 | AD74: 2195872 | AE74: 8783488
B75: D0031 East Local | C75: EXIT-PK-3814 | D75: Local | E75: East | F75: General Outdoor Sport | G75: 0.5 | H75: 6877.744054 | I75: 111.6204104 | J75: =Table1[[#This Row],[Embellishment Area (m2)]]*Table1[[#This Row],[Construction Unit Rate ($/m)]]*Table1[[#This Row],[Embellishment Area Factor]] -> 383848.3068 | K75: 13755.48811 | L75: 66.12572262 | M75: =Table1[[#This Row],[Size of land (m2)]]*Table1[[#This Row],[Land Unit Rate ($/m2)]] -> 909591.5912 | N75: 2021 | O75: =ROUND(IF(Table1[[#This Row],[Valuation Year]]=2016,(Table1[[#This Row],[Total Construction Cost ($)]]+Table1[[#This Row],[Land Value]])*('General Input Sheet'!$G$38/'General Input Sheet'!$G$43),Table1[[#This Row],[Total Construction Cost ($)]]+Table1[[#This Row],[Land Value]]),0) -> 1293440 | P75: =_xlfn.IFS(Table1[[#This Row],[Asset Class]]<>"Local","y",P$11=$E75,"y",Table1[[#This Row],[Asset Class]]="Local","") -> y | Q75: =_xlfn.IFS(Table1[[#This Row],[Asset Class]]<>"Local","y",Q$11=$E75,"y",Table1[[#This Row],[Asset Class]]="Local","") ->  | R75: =_xlfn.IFS(Table1[[#This Row],[Asset Class]]<>"Local","y",R$11=$E75,"y",Table1[[#This Row],[Asset Class]]="Local","") ->  | S75: =_xlfn.IFS(Table1[[#This Row],[Asset Class]]<>"Local","y",S$11=$E75,"y",Table1[[#This Row],[Asset Class]]="Local","") ->  | U75: =IF(Table1[[#This Row],[Asset Class]]<>"Local",0.25,IF(P75="y",1,"")) -> 1 | V75: =IF(Table1[[#This Row],[Asset Class]]<>"Local",0.25,IF(Q75="y",1,"")) ->  | W75: =IF(Table1[[#This Row],[Asset Class]]<>"Local",0.25,IF(R75="y",1,"")) ->  | X75: =IF(Table1[[#This Row],[Asset Class]]<>"Local",0.25,IF(S75="y",1,"")) ->  | Y75: 1 | AA75: 1293440 | AE75: 1293440
B76: D0031 East Local | C76: EXIT-PK-3816 | D76: Local | E76: East | F76: General Recreation | G76: 0.5 | H76: 13901.95322 | I76: 111.6204104 | J76: =Table1[[#This Row],[Embellishment Area (m2)]]*Table1[[#This Row],[Construction Unit Rate ($/m)]]*Table1[[#This Row],[Embellishment Area Factor]] -> 775870.8616 | K76: 27803.90644 | L76: 66.12572262 | M76: =Table1[[#This Row],[Size of land (m2)]]*Table1[[#This Row],[Land Unit Rate ($/m2)]] -> 1838553.405 | N76: 2021 | O76: =ROUND(IF(Table1[[#This Row],[Valuation Year]]=2016,(Table1[[#This Row],[Total Construction Cost ($)]]+Table1[[#This Row],[Land Value]])*('General Input Sheet'!$G$38/'General Input Sheet'!$G$43),Table1[[#This Row],[Total Construction Cost ($)]]+Table1[[#This Row],[Land Value]]),0) -> 2614424 | P76: =_xlfn.IFS(Table1[[#This Row],[Asset Class]]<>"Local","y",P$11=$E76,"y",Table1[[#This Row],[Asset Class]]="Local","") -> y | Q76: =_xlfn.IFS(Table1[[#This Row],[Asset Class]]<>"Local","y",Q$11=$E76,"y",Table1[[#This Row],[Asset Class]]="Local","") ->  | R76: =_xlfn.IFS(Table1[[#This Row],[Asset Class]]<>"Local","y",R$11=$E76,"y",Table1[[#This Row],[Asset Class]]="Local","") ->  | S76: =_xlfn.IFS(Table1[[#This Row],[Asset Class]]<>"Local","y",S$11=$E76,"y",Table1[[#This Row],[Asset Class]]="Local","") ->  | U76: =IF(Table1[[#This Row],[Asset Class]]<>"Local",0.25,IF(P76="y",1,"")) -> 1 | V76: =IF(Table1[[#This Row],[Asset Class]]<>"Local",0.25,IF(Q76="y",1,"")) ->  | W76: =IF(Table1[[#This Row],[Asset Class]]<>"Local",0.25,IF(R76="y",1,"")) ->  | X76: =IF(Table1[[#This Row],[Asset Class]]<>"Local",0.25,IF(S76="y",1,"")) ->  | Y76: 1 | AA76: 2614424 | AE76: 2614424
B77: D0032 East Local | C77: EXIT-PK-3818 | D77: Local | E77: East | F77: General Outdoor Sport | G77: 0.5 | H77: 18458.55973 | I77: 111.6204104 | J77: =Table1[[#This Row],[Embellishment Area (m2)]]*Table1[[#This Row],[Construction Unit Rate ($/m)]]*Table1[[#This Row],[Embellishment Area Factor]] -> 1030176.006 | K77: 36917.11945 | L77: 66.12572262 | M77: =Table1[[#This Row],[Size of land (m2)]]*Table1[[#This Row],[Land Unit Rate ($/m2)]] -> 2441171.201 | N77: 2021 | O77: =ROUND(IF(Table1[[#This Row],[Valuation Year]]=2016,(Table1[[#This Row],[Total Construction Cost ($)]]+Table1[[#This Row],[Land Value]])*('General Input Sheet'!$G$38/'General Input Sheet'!$G$43),Table1[[#This Row],[Total Construction Cost ($)]]+Table1[[#This Row],[Land Value]]),0) -> 3471347 | P77: =_xlfn.IFS(Table1[[#This Row],[Asset Class]]<>"Local","y",P$11=$E77,"y",Table1[[#This Row],[Asset Class]]="Local","") -> y | Q77: =_xlfn.IFS(Table1[[#This Row],[Asset Class]]<>"Local","y",Q$11=$E77,"y",Table1[[#This Row],[Asset Class]]="Local","") ->  | R77: =_xlfn.IFS(Table1[[#This Row],[Asset Class]]<>"Local","y",R$11=$E77,"y",Table1[[#This Row],[Asset Class]]="Local","") ->  | S77: =_xlfn.IFS(Table1[[#This Row],[Asset Class]]<>"Local","y",S$11=$E77,"y",Table1[[#This Row],[Asset Class]]="Local","") ->  | U77: =IF(Table1[[#This Row],[Asset Class]]<>"Local",0.25,IF(P77="y",1,"")) -> 1 | V77: =IF(Table1[[#This Row],[Asset Class]]<>"Local",0.25,IF(Q77="y",1,"")) ->  | W77: =IF(Table1[[#This Row],[Asset Class]]<>"Local",0.25,IF(R77="y",1,"")) ->  | X77: =IF(Table1[[#This Row],[Asset Class]]<>"Local",0.25,IF(S77="y",1,"")) ->  | Y77: 1 | AA77: 3471347 | AE77: 3471347
B78: D0033 East Local | C78: EXIT-PK-3820 | D78: Local | E78: East | F78: General Outdoor Sport | G78: 0.5 | H78: 6024.00164 | I78: 111.6204104 | J78: =Table1[[#This Row],[Embellishment Area (m2)]]*Table1[[#This Row],[Construction Unit Rate ($/m)]]*Table1[[#This Row],[Embellishment Area Factor]] -> 336200.7675 | K78: 12048.00328 | L78: 66.12572262 | M78: =Table1[[#This Row],[Size of land (m2)]]*Table1[[#This Row],[Land Unit Rate ($/m2)]] -> 796682.923 | N78: 2021 | O78: =ROUND(IF(Table1[[#This Row],[Valuation Year]]=2016,(Table1[[#This Row],[Total Construction Cost ($)]]+Table1[[#This Row],[Land Value]])*('General Input Sheet'!$G$38/'General Input Sheet'!$G$43),Table1[[#This Row],[Total Construction Cost ($)]]+Table1[[#This Row],[Land Value]]),0) -> 1132884 | P78: =_xlfn.IFS(Table1[[#This Row],[Asset Class]]<>"Local","y",P$11=$E78,"y",Table1[[#This Row],[Asset Class]]="Local","") -> y | Q78: =_xlfn.IFS(Table1[[#This Row],[Asset Class]]<>"Local","y",Q$11=$E78,"y",Table1[[#This Row],[Asset Class]]="Local","") ->  | R78: =_xlfn.IFS(Table1[[#This Row],[Asset Class]]<>"Local","y",R$11=$E78,"y",Table1[[#This Row],[Asset Class]]="Local","") ->  | S78: =_xlfn.IFS(Table1[[#This Row],[Asset Class]]<>"Local","y",S$11=$E78,"y",Table1[[#This Row],[Asset Class]]="Local","") ->  | U78: =IF(Table1[[#This Row],[Asset Class]]<>"Local",0.25,IF(P78="y",1,"")) -> 1 | V78: =IF(Table1[[#This Row],[Asset Class]]<>"Local",0.25,IF(Q78="y",1,"")) ->  | W78: =IF(Table1[[#This Row],[Asset Class]]<>"Local",0.25,IF(R78="y",1,"")) ->  | X78: =IF(Table1[[#This Row],[Asset Class]]<>"Local",0.25,IF(S78="y",1,"")) ->  | Y78: 1 | AA78: 1132884 | AE78: 1132884
B79: D0033 East Local | C79: EXIT-PK-3821 | D79: Local | E79: East | F79: General Recreation | G79: 0.5 | H79: 6221.796332 | I79: 111.6204104 | J79: =Table1[[#This Row],[Embellishment Area (m2)]]*Table1[[#This Row],[Construction Unit Rate ($/m)]]*Table1[[#This Row],[Embellishment Area Factor]] -> 347239.7298 | K79: 12443.59266 | L79: 66.12572262 | M79: =Table1[[#This Row],[Size of land (m2)]]*Table1[[#This Row],[Land Unit Rate ($/m2)]] -> 822841.5568 | N79: 2021 | O79: =ROUND(IF(Table1[[#This Row],[Valuation Year]]=2016,(Table1[[#This Row],[Total Construction Cost ($)]]+Table1[[#This Row],[Land Value]])*('General Input Sheet'!$G$38/'General Input Sheet'!$G$43),Table1[[#This Row],[Total Construction Cost ($)]]+Table1[[#This Row],[Land Value]]),0) -> 1170081 | P79: =_xlfn.IFS(Table1[[#This Row],[Asset Class]]<>"Local","y",P$11=$E79,"y",Table1[[#This Row],[Asset Class]]="Local","") -> y | Q79: =_xlfn.IFS(Table1[[#This Row],[Asset Class]]<>"Local","y",Q$11=$E79,"y",Table1[[#This Row],[Asset Class]]="Local","") ->  | R79: =_xlfn.IFS(Table1[[#This Row],[Asset Class]]<>"Local","y",R$11=$E79,"y",Table1[[#This Row],[Asset Class]]="Local","") ->  | S79: =_xlfn.IFS(Table1[[#This Row],[Asset Class]]<>"Local","y",S$11=$E79,"y",Table1[[#This Row],[Asset Class]]="Local","") ->  | U79: =IF(Table1[[#This Row],[Asset Class]]<>"Local",0.25,IF(P79="y",1,"")) -> 1 | V79: =IF(Table1[[#This Row],[Asset Class]]<>"Local",0.25,IF(Q79="y",1,"")) ->  | W79: =IF(Table1[[#This Row],[Asset Class]]<>"Local",0.25,IF(R79="y",1,"")) ->  | X79: =IF(Table1[[#This Row],[Asset Class]]<>"Local",0.25,IF(S79="y",1,"")) ->  | Y79: =SUM(U79:X79) -> 1 | AA79: =IF(U79="","",(U79/$Y79)*$O79) -> 1170081 | AB79: =IF(V79="","",(V79/$Y79)*$O79) ->  | AC79: =IF(W79="","",(W79/$Y79)*$O79) ->  | AD79: =IF(X79="","",(X79/$Y79)*$O79) ->  | AE79: =SUM(AA79:AD79) -> 1170081
B80: D0033 East District | C80: EXIT-PK-3822 | D80: District | E80: East | F80: Specialised Outdoor Sport | G80: 0.5 | H80: 7377.492767 | I80: 295.9181569 | J80: =Table1[[#This Row],[Embellishment Area (m2)]]*Table1[[#This Row],[Construction Unit Rate ($/m)]]*Table1[[#This Row],[Embellishment Area Factor]] -> 1091567.031 | K80: 14754.98553 | L80: 157.2622192 | M80: =Table1[[#This Row],[Size of land (m2)]]*Table1[[#This Row],[Land Unit Rate ($/m2)]] -> 2320401.769 | N80: 2021 | O80: =ROUND(IF(Table1[[#This Row],[Valuation Year]]=2016,(Table1[[#This Row],[Total Construction Cost ($)]]+Table1[[#This Row],[Land Value]])*('General Input Sheet'!$G$38/'General Input Sheet'!$G$43),Table1[[#This Row],[Total Construction Cost ($)]]+Table1[[#This Row],[Land Value]]),0) -> 3411969 | P80: =_xlfn.IFS(Table1[[#This Row],[Asset Class]]<>"Local","y",P$11=$E80,"y",Table1[[#This Row],[Asset Class]]="Local","") -> y | Q80: =_xlfn.IFS(Table1[[#This Row],[Asset Class]]<>"Local","y",Q$11=$E80,"y",Table1[[#This Row],[Asset Class]]="Local","") -> y | R80: =_xlfn.IFS(Table1[[#This Row],[Asset Class]]<>"Local","y",R$11=$E80,"y",Table1[[#This Row],[Asset Class]]="Local","") -> y | S80: =_xlfn.IFS(Table1[[#This Row],[Asset Class]]<>"Local","y",S$11=$E80,"y",Table1[[#This Row],[Asset Class]]="Local","") -> y | U80: =IF(Table1[[#This Row],[Asset Class]]<>"Local",0.25,IF(P80="y",1,"")) -> 0.25 | V80: =IF(Table1[[#This Row],[Asset Class]]<>"Local",0.25,IF(Q80="y",1,"")) -> 0.25 | W80: =IF(Table1[[#This Row],[Asset Class]]<>"Local",0.25,IF(R80="y",1,"")) -> 0.25 | X80: =IF(Table1[[#This Row],[Asset Class]]<>"Local",0.25,IF(S80="y",1,"")) -> 0.25 | Y80: 1 | AA80: 852992.25 | AB80: 852992.25 | AC80: 852992.25 | AD80: 852992.25 | AE80: 3411969
B81: D0034 East Local | C81: EXIT-PK-3823 | D81: Local | E81: East | F81: General Recreation | G81: 0.5 | H81: 11775.83645 | I81: 111.6204104 | J81: =Table1[[#This Row],[Embellishment Area (m2)]]*Table1[[#This Row],[Construction Unit Rate ($/m)]]*Table1[[#This Row],[Embellishment Area Factor]] -> 657211.8487 | K81: 0 | L81: 66.12572262 | M81: =Table1[[#This Row],[Size of land (m2)]]*Table1[[#This Row],[Land Unit Rate ($/m2)]] -> 0 | N81: 2021 | O81: =ROUND(IF(Table1[[#This Row],[Valuation Year]]=2016,(Table1[[#This Row],[Total Construction Cost ($)]]+Table1[[#This Row],[Land Value]])*('General Input Sheet'!$G$38/'General Input Sheet'!$G$43),Table1[[#This Row],[Total Construction Cost ($)]]+Table1[[#This Row],[Land Value]]),0) -> 657212 | P81: =_xlfn.IFS(Table1[[#This Row],[Asset Class]]<>"Local","y",P$11=$E81,"y",Table1[[#This Row],[Asset Class]]="Local","") -> y | Q81: =_xlfn.IFS(Table1[[#This Row],[Asset Class]]<>"Local","y",Q$11=$E81,"y",Table1[[#This Row],[Asset Class]]="Local","") ->  | R81: =_xlfn.IFS(Table1[[#This Row],[Asset Class]]<>"Local","y",R$11=$E81,"y",Table1[[#This Row],[Asset Class]]="Local","") ->  | S81: =_xlfn.IFS(Table1[[#This Row],[Asset Class]]<>"Local","y",S$11=$E81,"y",Table1[[#This Row],[Asset Class]]="Local","") ->  | U81: =IF(Table1[[#This Row],[Asset Class]]<>"Local",0.25,IF(P81="y",1,"")) -> 1 | V81: =IF(Table1[[#This Row],[Asset Class]]<>"Local",0.25,IF(Q81="y",1,"")) ->  | W81: =IF(Table1[[#This Row],[Asset Class]]<>"Local",0.25,IF(R81="y",1,"")) ->  | X81: =IF(Table1[[#This Row],[Asset Class]]<>"Local",0.25,IF(S81="y",1,"")) ->  | Y81: 1 | AA81: 657212 | AE81: 657212
B82: D0034 East District | C82: EXIT-PK-3824 | D82: District | E82: East | F82: General Outdoor Sport | G82: 0.5 | H82: 14363.04932 | I82: 295.9181569 | J82: =Table1[[#This Row],[Embellishment Area (m2)]]*Table1[[#This Row],[Construction Unit Rate ($/m)]]*Table1[[#This Row],[Embellishment Area Factor]] -> 2125143.541 | K82: 0 | L82: 157.2622192 | M82: =Table1[[#This Row],[Size of land (m2)]]*Table1[[#This Row],[Land Unit Rate ($/m2)]] -> 0 | N82: 2021 | O82: =ROUND(IF(Table1[[#This Row],[Valuation Year]]=2016,(Table1[[#This Row],[Total Construction Cost ($)]]+Table1[[#This Row],[Land Value]])*('General Input Sheet'!$G$38/'General Input Sheet'!$G$43),Table1[[#This Row],[Total Construction Cost ($)]]+Table1[[#This Row],[Land Value]]),0) -> 2125144 | P82: =_xlfn.IFS(Table1[[#This Row],[Asset Class]]<>"Local","y",P$11=$E82,"y",Table1[[#This Row],[Asset Class]]="Local","") -> y | Q82: =_xlfn.IFS(Table1[[#This Row],[Asset Class]]<>"Local","y",Q$11=$E82,"y",Table1[[#This Row],[Asset Class]]="Local","") -> y | R82: =_xlfn.IFS(Table1[[#This Row],[Asset Class]]<>"Local","y",R$11=$E82,"y",Table1[[#This Row],[Asset Class]]="Local","") -> y | S82: =_xlfn.IFS(Table1[[#This Row],[Asset Class]]<>"Local","y",S$11=$E82,"y",Table1[[#This Row],[Asset Class]]="Local","") -> y | U82: =IF(Table1[[#This Row],[Asset Class]]<>"Local",0.25,IF(P82="y",1,"")) -> 0.25 | V82: =IF(Table1[[#This Row],[Asset Class]]<>"Local",0.25,IF(Q82="y",1,"")) -> 0.25 | W82: =IF(Table1[[#This Row],[Asset Class]]<>"Local",0.25,IF(R82="y",1,"")) -> 0.25 | X82: =IF(Table1[[#This Row],[Asset Class]]<>"Local",0.25,IF(S82="y",1,"")) -> 0.25 | Y82: 1 | AA82: 531286 | AB82: 531286 | AC82: 531286 | AD82: 531286 | AE82: 2125144
B83: D0035 East Metropolitan | C83: EXIT-PK-3825 | D83: Metropolitan | E83: East | F83: General Recreation | G83: 0.5 | H83: 30293.22003 | I83: 407.0646101 | J83: =Table1[[#This Row],[Embellishment Area (m2)]]*Table1[[#This Row],[Construction Unit Rate ($/m)]]*Table1[[#This Row],[Embellishment Area Factor]] -> 6165648.899 | K83: 0 | L83: 112.7890879 | M83: =Table1[[#This Row],[Size of land (m2)]]*Table1[[#This Row],[Land Unit Rate ($/m2)]] -> 0 | N83: 2021 | O83: =ROUND(IF(Table1[[#This Row],[Valuation Year]]=2016,(Table1[[#This Row],[Total Construction Cost ($)]]+Table1[[#This Row],[Land Value]])*('General Input Sheet'!$G$38/'General Input Sheet'!$G$43),Table1[[#This Row],[Total Construction Cost ($)]]+Table1[[#This Row],[Land Value]]),0) -> 6165649 | P83: =_xlfn.IFS(Table1[[#This Row],[Asset Class]]<>"Local","y",P$11=$E83,"y",Table1[[#This Row],[Asset Class]]="Local","") -> y | Q83: =_xlfn.IFS(Table1[[#This Row],[Asset Class]]<>"Local","y",Q$11=$E83,"y",Table1[[#This Row],[Asset Class]]="Local","") -> y | R83: =_xlfn.IFS(Table1[[#This Row],[Asset Class]]<>"Local","y",R$11=$E83,"y",Table1[[#This Row],[Asset Class]]="Local","") -> y | S83: =_xlfn.IFS(Table1[[#This Row],[Asset Class]]<>"Local","y",S$11=$E83,"y",Table1[[#This Row],[Asset Class]]="Local","") -> y | U83: =IF(Table1[[#This Row],[Asset Class]]<>"Local",0.25,IF(P83="y",1,"")) -> 0.25 | V83: =IF(Table1[[#This Row],[Asset Class]]<>"Local",0.25,IF(Q83="y",1,"")) -> 0.25 | W83: =IF(Table1[[#This Row],[Asset Class]]<>"Local",0.25,IF(R83="y",1,"")) -> 0.25 | X83: =IF(Table1[[#This Row],[Asset Class]]<>"Local",0.25,IF(S83="y",1,"")) -> 0.25 | Y83: 1 | AA83: 1541412.25 | AB83: 1541412.25 | AC83: 1541412.25 | AD83: 1541412.25 | AE83: 6165649
B84: D0035 East Local | C84: EXIT-PK-3826 | D84: Local | E84: East | F84: General Recreation | G84: 0.5 | H84: 16279.27546 | I84: 111.6204104 | J84: =Table1[[#This Row],[Embellishment Area (m2)]]*Table1[[#This Row],[Construction Unit Rate ($/m)]]*Table1[[#This Row],[Embellishment Area Factor]] -> 908549.7035 | K84: 0 | L84: 66.12572262 | M84: =Table1[[#This Row],[Size of land (m2)]]*Table1[[#This Row],[Land Unit Rate ($/m2)]] -> 0 | N84: 2021 | O84: =ROUND(IF(Table1[[#This Row],[Valuation Year]]=2016,(Table1[[#This Row],[Total Construction Cost ($)]]+Table1[[#This Row],[Land Value]])*('General Input Sheet'!$G$38/'General Input Sheet'!$G$43),Table1[[#This Row],[Total Construction Cost ($)]]+Table1[[#This Row],[Land Value]]),0) -> 908550 | P84: =_xlfn.IFS(Table1[[#This Row],[Asset Class]]<>"Local","y",P$11=$E84,"y",Table1[[#This Row],[Asset Class]]="Local","") -> y | Q84: =_xlfn.IFS(Table1[[#This Row],[Asset Class]]<>"Local","y",Q$11=$E84,"y",Table1[[#This Row],[Asset Class]]="Local","") ->  | R84: =_xlfn.IFS(Table1[[#This Row],[Asset Class]]<>"Local","y",R$11=$E84,"y",Table1[[#This Row],[Asset Class]]="Local","") ->  | S84: =_xlfn.IFS(Table1[[#This Row],[Asset Class]]<>"Local","y",S$11=$E84,"y",Table1[[#This Row],[Asset Class]]="Local","") ->  | U84: =IF(Table1[[#This Row],[Asset Class]]<>"Local",0.25,IF(P84="y",1,"")) -> 1 | V84: =IF(Table1[[#This Row],[Asset Class]]<>"Local",0.25,IF(Q84="y",1,"")) ->  | W84: =IF(Table1[[#This Row],[Asset Class]]<>"Local",0.25,IF(R84="y",1,"")) ->  | X84: =IF(Table1[[#This Row],[Asset Class]]<>"Local",0.25,IF(S84="y",1,"")) ->  | Y84: 1 | AA84: 908550 | AE84: 908550
B85: D0035 East Metropolitan | C85: EXIT-PK-3827 | D85: Metropolitan | E85: East | F85: Specialised Outdoor Sport | G85: 0.5 | H85: 27875.67242 | I85: 407.0646101 | J85: =Table1[[#This Row],[Embellishment Area (m2)]]*Table1[[#This Row],[Construction Unit Rate ($/m)]]*Table1[[#This Row],[Embellishment Area Factor]] -> 5673599.863 | K85: 0 | L85: 112.7890879 | M85: =Table1[[#This Row],[Size of land (m2)]]*Table1[[#This Row],[Land Unit Rate ($/m2)]] -> 0 | N85: 2021 | O85: =ROUND(IF(Table1[[#This Row],[Valuation Year]]=2016,(Table1[[#This Row],[Total Construction Cost ($)]]+Table1[[#This Row],[Land Value]])*('General Input Sheet'!$G$38/'General Input Sheet'!$G$43),Table1[[#This Row],[Total Construction Cost ($)]]+Table1[[#This Row],[Land Value]]),0) -> 5673600 | P85: =_xlfn.IFS(Table1[[#This Row],[Asset Class]]<>"Local","y",P$11=$E85,"y",Table1[[#This Row],[Asset Class]]="Local","") -> y | Q85: =_xlfn.IFS(Table1[[#This Row],[Asset Class]]<>"Local","y",Q$11=$E85,"y",Table1[[#This Row],[Asset Class]]="Local","") -> y | R85: =_xlfn.IFS(Table1[[#This Row],[Asset Class]]<>"Local","y",R$11=$E85,"y",Table1[[#This Row],[Asset Class]]="Local","") -> y | S85: =_xlfn.IFS(Table1[[#This Row],[Asset Class]]<>"Local","y",S$11=$E85,"y",Table1[[#This Row],[Asset Class]]="Local","") -> y | U85: =IF(Table1[[#This Row],[Asset Class]]<>"Local",0.25,IF(P85="y",1,"")) -> 0.25 | V85: =IF(Table1[[#This Row],[Asset Class]]<>"Local",0.25,IF(Q85="y",1,"")) -> 0.25 | W85: =IF(Table1[[#This Row],[Asset Class]]<>"Local",0.25,IF(R85="y",1,"")) -> 0.25 | X85: =IF(Table1[[#This Row],[Asset Class]]<>"Local",0.25,IF(S85="y",1,"")) -> 0.25 | Y85: 1 | AA85: 1418400 | AB85: 1418400 | AC85: 1418400 | AD85: 1418400 | AE85: 5673600
B86: D0035 East District | C86: EXIT-PK-3828 | D86: District | E86: East | F86: General Outdoor Sport | G86: 0.5 | H86: 34468.26123 | I86: 295.9181569 | J86: =Table1[[#This Row],[Embellishment Area (m2)]]*Table1[[#This Row],[Construction Unit Rate ($/m)]]*Table1[[#This Row],[Embellishment Area Factor]] -> 5099892.168 | K86: 0 | L86: 157.2622192 | M86: =Table1[[#This Row],[Size of land (m2)]]*Table1[[#This Row],[Land Unit Rate ($/m2)]] -> 0 | N86: 2021 | O86: =ROUND(IF(Table1[[#This Row],[Valuation Year]]=2016,(Table1[[#This Row],[Total Construction Cost ($)]]+Table1[[#This Row],[Land Value]])*('General Input Sheet'!$G$38/'General Input Sheet'!$G$43),Table1[[#This Row],[Total Construction Cost ($)]]+Table1[[#This Row],[Land Value]]),0) -> 5099892 | P86: =_xlfn.IFS(Table1[[#This Row],[Asset Class]]<>"Local","y",P$11=$E86,"y",Table1[[#This Row],[Asset Class]]="Local","") -> y | Q86: =_xlfn.IFS(Table1[[#This Row],[Asset Class]]<>"Local","y",Q$11=$E86,"y",Table1[[#This Row],[Asset Class]]="Local","") -> y | R86: =_xlfn.IFS(Table1[[#This Row],[Asset Class]]<>"Local","y",R$11=$E86,"y",Table1[[#This Row],[Asset Class]]="Local","") -> y | S86: =_xlfn.IFS(Table1[[#This Row],[Asset Class]]<>"Local","y",S$11=$E86,"y",Table1[[#This Row],[Asset Class]]="Local","") -> y | U86: =IF(Table1[[#This Row],[Asset Class]]<>"Local",0.25,IF(P86="y",1,"")) -> 0.25 | V86: =IF(Table1[[#This Row],[Asset Class]]<>"Local",0.25,IF(Q86="y",1,"")) -> 0.25 | W86: =IF(Table1[[#This Row],[Asset Class]]<>"Local",0.25,IF(R86="y",1,"")) -> 0.25 | X86: =IF(Table1[[#This Row],[Asset Class]]<>"Local",0.25,IF(S86="y",1,"")) -> 0.25 | Y86: 1 | AA86: 1274973 | AB86: 1274973 | AC86: 1274973 | AD86: 1274973 | AE86: 5099892
B87: D0036 East District | C87: EXIT-PK-3831 | D87: District | E87: East | F87: General Recreation | G87: 0.5 | H87: 3608.634526 | I87: 295.9181569 | J87: =Table1[[#This Row],[Embellishment Area (m2)]]*Table1[[#This Row],[Construction Unit Rate ($/m)]]*Table1[[#This Row],[Embellishment Area Factor]] -> 533930.239 | K87: 7217.269052 | L87: 157.2622192 | M87: =Table1[[#This Row],[Size of land (m2)]]*Table1[[#This Row],[Land Unit Rate ($/m2)]] -> 1135003.748 | N87: 2021 | O87: =ROUND(IF(Table1[[#This Row],[Valuation Year]]=2016,(Table1[[#This Row],[Total Construction Cost ($)]]+Table1[[#This Row],[Land Value]])*('General Input Sheet'!$G$38/'General Input Sheet'!$G$43),Table1[[#This Row],[Total Construction Cost ($)]]+Table1[[#This Row],[Land Value]]),0) -> 1668934 | P87: =_xlfn.IFS(Table1[[#This Row],[Asset Class]]<>"Local","y",P$11=$E87,"y",Table1[[#This Row],[Asset Class]]="Local","") -> y | Q87: =_xlfn.IFS(Table1[[#This Row],[Asset Class]]<>"Local","y",Q$11=$E87,"y",Table1[[#This Row],[Asset Class]]="Local","") -> y | R87: =_xlfn.IFS(Table1[[#This Row],[Asset Class]]<>"Local","y",R$11=$E87,"y",Table1[[#This Row],[Asset Class]]="Local","") -> y | S87: =_xlfn.IFS(Table1[[#This Row],[Asset Class]]<>"Local","y",S$11=$E87,"y",Table1[[#This Row],[Asset Class]]="Local","") -> y | U87: =IF(Table1[[#This Row],[Asset Class]]<>"Local",0.25,IF(P87="y",1,"")) -> 0.25 | V87: =IF(Table1[[#This Row],[Asset Class]]<>"Local",0.25,IF(Q87="y",1,"")) -> 0.25 | W87: =IF(Table1[[#This Row],[Asset Class]]<>"Local",0.25,IF(R87="y",1,"")) -> 0.25 | X87: =IF(Table1[[#This Row],[Asset Class]]<>"Local",0.25,IF(S87="y",1,"")) -> 0.25 | Y87: 1 | AA87: 417233.5 | AB87: 417233.5 | AC87: 417233.5 | AD87: 417233.5 | AE87: 1668934
B88: D0037 East District | C88: EXIT-PK-3832 | D88: District | E88: East | F88: General Outdoor Sport | G88: 0.5 | H88: 25148.01859 | I88: 295.9181569 | J88: =Table1[[#This Row],[Embellishment Area (m2)]]*Table1[[#This Row],[Construction Unit Rate ($/m)]]*Table1[[#This Row],[Embellishment Area Factor]] -> 3720877.656 | K88: 0 | L88: 157.2622192 | M88: =Table1[[#This Row],[Size of land (m2)]]*Table1[[#This Row],[Land Unit Rate ($/m2)]] -> 0 | N88: 2021 | O88: =ROUND(IF(Table1[[#This Row],[Valuation Year]]=2016,(Table1[[#This Row],[Total Construction Cost ($)]]+Table1[[#This Row],[Land Value]])*('General Input Sheet'!$G$38/'General Input Sheet'!$G$43),Table1[[#This Row],[Total Construction Cost ($)]]+Table1[[#This Row],[Land Value]]),0) -> 3720878 | P88: =_xlfn.IFS(Table1[[#This Row],[Asset Class]]<>"Local","y",P$11=$E88,"y",Table1[[#This Row],[Asset Class]]="Local","") -> y | Q88: =_xlfn.IFS(Table1[[#This Row],[Asset Class]]<>"Local","y",Q$11=$E88,"y",Table1[[#This Row],[Asset Class]]="Local","") -> y | R88: =_xlfn.IFS(Table1[[#This Row],[Asset Class]]<>"Local","y",R$11=$E88,"y",Table1[[#This Row],[Asset Class]]="Local","") -> y | S88: =_xlfn.IFS(Table1[[#This Row],[Asset Class]]<>"Local","y",S$11=$E88,"y",Table1[[#This Row],[Asset Class]]="Local","") -> y | U88: =IF(Table1[[#This Row],[Asset Class]]<>"Local",0.25,IF(P88="y",1,"")) -> 0.25 | V88: =IF(Table1[[#This Row],[Asset Class]]<>"Local",0.25,IF(Q88="y",1,"")) -> 0.25 | W88: =IF(Table1[[#This Row],[Asset Class]]<>"Local",0.25,IF(R88="y",1,"")) -> 0.25 | X88: =IF(Table1[[#This Row],[Asset Class]]<>"Local",0.25,IF(S88="y",1,"")) -> 0.25 | Y88: 1 | AA88: 930219.5 | AB88: 930219.5 | AC88: 930219.5 | AD88: 930219.5 | AE88: 3720878
B89: D0037 East District | C89: EXIT-PK-3834 | D89: District | E89: East | F89: General Recreation | G89: 0.5 | H89: 19838.97699 | I89: 295.9181569 | J89: =Table1[[#This Row],[Embellishment Area (m2)]]*Table1[[#This Row],[Construction Unit Rate ($/m)]]*Table1[[#This Row],[Embellishment Area Factor]] -> 2935356.753 | K89: 0 | L89: 157.2622192 | M89: =Table1[[#This Row],[Size of land (m2)]]*Table1[[#This Row],[Land Unit Rate ($/m2)]] -> 0 | N89: 2021 | O89: =ROUND(IF(Table1[[#This Row],[Valuation Year]]=2016,(Table1[[#This Row],[Total Construction Cost ($)]]+Table1[[#This Row],[Land Value]])*('General Input Sheet'!$G$38/'General Input Sheet'!$G$43),Table1[[#This Row],[Total Construction Cost ($)]]+Table1[[#This Row],[Land Value]]),0) -> 2935357 | P89: =_xlfn.IFS(Table1[[#This Row],[Asset Class]]<>"Local","y",P$11=$E89,"y",Table1[[#This Row],[Asset Class]]="Local","") -> y | Q89: =_xlfn.IFS(Table1[[#This Row],[Asset Class]]<>"Local","y",Q$11=$E89,"y",Table1[[#This Row],[Asset Class]]="Local","") -> y | R89: =_xlfn.IFS(Table1[[#This Row],[Asset Class]]<>"Local","y",R$11=$E89,"y",Table1[[#This Row],[Asset Class]]="Local","") -> y | S89: =_xlfn.IFS(Table1[[#This Row],[Asset Class]]<>"Local","y",S$11=$E89,"y",Table1[[#This Row],[Asset Class]]="Local","") -> y | U89: =IF(Table1[[#This Row],[Asset Class]]<>"Local",0.25,IF(P89="y",1,"")) -> 0.25 | V89: =IF(Table1[[#This Row],[Asset Class]]<>"Local",0.25,IF(Q89="y",1,"")) -> 0.25 | W89: =IF(Table1[[#This Row],[Asset Class]]<>"Local",0.25,IF(R89="y",1,"")) -> 0.25 | X89: =IF(Table1[[#This Row],[Asset Class]]<>"Local",0.25,IF(S89="y",1,"")) -> 0.25 | Y89: 1 | AA89: 733839.25 | AB89: 733839.25 | AC89: 733839.25 | AD89: 733839.25 | AE89: 2935357
B90: D0038 East Local | C90: EXIT-PK-3835 | D90: Local | E90: East | F90: General Recreation | G90: 0.5 | H90: 4805.832961 | I90: 111.6204104 | J90: =Table1[[#This Row],[Embellishment Area (m2)]]*Table1[[#This Row],[Construction Unit Rate ($/m)]]*Table1[[#This Row],[Embellishment Area Factor]] -> 268214.5236 | K90: 9611.665921 | L90: 66.12572262 | M90: =Table1[[#This Row],[Size of land (m2)]]*Table1[[#This Row],[Land Unit Rate ($/m2)]] -> 635578.3546 | N90: 2021 | O90: =ROUND(IF(Table1[[#This Row],[Valuation Year]]=2016,(Table1[[#This Row],[Total Construction Cost ($)]]+Table1[[#This Row],[Land Value]])*('General Input Sheet'!$G$38/'General Input Sheet'!$G$43),Table1[[#This Row],[Total Construction Cost ($)]]+Table1[[#This Row],[Land Value]]),0) -> 903793 | P90: =_xlfn.IFS(Table1[[#This Row],[Asset Class]]<>"Local","y",P$11=$E90,"y",Table1[[#This Row],[Asset Class]]="Local","") -> y | Q90: =_xlfn.IFS(Table1[[#This Row],[Asset Class]]<>"Local","y",Q$11=$E90,"y",Table1[[#This Row],[Asset Class]]="Local","") ->  | R90: =_xlfn.IFS(Table1[[#This Row],[Asset Class]]<>"Local","y",R$11=$E90,"y",Table1[[#This Row],[Asset Class]]="Local","") ->  | S90: =_xlfn.IFS(Table1[[#This Row],[Asset Class]]<>"Local","y",S$11=$E90,"y",Table1[[#This Row],[Asset Class]]="Local","") ->  | U90: =IF(Table1[[#This Row],[Asset Class]]<>"Local",0.25,IF(P90="y",1,"")) -> 1 | V90: =IF(Table1[[#This Row],[Asset Class]]<>"Local",0.25,IF(Q90="y",1,"")) ->  | W90: =IF(Table1[[#This Row],[Asset Class]]<>"Local",0.25,IF(R90="y",1,"")) ->  | X90: =IF(Table1[[#This Row],[Asset Class]]<>"Local",0.25,IF(S90="y",1,"")) ->  | Y90: 1 | AA90: 903793 | AE90: 903793
B91: D0039 East District | C91: EXIT-PK-3836 | D91: District | E91: East | F91: Access Recreation Corridor | G91: 0.5 | H91: 1406.57914 | I91: 295.9181569 | J91: =Table1[[#This Row],[Embellishment Area (m2)]]*Table1[[#This Row],[Construction Unit Rate ($/m)]]*Table1[[#This Row],[Embellishment Area Factor]] -> 208116.1534 | K91: 0 | L91: 157.2622192 | M91: =Table1[[#This Row],[Size of land (m2)]]*Table1[[#This Row],[Land Unit Rate ($/m2)]] -> 0 | N91: 2021 | O91: =ROUND(IF(Table1[[#This Row],[Valuation Year]]=2016,(Table1[[#This Row],[Total Construction Cost ($)]]+Table1[[#This Row],[Land Value]])*('General Input Sheet'!$G$38/'General Input Sheet'!$G$43),Table1[[#This Row],[Total Construction Cost ($)]]+Table1[[#This Row],[Land Value]]),0) -> 208116 | P91: =_xlfn.IFS(Table1[[#This Row],[Asset Class]]<>"Local","y",P$11=$E91,"y",Table1[[#This Row],[Asset Class]]="Local","") -> y | Q91: =_xlfn.IFS(Table1[[#This Row],[Asset Class]]<>"Local","y",Q$11=$E91,"y",Table1[[#This Row],[Asset Class]]="Local","") -> y | R91: =_xlfn.IFS(Table1[[#This Row],[Asset Class]]<>"Local","y",R$11=$E91,"y",Table1[[#This Row],[Asset Class]]="Local","") -> y | S91: =_xlfn.IFS(Table1[[#This Row],[Asset Class]]<>"Local","y",S$11=$E91,"y",Table1[[#This Row],[Asset Class]]="Local","") -> y | U91: =IF(Table1[[#This Row],[Asset Class]]<>"Local",0.25,IF(P91="y",1,"")) -> 0.25 | V91: =IF(Table1[[#This Row],[Asset Class]]<>"Local",0.25,IF(Q91="y",1,"")) -> 0.25 | W91: =IF(Table1[[#This Row],[Asset Class]]<>"Local",0.25,IF(R91="y",1,"")) -> 0.25 | X91: =IF(Table1[[#This Row],[Asset Class]]<>"Local",0.25,IF(S91="y",1,"")) -> 0.25 | Y91: 1 | AA91: 52029 | AB91: 52029 | AC91: 52029 | AD91: 52029 | AE91: 208116
B92: D0039 East District | C92: EXIT-PK-3837 | D92: District | E92: East | F92: Specialised Outdoor Sport | G92: 0.5 | H92: 26992.5234 | I92: 295.9181569 | J92: =Table1[[#This Row],[Embellishment Area (m2)]]*Table1[[#This Row],[Construction Unit Rate ($/m)]]*Table1[[#This Row],[Embellishment Area Factor]] -> 3993788.888 | K92: 0 | L92: 157.2622192 | M92: =Table1[[#This Row],[Size of land (m2)]]*Table1[[#This Row],[Land Unit Rate ($/m2)]] -> 0 | N92: 2021 | O92: =ROUND(IF(Table1[[#This Row],[Valuation Year]]=2016,(Table1[[#This Row],[Total Construction Cost ($)]]+Table1[[#This Row],[Land Value]])*('General Input Sheet'!$G$38/'General Input Sheet'!$G$43),Table1[[#This Row],[Total Construction Cost ($)]]+Table1[[#This Row],[Land Value]]),0) -> 3993789 | P92: =_xlfn.IFS(Table1[[#This Row],[Asset Class]]<>"Local","y",P$11=$E92,"y",Table1[[#This Row],[Asset Class]]="Local","") -> y | Q92: =_xlfn.IFS(Table1[[#This Row],[Asset Class]]<>"Local","y",Q$11=$E92,"y",Table1[[#This Row],[Asset Class]]="Local","") -> y | R92: =_xlfn.IFS(Table1[[#This Row],[Asset Class]]<>"Local","y",R$11=$E92,"y",Table1[[#This Row],[Asset Class]]="Local","") -> y | S92: =_xlfn.IFS(Table1[[#This Row],[Asset Class]]<>"Local","y",S$11=$E92,"y",Table1[[#This Row],[Asset Class]]="Local","") -> y | U92: =IF(Table1[[#This Row],[Asset Class]]<>"Local",0.25,IF(P92="y",1,"")) -> 0.25 | V92: =IF(Table1[[#This Row],[Asset Class]]<>"Local",0.25,IF(Q92="y",1,"")) -> 0.25 | W92: =IF(Table1[[#This Row],[Asset Class]]<>"Local",0.25,IF(R92="y",1,"")) -> 0.25 | X92: =IF(Table1[[#This Row],[Asset Class]]<>"Local",0.25,IF(S92="y",1,"")) -> 0.25 | Y92: 1 | AA92: 998447.25 | AB92: 998447.25 | AC92: 998447.25 | AD92: 998447.25 | AE92: 3993789
B93: D0039 East Local | C93: EXIT-PK-3838 | D93: Local | E93: East | F93: General Recreation | G93: 0.5 | H93: 4795.948446 | I93: 111.6204104 | J93: =Table1[[#This Row],[Embellishment Area (m2)]]*Table1[[#This Row],[Construction Unit Rate ($/m)]]*Table1[[#This Row],[Embellishment Area Factor]] -> 267662.8668 | K93: 0 | L93: 66.12572262 | M93: =Table1[[#This Row],[Size of land (m2)]]*Table1[[#This Row],[Land Unit Rate ($/m2)]] -> 0 | N93: 2021 | O93: =ROUND(IF(Table1[[#This Row],[Valuation Year]]=2016,(Table1[[#This Row],[Total Construction Cost ($)]]+Table1[[#This Row],[Land Value]])*('General Input Sheet'!$G$38/'General Input Sheet'!$G$43),Table1[[#This Row],[Total Construction Cost ($)]]+Table1[[#This Row],[Land Value]]),0) -> 267663 | P93: =_xlfn.IFS(Table1[[#This Row],[Asset Class]]<>"Local","y",P$11=$E93,"y",Table1[[#This Row],[Asset Class]]="Local","") -> y | Q93: =_xlfn.IFS(Table1[[#This Row],[Asset Class]]<>"Local","y",Q$11=$E93,"y",Table1[[#This Row],[Asset Class]]="Local","") ->  | R93: =_xlfn.IFS(Table1[[#This Row],[Asset Class]]<>"Local","y",R$11=$E93,"y",Table1[[#This Row],[Asset Class]]="Local","") ->  | S93: =_xlfn.IFS(Table1[[#This Row],[Asset Class]]<>"Local","y",S$11=$E93,"y",Table1[[#This Row],[Asset Class]]="Local","") ->  | U93: =IF(Table1[[#This Row],[Asset Class]]<>"Local",0.25,IF(P93="y",1,"")) -> 1 | V93: =IF(Table1[[#This Row],[Asset Class]]<>"Local",0.25,IF(Q93="y",1,"")) ->  | W93: =IF(Table1[[#This Row],[Asset Class]]<>"Local",0.25,IF(R93="y",1,"")) ->  | X93: =IF(Table1[[#This Row],[Asset Class]]<>"Local",0.25,IF(S93="y",1,"")) ->  | Y93: 1 | AA93: 267663 | AE93: 267663
B94: D0040 East District | C94: EXIT-PK-3839 | D94: District | E94: East | F94: General Recreation | G94: 0.5 | H94: 66316.58657 | I94: 295.9181569 | J94: =Table1[[#This Row],[Embellishment Area (m2)]]*Table1[[#This Row],[Construction Unit Rate ($/m)]]*Table1[[#This Row],[Embellishment Area Factor]] -> 9812141.037 | K94: 132633.1731 | L94: 157.2622192 | M94: =Table1[[#This Row],[Size of land (m2)]]*Table1[[#This Row],[Land Unit Rate ($/m2)]] -> 20858187.15 | N94: 2021 | O94: =ROUND(IF(Table1[[#This Row],[Valuation Year]]=2016,(Table1[[#This Row],[Total Construction Cost ($)]]+Table1[[#This Row],[Land Value]])*('General Input Sheet'!$G$38/'General Input Sheet'!$G$43),Table1[[#This Row],[Total Construction Cost ($)]]+Table1[[#This Row],[Land Value]]),0) -> 30670328 | P94: =_xlfn.IFS(Table1[[#This Row],[Asset Class]]<>"Local","y",P$11=$E94,"y",Table1[[#This Row],[Asset Class]]="Local","") -> y | Q94: =_xlfn.IFS(Table1[[#This Row],[Asset Class]]<>"Local","y",Q$11=$E94,"y",Table1[[#This Row],[Asset Class]]="Local","") -> y | R94: =_xlfn.IFS(Table1[[#This Row],[Asset Class]]<>"Local","y",R$11=$E94,"y",Table1[[#This Row],[Asset Class]]="Local","") -> y | S94: =_xlfn.IFS(Table1[[#This Row],[Asset Class]]<>"Local","y",S$11=$E94,"y",Table1[[#This Row],[Asset Class]]="Local","") -> y | U94: =IF(Table1[[#This Row],[Asset Class]]<>"Local",0.25,IF(P94="y",1,"")) -> 0.25 | V94: =IF(Table1[[#This Row],[Asset Class]]<>"Local",0.25,IF(Q94="y",1,"")) -> 0.25 | W94: =IF(Table1[[#This Row],[Asset Class]]<>"Local",0.25,IF(R94="y",1,"")) -> 0.25 | X94: =IF(Table1[[#This Row],[Asset Class]]<>"Local",0.25,IF(S94="y",1,"")) -> 0.25 | Y94: 1 | AA94: 7667582 | AB94: 7667582 | AC94: 7667582 | AD94: 7667582 | AE94: 30670328
B95: D0040 East Metropolitan | C95: EXIT-PK-3840 | D95: Metropolitan | E95: East | F95: Specialised Outdoor Sport | G95: 0.5 | H95: 103761.2572 | I95: 407.0646101 | J95: =Table1[[#This Row],[Embellishment Area (m2)]]*Table1[[#This Row],[Construction Unit Rate ($/m)]]*Table1[[#This Row],[Embellishment Area Factor]] -> 21118767.86 | K95: 207522.5145 | L95: 112.7890879 | M95: =Table1[[#This Row],[Size of land (m2)]]*Table1[[#This Row],[Land Unit Rate ($/m2)]] -> 23406275.13 | N95: 2021 | O95: =ROUND(IF(Table1[[#This Row],[Valuation Year]]=2016,(Table1[[#This Row],[Total Construction Cost ($)]]+Table1[[#This Row],[Land Value]])*('General Input Sheet'!$G$38/'General Input Sheet'!$G$43),Table1[[#This Row],[Total Construction Cost ($)]]+Table1[[#This Row],[Land Value]]),0) -> 44525043 | P95: =_xlfn.IFS(Table1[[#This Row],[Asset Class]]<>"Local","y",P$11=$E95,"y",Table1[[#This Row],[Asset Class]]="Local","") -> y | Q95: =_xlfn.IFS(Table1[[#This Row],[Asset Class]]<>"Local","y",Q$11=$E95,"y",Table1[[#This Row],[Asset Class]]="Local","") -> y | R95: =_xlfn.IFS(Table1[[#This Row],[Asset Class]]<>"Local","y",R$11=$E95,"y",Table1[[#This Row],[Asset Class]]="Local","") -> y | S95: =_xlfn.IFS(Table1[[#This Row],[Asset Class]]<>"Local","y",S$11=$E95,"y",Table1[[#This Row],[Asset Class]]="Local","") -> y | U95: =IF(Table1[[#This Row],[Asset Class]]<>"Local",0.25,IF(P95="y",1,"")) -> 0.25 | V95: =IF(Table1[[#This Row],[Asset Class]]<>"Local",0.25,IF(Q95="y",1,"")) -> 0.25 | W95: =IF(Table1[[#This Row],[Asset Class]]<>"Local",0.25,IF(R95="y",1,"")) -> 0.25 | X95: =IF(Table1[[#This Row],[Asset Class]]<>"Local",0.25,IF(S95="y",1,"")) -> 0.25 | Y95: 1 | AA95: 11131260.75 | AB95: 11131260.75 | AC95: 11131260.75 | AD95: 11131260.75 | AE95: 44525043
B96: D0042 East Local | C96: EXIT-PK-3842 | D96: Local | E96: East | F96: General Recreation | G96: 0.5 | H96: 6182.830469 | I96: 111.6204104 | J96: =Table1[[#This Row],[Embellishment Area (m2)]]*Table1[[#This Row],[Construction Unit Rate ($/m)]]*Table1[[#This Row],[Embellishment Area Factor]] -> 345065.037 | K96: 12365.66094 | L96: 66.12572262 | M96: =Table1[[#This Row],[Size of land (m2)]]*Table1[[#This Row],[Land Unit Rate ($/m2)]] -> 817688.2651 | N96: 2021 | O96: =ROUND(IF(Table1[[#This Row],[Valuation Year]]=2016,(Table1[[#This Row],[Total Construction Cost ($)]]+Table1[[#This Row],[Land Value]])*('General Input Sheet'!$G$38/'General Input Sheet'!$G$43),Table1[[#This Row],[Total Construction Cost ($)]]+Table1[[#This Row],[Land Value]]),0) -> 1162753 | P96: =_xlfn.IFS(Table1[[#This Row],[Asset Class]]<>"Local","y",P$11=$E96,"y",Table1[[#This Row],[Asset Class]]="Local","") -> y | Q96: =_xlfn.IFS(Table1[[#This Row],[Asset Class]]<>"Local","y",Q$11=$E96,"y",Table1[[#This Row],[Asset Class]]="Local","") ->  | R96: =_xlfn.IFS(Table1[[#This Row],[Asset Class]]<>"Local","y",R$11=$E96,"y",Table1[[#This Row],[Asset Class]]="Local","") ->  | S96: =_xlfn.IFS(Table1[[#This Row],[Asset Class]]<>"Local","y",S$11=$E96,"y",Table1[[#This Row],[Asset Class]]="Local","") ->  | U96: =IF(Table1[[#This Row],[Asset Class]]<>"Local",0.25,IF(P96="y",1,"")) -> 1 | V96: =IF(Table1[[#This Row],[Asset Class]]<>"Local",0.25,IF(Q96="y",1,"")) ->  | W96: =IF(Table1[[#This Row],[Asset Class]]<>"Local",0.25,IF(R96="y",1,"")) ->  | X96: =IF(Table1[[#This Row],[Asset Class]]<>"Local",0.25,IF(S96="y",1,"")) ->  | Y96: 1 | AA96: 1162753 | AE96: 1162753
B97: D0044 East Local | C97: EXIT-PK-3843 | D97: Local | E97: East | F97: General Recreation | G97: 0.5 | H97: 1354.395775 | I97: 111.6204104 | J97: =Table1[[#This Row],[Embellishment Area (m2)]]*Table1[[#This Row],[Construction Unit Rate ($/m)]]*Table1[[#This Row],[Embellishment Area Factor]] -> 75589.1061 | K97: 2708.79155 | L97: 66.12572262 | M97: =Table1[[#This Row],[Size of land (m2)]]*Table1[[#This Row],[Land Unit Rate ($/m2)]] -> 179120.7987 | N97: 2021 | O97: =ROUND(IF(Table1[[#This Row],[Valuation Year]]=2016,(Table1[[#This Row],[Total Construction Cost ($)]]+Table1[[#This Row],[Land Value]])*('General Input Sheet'!$G$38/'General Input Sheet'!$G$43),Table1[[#This Row],[Total Construction Cost ($)]]+Table1[[#This Row],[Land Value]]),0) -> 254710 | P97: =_xlfn.IFS(Table1[[#This Row],[Asset Class]]<>"Local","y",P$11=$E97,"y",Table1[[#This Row],[Asset Class]]="Local","") -> y | Q97: =_xlfn.IFS(Table1[[#This Row],[Asset Class]]<>"Local","y",Q$11=$E97,"y",Table1[[#This Row],[Asset Class]]="Local","") ->  | R97: =_xlfn.IFS(Table1[[#This Row],[Asset Class]]<>"Local","y",R$11=$E97,"y",Table1[[#This Row],[Asset Class]]="Local","") ->  | S97: =_xlfn.IFS(Table1[[#This Row],[Asset Class]]<>"Local","y",S$11=$E97,"y",Table1[[#This Row],[Asset Class]]="Local","") ->  | U97: =IF(Table1[[#This Row],[Asset Class]]<>"Local",0.25,IF(P97="y",1,"")) -> 1 | V97: =IF(Table1[[#This Row],[Asset Class]]<>"Local",0.25,IF(Q97="y",1,"")) ->  | W97: =IF(Table1[[#This Row],[Asset Class]]<>"Local",0.25,IF(R97="y",1,"")) ->  | X97: =IF(Table1[[#This Row],[Asset Class]]<>"Local",0.25,IF(S97="y",1,"")) ->  | Y97: 1 | AA97: 254710 | AE97: 254710
B98: D0045 East Local | C98: EXIT-PK-3844 | D98: Local | E98: East | F98: General Recreation | G98: 0.5 | H98: 605.6285467 | I98: 111.6204104 | J98: =Table1[[#This Row],[Embellishment Area (m2)]]*Table1[[#This Row],[Construction Unit Rate ($/m)]]*Table1[[#This Row],[Embellishment Area Factor]] -> 33800.25345 | K98: 1211.257093 | L98: 66.12572262 | M98: =Table1[[#This Row],[Size of land (m2)]]*Table1[[#This Row],[Land Unit Rate ($/m2)]] -> 80095.25058 | N98: 2021 | O98: =ROUND(IF(Table1[[#This Row],[Valuation Year]]=2016,(Table1[[#This Row],[Total Construction Cost ($)]]+Table1[[#This Row],[Land Value]])*('General Input Sheet'!$G$38/'General Input Sheet'!$G$43),Table1[[#This Row],[Total Construction Cost ($)]]+Table1[[#This Row],[Land Value]]),0) -> 113896 | P98: =_xlfn.IFS(Table1[[#This Row],[Asset Class]]<>"Local","y",P$11=$E98,"y",Table1[[#This Row],[Asset Class]]="Local","") -> y | Q98: =_xlfn.IFS(Table1[[#This Row],[Asset Class]]<>"Local","y",Q$11=$E98,"y",Table1[[#This Row],[Asset Class]]="Local","") ->  | R98: =_xlfn.IFS(Table1[[#This Row],[Asset Class]]<>"Local","y",R$11=$E98,"y",Table1[[#This Row],[Asset Class]]="Local","") ->  | S98: =_xlfn.IFS(Table1[[#This Row],[Asset Class]]<>"Local","y",S$11=$E98,"y",Table1[[#This Row],[Asset Class]]="Local","") ->  | U98: =IF(Table1[[#This Row],[Asset Class]]<>"Local",0.25,IF(P98="y",1,"")) -> 1 | V98: =IF(Table1[[#This Row],[Asset Class]]<>"Local",0.25,IF(Q98="y",1,"")) ->  | W98: =IF(Table1[[#This Row],[Asset Class]]<>"Local",0.25,IF(R98="y",1,"")) ->  | X98: =IF(Table1[[#This Row],[Asset Class]]<>"Local",0.25,IF(S98="y",1,"")) ->  | Y98: 1 | AA98: 113896 | AE98: 113896
B99: D0045 East District | C99: EXIT-PK-3845 | D99: District | E99: East | F99: Specialised Outdoor Sport | G99: 0.5 | H99: 5497.824805 | I99: 295.9181569 | J99: =Table1[[#This Row],[Embellishment Area (m2)]]*Table1[[#This Row],[Construction Unit Rate ($/m)]]*Table1[[#This Row],[Embellishment Area Factor]] -> 813453.0918 | K99: 10995.64961 | L99: 157.2622192 | M99: =Table1[[#This Row],[Size of land (m2)]]*Table1[[#This Row],[Land Unit Rate ($/m2)]] -> 1729200.259 | N99: 2021 | O99: =ROUND(IF(Table1[[#This Row],[Valuation Year]]=2016,(Table1[[#This Row],[Total Construction Cost ($)]]+Table1[[#This Row],[Land Value]])*('General Input Sheet'!$G$38/'General Input Sheet'!$G$43),Table1[[#This Row],[Total Construction Cost ($)]]+Table1[[#This Row],[Land Value]]),0) -> 2542653 | P99: =_xlfn.IFS(Table1[[#This Row],[Asset Class]]<>"Local","y",P$11=$E99,"y",Table1[[#This Row],[Asset Class]]="Local","") -> y | Q99: =_xlfn.IFS(Table1[[#This Row],[Asset Class]]<>"Local","y",Q$11=$E99,"y",Table1[[#This Row],[Asset Class]]="Local","") -> y | R99: =_xlfn.IFS(Table1[[#This Row],[Asset Class]]<>"Local","y",R$11=$E99,"y",Table1[[#This Row],[Asset Class]]="Local","") -> y | S99: =_xlfn.IFS(Table1[[#This Row],[Asset Class]]<>"Local","y",S$11=$E99,"y",Table1[[#This Row],[Asset Class]]="Local","") -> y | U99: =IF(Table1[[#This Row],[Asset Class]]<>"Local",0.25,IF(P99="y",1,"")) -> 0.25 | V99: =IF(Table1[[#This Row],[Asset Class]]<>"Local",0.25,IF(Q99="y",1,"")) -> 0.25 | W99: =IF(Table1[[#This Row],[Asset Class]]<>"Local",0.25,IF(R99="y",1,"")) -> 0.25 | X99: =IF(Table1[[#This Row],[Asset Class]]<>"Local",0.25,IF(S99="y",1,"")) -> 0.25 | Y99: 1 | AA99: 635663.25 | AB99: 635663.25 | AC99: 635663.25 | AD99: 635663.25 | AE99: 2542653
B100: D0045 East Local | C100: EXIT-PK-3846 | D100: Local | E100: East | F100: General Recreation | G100: 0.5 | H100: 25631.11168 | I100: 111.6204104 | J100: =Table1[[#This Row],[Embellishment Area (m2)]]*Table1[[#This Row],[Construction Unit Rate ($/m)]]*Table1[[#This Row],[Embellishment Area Factor]] -> 1430477.602 | K100: 51262.22337 | L100: 66.12572262 | M100: =Table1[[#This Row],[Size of land (m2)]]*Table1[[#This Row],[Land Unit Rate ($/m2)]] -> 3389751.563 | N100: 2021 | O100: =ROUND(IF(Table1[[#This Row],[Valuation Year]]=2016,(Table1[[#This Row],[Total Construction Cost ($)]]+Table1[[#This Row],[Land Value]])*('General Input Sheet'!$G$38/'General Input Sheet'!$G$43),Table1[[#This Row],[Total Construction Cost ($)]]+Table1[[#This Row],[Land Value]]),0) -> 4820229 | P100: =_xlfn.IFS(Table1[[#This Row],[Asset Class]]<>"Local","y",P$11=$E100,"y",Table1[[#This Row],[Asset Class]]="Local","") -> y | Q100: =_xlfn.IFS(Table1[[#This Row],[Asset Class]]<>"Local","y",Q$11=$E100,"y",Table1[[#This Row],[Asset Class]]="Local","") ->  | R100: =_xlfn.IFS(Table1[[#This Row],[Asset Class]]<>"Local","y",R$11=$E100,"y",Table1[[#This Row],[Asset Class]]="Local","") ->  | S100: =_xlfn.IFS(Table1[[#This Row],[Asset Class]]<>"Local","y",S$11=$E100,"y",Table1[[#This Row],[Asset Class]]="Local","") ->  | U100: =IF(Table1[[#This Row],[Asset Class]]<>"Local",0.25,IF(P100="y",1,"")) -> 1 | V100: =IF(Table1[[#This Row],[Asset Class]]<>"Local",0.25,IF(Q100="y",1,"")) ->  | W100: =IF(Table1[[#This Row],[Asset Class]]<>"Local",0.25,IF(R100="y",1,"")) ->  | X100: =IF(Table1[[#This Row],[Asset Class]]<>"Local",0.25,IF(S100="y",1,"")) ->  | Y100: 1 | AA100: 4820229 | AE100: 4820229
B101: D0046 East Local | C101: EXIT-PK-3847 | D101: Local | E101: East | F101: General Recreation | G101: 0.5 | H101: 9119.206962 | I101: 111.6204104 | J101: =Table1[[#This Row],[Embellishment Area (m2)]]*Table1[[#This Row],[Construction Unit Rate ($/m)]]*Table1[[#This Row],[Embellishment Area Factor]] -> 508944.8116 | K101: 18238.41392 | L101: 66.12572262 | M101: =Table1[[#This Row],[Size of land (m2)]]*Table1[[#This Row],[Land Unit Rate ($/m2)]] -> 1206028.3 | N101: 2021 | O101: =ROUND(IF(Table1[[#This Row],[Valuation Year]]=2016,(Table1[[#This Row],[Total Construction Cost ($)]]+Table1[[#This Row],[Land Value]])*('General Input Sheet'!$G$38/'General Input Sheet'!$G$43),Table1[[#This Row],[Total Construction Cost ($)]]+Table1[[#This Row],[Land Value]]),0) -> 1714973 | P101: =_xlfn.IFS(Table1[[#This Row],[Asset Class]]<>"Local","y",P$11=$E101,"y",Table1[[#This Row],[Asset Class]]="Local","") -> y | Q101: =_xlfn.IFS(Table1[[#This Row],[Asset Class]]<>"Local","y",Q$11=$E101,"y",Table1[[#This Row],[Asset Class]]="Local","") ->  | R101: =_xlfn.IFS(Table1[[#This Row],[Asset Class]]<>"Local","y",R$11=$E101,"y",Table1[[#This Row],[Asset Class]]="Local","") ->  | S101: =_xlfn.IFS(Table1[[#This Row],[Asset Class]]<>"Local","y",S$11=$E101,"y",Table1[[#This Row],[Asset Class]]="Local","") ->  | U101: =IF(Table1[[#This Row],[Asset Class]]<>"Local",0.25,IF(P101="y",1,"")) -> 1 | V101: =IF(Table1[[#This Row],[Asset Class]]<>"Local",0.25,IF(Q101="y",1,"")) ->  | W101: =IF(Table1[[#This Row],[Asset Class]]<>"Local",0.25,IF(R101="y",1,"")) ->  | X101: =IF(Table1[[#This Row],[Asset Class]]<>"Local",0.25,IF(S101="y",1,"")) ->  | Y101: 1 | AA101: 1714973 | AE101: 1714973
B102: D0049 East Local | C102: EXIT-PK-3849 | D102: Local | E102: East | F102: Access Recreation Corridor | G102: 0.5 | H102: 3547.501935 | I102: 111.6204104 | J102: =Table1[[#This Row],[Embellishment Area (m2)]]*Table1[[#This Row],[Construction Unit Rate ($/m)]]*Table1[[#This Row],[Embellishment Area Factor]] -> 197986.8109 | K102: 7095.00387 | L102: 66.12572262 | M102: =Table1[[#This Row],[Size of land (m2)]]*Table1[[#This Row],[Land Unit Rate ($/m2)]] -> 469162.2579 | N102: 2021 | O102: =ROUND(IF(Table1[[#This Row],[Valuation Year]]=2016,(Table1[[#This Row],[Total Construction Cost ($)]]+Table1[[#This Row],[Land Value]])*('General Input Sheet'!$G$38/'General Input Sheet'!$G$43),Table1[[#This Row],[Total Construction Cost ($)]]+Table1[[#This Row],[Land Value]]),0) -> 667149 | P102: =_xlfn.IFS(Table1[[#This Row],[Asset Class]]<>"Local","y",P$11=$E102,"y",Table1[[#This Row],[Asset Class]]="Local","") -> y | Q102: =_xlfn.IFS(Table1[[#This Row],[Asset Class]]<>"Local","y",Q$11=$E102,"y",Table1[[#This Row],[Asset Class]]="Local","") ->  | R102: =_xlfn.IFS(Table1[[#This Row],[Asset Class]]<>"Local","y",R$11=$E102,"y",Table1[[#This Row],[Asset Class]]="Local","") ->  | S102: =_xlfn.IFS(Table1[[#This Row],[Asset Class]]<>"Local","y",S$11=$E102,"y",Table1[[#This Row],[Asset Class]]="Local","") ->  | U102: =IF(Table1[[#This Row],[Asset Class]]<>"Local",0.25,IF(P102="y",1,"")) -> 1 | V102: =IF(Table1[[#This Row],[Asset Class]]<>"Local",0.25,IF(Q102="y",1,"")) ->  | W102: =IF(Table1[[#This Row],[Asset Class]]<>"Local",0.25,IF(R102="y",1,"")) ->  | X102: =IF(Table1[[#This Row],[Asset Class]]<>"Local",0.25,IF(S102="y",1,"")) ->  | Y102: 1 | AA102: 667149 | AE102: 667149
B103: D0050 East District | C103: EXIT-PK-3850 | D103: District | E103: East | F103: General Recreation | G103: 0.5 | H103: 20287.89558 | I103: 295.9181569 | J103: =Table1[[#This Row],[Embellishment Area (m2)]]*Table1[[#This Row],[Construction Unit Rate ($/m)]]*Table1[[#This Row],[Embellishment Area Factor]] -> 3001778.335 | K103: 40575.79117 | L103: 157.2622192 | M103: =Table1[[#This Row],[Size of land (m2)]]*Table1[[#This Row],[Land Unit Rate ($/m2)]] -> 6381038.964 | N103: 2021 | O103: =ROUND(IF(Table1[[#This Row],[Valuation Year]]=2016,(Table1[[#This Row],[Total Construction Cost ($)]]+Table1[[#This Row],[Land Value]])*('General Input Sheet'!$G$38/'General Input Sheet'!$G$43),Table1[[#This Row],[Total Construction Cost ($)]]+Table1[[#This Row],[Land Value]]),0) -> 9382817 | P103: =_xlfn.IFS(Table1[[#This Row],[Asset Class]]<>"Local","y",P$11=$E103,"y",Table1[[#This Row],[Asset Class]]="Local","") -> y | Q103: =_xlfn.IFS(Table1[[#This Row],[Asset Class]]<>"Local","y",Q$11=$E103,"y",Table1[[#This Row],[Asset Class]]="Local","") -> y | R103: =_xlfn.IFS(Table1[[#This Row],[Asset Class]]<>"Local","y",R$11=$E103,"y",Table1[[#This Row],[Asset Class]]="Local","") -> y | S103: =_xlfn.IFS(Table1[[#This Row],[Asset Class]]<>"Local","y",S$11=$E103,"y",Table1[[#This Row],[Asset Class]]="Local","") -> y | U103: =IF(Table1[[#This Row],[Asset Class]]<>"Local",0.25,IF(P103="y",1,"")) -> 0.25 | V103: =IF(Table1[[#This Row],[Asset Class]]<>"Local",0.25,IF(Q103="y",1,"")) -> 0.25 | W103: =IF(Table1[[#This Row],[Asset Class]]<>"Local",0.25,IF(R103="y",1,"")) -> 0.25 | X103: =IF(Table1[[#This Row],[Asset Class]]<>"Local",0.25,IF(S103="y",1,"")) -> 0.25 | Y103: 1 | AA103: 2345704.25 | AB103: 2345704.25 | AC103: 2345704.25 | AD103: 2345704.25 | AE103: 9382817
B104: D0050 East District | C104: EXIT-PK-3851 | D104: District | E104: East | F104: General Outdoor Sport | G104: 0.5 | H104: 11038.65411 | I104: 295.9181569 | J104: =Table1[[#This Row],[Embellishment Area (m2)]]*Table1[[#This Row],[Construction Unit Rate ($/m)]]*Table1[[#This Row],[Embellishment Area Factor]] -> 1633269.09 | K104: 22077.30822 | L104: 157.2622192 | M104: =Table1[[#This Row],[Size of land (m2)]]*Table1[[#This Row],[Land Unit Rate ($/m2)]] -> 3471926.485 | N104: 2021 | O104: =ROUND(IF(Table1[[#This Row],[Valuation Year]]=2016,(Table1[[#This Row],[Total Construction Cost ($)]]+Table1[[#This Row],[Land Value]])*('General Input Sheet'!$G$38/'General Input Sheet'!$G$43),Table1[[#This Row],[Total Construction Cost ($)]]+Table1[[#This Row],[Land Value]]),0) -> 5105196 | P104: =_xlfn.IFS(Table1[[#This Row],[Asset Class]]<>"Local","y",P$11=$E104,"y",Table1[[#This Row],[Asset Class]]="Local","") -> y | Q104: =_xlfn.IFS(Table1[[#This Row],[Asset Class]]<>"Local","y",Q$11=$E104,"y",Table1[[#This Row],[Asset Class]]="Local","") -> y | R104: =_xlfn.IFS(Table1[[#This Row],[Asset Class]]<>"Local","y",R$11=$E104,"y",Table1[[#This Row],[Asset Class]]="Local","") -> y | S104: =_xlfn.IFS(Table1[[#This Row],[Asset Class]]<>"Local","y",S$11=$E104,"y",Table1[[#This Row],[Asset Class]]="Local","") -> y | U104: =IF(Table1[[#This Row],[Asset Class]]<>"Local",0.25,IF(P104="y",1,"")) -> 0.25 | V104: =IF(Table1[[#This Row],[Asset Class]]<>"Local",0.25,IF(Q104="y",1,"")) -> 0.25 | W104: =IF(Table1[[#This Row],[Asset Class]]<>"Local",0.25,IF(R104="y",1,"")) -> 0.25 | X104: =IF(Table1[[#This Row],[Asset Class]]<>"Local",0.25,IF(S104="y",1,"")) -> 0.25 | Y104: 1 | AA104: 1276299 | AB104: 1276299 | AC104: 1276299 | AD104: 1276299 | AE104: 5105196
B105: D0051 East District | C105: EXIT-PK-3854 | D105: District | E105: East | F105: Specialised Outdoor Sport | G105: 0.5 | H105: 21454.03261 | I105: 295.9181569 | J105: =Table1[[#This Row],[Embellishment Area (m2)]]*Table1[[#This Row],[Construction Unit Rate ($/m)]]*Table1[[#This Row],[Embellishment Area Factor]] -> 3174318.895 | K105: 42908.06523 | L105: 157.2622192 | M105: =Table1[[#This Row],[Size of land (m2)]]*Table1[[#This Row],[Land Unit Rate ($/m2)]] -> 6747817.558 | N105: 2021 | O105: =ROUND(IF(Table1[[#This Row],[Valuation Year]]=2016,(Table1[[#This Row],[Total Construction Cost ($)]]+Table1[[#This Row],[Land Value]])*('General Input Sheet'!$G$38/'General Input Sheet'!$G$43),Table1[[#This Row],[Total Construction Cost ($)]]+Table1[[#This Row],[Land Value]]),0) -> 9922136 | P105: =_xlfn.IFS(Table1[[#This Row],[Asset Class]]<>"Local","y",P$11=$E105,"y",Table1[[#This Row],[Asset Class]]="Local","") -> y | Q105: =_xlfn.IFS(Table1[[#This Row],[Asset Class]]<>"Local","y",Q$11=$E105,"y",Table1[[#This Row],[Asset Class]]="Local","") -> y | R105: =_xlfn.IFS(Table1[[#This Row],[Asset Class]]<>"Local","y",R$11=$E105,"y",Table1[[#This Row],[Asset Class]]="Local","") -> y | S105: =_xlfn.IFS(Table1[[#This Row],[Asset Class]]<>"Local","y",S$11=$E105,"y",Table1[[#This Row],[Asset Class]]="Local","") -> y | U105: =IF(Table1[[#This Row],[Asset Class]]<>"Local",0.25,IF(P105="y",1,"")) -> 0.25 | V105: =IF(Table1[[#This Row],[Asset Class]]<>"Local",0.25,IF(Q105="y",1,"")) -> 0.25 | W105: =IF(Table1[[#This Row],[Asset Class]]<>"Local",0.25,IF(R105="y",1,"")) -> 0.25 | X105: =IF(Table1[[#This Row],[Asset Class]]<>"Local",0.25,IF(S105="y",1,"")) -> 0.25 | Y105: 1 | AA105: 2480534 | AB105: 2480534 | AC105: 2480534 | AD105: 2480534 | AE105: 9922136
B106: D0051 East District | C106: EXIT-PK-3855 | D106: District | E106: East | F106: General Outdoor Sport | G106: 0.5 | H106: 23272.8266 | I106: 295.9181569 | J106: =Table1[[#This Row],[Embellishment Area (m2)]]*Table1[[#This Row],[Construction Unit Rate ($/m)]]*Table1[[#This Row],[Embellishment Area Factor]] -> 3443425.977 | K106: 46545.6532 | L106: 157.2622192 | M106: =Table1[[#This Row],[Size of land (m2)]]*Table1[[#This Row],[Land Unit Rate ($/m2)]] -> 7319872.715 | N106: 2021 | O106: =ROUND(IF(Table1[[#This Row],[Valuation Year]]=2016,(Table1[[#This Row],[Total Construction Cost ($)]]+Table1[[#This Row],[Land Value]])*('General Input Sheet'!$G$38/'General Input Sheet'!$G$43),Table1[[#This Row],[Total Construction Cost ($)]]+Table1[[#This Row],[Land Value]]),0) -> 10763299 | P106: =_xlfn.IFS(Table1[[#This Row],[Asset Class]]<>"Local","y",P$11=$E106,"y",Table1[[#This Row],[Asset Class]]="Local","") -> y | Q106: =_xlfn.IFS(Table1[[#This Row],[Asset Class]]<>"Local","y",Q$11=$E106,"y",Table1[[#This Row],[Asset Class]]="Local","") -> y | R106: =_xlfn.IFS(Table1[[#This Row],[Asset Class]]<>"Local","y",R$11=$E106,"y",Table1[[#This Row],[Asset Class]]="Local","") -> y | S106: =_xlfn.IFS(Table1[[#This Row],[Asset Class]]<>"Local","y",S$11=$E106,"y",Table1[[#This Row],[Asset Class]]="Local","") -> y | U106: =IF(Table1[[#This Row],[Asset Class]]<>"Local",0.25,IF(P106="y",1,"")) -> 0.25 | V106: =IF(Table1[[#This Row],[Asset Class]]<>"Local",0.25,IF(Q106="y",1,"")) -> 0.25 | W106: =IF(Table1[[#This Row],[Asset Class]]<>"Local",0.25,IF(R106="y",1,"")) -> 0.25 | X106: =IF(Table1[[#This Row],[Asset Class]]<>"Local",0.25,IF(S106="y",1,"")) -> 0.25 | Y106: 1 | AA106: 2690824.75 | AB106: 2690824.75 | AC106: 2690824.75 | AD106: 2690824.75 | AE106: 10763299
B107: D0051 East District | C107: EXIT-PK-3856 | D107: District | E107: East | F107: General Outdoor Sport | G107: 0.5 | H107: 75483.76727 | I107: 295.9181569 | J107: =Table1[[#This Row],[Embellishment Area (m2)]]*Table1[[#This Row],[Construction Unit Rate ($/m)]]*Table1[[#This Row],[Embellishment Area Factor]] -> 11168508.65 | K107: 150967.5345 | L107: 157.2622192 | M107: =Table1[[#This Row],[Size of land (m2)]]*Table1[[#This Row],[Land Unit Rate ($/m2)]] -> 23741489.51 | N107: 2021 | O107: =ROUND(IF(Table1[[#This Row],[Valuation Year]]=2016,(Table1[[#This Row],[Total Construction Cost ($)]]+Table1[[#This Row],[Land Value]])*('General Input Sheet'!$G$38/'General Input Sheet'!$G$43),Table1[[#This Row],[Total Construction Cost ($)]]+Table1[[#This Row],[Land Value]]),0) -> 34909998 | P107: =_xlfn.IFS(Table1[[#This Row],[Asset Class]]<>"Local","y",P$11=$E107,"y",Table1[[#This Row],[Asset Class]]="Local","") -> y | Q107: =_xlfn.IFS(Table1[[#This Row],[Asset Class]]<>"Local","y",Q$11=$E107,"y",Table1[[#This Row],[Asset Class]]="Local","") -> y | R107: =_xlfn.IFS(Table1[[#This Row],[Asset Class]]<>"Local","y",R$11=$E107,"y",Table1[[#This Row],[Asset Class]]="Local","") -> y | S107: =_xlfn.IFS(Table1[[#This Row],[Asset Class]]<>"Local","y",S$11=$E107,"y",Table1[[#This Row],[Asset Class]]="Local","") -> y | U107: =IF(Table1[[#This Row],[Asset Class]]<>"Local",0.25,IF(P107="y",1,"")) -> 0.25 | V107: =IF(Table1[[#This Row],[Asset Class]]<>"Local",0.25,IF(Q107="y",1,"")) -> 0.25 | W107: =IF(Table1[[#This Row],[Asset Class]]<>"Local",0.25,IF(R107="y",1,"")) -> 0.25 | X107: =IF(Table1[[#This Row],[Asset Class]]<>"Local",0.25,IF(S107="y",1,"")) -> 0.25 | Y107: 1 | AA107: 8727499.5 | AB107: 8727499.5 | AC107: 8727499.5 | AD107: 8727499.5 | AE107: 34909998
B108: D0051 East District | C108: EXIT-PK-3857 | D108: District | E108: East | F108: General Recreation | G108: 0.5 | H108: 64015.62562 | I108: 295.9181569 | J108: =Table1[[#This Row],[Embellishment Area (m2)]]*Table1[[#This Row],[Construction Unit Rate ($/m)]]*Table1[[#This Row],[Embellishment Area Factor]] -> 9471692.975 | K108: 128031.2512 | L108: 157.2622192 | M108: =Table1[[#This Row],[Size of land (m2)]]*Table1[[#This Row],[Land Unit Rate ($/m2)]] -> 20134478.69 | N108: 2021 | O108: =ROUND(IF(Table1[[#This Row],[Valuation Year]]=2016,(Table1[[#This Row],[Total Construction Cost ($)]]+Table1[[#This Row],[Land Value]])*('General Input Sheet'!$G$38/'General Input Sheet'!$G$43),Table1[[#This Row],[Total Construction Cost ($)]]+Table1[[#This Row],[Land Value]]),0) -> 29606172 | P108: =_xlfn.IFS(Table1[[#This Row],[Asset Class]]<>"Local","y",P$11=$E108,"y",Table1[[#This Row],[Asset Class]]="Local","") -> y | Q108: =_xlfn.IFS(Table1[[#This Row],[Asset Class]]<>"Local","y",Q$11=$E108,"y",Table1[[#This Row],[Asset Class]]="Local","") -> y | R108: =_xlfn.IFS(Table1[[#This Row],[Asset Class]]<>"Local","y",R$11=$E108,"y",Table1[[#This Row],[Asset Class]]="Local","") -> y | S108: =_xlfn.IFS(Table1[[#This Row],[Asset Class]]<>"Local","y",S$11=$E108,"y",Table1[[#This Row],[Asset Class]]="Local","") -> y | U108: =IF(Table1[[#This Row],[Asset Class]]<>"Local",0.25,IF(P108="y",1,"")) -> 0.25 | V108: =IF(Table1[[#This Row],[Asset Class]]<>"Local",0.25,IF(Q108="y",1,"")) -> 0.25 | W108: =IF(Table1[[#This Row],[Asset Class]]<>"Local",0.25,IF(R108="y",1,"")) -> 0.25 | X108: =IF(Table1[[#This Row],[Asset Class]]<>"Local",0.25,IF(S108="y",1,"")) -> 0.25 | Y108: 1 | AA108: 7401543 | AB108: 7401543 | AC108: 7401543 | AD108: 7401543 | AE108: 29606172
B109: D0052 East Local | C109: EXIT-PK-3858 | D109: Local | E109: East | F109: General Recreation | G109: 0.5 | H109: 1289.052942 | I109: 111.6204104 | J109: =Table1[[#This Row],[Embellishment Area (m2)]]*Table1[[#This Row],[Construction Unit Rate ($/m)]]*Table1[[#This Row],[Embellishment Area Factor]] -> 71942.30917 | K109: 0 | L109: 66.12572262 | M109: =Table1[[#This Row],[Size of land (m2)]]*Table1[[#This Row],[Land Unit Rate ($/m2)]] -> 0 | N109: 2021 | O109: =ROUND(IF(Table1[[#This Row],[Valuation Year]]=2016,(Table1[[#This Row],[Total Construction Cost ($)]]+Table1[[#This Row],[Land Value]])*('General Input Sheet'!$G$38/'General Input Sheet'!$G$43),Table1[[#This Row],[Total Construction Cost ($)]]+Table1[[#This Row],[Land Value]]),0) -> 71942 | P109: =_xlfn.IFS(Table1[[#This Row],[Asset Class]]<>"Local","y",P$11=$E109,"y",Table1[[#This Row],[Asset Class]]="Local","") -> y | Q109: =_xlfn.IFS(Table1[[#This Row],[Asset Class]]<>"Local","y",Q$11=$E109,"y",Table1[[#This Row],[Asset Class]]="Local","") ->  | R109: =_xlfn.IFS(Table1[[#This Row],[Asset Class]]<>"Local","y",R$11=$E109,"y",Table1[[#This Row],[Asset Class]]="Local","") ->  | S109: =_xlfn.IFS(Table1[[#This Row],[Asset Class]]<>"Local","y",S$11=$E109,"y",Table1[[#This Row],[Asset Class]]="Local","") ->  | U109: =IF(Table1[[#This Row],[Asset Class]]<>"Local",0.25,IF(P109="y",1,"")) -> 1 | V109: =IF(Table1[[#This Row],[Asset Class]]<>"Local",0.25,IF(Q109="y",1,"")) ->  | W109: =IF(Table1[[#This Row],[Asset Class]]<>"Local",0.25,IF(R109="y",1,"")) ->  | X109: =IF(Table1[[#This Row],[Asset Class]]<>"Local",0.25,IF(S109="y",1,"")) ->  | Y109: 1 | AA109: 71942 | AE109: 71942
B110: D0053 East Local | C110: EXIT-PK-3859 | D110: Local | E110: East | F110: General Recreation | G110: 0.5 | H110: 2574.361268 | I110: 111.6204104 | J110: =Table1[[#This Row],[Embellishment Area (m2)]]*Table1[[#This Row],[Construction Unit Rate ($/m)]]*Table1[[#This Row],[Embellishment Area Factor]] -> 143675.6306 | K110: 5148.722537 | L110: 66.12572262 | M110: =Table1[[#This Row],[Size of land (m2)]]*Table1[[#This Row],[Land Unit Rate ($/m2)]] -> 340462.9983 | N110: 2021 | O110: =ROUND(IF(Table1[[#This Row],[Valuation Year]]=2016,(Table1[[#This Row],[Total Construction Cost ($)]]+Table1[[#This Row],[Land Value]])*('General Input Sheet'!$G$38/'General Input Sheet'!$G$43),Table1[[#This Row],[Total Construction Cost ($)]]+Table1[[#This Row],[Land Value]]),0) -> 484139 | P110: =_xlfn.IFS(Table1[[#This Row],[Asset Class]]<>"Local","y",P$11=$E110,"y",Table1[[#This Row],[Asset Class]]="Local","") -> y | Q110: =_xlfn.IFS(Table1[[#This Row],[Asset Class]]<>"Local","y",Q$11=$E110,"y",Table1[[#This Row],[Asset Class]]="Local","") ->  | R110: =_xlfn.IFS(Table1[[#This Row],[Asset Class]]<>"Local","y",R$11=$E110,"y",Table1[[#This Row],[Asset Class]]="Local","") ->  | S110: =_xlfn.IFS(Table1[[#This Row],[Asset Class]]<>"Local","y",S$11=$E110,"y",Table1[[#This Row],[Asset Class]]="Local","") ->  | U110: =IF(Table1[[#This Row],[Asset Class]]<>"Local",0.25,IF(P110="y",1,"")) -> 1 | V110: =IF(Table1[[#This Row],[Asset Class]]<>"Local",0.25,IF(Q110="y",1,"")) ->  | W110: =IF(Table1[[#This Row],[Asset Class]]<>"Local",0.25,IF(R110="y",1,"")) ->  | X110: =IF(Table1[[#This Row],[Asset Class]]<>"Local",0.25,IF(S110="y",1,"")) ->  | Y110: 1 | AA110: 484139 | AE110: 484139
B111: D0054 East Local | C111: EXIT-PK-3860 | D111: Local | E111: East | F111: General Recreation | G111: 0.5 | H111: 12748.20015 | I111: 111.6204104 | J111: =Table1[[#This Row],[Embellishment Area (m2)]]*Table1[[#This Row],[Construction Unit Rate ($/m)]]*Table1[[#This Row],[Embellishment Area Factor]] -> 711479.6661 | K111: 25496.4003 | L111: 66.12572262 | M111: =Table1[[#This Row],[Size of land (m2)]]*Table1[[#This Row],[Land Unit Rate ($/m2)]] -> 1685967.894 | N111: 2021 | O111: =ROUND(IF(Table1[[#This Row],[Valuation Year]]=2016,(Table1[[#This Row],[Total Construction Cost ($)]]+Table1[[#This Row],[Land Value]])*('General Input Sheet'!$G$38/'General Input Sheet'!$G$43),Table1[[#This Row],[Total Construction Cost ($)]]+Table1[[#This Row],[Land Value]]),0) -> 2397448 | P111: =_xlfn.IFS(Table1[[#This Row],[Asset Class]]<>"Local","y",P$11=$E111,"y",Table1[[#This Row],[Asset Class]]="Local","") -> y | Q111: =_xlfn.IFS(Table1[[#This Row],[Asset Class]]<>"Local","y",Q$11=$E111,"y",Table1[[#This Row],[Asset Class]]="Local","") ->  | R111: =_xlfn.IFS(Table1[[#This Row],[Asset Class]]<>"Local","y",R$11=$E111,"y",Table1[[#This Row],[Asset Class]]="Local","") ->  | S111: =_xlfn.IFS(Table1[[#This Row],[Asset Class]]<>"Local","y",S$11=$E111,"y",Table1[[#This Row],[Asset Class]]="Local","") ->  | U111: =IF(Table1[[#This Row],[Asset Class]]<>"Local",0.25,IF(P111="y",1,"")) -> 1 | V111: =IF(Table1[[#This Row],[Asset Class]]<>"Local",0.25,IF(Q111="y",1,"")) ->  | W111: =IF(Table1[[#This Row],[Asset Class]]<>"Local",0.25,IF(R111="y",1,"")) ->  | X111: =IF(Table1[[#This Row],[Asset Class]]<>"Local",0.25,IF(S111="y",1,"")) ->  | Y111: 1 | AA111: 2397448 | AE111: 2397448
B112: D0055 East Local | C112: EXIT-PK-3861 | D112: Local | E112: East | F112: General Recreation | G112: 0.5 | H112: 2567.623772 | I112: 111.6204104 | J112: =Table1[[#This Row],[Embellishment Area (m2)]]*Table1[[#This Row],[Construction Unit Rate ($/m)]]*Table1[[#This Row],[Embellishment Area Factor]] -> 143299.6095 | K112: 5135.247543 | L112: 66.12572262 | M112: =Table1[[#This Row],[Size of land (m2)]]*Table1[[#This Row],[Land Unit Rate ($/m2)]] -> 339571.9546 | N112: 2021 | O112: =ROUND(IF(Table1[[#This Row],[Valuation Year]]=2016,(Table1[[#This Row],[Total Construction Cost ($)]]+Table1[[#This Row],[Land Value]])*('General Input Sheet'!$G$38/'General Input Sheet'!$G$43),Table1[[#This Row],[Total Construction Cost ($)]]+Table1[[#This Row],[Land Value]]),0) -> 482872 | P112: =_xlfn.IFS(Table1[[#This Row],[Asset Class]]<>"Local","y",P$11=$E112,"y",Table1[[#This Row],[Asset Class]]="Local","") -> y | Q112: =_xlfn.IFS(Table1[[#This Row],[Asset Class]]<>"Local","y",Q$11=$E112,"y",Table1[[#This Row],[Asset Class]]="Local","") ->  | R112: =_xlfn.IFS(Table1[[#This Row],[Asset Class]]<>"Local","y",R$11=$E112,"y",Table1[[#This Row],[Asset Class]]="Local","") ->  | S112: =_xlfn.IFS(Table1[[#This Row],[Asset Class]]<>"Local","y",S$11=$E112,"y",Table1[[#This Row],[Asset Class]]="Local","") ->  | U112: =IF(Table1[[#This Row],[Asset Class]]<>"Local",0.25,IF(P112="y",1,"")) -> 1 | V112: =IF(Table1[[#This Row],[Asset Class]]<>"Local",0.25,IF(Q112="y",1,"")) ->  | W112: =IF(Table1[[#This Row],[Asset Class]]<>"Local",0.25,IF(R112="y",1,"")) ->  | X112: =IF(Table1[[#This Row],[Asset Class]]<>"Local",0.25,IF(S112="y",1,"")) ->  | Y112: 1 | AA112: 482872 | AE112: 482872
B113: D0056 East District | C113: EXIT-PK-3865 | D113: District | E113: East | F113: General Outdoor Sport | G113: 0.5 | H113: 97321.97597 | I113: 295.9181569 | J113: =Table1[[#This Row],[Embellishment Area (m2)]]*Table1[[#This Row],[Construction Unit Rate ($/m)]]*Table1[[#This Row],[Embellishment Area Factor]] -> 14399669.88 | K113: 194643.9519 | L113: 157.2622192 | M113: =Table1[[#This Row],[Size of land (m2)]]*Table1[[#This Row],[Land Unit Rate ($/m2)]] -> 30610139.83 | N113: 2021 | O113: =ROUND(IF(Table1[[#This Row],[Valuation Year]]=2016,(Table1[[#This Row],[Total Construction Cost ($)]]+Table1[[#This Row],[Land Value]])*('General Input Sheet'!$G$38/'General Input Sheet'!$G$43),Table1[[#This Row],[Total Construction Cost ($)]]+Table1[[#This Row],[Land Value]]),0) -> 45009810 | P113: =_xlfn.IFS(Table1[[#This Row],[Asset Class]]<>"Local","y",P$11=$E113,"y",Table1[[#This Row],[Asset Class]]="Local","") -> y | Q113: =_xlfn.IFS(Table1[[#This Row],[Asset Class]]<>"Local","y",Q$11=$E113,"y",Table1[[#This Row],[Asset Class]]="Local","") -> y | R113: =_xlfn.IFS(Table1[[#This Row],[Asset Class]]<>"Local","y",R$11=$E113,"y",Table1[[#This Row],[Asset Class]]="Local","") -> y | S113: =_xlfn.IFS(Table1[[#This Row],[Asset Class]]<>"Local","y",S$11=$E113,"y",Table1[[#This Row],[Asset Class]]="Local","") -> y | U113: =IF(Table1[[#This Row],[Asset Class]]<>"Local",0.25,IF(P113="y",1,"")) -> 0.25 | V113: =IF(Table1[[#This Row],[Asset Class]]<>"Local",0.25,IF(Q113="y",1,"")) -> 0.25 | W113: =IF(Table1[[#This Row],[Asset Class]]<>"Local",0.25,IF(R113="y",1,"")) -> 0.25 | X113: =IF(Table1[[#This Row],[Asset Class]]<>"Local",0.25,IF(S113="y",1,"")) -> 0.25 | Y113: 1 | AA113: 11252452.5 | AB113: 11252452.5 | AC113: 11252452.5 | AD113: 11252452.5 | AE113: 45009810
B114: D0056 East District | C114: EXIT-PK-3866 | D114: District | E114: East | F114: General Recreation | G114: 0.5 | H114: 22838.45741 | I114: 295.9181569 | J114: =Table1[[#This Row],[Embellishment Area (m2)]]*Table1[[#This Row],[Construction Unit Rate ($/m)]]*Table1[[#This Row],[Embellishment Area Factor]] -> 3379157.112 | K114: 45676.91482 | L114: 157.2622192 | M114: =Table1[[#This Row],[Size of land (m2)]]*Table1[[#This Row],[Land Unit Rate ($/m2)]] -> 7183252.99 | N114: 2021 | O114: =ROUND(IF(Table1[[#This Row],[Valuation Year]]=2016,(Table1[[#This Row],[Total Construction Cost ($)]]+Table1[[#This Row],[Land Value]])*('General Input Sheet'!$G$38/'General Input Sheet'!$G$43),Table1[[#This Row],[Total Construction Cost ($)]]+Table1[[#This Row],[Land Value]]),0) -> 10562410 | P114: =_xlfn.IFS(Table1[[#This Row],[Asset Class]]<>"Local","y",P$11=$E114,"y",Table1[[#This Row],[Asset Class]]="Local","") -> y | Q114: =_xlfn.IFS(Table1[[#This Row],[Asset Class]]<>"Local","y",Q$11=$E114,"y",Table1[[#This Row],[Asset Class]]="Local","") -> y | R114: =_xlfn.IFS(Table1[[#This Row],[Asset Class]]<>"Local","y",R$11=$E114,"y",Table1[[#This Row],[Asset Class]]="Local","") -> y | S114: =_xlfn.IFS(Table1[[#This Row],[Asset Class]]<>"Local","y",S$11=$E114,"y",Table1[[#This Row],[Asset Class]]="Local","") -> y | U114: =IF(Table1[[#This Row],[Asset Class]]<>"Local",0.25,IF(P114="y",1,"")) -> 0.25 | V114: =IF(Table1[[#This Row],[Asset Class]]<>"Local",0.25,IF(Q114="y",1,"")) -> 0.25 | W114: =IF(Table1[[#This Row],[Asset Class]]<>"Local",0.25,IF(R114="y",1,"")) -> 0.25 | X114: =IF(Table1[[#This Row],[Asset Class]]<>"Local",0.25,IF(S114="y",1,"")) -> 0.25 | Y114: 1 | AA114: 2640602.5 | AB114: 2640602.5 | AC114: 2640602.5 | AD114: 2640602.5 | AE114: 10562410
B115: D0056 East District | C115: EXIT-PK-3868 | D115: District | E115: East | F115: General Recreation | G115: 0.5 | H115: 10522.06733 | I115: 295.9181569 | J115: =Table1[[#This Row],[Embellishment Area (m2)]]*Table1[[#This Row],[Construction Unit Rate ($/m)]]*Table1[[#This Row],[Embellishment Area Factor]] -> 1556835.385 | K115: 21044.13465 | L115: 157.2622192 | M115: =Table1[[#This Row],[Size of land (m2)]]*Table1[[#This Row],[Land Unit Rate ($/m2)]] -> 3309447.316 | N115: 2021 | O115: =ROUND(IF(Table1[[#This Row],[Valuation Year]]=2016,(Table1[[#This Row],[Total Construction Cost ($)]]+Table1[[#This Row],[Land Value]])*('General Input Sheet'!$G$38/'General Input Sheet'!$G$43),Table1[[#This Row],[Total Construction Cost ($)]]+Table1[[#This Row],[Land Value]]),0) -> 4866283 | P115: =_xlfn.IFS(Table1[[#This Row],[Asset Class]]<>"Local","y",P$11=$E115,"y",Table1[[#This Row],[Asset Class]]="Local","") -> y | Q115: =_xlfn.IFS(Table1[[#This Row],[Asset Class]]<>"Local","y",Q$11=$E115,"y",Table1[[#This Row],[Asset Class]]="Local","") -> y | R115: =_xlfn.IFS(Table1[[#This Row],[Asset Class]]<>"Local","y",R$11=$E115,"y",Table1[[#This Row],[Asset Class]]="Local","") -> y | S115: =_xlfn.IFS(Table1[[#This Row],[Asset Class]]<>"Local","y",S$11=$E115,"y",Table1[[#This Row],[Asset Class]]="Local","") -> y | U115: =IF(Table1[[#This Row],[Asset Class]]<>"Local",0.25,IF(P115="y",1,"")) -> 0.25 | V115: =IF(Table1[[#This Row],[Asset Class]]<>"Local",0.25,IF(Q115="y",1,"")) -> 0.25 | W115: =IF(Table1[[#This Row],[Asset Class]]<>"Local",0.25,IF(R115="y",1,"")) -> 0.25 | X115: =IF(Table1[[#This Row],[Asset Class]]<>"Local",0.25,IF(S115="y",1,"")) -> 0.25 | Y115: 1 | AA115: 1216570.75 | AB115: 1216570.75 | AC115: 1216570.75 | AD115: 1216570.75 | AE115: 4866283
B116: D0056 East District | C116: EXIT-PK-3869 | D116: District | E116: East | F116: General Recreation | G116: 0.5 | H116: 14275.91728 | I116: 295.9181569 | J116: =Table1[[#This Row],[Embellishment Area (m2)]]*Table1[[#This Row],[Construction Unit Rate ($/m)]]*Table1[[#This Row],[Embellishment Area Factor]] -> 2112251.565 | K116: 28551.83456 | L116: 157.2622192 | M116: =Table1[[#This Row],[Size of land (m2)]]*Table1[[#This Row],[Land Unit Rate ($/m2)]] -> 4490124.865 | N116: 2021 | O116: =ROUND(IF(Table1[[#This Row],[Valuation Year]]=2016,(Table1[[#This Row],[Total Construction Cost ($)]]+Table1[[#This Row],[Land Value]])*('General Input Sheet'!$G$38/'General Input Sheet'!$G$43),Table1[[#This Row],[Total Construction Cost ($)]]+Table1[[#This Row],[Land Value]]),0) -> 6602376 | P116: =_xlfn.IFS(Table1[[#This Row],[Asset Class]]<>"Local","y",P$11=$E116,"y",Table1[[#This Row],[Asset Class]]="Local","") -> y | Q116: =_xlfn.IFS(Table1[[#This Row],[Asset Class]]<>"Local","y",Q$11=$E116,"y",Table1[[#This Row],[Asset Class]]="Local","") -> y | R116: =_xlfn.IFS(Table1[[#This Row],[Asset Class]]<>"Local","y",R$11=$E116,"y",Table1[[#This Row],[Asset Class]]="Local","") -> y | S116: =_xlfn.IFS(Table1[[#This Row],[Asset Class]]<>"Local","y",S$11=$E116,"y",Table1[[#This Row],[Asset Class]]="Local","") -> y | U116: =IF(Table1[[#This Row],[Asset Class]]<>"Local",0.25,IF(P116="y",1,"")) -> 0.25 | V116: =IF(Table1[[#This Row],[Asset Class]]<>"Local",0.25,IF(Q116="y",1,"")) -> 0.25 | W116: =IF(Table1[[#This Row],[Asset Class]]<>"Local",0.25,IF(R116="y",1,"")) -> 0.25 | X116: =IF(Table1[[#This Row],[Asset Class]]<>"Local",0.25,IF(S116="y",1,"")) -> 0.25 | Y116: 1 | AA116: 1650594 | AB116: 1650594 | AC116: 1650594 | AD116: 1650594 | AE116: 6602376
B117: D0057 East Local | C117: EXIT-PK-3871 | D117: Local | E117: East | F117: Access Recreation Corridor | G117: 0.5 | H117: 2736.305528 | I117: 111.6204104 | J117: =Table1[[#This Row],[Embellishment Area (m2)]]*Table1[[#This Row],[Construction Unit Rate ($/m)]]*Table1[[#This Row],[Embellishment Area Factor]] -> 152713.773 | K117: 0 | L117: 66.12572262 | M117: =Table1[[#This Row],[Size of land (m2)]]*Table1[[#This Row],[Land Unit Rate ($/m2)]] -> 0 | N117: 2021 | O117: =ROUND(IF(Table1[[#This Row],[Valuation Year]]=2016,(Table1[[#This Row],[Total Construction Cost ($)]]+Table1[[#This Row],[Land Value]])*('General Input Sheet'!$G$38/'General Input Sheet'!$G$43),Table1[[#This Row],[Total Construction Cost ($)]]+Table1[[#This Row],[Land Value]]),0) -> 152714 | P117: =_xlfn.IFS(Table1[[#This Row],[Asset Class]]<>"Local","y",P$11=$E117,"y",Table1[[#This Row],[Asset Class]]="Local","") -> y | Q117: =_xlfn.IFS(Table1[[#This Row],[Asset Class]]<>"Local","y",Q$11=$E117,"y",Table1[[#This Row],[Asset Class]]="Local","") ->  | R117: =_xlfn.IFS(Table1[[#This Row],[Asset Class]]<>"Local","y",R$11=$E117,"y",Table1[[#This Row],[Asset Class]]="Local","") ->  | S117: =_xlfn.IFS(Table1[[#This Row],[Asset Class]]<>"Local","y",S$11=$E117,"y",Table1[[#This Row],[Asset Class]]="Local","") ->  | U117: =IF(Table1[[#This Row],[Asset Class]]<>"Local",0.25,IF(P117="y",1,"")) -> 1 | V117: =IF(Table1[[#This Row],[Asset Class]]<>"Local",0.25,IF(Q117="y",1,"")) ->  | W117: =IF(Table1[[#This Row],[Asset Class]]<>"Local",0.25,IF(R117="y",1,"")) ->  | X117: =IF(Table1[[#This Row],[Asset Class]]<>"Local",0.25,IF(S117="y",1,"")) ->  | Y117: 1 | AA117: 152714 | AE117: 152714
B118: D0057 East Local | C118: EXIT-PK-3872 | D118: Local | E118: East | F118: Access Recreation Corridor | G118: 0.5 | H118: 2949.256155 | I118: 111.6204104 | J118: =Table1[[#This Row],[Embellishment Area (m2)]]*Table1[[#This Row],[Construction Unit Rate ($/m)]]*Table1[[#This Row],[Embellishment Area Factor]] -> 164598.5912 | K118: 0 | L118: 66.12572262 | M118: =Table1[[#This Row],[Size of land (m2)]]*Table1[[#This Row],[Land Unit Rate ($/m2)]] -> 0 | N118: 2021 | O118: =ROUND(IF(Table1[[#This Row],[Valuation Year]]=2016,(Table1[[#This Row],[Total Construction Cost ($)]]+Table1[[#This Row],[Land Value]])*('General Input Sheet'!$G$38/'General Input Sheet'!$G$43),Table1[[#This Row],[Total Construction Cost ($)]]+Table1[[#This Row],[Land Value]]),0) -> 164599 | P118: =_xlfn.IFS(Table1[[#This Row],[Asset Class]]<>"Local","y",P$11=$E118,"y",Table1[[#This Row],[Asset Class]]="Local","") -> y | Q118: =_xlfn.IFS(Table1[[#This Row],[Asset Class]]<>"Local","y",Q$11=$E118,"y",Table1[[#This Row],[Asset Class]]="Local","") ->  | R118: =_xlfn.IFS(Table1[[#This Row],[Asset Class]]<>"Local","y",R$11=$E118,"y",Table1[[#This Row],[Asset Class]]="Local","") ->  | S118: =_xlfn.IFS(Table1[[#This Row],[Asset Class]]<>"Local","y",S$11=$E118,"y",Table1[[#This Row],[Asset Class]]="Local","") ->  | U118: =IF(Table1[[#This Row],[Asset Class]]<>"Local",0.25,IF(P118="y",1,"")) -> 1 | V118: =IF(Table1[[#This Row],[Asset Class]]<>"Local",0.25,IF(Q118="y",1,"")) ->  | W118: =IF(Table1[[#This Row],[Asset Class]]<>"Local",0.25,IF(R118="y",1,"")) ->  | X118: =IF(Table1[[#This Row],[Asset Class]]<>"Local",0.25,IF(S118="y",1,"")) ->  | Y118: 1 | AA118: 164599 | AE118: 164599
B119: D0059 East Local | C119: EXIT-PK-3874 | D119: Local | E119: East | F119: General Recreation | G119: 0.5 | H119: 30691.36277 | I119: 111.6204104 | J119: =Table1[[#This Row],[Embellishment Area (m2)]]*Table1[[#This Row],[Construction Unit Rate ($/m)]]*Table1[[#This Row],[Embellishment Area Factor]] -> 1712891.253 | K119: 61382.72554 | L119: 66.12572262 | M119: =Table1[[#This Row],[Size of land (m2)]]*Table1[[#This Row],[Land Unit Rate ($/m2)]] -> 4058977.083 | N119: 2021 | O119: =ROUND(IF(Table1[[#This Row],[Valuation Year]]=2016,(Table1[[#This Row],[Total Construction Cost ($)]]+Table1[[#This Row],[Land Value]])*('General Input Sheet'!$G$38/'General Input Sheet'!$G$43),Table1[[#This Row],[Total Construction Cost ($)]]+Table1[[#This Row],[Land Value]]),0) -> 5771868 | P119: =_xlfn.IFS(Table1[[#This Row],[Asset Class]]<>"Local","y",P$11=$E119,"y",Table1[[#This Row],[Asset Class]]="Local","") -> y | Q119: =_xlfn.IFS(Table1[[#This Row],[Asset Class]]<>"Local","y",Q$11=$E119,"y",Table1[[#This Row],[Asset Class]]="Local","") ->  | R119: =_xlfn.IFS(Table1[[#This Row],[Asset Class]]<>"Local","y",R$11=$E119,"y",Table1[[#This Row],[Asset Class]]="Local","") ->  | S119: =_xlfn.IFS(Table1[[#This Row],[Asset Class]]<>"Local","y",S$11=$E119,"y",Table1[[#This Row],[Asset Class]]="Local","") ->  | U119: =IF(Table1[[#This Row],[Asset Class]]<>"Local",0.25,IF(P119="y",1,"")) -> 1 | V119: =IF(Table1[[#This Row],[Asset Class]]<>"Local",0.25,IF(Q119="y",1,"")) ->  | W119: =IF(Table1[[#This Row],[Asset Class]]<>"Local",0.25,IF(R119="y",1,"")) ->  | X119: =IF(Table1[[#This Row],[Asset Class]]<>"Local",0.25,IF(S119="y",1,"")) ->  | Y119: 1 | AA119: 5771868 | AE119: 5771868
B120: D0060 East Local | C120: EXIT-PK-3875 | D120: Local | E120: East | F120: General Recreation | G120: 0.5 | H120: 820.413139 | I120: 111.6204104 | J120: =Table1[[#This Row],[Embellishment Area (m2)]]*Table1[[#This Row],[Construction Unit Rate ($/m)]]*Table1[[#This Row],[Embellishment Area Factor]] -> 45787.42562 | K120: 0 | L120: 66.12572262 | M120: =Table1[[#This Row],[Size of land (m2)]]*Table1[[#This Row],[Land Unit Rate ($/m2)]] -> 0 | N120: 2021 | O120: =ROUND(IF(Table1[[#This Row],[Valuation Year]]=2016,(Table1[[#This Row],[Total Construction Cost ($)]]+Table1[[#This Row],[Land Value]])*('General Input Sheet'!$G$38/'General Input Sheet'!$G$43),Table1[[#This Row],[Total Construction Cost ($)]]+Table1[[#This Row],[Land Value]]),0) -> 45787 | P120: =_xlfn.IFS(Table1[[#This Row],[Asset Class]]<>"Local","y",P$11=$E120,"y",Table1[[#This Row],[Asset Class]]="Local","") -> y | Q120: =_xlfn.IFS(Table1[[#This Row],[Asset Class]]<>"Local","y",Q$11=$E120,"y",Table1[[#This Row],[Asset Class]]="Local","") ->  | R120: =_xlfn.IFS(Table1[[#This Row],[Asset Class]]<>"Local","y",R$11=$E120,"y",Table1[[#This Row],[Asset Class]]="Local","") ->  | S120: =_xlfn.IFS(Table1[[#This Row],[Asset Class]]<>"Local","y",S$11=$E120,"y",Table1[[#This Row],[Asset Class]]="Local","") ->  | U120: =IF(Table1[[#This Row],[Asset Class]]<>"Local",0.25,IF(P120="y",1,"")) -> 1 | V120: =IF(Table1[[#This Row],[Asset Class]]<>"Local",0.25,IF(Q120="y",1,"")) ->  | W120: =IF(Table1[[#This Row],[Asset Class]]<>"Local",0.25,IF(R120="y",1,"")) ->  | X120: =IF(Table1[[#This Row],[Asset Class]]<>"Local",0.25,IF(S120="y",1,"")) ->  | Y120: 1 | AA120: 45787 | AE120: 45787
B121: D0061 East Local | C121: EXIT-PK-3876 | D121: Local | E121: East | F121: General Recreation | G121: 0.5 | H121: 11632.84859 | I121: 111.6204104 | J121: =Table1[[#This Row],[Embellishment Area (m2)]]*Table1[[#This Row],[Construction Unit Rate ($/m)]]*Table1[[#This Row],[Embellishment Area Factor]] -> 649231.6667 | K121: 0 | L121: 66.12572262 | M121: =Table1[[#This Row],[Size of land (m2)]]*Table1[[#This Row],[Land Unit Rate ($/m2)]] -> 0 | N121: 2021 | O121: =ROUND(IF(Table1[[#This Row],[Valuation Year]]=2016,(Table1[[#This Row],[Total Construction Cost ($)]]+Table1[[#This Row],[Land Value]])*('General Input Sheet'!$G$38/'General Input Sheet'!$G$43),Table1[[#This Row],[Total Construction Cost ($)]]+Table1[[#This Row],[Land Value]]),0) -> 649232 | P121: =_xlfn.IFS(Table1[[#This Row],[Asset Class]]<>"Local","y",P$11=$E121,"y",Table1[[#This Row],[Asset Class]]="Local","") -> y | Q121: =_xlfn.IFS(Table1[[#This Row],[Asset Class]]<>"Local","y",Q$11=$E121,"y",Table1[[#This Row],[Asset Class]]="Local","") ->  | R121: =_xlfn.IFS(Table1[[#This Row],[Asset Class]]<>"Local","y",R$11=$E121,"y",Table1[[#This Row],[Asset Class]]="Local","") ->  | S121: =_xlfn.IFS(Table1[[#This Row],[Asset Class]]<>"Local","y",S$11=$E121,"y",Table1[[#This Row],[Asset Class]]="Local","") ->  | U121: =IF(Table1[[#This Row],[Asset Class]]<>"Local",0.25,IF(P121="y",1,"")) -> 1 | V121: =IF(Table1[[#This Row],[Asset Class]]<>"Local",0.25,IF(Q121="y",1,"")) ->  | W121: =IF(Table1[[#This Row],[Asset Class]]<>"Local",0.25,IF(R121="y",1,"")) ->  | X121: =IF(Table1[[#This Row],[Asset Class]]<>"Local",0.25,IF(S121="y",1,"")) ->  | Y121: 1 | AA121: 649232 | AE121: 649232
B122: D0062 East District | C122: EXIT-PK-3878 | D122: District | E122: East | F122: General Recreation | G122: 0.5 | H122: 30907.07913 | I122: 295.9181569 | J122: =Table1[[#This Row],[Embellishment Area (m2)]]*Table1[[#This Row],[Construction Unit Rate ($/m)]]*Table1[[#This Row],[Embellishment Area Factor]] -> 4572982.947 | K122: 61814.15827 | L122: 157.2622192 | M122: =Table1[[#This Row],[Size of land (m2)]]*Table1[[#This Row],[Land Unit Rate ($/m2)]] -> 9721031.706 | N122: 2021 | O122: =ROUND(IF(Table1[[#This Row],[Valuation Year]]=2016,(Table1[[#This Row],[Total Construction Cost ($)]]+Table1[[#This Row],[Land Value]])*('General Input Sheet'!$G$38/'General Input Sheet'!$G$43),Table1[[#This Row],[Total Construction Cost ($)]]+Table1[[#This Row],[Land Value]]),0) -> 14294015 | P122: =_xlfn.IFS(Table1[[#This Row],[Asset Class]]<>"Local","y",P$11=$E122,"y",Table1[[#This Row],[Asset Class]]="Local","") -> y | Q122: =_xlfn.IFS(Table1[[#This Row],[Asset Class]]<>"Local","y",Q$11=$E122,"y",Table1[[#This Row],[Asset Class]]="Local","") -> y | R122: =_xlfn.IFS(Table1[[#This Row],[Asset Class]]<>"Local","y",R$11=$E122,"y",Table1[[#This Row],[Asset Class]]="Local","") -> y | S122: =_xlfn.IFS(Table1[[#This Row],[Asset Class]]<>"Local","y",S$11=$E122,"y",Table1[[#This Row],[Asset Class]]="Local","") -> y | U122: =IF(Table1[[#This Row],[Asset Class]]<>"Local",0.25,IF(P122="y",1,"")) -> 0.25 | V122: =IF(Table1[[#This Row],[Asset Class]]<>"Local",0.25,IF(Q122="y",1,"")) -> 0.25 | W122: =IF(Table1[[#This Row],[Asset Class]]<>"Local",0.25,IF(R122="y",1,"")) -> 0.25 | X122: =IF(Table1[[#This Row],[Asset Class]]<>"Local",0.25,IF(S122="y",1,"")) -> 0.25 | Y122: 1 | AA122: 3573503.75 | AB122: 3573503.75 | AC122: 3573503.75 | AD122: 3573503.75 | AE122: 14294015
B123: D0062 East District | C123: EXIT-PK-3879 | D123: District | E123: East | F123: General Outdoor Sport | G123: 0.5 | H123: 1999.687347 | I123: 295.9181569 | J123: =Table1[[#This Row],[Embellishment Area (m2)]]*Table1[[#This Row],[Construction Unit Rate ($/m)]]*Table1[[#This Row],[Embellishment Area Factor]] -> 295871.897 | K123: 3999.374693 | L123: 157.2622192 | M123: =Table1[[#This Row],[Size of land (m2)]]*Table1[[#This Row],[Land Unit Rate ($/m2)]] -> 628950.5396 | N123: 2021 | O123: =ROUND(IF(Table1[[#This Row],[Valuation Year]]=2016,(Table1[[#This Row],[Total Construction Cost ($)]]+Table1[[#This Row],[Land Value]])*('General Input Sheet'!$G$38/'General Input Sheet'!$G$43),Table1[[#This Row],[Total Construction Cost ($)]]+Table1[[#This Row],[Land Value]]),0) -> 924822 | P123: =_xlfn.IFS(Table1[[#This Row],[Asset Class]]<>"Local","y",P$11=$E123,"y",Table1[[#This Row],[Asset Class]]="Local","") -> y | Q123: =_xlfn.IFS(Table1[[#This Row],[Asset Class]]<>"Local","y",Q$11=$E123,"y",Table1[[#This Row],[Asset Class]]="Local","") -> y | R123: =_xlfn.IFS(Table1[[#This Row],[Asset Class]]<>"Local","y",R$11=$E123,"y",Table1[[#This Row],[Asset Class]]="Local","") -> y | S123: =_xlfn.IFS(Table1[[#This Row],[Asset Class]]<>"Local","y",S$11=$E123,"y",Table1[[#This Row],[Asset Class]]="Local","") -> y | U123: =IF(Table1[[#This Row],[Asset Class]]<>"Local",0.25,IF(P123="y",1,"")) -> 0.25 | V123: =IF(Table1[[#This Row],[Asset Class]]<>"Local",0.25,IF(Q123="y",1,"")) -> 0.25 | W123: =IF(Table1[[#This Row],[Asset Class]]<>"Local",0.25,IF(R123="y",1,"")) -> 0.25 | X123: =IF(Table1[[#This Row],[Asset Class]]<>"Local",0.25,IF(S123="y",1,"")) -> 0.25 | Y123: 1 | AA123: 231205.5 | AB123: 231205.5 | AC123: 231205.5 | AD123: 231205.5 | AE123: 924822
B124: D0063 East Local | C124: EXIT-PK-3882 | D124: Local | E124: East | F124: General Recreation | G124: 0.5 | H124: 4234.798713 | I124: 111.6204104 | J124: =Table1[[#This Row],[Embellishment Area (m2)]]*Table1[[#This Row],[Construction Unit Rate ($/m)]]*Table1[[#This Row],[Embellishment Area Factor]] -> 236344.9851 | K124: 8469.597426 | L124: 66.12572262 | M124: =Table1[[#This Row],[Size of land (m2)]]*Table1[[#This Row],[Land Unit Rate ($/m2)]] -> 560058.2501 | N124: 2021 | O124: =ROUND(IF(Table1[[#This Row],[Valuation Year]]=2016,(Table1[[#This Row],[Total Construction Cost ($)]]+Table1[[#This Row],[Land Value]])*('General Input Sheet'!$G$38/'General Input Sheet'!$G$43),Table1[[#This Row],[Total Construction Cost ($)]]+Table1[[#This Row],[Land Value]]),0) -> 796403 | P124: =_xlfn.IFS(Table1[[#This Row],[Asset Class]]<>"Local","y",P$11=$E124,"y",Table1[[#This Row],[Asset Class]]="Local","") -> y | Q124: =_xlfn.IFS(Table1[[#This Row],[Asset Class]]<>"Local","y",Q$11=$E124,"y",Table1[[#This Row],[Asset Class]]="Local","") ->  | R124: =_xlfn.IFS(Table1[[#This Row],[Asset Class]]<>"Local","y",R$11=$E124,"y",Table1[[#This Row],[Asset Class]]="Local","") ->  | S124: =_xlfn.IFS(Table1[[#This Row],[Asset Class]]<>"Local","y",S$11=$E124,"y",Table1[[#This Row],[Asset Class]]="Local","") ->  | U124: =IF(Table1[[#This Row],[Asset Class]]<>"Local",0.25,IF(P124="y",1,"")) -> 1 | V124: =IF(Table1[[#This Row],[Asset Class]]<>"Local",0.25,IF(Q124="y",1,"")) ->  | W124: =IF(Table1[[#This Row],[Asset Class]]<>"Local",0.25,IF(R124="y",1,"")) ->  | X124: =IF(Table1[[#This Row],[Asset Class]]<>"Local",0.25,IF(S124="y",1,"")) ->  | Y124: 1 | AA124: 796403 | AE124: 796403
B125: D0064 East District | C125: EXIT-PK-3883 | D125: District | E125: East | F125: General Recreation | G125: 0.5 | H125: 44289.68943 | I125: 295.9181569 | J125: =Table1[[#This Row],[Embellishment Area (m2)]]*Table1[[#This Row],[Construction Unit Rate ($/m)]]*Table1[[#This Row],[Embellishment Area Factor]] -> 6553061.635 | K125: 88579.37887 | L125: 157.2622192 | M125: =Table1[[#This Row],[Size of land (m2)]]*Table1[[#This Row],[Land Unit Rate ($/m2)]] -> 13930189.69 | N125: 2021 | O125: =ROUND(IF(Table1[[#This Row],[Valuation Year]]=2016,(Table1[[#This Row],[Total Construction Cost ($)]]+Table1[[#This Row],[Land Value]])*('General Input Sheet'!$G$38/'General Input Sheet'!$G$43),Table1[[#This Row],[Total Construction Cost ($)]]+Table1[[#This Row],[Land Value]]),0) -> 20483251 | P125: =_xlfn.IFS(Table1[[#This Row],[Asset Class]]<>"Local","y",P$11=$E125,"y",Table1[[#This Row],[Asset Class]]="Local","") -> y | Q125: =_xlfn.IFS(Table1[[#This Row],[Asset Class]]<>"Local","y",Q$11=$E125,"y",Table1[[#This Row],[Asset Class]]="Local","") -> y | R125: =_xlfn.IFS(Table1[[#This Row],[Asset Class]]<>"Local","y",R$11=$E125,"y",Table1[[#This Row],[Asset Class]]="Local","") -> y | S125: =_xlfn.IFS(Table1[[#This Row],[Asset Class]]<>"Local","y",S$11=$E125,"y",Table1[[#This Row],[Asset Class]]="Local","") -> y | U125: =IF(Table1[[#This Row],[Asset Class]]<>"Local",0.25,IF(P125="y",1,"")) -> 0.25 | V125: =IF(Table1[[#This Row],[Asset Class]]<>"Local",0.25,IF(Q125="y",1,"")) -> 0.25 | W125: =IF(Table1[[#This Row],[Asset Class]]<>"Local",0.25,IF(R125="y",1,"")) -> 0.25 | X125: =IF(Table1[[#This Row],[Asset Class]]<>"Local",0.25,IF(S125="y",1,"")) -> 0.25 | Y125: 1 | AA125: 5120812.75 | AB125: 5120812.75 | AC125: 5120812.75 | AD125: 5120812.75 | AE125: 20483251
B126: D0066 East Local | C126: EXIT-PK-3885 | D126: Local | E126: East | F126: General Recreation | G126: 0.5 | H126: 1994.321804 | I126: 111.6204104 | J126: =Table1[[#This Row],[Embellishment Area (m2)]]*Table1[[#This Row],[Construction Unit Rate ($/m)]]*Table1[[#This Row],[Embellishment Area Factor]] -> 111303.5091 | K126: 3988.643608 | L126: 66.12572262 | M126: =Table1[[#This Row],[Size of land (m2)]]*Table1[[#This Row],[Land Unit Rate ($/m2)]] -> 263751.9408 | N126: 2021 | O126: =ROUND(IF(Table1[[#This Row],[Valuation Year]]=2016,(Table1[[#This Row],[Total Construction Cost ($)]]+Table1[[#This Row],[Land Value]])*('General Input Sheet'!$G$38/'General Input Sheet'!$G$43),Table1[[#This Row],[Total Construction Cost ($)]]+Table1[[#This Row],[Land Value]]),0) -> 375055 | P126: =_xlfn.IFS(Table1[[#This Row],[Asset Class]]<>"Local","y",P$11=$E126,"y",Table1[[#This Row],[Asset Class]]="Local","") -> y | Q126: =_xlfn.IFS(Table1[[#This Row],[Asset Class]]<>"Local","y",Q$11=$E126,"y",Table1[[#This Row],[Asset Class]]="Local","") ->  | R126: =_xlfn.IFS(Table1[[#This Row],[Asset Class]]<>"Local","y",R$11=$E126,"y",Table1[[#This Row],[Asset Class]]="Local","") ->  | S126: =_xlfn.IFS(Table1[[#This Row],[Asset Class]]<>"Local","y",S$11=$E126,"y",Table1[[#This Row],[Asset Class]]="Local","") ->  | U126: =IF(Table1[[#This Row],[Asset Class]]<>"Local",0.25,IF(P126="y",1,"")) -> 1 | V126: =IF(Table1[[#This Row],[Asset Class]]<>"Local",0.25,IF(Q126="y",1,"")) ->  | W126: =IF(Table1[[#This Row],[Asset Class]]<>"Local",0.25,IF(R126="y",1,"")) ->  | X126: =IF(Table1[[#This Row],[Asset Class]]<>"Local",0.25,IF(S126="y",1,"")) ->  | Y126: 1 | AA126: 375055 | AE126: 375055
B127: D0067 East District | C127: EXIT-PK-3888 | D127: District | E127: East | F127: Specialised Outdoor Sport | G127: 0.5 | H127: 6341.741189 | I127: 295.9181569 | J127: =Table1[[#This Row],[Embellishment Area (m2)]]*Table1[[#This Row],[Construction Unit Rate ($/m)]]*Table1[[#This Row],[Embellishment Area Factor]] -> 938318.1823 | K127: 0 | L127: 157.2622192 | M127: =Table1[[#This Row],[Size of land (m2)]]*Table1[[#This Row],[Land Unit Rate ($/m2)]] -> 0 | N127: 2021 | O127: =ROUND(IF(Table1[[#This Row],[Valuation Year]]=2016,(Table1[[#This Row],[Total Construction Cost ($)]]+Table1[[#This Row],[Land Value]])*('General Input Sheet'!$G$38/'General Input Sheet'!$G$43),Table1[[#This Row],[Total Construction Cost ($)]]+Table1[[#This Row],[Land Value]]),0) -> 938318 | P127: =_xlfn.IFS(Table1[[#This Row],[Asset Class]]<>"Local","y",P$11=$E127,"y",Table1[[#This Row],[Asset Class]]="Local","") -> y | Q127: =_xlfn.IFS(Table1[[#This Row],[Asset Class]]<>"Local","y",Q$11=$E127,"y",Table1[[#This Row],[Asset Class]]="Local","") -> y | R127: =_xlfn.IFS(Table1[[#This Row],[Asset Class]]<>"Local","y",R$11=$E127,"y",Table1[[#This Row],[Asset Class]]="Local","") -> y | S127: =_xlfn.IFS(Table1[[#This Row],[Asset Class]]<>"Local","y",S$11=$E127,"y",Table1[[#This Row],[Asset Class]]="Local","") -> y | U127: =IF(Table1[[#This Row],[Asset Class]]<>"Local",0.25,IF(P127="y",1,"")) -> 0.25 | V127: =IF(Table1[[#This Row],[Asset Class]]<>"Local",0.25,IF(Q127="y",1,"")) -> 0.25 | W127: =IF(Table1[[#This Row],[Asset Class]]<>"Local",0.25,IF(R127="y",1,"")) -> 0.25 | X127: =IF(Table1[[#This Row],[Asset Class]]<>"Local",0.25,IF(S127="y",1,"")) -> 0.25 | Y127: 1 | AA127: 234579.5 | AB127: 234579.5 | AC127: 234579.5 | AD127: 234579.5 | AE127: 938318
B128: D0067 East District | C128: EXIT-PK-3889 | D128: District | E128: East | F128: General Recreation | G128: 0.5 | H128: 5792.479004 | I128: 295.9181569 | J128: =Table1[[#This Row],[Embellishment Area (m2)]]*Table1[[#This Row],[Construction Unit Rate ($/m)]]*Table1[[#This Row],[Embellishment Area Factor]] -> 857049.8555 | K128: 0 | L128: 157.2622192 | M128: =Table1[[#This Row],[Size of land (m2)]]*Table1[[#This Row],[Land Unit Rate ($/m2)]] -> 0 | N128: 2021 | O128: =ROUND(IF(Table1[[#This Row],[Valuation Year]]=2016,(Table1[[#This Row],[Total Construction Cost ($)]]+Table1[[#This Row],[Land Value]])*('General Input Sheet'!$G$38/'General Input Sheet'!$G$43),Table1[[#This Row],[Total Construction Cost ($)]]+Table1[[#This Row],[Land Value]]),0) -> 857050 | P128: =_xlfn.IFS(Table1[[#This Row],[Asset Class]]<>"Local","y",P$11=$E128,"y",Table1[[#This Row],[Asset Class]]="Local","") -> y | Q128: =_xlfn.IFS(Table1[[#This Row],[Asset Class]]<>"Local","y",Q$11=$E128,"y",Table1[[#This Row],[Asset Class]]="Local","") -> y | R128: =_xlfn.IFS(Table1[[#This Row],[Asset Class]]<>"Local","y",R$11=$E128,"y",Table1[[#This Row],[Asset Class]]="Local","") -> y | S128: =_xlfn.IFS(Table1[[#This Row],[Asset Class]]<>"Local","y",S$11=$E128,"y",Table1[[#This Row],[Asset Class]]="Local","") -> y | U128: =IF(Table1[[#This Row],[Asset Class]]<>"Local",0.25,IF(P128="y",1,"")) -> 0.25 | V128: =IF(Table1[[#This Row],[Asset Class]]<>"Local",0.25,IF(Q128="y",1,"")) -> 0.25 | W128: =IF(Table1[[#This Row],[Asset Class]]<>"Local",0.25,IF(R128="y",1,"")) -> 0.25 | X128: =IF(Table1[[#This Row],[Asset Class]]<>"Local",0.25,IF(S128="y",1,"")) -> 0.25 | Y128: 1 | AA128: 214262.5 | AB128: 214262.5 | AC128: 214262.5 | AD128: 214262.5 | AE128: 857050
B129: D0067 East Local | C129: EXIT-PK-3893 | D129: Local | E129: East | F129: General Recreation | G129: 0.5 | H129: 3621.315625 | I129: 111.6204104 | J129: =Table1[[#This Row],[Embellishment Area (m2)]]*Table1[[#This Row],[Construction Unit Rate ($/m)]]*Table1[[#This Row],[Embellishment Area Factor]] -> 202106.368 | K129: 0 | L129: 66.12572262 | M129: =Table1[[#This Row],[Size of land (m2)]]*Table1[[#This Row],[Land Unit Rate ($/m2)]] -> 0 | N129: 2021 | O129: =ROUND(IF(Table1[[#This Row],[Valuation Year]]=2016,(Table1[[#This Row],[Total Construction Cost ($)]]+Table1[[#This Row],[Land Value]])*('General Input Sheet'!$G$38/'General Input Sheet'!$G$43),Table1[[#This Row],[Total Construction Cost ($)]]+Table1[[#This Row],[Land Value]]),0) -> 202106 | P129: =_xlfn.IFS(Table1[[#This Row],[Asset Class]]<>"Local","y",P$11=$E129,"y",Table1[[#This Row],[Asset Class]]="Local","") -> y | Q129: =_xlfn.IFS(Table1[[#This Row],[Asset Class]]<>"Local","y",Q$11=$E129,"y",Table1[[#This Row],[Asset Class]]="Local","") ->  | R129: =_xlfn.IFS(Table1[[#This Row],[Asset Class]]<>"Local","y",R$11=$E129,"y",Table1[[#This Row],[Asset Class]]="Local","") ->  | S129: =_xlfn.IFS(Table1[[#This Row],[Asset Class]]<>"Local","y",S$11=$E129,"y",Table1[[#This Row],[Asset Class]]="Local","") ->  | U129: =IF(Table1[[#This Row],[Asset Class]]<>"Local",0.25,IF(P129="y",1,"")) -> 1 | V129: =IF(Table1[[#This Row],[Asset Class]]<>"Local",0.25,IF(Q129="y",1,"")) ->  | W129: =IF(Table1[[#This Row],[Asset Class]]<>"Local",0.25,IF(R129="y",1,"")) ->  | X129: =IF(Table1[[#This Row],[Asset Class]]<>"Local",0.25,IF(S129="y",1,"")) ->  | Y129: 1 | AA129: 202106 | AE129: 202106
B130: D0069 East Local | C130: EXIT-PK-3895 | D130: Local | E130: East | F130: General Recreation | G130: 0.5 | H130: 893.5619442 | I130: 111.6204104 | J130: =Table1[[#This Row],[Embellishment Area (m2)]]*Table1[[#This Row],[Construction Unit Rate ($/m)]]*Table1[[#This Row],[Embellishment Area Factor]] -> 49869.87544 | K130: 0 | L130: 66.12572262 | M130: =Table1[[#This Row],[Size of land (m2)]]*Table1[[#This Row],[Land Unit Rate ($/m2)]] -> 0 | N130: 2021 | O130: =ROUND(IF(Table1[[#This Row],[Valuation Year]]=2016,(Table1[[#This Row],[Total Construction Cost ($)]]+Table1[[#This Row],[Land Value]])*('General Input Sheet'!$G$38/'General Input Sheet'!$G$43),Table1[[#This Row],[Total Construction Cost ($)]]+Table1[[#This Row],[Land Value]]),0) -> 49870 | P130: =_xlfn.IFS(Table1[[#This Row],[Asset Class]]<>"Local","y",P$11=$E130,"y",Table1[[#This Row],[Asset Class]]="Local","") -> y | Q130: =_xlfn.IFS(Table1[[#This Row],[Asset Class]]<>"Local","y",Q$11=$E130,"y",Table1[[#This Row],[Asset Class]]="Local","") ->  | R130: =_xlfn.IFS(Table1[[#This Row],[Asset Class]]<>"Local","y",R$11=$E130,"y",Table1[[#This Row],[Asset Class]]="Local","") ->  | S130: =_xlfn.IFS(Table1[[#This Row],[Asset Class]]<>"Local","y",S$11=$E130,"y",Table1[[#This Row],[Asset Class]]="Local","") ->  | U130: =IF(Table1[[#This Row],[Asset Class]]<>"Local",0.25,IF(P130="y",1,"")) -> 1 | V130: =IF(Table1[[#This Row],[Asset Class]]<>"Local",0.25,IF(Q130="y",1,"")) ->  | W130: =IF(Table1[[#This Row],[Asset Class]]<>"Local",0.25,IF(R130="y",1,"")) ->  | X130: =IF(Table1[[#This Row],[Asset Class]]<>"Local",0.25,IF(S130="y",1,"")) ->  | Y130: 1 | AA130: 49870 | AE130: 49870
B131: D0071 West Metropolitan | C131: EXIT-PK-3899 | D131: Metropolitan | E131: West | F131: General Recreation | G131: 0.5 | H131: 12206.84079 | I131: 557.4011464 | J131: =Table1[[#This Row],[Embellishment Area (m2)]]*Table1[[#This Row],[Construction Unit Rate ($/m)]]*Table1[[#This Row],[Embellishment Area Factor]] -> 3402053.526 | K131: 0 | L131: 132.9926274 | M131: =Table1[[#This Row],[Size of land (m2)]]*Table1[[#This Row],[Land Unit Rate ($/m2)]] -> 0 | N131: 2021 | O131: =ROUND(IF(Table1[[#This Row],[Valuation Year]]=2016,(Table1[[#This Row],[Total Construction Cost ($)]]+Table1[[#This Row],[Land Value]])*('General Input Sheet'!$G$38/'General Input Sheet'!$G$43),Table1[[#This Row],[Total Construction Cost ($)]]+Table1[[#This Row],[Land Value]]),0) -> 3402054 | P131: =_xlfn.IFS(Table1[[#This Row],[Asset Class]]<>"Local","y",P$11=$E131,"y",Table1[[#This Row],[Asset Class]]="Local","") -> y | Q131: =_xlfn.IFS(Table1[[#This Row],[Asset Class]]<>"Local","y",Q$11=$E131,"y",Table1[[#This Row],[Asset Class]]="Local","") -> y | R131: =_xlfn.IFS(Table1[[#This Row],[Asset Class]]<>"Local","y",R$11=$E131,"y",Table1[[#This Row],[Asset Class]]="Local","") -> y | S131: =_xlfn.IFS(Table1[[#This Row],[Asset Class]]<>"Local","y",S$11=$E131,"y",Table1[[#This Row],[Asset Class]]="Local","") -> y | U131: =IF(Table1[[#This Row],[Asset Class]]<>"Local",0.25,IF(P131="y",1,"")) -> 0.25 | V131: =IF(Table1[[#This Row],[Asset Class]]<>"Local",0.25,IF(Q131="y",1,"")) -> 0.25 | W131: =IF(Table1[[#This Row],[Asset Class]]<>"Local",0.25,IF(R131="y",1,"")) -> 0.25 | X131: =IF(Table1[[#This Row],[Asset Class]]<>"Local",0.25,IF(S131="y",1,"")) -> 0.25 | Y131: 1 | AA131: 850513.5 | AB131: 850513.5 | AC131: 850513.5 | AD131: 850513.5 | AE131: 3402054
B132: D0074 West District | C132: EXIT-PK-3902 | D132: District | E132: West | F132: General Recreation | G132: 0.5 | H132: 7451.33203 | I132: 566.2872492 | J132: =Table1[[#This Row],[Embellishment Area (m2)]]*Table1[[#This Row],[Construction Unit Rate ($/m)]]*Table1[[#This Row],[Embellishment Area Factor]] -> 2109797.159 | K132: 0 | L132: 75.67690339 | M132: =Table1[[#This Row],[Size of land (m2)]]*Table1[[#This Row],[Land Unit Rate ($/m2)]] -> 0 | N132: 2021 | O132: =ROUND(IF(Table1[[#This Row],[Valuation Year]]=2016,(Table1[[#This Row],[Total Construction Cost ($)]]+Table1[[#This Row],[Land Value]])*('General Input Sheet'!$G$38/'General Input Sheet'!$G$43),Table1[[#This Row],[Total Construction Cost ($)]]+Table1[[#This Row],[Land Value]]),0) -> 2109797 | P132: =_xlfn.IFS(Table1[[#This Row],[Asset Class]]<>"Local","y",P$11=$E132,"y",Table1[[#This Row],[Asset Class]]="Local","") -> y | Q132: =_xlfn.IFS(Table1[[#This Row],[Asset Class]]<>"Local","y",Q$11=$E132,"y",Table1[[#This Row],[Asset Class]]="Local","") -> y | R132: =_xlfn.IFS(Table1[[#This Row],[Asset Class]]<>"Local","y",R$11=$E132,"y",Table1[[#This Row],[Asset Class]]="Local","") -> y | S132: =_xlfn.IFS(Table1[[#This Row],[Asset Class]]<>"Local","y",S$11=$E132,"y",Table1[[#This Row],[Asset Class]]="Local","") -> y | U132: =IF(Table1[[#This Row],[Asset Class]]<>"Local",0.25,IF(P132="y",1,"")) -> 0.25 | V132: =IF(Table1[[#This Row],[Asset Class]]<>"Local",0.25,IF(Q132="y",1,"")) -> 0.25 | W132: =IF(Table1[[#This Row],[Asset Class]]<>"Local",0.25,IF(R132="y",1,"")) -> 0.25 | X132: =IF(Table1[[#This Row],[Asset Class]]<>"Local",0.25,IF(S132="y",1,"")) -> 0.25 | Y132: 1 | AA132: 527449.25 | AB132: 527449.25 | AC132: 527449.25 | AD132: 527449.25 | AE132: 2109797
B133: D0075 East Metropolitan | C133: EXIT-PK-3904 | D133: Metropolitan | E133: East | F133: General Recreation | G133: 0.5 | H133: 9020.172128 | I133: 407.0646101 | J133: =Table1[[#This Row],[Embellishment Area (m2)]]*Table1[[#This Row],[Construction Unit Rate ($/m)]]*Table1[[#This Row],[Embellishment Area Factor]] -> 1835896.425 | K133: 18040.34426 | L133: 112.7890879 | M133: =Table1[[#This Row],[Size of land (m2)]]*Table1[[#This Row],[Land Unit Rate ($/m2)]] -> 2034753.975 | N133: 2021 | O133: =ROUND(IF(Table1[[#This Row],[Valuation Year]]=2016,(Table1[[#This Row],[Total Construction Cost ($)]]+Table1[[#This Row],[Land Value]])*('General Input Sheet'!$G$38/'General Input Sheet'!$G$43),Table1[[#This Row],[Total Construction Cost ($)]]+Table1[[#This Row],[Land Value]]),0) -> 3870650 | P133: =_xlfn.IFS(Table1[[#This Row],[Asset Class]]<>"Local","y",P$11=$E133,"y",Table1[[#This Row],[Asset Class]]="Local","") -> y | Q133: =_xlfn.IFS(Table1[[#This Row],[Asset Class]]<>"Local","y",Q$11=$E133,"y",Table1[[#This Row],[Asset Class]]="Local","") -> y | R133: =_xlfn.IFS(Table1[[#This Row],[Asset Class]]<>"Local","y",R$11=$E133,"y",Table1[[#This Row],[Asset Class]]="Local","") -> y | S133: =_xlfn.IFS(Table1[[#This Row],[Asset Class]]<>"Local","y",S$11=$E133,"y",Table1[[#This Row],[Asset Class]]="Local","") -> y | U133: =IF(Table1[[#This Row],[Asset Class]]<>"Local",0.25,IF(P133="y",1,"")) -> 0.25 | V133: =IF(Table1[[#This Row],[Asset Class]]<>"Local",0.25,IF(Q133="y",1,"")) -> 0.25 | W133: =IF(Table1[[#This Row],[Asset Class]]<>"Local",0.25,IF(R133="y",1,"")) -> 0.25 | X133: =IF(Table1[[#This Row],[Asset Class]]<>"Local",0.25,IF(S133="y",1,"")) -> 0.25 | Y133: 1 | AA133: 967662.5 | AB133: 967662.5 | AC133: 967662.5 | AD133: 967662.5 | AE133: 3870650
B134: D0075 East Metropolitan | C134: EXIT-PK-3905 | D134: Metropolitan | E134: East | F134: General Recreation | G134: 0.5 | H134: 3632.174389 | I134: 407.0646101 | J134: =Table1[[#This Row],[Embellishment Area (m2)]]*Table1[[#This Row],[Construction Unit Rate ($/m)]]*Table1[[#This Row],[Embellishment Area Factor]] -> 739264.8257 | K134: 7264.348778 | L134: 112.7890879 | M134: =Table1[[#This Row],[Size of land (m2)]]*Table1[[#This Row],[Land Unit Rate ($/m2)]] -> 819339.2731 | N134: 2021 | O134: =ROUND(IF(Table1[[#This Row],[Valuation Year]]=2016,(Table1[[#This Row],[Total Construction Cost ($)]]+Table1[[#This Row],[Land Value]])*('General Input Sheet'!$G$38/'General Input Sheet'!$G$43),Table1[[#This Row],[Total Construction Cost ($)]]+Table1[[#This Row],[Land Value]]),0) -> 1558604 | P134: =_xlfn.IFS(Table1[[#This Row],[Asset Class]]<>"Local","y",P$11=$E134,"y",Table1[[#This Row],[Asset Class]]="Local","") -> y | Q134: =_xlfn.IFS(Table1[[#This Row],[Asset Class]]<>"Local","y",Q$11=$E134,"y",Table1[[#This Row],[Asset Class]]="Local","") -> y | R134: =_xlfn.IFS(Table1[[#This Row],[Asset Class]]<>"Local","y",R$11=$E134,"y",Table1[[#This Row],[Asset Class]]="Local","") -> y | S134: =_xlfn.IFS(Table1[[#This Row],[Asset Class]]<>"Local","y",S$11=$E134,"y",Table1[[#This Row],[Asset Class]]="Local","") -> y | U134: =IF(Table1[[#This Row],[Asset Class]]<>"Local",0.25,IF(P134="y",1,"")) -> 0.25 | V134: =IF(Table1[[#This Row],[Asset Class]]<>"Local",0.25,IF(Q134="y",1,"")) -> 0.25 | W134: =IF(Table1[[#This Row],[Asset Class]]<>"Local",0.25,IF(R134="y",1,"")) -> 0.25 | X134: =IF(Table1[[#This Row],[Asset Class]]<>"Local",0.25,IF(S134="y",1,"")) -> 0.25 | Y134: 1 | AA134: 389651 | AB134: 389651 | AC134: 389651 | AD134: 389651 | AE134: 1558604
B135: D0078 North Local | C135: EXIT-PK-3909 | D135: Local | E135: North | F135: General Recreation | G135: 0.5 | H135: 18626.34115 | I135: 115.6419902 | J135: =Table1[[#This Row],[Embellishment Area (m2)]]*Table1[[#This Row],[Construction Unit Rate ($/m)]]*Table1[[#This Row],[Embellishment Area Factor]] -> 1076993.581 | K135: 37252.68231 | L135: 85.33182696 | M135: =Table1[[#This Row],[Size of land (m2)]]*Table1[[#This Row],[Land Unit Rate ($/m2)]] -> 3178839.44 | N135: 2021 | O135: =ROUND(IF(Table1[[#This Row],[Valuation Year]]=2016,(Table1[[#This Row],[Total Construction Cost ($)]]+Table1[[#This Row],[Land Value]])*('General Input Sheet'!$G$38/'General Input Sheet'!$G$43),Table1[[#This Row],[Total Construction Cost ($)]]+Table1[[#This Row],[Land Value]]),0) -> 4255833 | P135: =_xlfn.IFS(Table1[[#This Row],[Asset Class]]<>"Local","y",P$11=$E135,"y",Table1[[#This Row],[Asset Class]]="Local","") ->  | Q135: =_xlfn.IFS(Table1[[#This Row],[Asset Class]]<>"Local","y",Q$11=$E135,"y",Table1[[#This Row],[Asset Class]]="Local","") -> y | R135: =_xlfn.IFS(Table1[[#This Row],[Asset Class]]<>"Local","y",R$11=$E135,"y",Table1[[#This Row],[Asset Class]]="Local","") ->  | S135: =_xlfn.IFS(Table1[[#This Row],[Asset Class]]<>"Local","y",S$11=$E135,"y",Table1[[#This Row],[Asset Class]]="Local","") ->  | U135: =IF(Table1[[#This Row],[Asset Class]]<>"Local",0.25,IF(P135="y",1,"")) ->  | V135: =IF(Table1[[#This Row],[Asset Class]]<>"Local",0.25,IF(Q135="y",1,"")) -> 1 | W135: =IF(Table1[[#This Row],[Asset Class]]<>"Local",0.25,IF(R135="y",1,"")) ->  | X135: =IF(Table1[[#This Row],[Asset Class]]<>"Local",0.25,IF(S135="y",1,"")) ->  | Y135: 1 | AB135: 4255833 | AE135: 4255833
B136: D0080 North Metropolitan | C136: EXIT-PK-3912 | D136: Metropolitan | E136: North | F136: Access Recreation Corridor | G136: 0.5 | H136: 16759.29508 | I136: 236.896962 | J136: =Table1[[#This Row],[Embellishment Area (m2)]]*Table1[[#This Row],[Construction Unit Rate ($/m)]]*Table1[[#This Row],[Embellishment Area Factor]] -> 1985113.045 | K136: 33518.59017 | L136: 76.2692688 | M136: =Table1[[#This Row],[Size of land (m2)]]*Table1[[#This Row],[Land Unit Rate ($/m2)]] -> 2556438.363 | N136: 2021 | O136: =ROUND(IF(Table1[[#This Row],[Valuation Year]]=2016,(Table1[[#This Row],[Total Construction Cost ($)]]+Table1[[#This Row],[Land Value]])*('General Input Sheet'!$G$38/'General Input Sheet'!$G$43),Table1[[#This Row],[Total Construction Cost ($)]]+Table1[[#This Row],[Land Value]]),0) -> 4541551 | P136: =_xlfn.IFS(Table1[[#This Row],[Asset Class]]<>"Local","y",P$11=$E136,"y",Table1[[#This Row],[Asset Class]]="Local","") -> y | Q136: =_xlfn.IFS(Table1[[#This Row],[Asset Class]]<>"Local","y",Q$11=$E136,"y",Table1[[#This Row],[Asset Class]]="Local","") -> y | R136: =_xlfn.IFS(Table1[[#This Row],[Asset Class]]<>"Local","y",R$11=$E136,"y",Table1[[#This Row],[Asset Class]]="Local","") -> y | S136: =_xlfn.IFS(Table1[[#This Row],[Asset Class]]<>"Local","y",S$11=$E136,"y",Table1[[#This Row],[Asset Class]]="Local","") -> y | U136: =IF(Table1[[#This Row],[Asset Class]]<>"Local",0.25,IF(P136="y",1,"")) -> 0.25 | V136: =IF(Table1[[#This Row],[Asset Class]]<>"Local",0.25,IF(Q136="y",1,"")) -> 0.25 | W136: =IF(Table1[[#This Row],[Asset Class]]<>"Local",0.25,IF(R136="y",1,"")) -> 0.25 | X136: =IF(Table1[[#This Row],[Asset Class]]<>"Local",0.25,IF(S136="y",1,"")) -> 0.25 | Y136: 1 | AA136: 1135387.75 | AB136: 1135387.75 | AC136: 1135387.75 | AD136: 1135387.75 | AE136: 4541551
B137: D0080 North District | C137: EXIT-PK-3913 | D137: District | E137: North | F137: Specialised Outdoor Sport | G137: 0.5 | H137: 2406.323972 | I137: 406.7929851 | J137: =Table1[[#This Row],[Embellishment Area (m2)]]*Table1[[#This Row],[Construction Unit Rate ($/m)]]*Table1[[#This Row],[Embellishment Area Factor]] -> 489437.8559 | K137: 4812.647944 | L137: 77.24906051 | M137: =Table1[[#This Row],[Size of land (m2)]]*Table1[[#This Row],[Land Unit Rate ($/m2)]] -> 371772.5323 | N137: 2021 | O137: =ROUND(IF(Table1[[#This Row],[Valuation Year]]=2016,(Table1[[#This Row],[Total Construction Cost ($)]]+Table1[[#This Row],[Land Value]])*('General Input Sheet'!$G$38/'General Input Sheet'!$G$43),Table1[[#This Row],[Total Construction Cost ($)]]+Table1[[#This Row],[Land Value]]),0) -> 861210 | P137: =_xlfn.IFS(Table1[[#This Row],[Asset Class]]<>"Local","y",P$11=$E137,"y",Table1[[#This Row],[Asset Class]]="Local","") -> y | Q137: =_xlfn.IFS(Table1[[#This Row],[Asset Class]]<>"Local","y",Q$11=$E137,"y",Table1[[#This Row],[Asset Class]]="Local","") -> y | R137: =_xlfn.IFS(Table1[[#This Row],[Asset Class]]<>"Local","y",R$11=$E137,"y",Table1[[#This Row],[Asset Class]]="Local","") -> y | S137: =_xlfn.IFS(Table1[[#This Row],[Asset Class]]<>"Local","y",S$11=$E137,"y",Table1[[#This Row],[Asset Class]]="Local","") -> y | U137: =IF(Table1[[#This Row],[Asset Class]]<>"Local",0.25,IF(P137="y",1,"")) -> 0.25 | V137: =IF(Table1[[#This Row],[Asset Class]]<>"Local",0.25,IF(Q137="y",1,"")) -> 0.25 | W137: =IF(Table1[[#This Row],[Asset Class]]<>"Local",0.25,IF(R137="y",1,"")) -> 0.25 | X137: =IF(Table1[[#This Row],[Asset Class]]<>"Local",0.25,IF(S137="y",1,"")) -> 0.25 | Y137: 1 | AA137: 215302.5 | AB137: 215302.5 | AC137: 215302.5 | AD137: 215302.5 | AE137: 861210
B138: D0081 West Local | C138: EXIT-PK-3914 | D138: Local | E138: West | F138: General Recreation | G138: 0.5 | H138: 237.7103994 | I138: 77.37164549 | J138: =Table1[[#This Row],[Embellishment Area (m2)]]*Table1[[#This Row],[Construction Unit Rate ($/m)]]*Table1[[#This Row],[Embellishment Area Factor]] -> 9196.022375 | K138: 475.4207988 | L138: 51.91969533 | M138: =Table1[[#This Row],[Size of land (m2)]]*Table1[[#This Row],[Land Unit Rate ($/m2)]] -> 24683.70302 | N138: 2021 | O138: =ROUND(IF(Table1[[#This Row],[Valuation Year]]=2016,(Table1[[#This Row],[Total Construction Cost ($)]]+Table1[[#This Row],[Land Value]])*('General Input Sheet'!$G$38/'General Input Sheet'!$G$43),Table1[[#This Row],[Total Construction Cost ($)]]+Table1[[#This Row],[Land Value]]),0) -> 33880 | P138: =_xlfn.IFS(Table1[[#This Row],[Asset Class]]<>"Local","y",P$11=$E138,"y",Table1[[#This Row],[Asset Class]]="Local","") ->  | Q138: =_xlfn.IFS(Table1[[#This Row],[Asset Class]]<>"Local","y",Q$11=$E138,"y",Table1[[#This Row],[Asset Class]]="Local","") ->  | R138: =_xlfn.IFS(Table1[[#This Row],[Asset Class]]<>"Local","y",R$11=$E138,"y",Table1[[#This Row],[Asset Class]]="Local","") ->  | S138: =_xlfn.IFS(Table1[[#This Row],[Asset Class]]<>"Local","y",S$11=$E138,"y",Table1[[#This Row],[Asset Class]]="Local","") -> y | U138: =IF(Table1[[#This Row],[Asset Class]]<>"Local",0.25,IF(P138="y",1,"")) ->  | V138: =IF(Table1[[#This Row],[Asset Class]]<>"Local",0.25,IF(Q138="y",1,"")) ->  | W138: =IF(Table1[[#This Row],[Asset Class]]<>"Local",0.25,IF(R138="y",1,"")) ->  | X138: =IF(Table1[[#This Row],[Asset Class]]<>"Local",0.25,IF(S138="y",1,"")) -> 1 | Y138: 1 | AD138: 33880 | AE138: 33880
B139: D0082 West Metropolitan | C139: EXIT-PK-3915 | D139: Metropolitan | E139: West | F139: Urban Common | G139: 0.5 | H139: 3335.348837 | I139: 557.4011464 | J139: =Table1[[#This Row],[Embellishment Area (m2)]]*Table1[[#This Row],[Construction Unit Rate ($/m)]]*Table1[[#This Row],[Embellishment Area Factor]] -> 929563.6327 | K139: 0 | L139: 132.9926274 | M139: =Table1[[#This Row],[Size of land (m2)]]*Table1[[#This Row],[Land Unit Rate ($/m2)]] -> 0 | N139: 2021 | O139: =ROUND(IF(Table1[[#This Row],[Valuation Year]]=2016,(Table1[[#This Row],[Total Construction Cost ($)]]+Table1[[#This Row],[Land Value]])*('General Input Sheet'!$G$38/'General Input Sheet'!$G$43),Table1[[#This Row],[Total Construction Cost ($)]]+Table1[[#This Row],[Land Value]]),0) -> 929564 | P139: =_xlfn.IFS(Table1[[#This Row],[Asset Class]]<>"Local","y",P$11=$E139,"y",Table1[[#This Row],[Asset Class]]="Local","") -> y | Q139: =_xlfn.IFS(Table1[[#This Row],[Asset Class]]<>"Local","y",Q$11=$E139,"y",Table1[[#This Row],[Asset Class]]="Local","") -> y | R139: =_xlfn.IFS(Table1[[#This Row],[Asset Class]]<>"Local","y",R$11=$E139,"y",Table1[[#This Row],[Asset Class]]="Local","") -> y | S139: =_xlfn.IFS(Table1[[#This Row],[Asset Class]]<>"Local","y",S$11=$E139,"y",Table1[[#This Row],[Asset Class]]="Local","") -> y | U139: =IF(Table1[[#This Row],[Asset Class]]<>"Local",0.25,IF(P139="y",1,"")) -> 0.25 | V139: =IF(Table1[[#This Row],[Asset Class]]<>"Local",0.25,IF(Q139="y",1,"")) -> 0.25 | W139: =IF(Table1[[#This Row],[Asset Class]]<>"Local",0.25,IF(R139="y",1,"")) -> 0.25 | X139: =IF(Table1[[#This Row],[Asset Class]]<>"Local",0.25,IF(S139="y",1,"")) -> 0.25 | Y139: 1 | AA139: 232391 | AB139: 232391 | AC139: 232391 | AD139: 232391 | AE139: 929564
B140: D0083 West Metropolitan | C140: EXIT-PK-3916 | D140: Metropolitan | E140: West | F140: Specialised Outdoor Sport | G140: 0.5 | H140: 16056.14232 | I140: 557.4011464 | J140: =Table1[[#This Row],[Embellishment Area (m2)]]*Table1[[#This Row],[Construction Unit Rate ($/m)]]*Table1[[#This Row],[Embellishment Area Factor]] -> 4474856.069 | K140: 0 | L140: 132.9926274 | M140: =Table1[[#This Row],[Size of land (m2)]]*Table1[[#This Row],[Land Unit Rate ($/m2)]] -> 0 | N140: 2021 | O140: =ROUND(IF(Table1[[#This Row],[Valuation Year]]=2016,(Table1[[#This Row],[Total Construction Cost ($)]]+Table1[[#This Row],[Land Value]])*('General Input Sheet'!$G$38/'General Input Sheet'!$G$43),Table1[[#This Row],[Total Construction Cost ($)]]+Table1[[#This Row],[Land Value]]),0) -> 4474856 | P140: =_xlfn.IFS(Table1[[#This Row],[Asset Class]]<>"Local","y",P$11=$E140,"y",Table1[[#This Row],[Asset Class]]="Local","") -> y | Q140: =_xlfn.IFS(Table1[[#This Row],[Asset Class]]<>"Local","y",Q$11=$E140,"y",Table1[[#This Row],[Asset Class]]="Local","") -> y | R140: =_xlfn.IFS(Table1[[#This Row],[Asset Class]]<>"Local","y",R$11=$E140,"y",Table1[[#This Row],[Asset Class]]="Local","") -> y | S140: =_xlfn.IFS(Table1[[#This Row],[Asset Class]]<>"Local","y",S$11=$E140,"y",Table1[[#This Row],[Asset Class]]="Local","") -> y | U140: =IF(Table1[[#This Row],[Asset Class]]<>"Local",0.25,IF(P140="y",1,"")) -> 0.25 | V140: =IF(Table1[[#This Row],[Asset Class]]<>"Local",0.25,IF(Q140="y",1,"")) -> 0.25 | W140: =IF(Table1[[#This Row],[Asset Class]]<>"Local",0.25,IF(R140="y",1,"")) -> 0.25 | X140: =IF(Table1[[#This Row],[Asset Class]]<>"Local",0.25,IF(S140="y",1,"")) -> 0.25 | Y140: 1 | AA140: 1118714 | AB140: 1118714 | AC140: 1118714 | AD140: 1118714 | AE140: 4474856
B141: D0083 West Metropolitan | C141: EXIT-PK-3917 | D141: Metropolitan | E141: West | F141: General Recreation | G141: 0.5 | H141: 80906.43345 | I141: 557.4011464 | J141: =Table1[[#This Row],[Embellishment Area (m2)]]*Table1[[#This Row],[Construction Unit Rate ($/m)]]*Table1[[#This Row],[Embellishment Area Factor]] -> 22548669.38 | K141: 0 | L141: 132.9926274 | M141: =Table1[[#This Row],[Size of land (m2)]]*Table1[[#This Row],[Land Unit Rate ($/m2)]] -> 0 | N141: 2021 | O141: =ROUND(IF(Table1[[#This Row],[Valuation Year]]=2016,(Table1[[#This Row],[Total Construction Cost ($)]]+Table1[[#This Row],[Land Value]])*('General Input Sheet'!$G$38/'General Input Sheet'!$G$43),Table1[[#This Row],[Total Construction Cost ($)]]+Table1[[#This Row],[Land Value]]),0) -> 22548669 | P141: =_xlfn.IFS(Table1[[#This Row],[Asset Class]]<>"Local","y",P$11=$E141,"y",Table1[[#This Row],[Asset Class]]="Local","") -> y | Q141: =_xlfn.IFS(Table1[[#This Row],[Asset Class]]<>"Local","y",Q$11=$E141,"y",Table1[[#This Row],[Asset Class]]="Local","") -> y | R141: =_xlfn.IFS(Table1[[#This Row],[Asset Class]]<>"Local","y",R$11=$E141,"y",Table1[[#This Row],[Asset Class]]="Local","") -> y | S141: =_xlfn.IFS(Table1[[#This Row],[Asset Class]]<>"Local","y",S$11=$E141,"y",Table1[[#This Row],[Asset Class]]="Local","") -> y | U141: =IF(Table1[[#This Row],[Asset Class]]<>"Local",0.25,IF(P141="y",1,"")) -> 0.25 | V141: =IF(Table1[[#This Row],[Asset Class]]<>"Local",0.25,IF(Q141="y",1,"")) -> 0.25 | W141: =IF(Table1[[#This Row],[Asset Class]]<>"Local",0.25,IF(R141="y",1,"")) -> 0.25 | X141: =IF(Table1[[#This Row],[Asset Class]]<>"Local",0.25,IF(S141="y",1,"")) -> 0.25 | Y141: 1 | AA141: 5637167.25 | AB141: 5637167.25 | AC141: 5637167.25 | AD141: 5637167.25 | AE141: 22548669
B142: D0083 West Metropolitan | C142: EXIT-PK-3918 | D142: Metropolitan | E142: West | F142: Access Recreation Corridor | G142: 0.5 | H142: 11179.03275 | I142: 557.4011464 | J142: =Table1[[#This Row],[Embellishment Area (m2)]]*Table1[[#This Row],[Construction Unit Rate ($/m)]]*Table1[[#This Row],[Embellishment Area Factor]] -> 3115602.836 | K142: 0 | L142: 132.9926274 | M142: =Table1[[#This Row],[Size of land (m2)]]*Table1[[#This Row],[Land Unit Rate ($/m2)]] -> 0 | N142: 2021 | O142: =ROUND(IF(Table1[[#This Row],[Valuation Year]]=2016,(Table1[[#This Row],[Total Construction Cost ($)]]+Table1[[#This Row],[Land Value]])*('General Input Sheet'!$G$38/'General Input Sheet'!$G$43),Table1[[#This Row],[Total Construction Cost ($)]]+Table1[[#This Row],[Land Value]]),0) -> 3115603 | P142: =_xlfn.IFS(Table1[[#This Row],[Asset Class]]<>"Local","y",P$11=$E142,"y",Table1[[#This Row],[Asset Class]]="Local","") -> y | Q142: =_xlfn.IFS(Table1[[#This Row],[Asset Class]]<>"Local","y",Q$11=$E142,"y",Table1[[#This Row],[Asset Class]]="Local","") -> y | R142: =_xlfn.IFS(Table1[[#This Row],[Asset Class]]<>"Local","y",R$11=$E142,"y",Table1[[#This Row],[Asset Class]]="Local","") -> y | S142: =_xlfn.IFS(Table1[[#This Row],[Asset Class]]<>"Local","y",S$11=$E142,"y",Table1[[#This Row],[Asset Class]]="Local","") -> y | U142: =IF(Table1[[#This Row],[Asset Class]]<>"Local",0.25,IF(P142="y",1,"")) -> 0.25 | V142: =IF(Table1[[#This Row],[Asset Class]]<>"Local",0.25,IF(Q142="y",1,"")) -> 0.25 | W142: =IF(Table1[[#This Row],[Asset Class]]<>"Local",0.25,IF(R142="y",1,"")) -> 0.25 | X142: =IF(Table1[[#This Row],[Asset Class]]<>"Local",0.25,IF(S142="y",1,"")) -> 0.25 | Y142: 1 | AA142: 778900.75 | AB142: 778900.75 | AC142: 778900.75 | AD142: 778900.75 | AE142: 3115603
B143: D0083 West Metropolitan | C143: EXIT-PK-3920 | D143: Metropolitan | E143: West | F143: General Recreation | G143: 0.5 | H143: 5901.590323 | I143: 557.4011464 | J143: =Table1[[#This Row],[Embellishment Area (m2)]]*Table1[[#This Row],[Construction Unit Rate ($/m)]]*Table1[[#This Row],[Embellishment Area Factor]] -> 1644776.606 | K143: 0 | L143: 132.9926274 | M143: =Table1[[#This Row],[Size of land (m2)]]*Table1[[#This Row],[Land Unit Rate ($/m2)]] -> 0 | N143: 2021 | O143: =ROUND(IF(Table1[[#This Row],[Valuation Year]]=2016,(Table1[[#This Row],[Total Construction Cost ($)]]+Table1[[#This Row],[Land Value]])*('General Input Sheet'!$G$38/'General Input Sheet'!$G$43),Table1[[#This Row],[Total Construction Cost ($)]]+Table1[[#This Row],[Land Value]]),0) -> 1644777 | P143: =_xlfn.IFS(Table1[[#This Row],[Asset Class]]<>"Local","y",P$11=$E143,"y",Table1[[#This Row],[Asset Class]]="Local","") -> y | Q143: =_xlfn.IFS(Table1[[#This Row],[Asset Class]]<>"Local","y",Q$11=$E143,"y",Table1[[#This Row],[Asset Class]]="Local","") -> y | R143: =_xlfn.IFS(Table1[[#This Row],[Asset Class]]<>"Local","y",R$11=$E143,"y",Table1[[#This Row],[Asset Class]]="Local","") -> y | S143: =_xlfn.IFS(Table1[[#This Row],[Asset Class]]<>"Local","y",S$11=$E143,"y",Table1[[#This Row],[Asset Class]]="Local","") -> y | U143: =IF(Table1[[#This Row],[Asset Class]]<>"Local",0.25,IF(P143="y",1,"")) -> 0.25 | V143: =IF(Table1[[#This Row],[Asset Class]]<>"Local",0.25,IF(Q143="y",1,"")) -> 0.25 | W143: =IF(Table1[[#This Row],[Asset Class]]<>"Local",0.25,IF(R143="y",1,"")) -> 0.25 | X143: =IF(Table1[[#This Row],[Asset Class]]<>"Local",0.25,IF(S143="y",1,"")) -> 0.25 | Y143: =SUM(U143:X143) -> 1 | AA143: =IF(U143="","",(U143/$Y143)*$O143) -> 411194.25 | AB143: =IF(V143="","",(V143/$Y143)*$O143) -> 411194.25 | AC143: =IF(W143="","",(W143/$Y143)*$O143) -> 411194.25 | AD143: =IF(X143="","",(X143/$Y143)*$O143) -> 411194.25 | AE143: =SUM(AA143:AD143) -> 1644777
B144: D0083 West Metropolitan | C144: EXIT-PK-3922 | D144: Metropolitan | E144: West | F144: Access Recreation Corridor | G144: 0.5 | H144: 1270.636749 | I144: 557.4011464 | J144: =Table1[[#This Row],[Embellishment Area (m2)]]*Table1[[#This Row],[Construction Unit Rate ($/m)]]*Table1[[#This Row],[Embellishment Area Factor]] -> 354127.1902 | K144: 0 | L144: 132.9926274 | M144: =Table1[[#This Row],[Size of land (m2)]]*Table1[[#This Row],[Land Unit Rate ($/m2)]] -> 0 | N144: 2021 | O144: =ROUND(IF(Table1[[#This Row],[Valuation Year]]=2016,(Table1[[#This Row],[Total Construction Cost ($)]]+Table1[[#This Row],[Land Value]])*('General Input Sheet'!$G$38/'General Input Sheet'!$G$43),Table1[[#This Row],[Total Construction Cost ($)]]+Table1[[#This Row],[Land Value]]),0) -> 354127 | P144: =_xlfn.IFS(Table1[[#This Row],[Asset Class]]<>"Local","y",P$11=$E144,"y",Table1[[#This Row],[Asset Class]]="Local","") -> y | Q144: =_xlfn.IFS(Table1[[#This Row],[Asset Class]]<>"Local","y",Q$11=$E144,"y",Table1[[#This Row],[Asset Class]]="Local","") -> y | R144: =_xlfn.IFS(Table1[[#This Row],[Asset Class]]<>"Local","y",R$11=$E144,"y",Table1[[#This Row],[Asset Class]]="Local","") -> y | S144: =_xlfn.IFS(Table1[[#This Row],[Asset Class]]<>"Local","y",S$11=$E144,"y",Table1[[#This Row],[Asset Class]]="Local","") -> y | U144: =IF(Table1[[#This Row],[Asset Class]]<>"Local",0.25,IF(P144="y",1,"")) -> 0.25 | V144: =IF(Table1[[#This Row],[Asset Class]]<>"Local",0.25,IF(Q144="y",1,"")) -> 0.25 | W144: =IF(Table1[[#This Row],[Asset Class]]<>"Local",0.25,IF(R144="y",1,"")) -> 0.25 | X144: =IF(Table1[[#This Row],[Asset Class]]<>"Local",0.25,IF(S144="y",1,"")) -> 0.25 | Y144: 1 | AA144: 88531.75 | AB144: 88531.75 | AC144: 88531.75 | AD144: 88531.75 | AE144: 354127
B145: D0083 West Metropolitan | C145: EXIT-PK-3923 | D145: Metropolitan | E145: West | F145: General Recreation | G145: 0.5 | H145: 9084.764796 | I145: 557.4011464 | J145: =Table1[[#This Row],[Embellishment Area (m2)]]*Table1[[#This Row],[Construction Unit Rate ($/m)]]*Table1[[#This Row],[Embellishment Area Factor]] -> 2531929.156 | K145: 0 | L145: 132.9926274 | M145: =Table1[[#This Row],[Size of land (m2)]]*Table1[[#This Row],[Land Unit Rate ($/m2)]] -> 0 | N145: 2021 | O145: =ROUND(IF(Table1[[#This Row],[Valuation Year]]=2016,(Table1[[#This Row],[Total Construction Cost ($)]]+Table1[[#This Row],[Land Value]])*('General Input Sheet'!$G$38/'General Input Sheet'!$G$43),Table1[[#This Row],[Total Construction Cost ($)]]+Table1[[#This Row],[Land Value]]),0) -> 2531929 | P145: =_xlfn.IFS(Table1[[#This Row],[Asset Class]]<>"Local","y",P$11=$E145,"y",Table1[[#This Row],[Asset Class]]="Local","") -> y | Q145: =_xlfn.IFS(Table1[[#This Row],[Asset Class]]<>"Local","y",Q$11=$E145,"y",Table1[[#This Row],[Asset Class]]="Local","") -> y | R145: =_xlfn.IFS(Table1[[#This Row],[Asset Class]]<>"Local","y",R$11=$E145,"y",Table1[[#This Row],[Asset Class]]="Local","") -> y | S145: =_xlfn.IFS(Table1[[#This Row],[Asset Class]]<>"Local","y",S$11=$E145,"y",Table1[[#This Row],[Asset Class]]="Local","") -> y | U145: =IF(Table1[[#This Row],[Asset Class]]<>"Local",0.25,IF(P145="y",1,"")) -> 0.25 | V145: =IF(Table1[[#This Row],[Asset Class]]<>"Local",0.25,IF(Q145="y",1,"")) -> 0.25 | W145: =IF(Table1[[#This Row],[Asset Class]]<>"Local",0.25,IF(R145="y",1,"")) -> 0.25 | X145: =IF(Table1[[#This Row],[Asset Class]]<>"Local",0.25,IF(S145="y",1,"")) -> 0.25 | Y145: 1 | AA145: 632982.25 | AB145: 632982.25 | AC145: 632982.25 | AD145: 632982.25 | AE145: 2531929
B146: D0083 West Metropolitan | C146: EXIT-PK-3924 | D146: Metropolitan | E146: West | F146: General Outdoor Sport | G146: 0.5 | H146: 18439.7429 | I146: 557.4011464 | J146: =Table1[[#This Row],[Embellishment Area (m2)]]*Table1[[#This Row],[Construction Unit Rate ($/m)]]*Table1[[#This Row],[Embellishment Area Factor]] -> 5139166.915 | K146: 0 | L146: 132.9926274 | M146: =Table1[[#This Row],[Size of land (m2)]]*Table1[[#This Row],[Land Unit Rate ($/m2)]] -> 0 | N146: 2021 | O146: =ROUND(IF(Table1[[#This Row],[Valuation Year]]=2016,(Table1[[#This Row],[Total Construction Cost ($)]]+Table1[[#This Row],[Land Value]])*('General Input Sheet'!$G$38/'General Input Sheet'!$G$43),Table1[[#This Row],[Total Construction Cost ($)]]+Table1[[#This Row],[Land Value]]),0) -> 5139167 | P146: =_xlfn.IFS(Table1[[#This Row],[Asset Class]]<>"Local","y",P$11=$E146,"y",Table1[[#This Row],[Asset Class]]="Local","") -> y | Q146: =_xlfn.IFS(Table1[[#This Row],[Asset Class]]<>"Local","y",Q$11=$E146,"y",Table1[[#This Row],[Asset Class]]="Local","") -> y | R146: =_xlfn.IFS(Table1[[#This Row],[Asset Class]]<>"Local","y",R$11=$E146,"y",Table1[[#This Row],[Asset Class]]="Local","") -> y | S146: =_xlfn.IFS(Table1[[#This Row],[Asset Class]]<>"Local","y",S$11=$E146,"y",Table1[[#This Row],[Asset Class]]="Local","") -> y | U146: =IF(Table1[[#This Row],[Asset Class]]<>"Local",0.25,IF(P146="y",1,"")) -> 0.25 | V146: =IF(Table1[[#This Row],[Asset Class]]<>"Local",0.25,IF(Q146="y",1,"")) -> 0.25 | W146: =IF(Table1[[#This Row],[Asset Class]]<>"Local",0.25,IF(R146="y",1,"")) -> 0.25 | X146: =IF(Table1[[#This Row],[Asset Class]]<>"Local",0.25,IF(S146="y",1,"")) -> 0.25 | Y146: 1 | AA146: 1284791.75 | AB146: 1284791.75 | AC146: 1284791.75 | AD146: 1284791.75 | AE146: 5139167
B147: D0083 West Metropolitan | C147: EXIT-PK-3925 | D147: Metropolitan | E147: West | F147: Specialised Outdoor Sport | G147: 0.5 | H147: 5770.267456 | I147: 557.4011464 | J147: =Table1[[#This Row],[Embellishment Area (m2)]]*Table1[[#This Row],[Construction Unit Rate ($/m)]]*Table1[[#This Row],[Embellishment Area Factor]] -> 1608176.848 | K147: 0 | L147: 132.9926274 | M147: =Table1[[#This Row],[Size of land (m2)]]*Table1[[#This Row],[Land Unit Rate ($/m2)]] -> 0 | N147: 2021 | O147: =ROUND(IF(Table1[[#This Row],[Valuation Year]]=2016,(Table1[[#This Row],[Total Construction Cost ($)]]+Table1[[#This Row],[Land Value]])*('General Input Sheet'!$G$38/'General Input Sheet'!$G$43),Table1[[#This Row],[Total Construction Cost ($)]]+Table1[[#This Row],[Land Value]]),0) -> 1608177 | P147: =_xlfn.IFS(Table1[[#This Row],[Asset Class]]<>"Local","y",P$11=$E147,"y",Table1[[#This Row],[Asset Class]]="Local","") -> y | Q147: =_xlfn.IFS(Table1[[#This Row],[Asset Class]]<>"Local","y",Q$11=$E147,"y",Table1[[#This Row],[Asset Class]]="Local","") -> y | R147: =_xlfn.IFS(Table1[[#This Row],[Asset Class]]<>"Local","y",R$11=$E147,"y",Table1[[#This Row],[Asset Class]]="Local","") -> y | S147: =_xlfn.IFS(Table1[[#This Row],[Asset Class]]<>"Local","y",S$11=$E147,"y",Table1[[#This Row],[Asset Class]]="Local","") -> y | U147: =IF(Table1[[#This Row],[Asset Class]]<>"Local",0.25,IF(P147="y",1,"")) -> 0.25 | V147: =IF(Table1[[#This Row],[Asset Class]]<>"Local",0.25,IF(Q147="y",1,"")) -> 0.25 | W147: =IF(Table1[[#This Row],[Asset Class]]<>"Local",0.25,IF(R147="y",1,"")) -> 0.25 | X147: =IF(Table1[[#This Row],[Asset Class]]<>"Local",0.25,IF(S147="y",1,"")) -> 0.25 | Y147: 1 | AA147: 402044.25 | AB147: 402044.25 | AC147: 402044.25 | AD147: 402044.25 | AE147: 1608177
B148: D0083 West Metropolitan | C148: EXIT-PK-3926 | D148: Metropolitan | E148: West | F148: Specialised Outdoor Sport | G148: 0.5 | H148: 1784.392831 | I148: 557.4011464 | J148: =Table1[[#This Row],[Embellishment Area (m2)]]*Table1[[#This Row],[Construction Unit Rate ($/m)]]*Table1[[#This Row],[Embellishment Area Factor]] -> 497311.3047 | K148: 0 | L148: 132.9926274 | M148: =Table1[[#This Row],[Size of land (m2)]]*Table1[[#This Row],[Land Unit Rate ($/m2)]] -> 0 | N148: 2021 | O148: =ROUND(IF(Table1[[#This Row],[Valuation Year]]=2016,(Table1[[#This Row],[Total Construction Cost ($)]]+Table1[[#This Row],[Land Value]])*('General Input Sheet'!$G$38/'General Input Sheet'!$G$43),Table1[[#This Row],[Total Construction Cost ($)]]+Table1[[#This Row],[Land Value]]),0) -> 497311 | P148: =_xlfn.IFS(Table1[[#This Row],[Asset Class]]<>"Local","y",P$11=$E148,"y",Table1[[#This Row],[Asset Class]]="Local","") -> y | Q148: =_xlfn.IFS(Table1[[#This Row],[Asset Class]]<>"Local","y",Q$11=$E148,"y",Table1[[#This Row],[Asset Class]]="Local","") -> y | R148: =_xlfn.IFS(Table1[[#This Row],[Asset Class]]<>"Local","y",R$11=$E148,"y",Table1[[#This Row],[Asset Class]]="Local","") -> y | S148: =_xlfn.IFS(Table1[[#This Row],[Asset Class]]<>"Local","y",S$11=$E148,"y",Table1[[#This Row],[Asset Class]]="Local","") -> y | U148: =IF(Table1[[#This Row],[Asset Class]]<>"Local",0.25,IF(P148="y",1,"")) -> 0.25 | V148: =IF(Table1[[#This Row],[Asset Class]]<>"Local",0.25,IF(Q148="y",1,"")) -> 0.25 | W148: =IF(Table1[[#This Row],[Asset Class]]<>"Local",0.25,IF(R148="y",1,"")) -> 0.25 | X148: =IF(Table1[[#This Row],[Asset Class]]<>"Local",0.25,IF(S148="y",1,"")) -> 0.25 | Y148: 1 | AA148: 124327.75 | AB148: 124327.75 | AC148: 124327.75 | AD148: 124327.75 | AE148: 497311
B149: D0083 West Metropolitan | C149: EXIT-PK-3927 | D149: Metropolitan | E149: West | F149: Specialised Outdoor Sport | G149: 0.5 | H149: 209206.7557 | I149: 557.4011464 | J149: =Table1[[#This Row],[Embellishment Area (m2)]]*Table1[[#This Row],[Construction Unit Rate ($/m)]]*Table1[[#This Row],[Embellishment Area Factor]] -> 58306042.74 | K149: 0 | L149: 132.9926274 | M149: =Table1[[#This Row],[Size of land (m2)]]*Table1[[#This Row],[Land Unit Rate ($/m2)]] -> 0 | N149: 2021 | O149: =ROUND(IF(Table1[[#This Row],[Valuation Year]]=2016,(Table1[[#This Row],[Total Construction Cost ($)]]+Table1[[#This Row],[Land Value]])*('General Input Sheet'!$G$38/'General Input Sheet'!$G$43),Table1[[#This Row],[Total Construction Cost ($)]]+Table1[[#This Row],[Land Value]]),0) -> 58306043 | P149: =_xlfn.IFS(Table1[[#This Row],[Asset Class]]<>"Local","y",P$11=$E149,"y",Table1[[#This Row],[Asset Class]]="Local","") -> y | Q149: =_xlfn.IFS(Table1[[#This Row],[Asset Class]]<>"Local","y",Q$11=$E149,"y",Table1[[#This Row],[Asset Class]]="Local","") -> y | R149: =_xlfn.IFS(Table1[[#This Row],[Asset Class]]<>"Local","y",R$11=$E149,"y",Table1[[#This Row],[Asset Class]]="Local","") -> y | S149: =_xlfn.IFS(Table1[[#This Row],[Asset Class]]<>"Local","y",S$11=$E149,"y",Table1[[#This Row],[Asset Class]]="Local","") -> y | U149: =IF(Table1[[#This Row],[Asset Class]]<>"Local",0.25,IF(P149="y",1,"")) -> 0.25 | V149: =IF(Table1[[#This Row],[Asset Class]]<>"Local",0.25,IF(Q149="y",1,"")) -> 0.25 | W149: =IF(Table1[[#This Row],[Asset Class]]<>"Local",0.25,IF(R149="y",1,"")) -> 0.25 | X149: =IF(Table1[[#This Row],[Asset Class]]<>"Local",0.25,IF(S149="y",1,"")) -> 0.25 | Y149: 1 | AA149: 14576510.75 | AB149: 14576510.75 | AC149: 14576510.75 | AD149: 14576510.75 | AE149: 58306043
B150: D0083 West Metropolitan | C150: EXIT-PK-3928 | D150: Metropolitan | E150: West | F150: Specialised Outdoor Sport | G150: 0.5 | H150: 2587.323296 | I150: 557.4011464 | J150: =Table1[[#This Row],[Embellishment Area (m2)]]*Table1[[#This Row],[Construction Unit Rate ($/m)]]*Table1[[#This Row],[Embellishment Area Factor]] -> 721088.4858 | K150: 0 | L150: 132.9926274 | M150: =Table1[[#This Row],[Size of land (m2)]]*Table1[[#This Row],[Land Unit Rate ($/m2)]] -> 0 | N150: 2021 | O150: =ROUND(IF(Table1[[#This Row],[Valuation Year]]=2016,(Table1[[#This Row],[Total Construction Cost ($)]]+Table1[[#This Row],[Land Value]])*('General Input Sheet'!$G$38/'General Input Sheet'!$G$43),Table1[[#This Row],[Total Construction Cost ($)]]+Table1[[#This Row],[Land Value]]),0) -> 721088 | P150: =_xlfn.IFS(Table1[[#This Row],[Asset Class]]<>"Local","y",P$11=$E150,"y",Table1[[#This Row],[Asset Class]]="Local","") -> y | Q150: =_xlfn.IFS(Table1[[#This Row],[Asset Class]]<>"Local","y",Q$11=$E150,"y",Table1[[#This Row],[Asset Class]]="Local","") -> y | R150: =_xlfn.IFS(Table1[[#This Row],[Asset Class]]<>"Local","y",R$11=$E150,"y",Table1[[#This Row],[Asset Class]]="Local","") -> y | S150: =_xlfn.IFS(Table1[[#This Row],[Asset Class]]<>"Local","y",S$11=$E150,"y",Table1[[#This Row],[Asset Class]]="Local","") -> y | U150: =IF(Table1[[#This Row],[Asset Class]]<>"Local",0.25,IF(P150="y",1,"")) -> 0.25 | V150: =IF(Table1[[#This Row],[Asset Class]]<>"Local",0.25,IF(Q150="y",1,"")) -> 0.25 | W150: =IF(Table1[[#This Row],[Asset Class]]<>"Local",0.25,IF(R150="y",1,"")) -> 0.25 | X150: =IF(Table1[[#This Row],[Asset Class]]<>"Local",0.25,IF(S150="y",1,"")) -> 0.25 | Y150: 1 | AA150: 180272 | AB150: 180272 | AC150: 180272 | AD150: 180272 | AE150: 721088
B151: D0083 West Metropolitan | C151: EXIT-PK-3929 | D151: Metropolitan | E151: West | F151: Specialised Outdoor Sport | G151: 0.5 | H151: 3183.765042 | I151: 557.4011464 | J151: =Table1[[#This Row],[Embellishment Area (m2)]]*Table1[[#This Row],[Construction Unit Rate ($/m)]]*Table1[[#This Row],[Embellishment Area Factor]] -> 887317.1423 | K151: 0 | L151: 132.9926274 | M151: =Table1[[#This Row],[Size of land (m2)]]*Table1[[#This Row],[Land Unit Rate ($/m2)]] -> 0 | N151: 2021 | O151: =ROUND(IF(Table1[[#This Row],[Valuation Year]]=2016,(Table1[[#This Row],[Total Construction Cost ($)]]+Table1[[#This Row],[Land Value]])*('General Input Sheet'!$G$38/'General Input Sheet'!$G$43),Table1[[#This Row],[Total Construction Cost ($)]]+Table1[[#This Row],[Land Value]]),0) -> 887317 | P151: =_xlfn.IFS(Table1[[#This Row],[Asset Class]]<>"Local","y",P$11=$E151,"y",Table1[[#This Row],[Asset Class]]="Local","") -> y | Q151: =_xlfn.IFS(Table1[[#This Row],[Asset Class]]<>"Local","y",Q$11=$E151,"y",Table1[[#This Row],[Asset Class]]="Local","") -> y | R151: =_xlfn.IFS(Table1[[#This Row],[Asset Class]]<>"Local","y",R$11=$E151,"y",Table1[[#This Row],[Asset Class]]="Local","") -> y | S151: =_xlfn.IFS(Table1[[#This Row],[Asset Class]]<>"Local","y",S$11=$E151,"y",Table1[[#This Row],[Asset Class]]="Local","") -> y | U151: =IF(Table1[[#This Row],[Asset Class]]<>"Local",0.25,IF(P151="y",1,"")) -> 0.25 | V151: =IF(Table1[[#This Row],[Asset Class]]<>"Local",0.25,IF(Q151="y",1,"")) -> 0.25 | W151: =IF(Table1[[#This Row],[Asset Class]]<>"Local",0.25,IF(R151="y",1,"")) -> 0.25 | X151: =IF(Table1[[#This Row],[Asset Class]]<>"Local",0.25,IF(S151="y",1,"")) -> 0.25 | Y151: 1 | AA151: 221829.25 | AB151: 221829.25 | AC151: 221829.25 | AD151: 221829.25 | AE151: 887317
B152: D0083 West Metropolitan | C152: EXIT-PK-3930 | D152: Metropolitan | E152: West | F152: Access Recreation Corridor | G152: 0.5 | H152: 563.8577243 | I152: 557.4011464 | J152: =Table1[[#This Row],[Embellishment Area (m2)]]*Table1[[#This Row],[Construction Unit Rate ($/m)]]*Table1[[#This Row],[Embellishment Area Factor]] -> 157147.471 | K152: 0 | L152: 132.9926274 | M152: =Table1[[#This Row],[Size of land (m2)]]*Table1[[#This Row],[Land Unit Rate ($/m2)]] -> 0 | N152: 2021 | O152: =ROUND(IF(Table1[[#This Row],[Valuation Year]]=2016,(Table1[[#This Row],[Total Construction Cost ($)]]+Table1[[#This Row],[Land Value]])*('General Input Sheet'!$G$38/'General Input Sheet'!$G$43),Table1[[#This Row],[Total Construction Cost ($)]]+Table1[[#This Row],[Land Value]]),0) -> 157147 | P152: =_xlfn.IFS(Table1[[#This Row],[Asset Class]]<>"Local","y",P$11=$E152,"y",Table1[[#This Row],[Asset Class]]="Local","") -> y | Q152: =_xlfn.IFS(Table1[[#This Row],[Asset Class]]<>"Local","y",Q$11=$E152,"y",Table1[[#This Row],[Asset Class]]="Local","") -> y | R152: =_xlfn.IFS(Table1[[#This Row],[Asset Class]]<>"Local","y",R$11=$E152,"y",Table1[[#This Row],[Asset Class]]="Local","") -> y | S152: =_xlfn.IFS(Table1[[#This Row],[Asset Class]]<>"Local","y",S$11=$E152,"y",Table1[[#This Row],[Asset Class]]="Local","") -> y | U152: =IF(Table1[[#This Row],[Asset Class]]<>"Local",0.25,IF(P152="y",1,"")) -> 0.25 | V152: =IF(Table1[[#This Row],[Asset Class]]<>"Local",0.25,IF(Q152="y",1,"")) -> 0.25 | W152: =IF(Table1[[#This Row],[Asset Class]]<>"Local",0.25,IF(R152="y",1,"")) -> 0.25 | X152: =IF(Table1[[#This Row],[Asset Class]]<>"Local",0.25,IF(S152="y",1,"")) -> 0.25 | Y152: 1 | AA152: 39286.75 | AB152: 39286.75 | AC152: 39286.75 | AD152: 39286.75 | AE152: 157147
B153: D0084 North Metropolitan | C153: EXIT-PK-3933 | D153: Metropolitan | E153: North | F153: General Recreation | G153: 0.5 | H153: 18895.01832 | I153: 236.896962 | J153: =Table1[[#This Row],[Embellishment Area (m2)]]*Table1[[#This Row],[Construction Unit Rate ($/m)]]*Table1[[#This Row],[Embellishment Area Factor]] -> 2238086.218 | K153: 37790.03664 | L153: 76.2692688 | M153: =Table1[[#This Row],[Size of land (m2)]]*Table1[[#This Row],[Land Unit Rate ($/m2)]] -> 2882218.463 | N153: 2021 | O153: =ROUND(IF(Table1[[#This Row],[Valuation Year]]=2016,(Table1[[#This Row],[Total Construction Cost ($)]]+Table1[[#This Row],[Land Value]])*('General Input Sheet'!$G$38/'General Input Sheet'!$G$43),Table1[[#This Row],[Total Construction Cost ($)]]+Table1[[#This Row],[Land Value]]),0) -> 5120305 | P153: =_xlfn.IFS(Table1[[#This Row],[Asset Class]]<>"Local","y",P$11=$E153,"y",Table1[[#This Row],[Asset Class]]="Local","") -> y | Q153: =_xlfn.IFS(Table1[[#This Row],[Asset Class]]<>"Local","y",Q$11=$E153,"y",Table1[[#This Row],[Asset Class]]="Local","") -> y | R153: =_xlfn.IFS(Table1[[#This Row],[Asset Class]]<>"Local","y",R$11=$E153,"y",Table1[[#This Row],[Asset Class]]="Local","") -> y | S153: =_xlfn.IFS(Table1[[#This Row],[Asset Class]]<>"Local","y",S$11=$E153,"y",Table1[[#This Row],[Asset Class]]="Local","") -> y | U153: =IF(Table1[[#This Row],[Asset Class]]<>"Local",0.25,IF(P153="y",1,"")) -> 0.25 | V153: =IF(Table1[[#This Row],[Asset Class]]<>"Local",0.25,IF(Q153="y",1,"")) -> 0.25 | W153: =IF(Table1[[#This Row],[Asset Class]]<>"Local",0.25,IF(R153="y",1,"")) -> 0.25 | X153: =IF(Table1[[#This Row],[Asset Class]]<>"Local",0.25,IF(S153="y",1,"")) -> 0.25 | Y153: 1 | AA153: 1280076.25 | AB153: 1280076.25 | AC153: 1280076.25 | AD153: 1280076.25 | AE153: 5120305
B154: D0085 North District | C154: EXIT-PK-3934 | D154: District | E154: North | F154: Specialised Outdoor Sport | G154: 0.5 | H154: 13123.34952 | I154: 406.7929851 | J154: =Table1[[#This Row],[Embellishment Area (m2)]]*Table1[[#This Row],[Construction Unit Rate ($/m)]]*Table1[[#This Row],[Embellishment Area Factor]] -> 2669243.263 | K154: 26246.69904 | L154: 77.24906051 | M154: =Table1[[#This Row],[Size of land (m2)]]*Table1[[#This Row],[Land Unit Rate ($/m2)]] -> 2027532.842 | N154: 2021 | O154: =ROUND(IF(Table1[[#This Row],[Valuation Year]]=2016,(Table1[[#This Row],[Total Construction Cost ($)]]+Table1[[#This Row],[Land Value]])*('General Input Sheet'!$G$38/'General Input Sheet'!$G$43),Table1[[#This Row],[Total Construction Cost ($)]]+Table1[[#This Row],[Land Value]]),0) -> 4696776 | P154: =_xlfn.IFS(Table1[[#This Row],[Asset Class]]<>"Local","y",P$11=$E154,"y",Table1[[#This Row],[Asset Class]]="Local","") -> y | Q154: =_xlfn.IFS(Table1[[#This Row],[Asset Class]]<>"Local","y",Q$11=$E154,"y",Table1[[#This Row],[Asset Class]]="Local","") -> y | R154: =_xlfn.IFS(Table1[[#This Row],[Asset Class]]<>"Local","y",R$11=$E154,"y",Table1[[#This Row],[Asset Class]]="Local","") -> y | S154: =_xlfn.IFS(Table1[[#This Row],[Asset Class]]<>"Local","y",S$11=$E154,"y",Table1[[#This Row],[Asset Class]]="Local","") -> y | U154: =IF(Table1[[#This Row],[Asset Class]]<>"Local",0.25,IF(P154="y",1,"")) -> 0.25 | V154: =IF(Table1[[#This Row],[Asset Class]]<>"Local",0.25,IF(Q154="y",1,"")) -> 0.25 | W154: =IF(Table1[[#This Row],[Asset Class]]<>"Local",0.25,IF(R154="y",1,"")) -> 0.25 | X154: =IF(Table1[[#This Row],[Asset Class]]<>"Local",0.25,IF(S154="y",1,"")) -> 0.25 | Y154: 1 | AA154: 1174194 | AB154: 1174194 | AC154: 1174194 | AD154: 1174194 | AE154: 4696776
B155: D0085 North Local | C155: EXIT-PK-3935 | D155: Local | E155: North | F155: General Recreation | G155: 0.5 | H155: 2259.305781 | I155: 115.6419902 | J155: =Table1[[#This Row],[Embellishment Area (m2)]]*Table1[[#This Row],[Construction Unit Rate ($/m)]]*Table1[[#This Row],[Embellishment Area Factor]] -> 130635.3085 | K155: 4518.611563 | L155: 85.33182696 | M155: =Table1[[#This Row],[Size of land (m2)]]*Table1[[#This Row],[Land Unit Rate ($/m2)]] -> 385581.38 | N155: 2021 | O155: =ROUND(IF(Table1[[#This Row],[Valuation Year]]=2016,(Table1[[#This Row],[Total Construction Cost ($)]]+Table1[[#This Row],[Land Value]])*('General Input Sheet'!$G$38/'General Input Sheet'!$G$43),Table1[[#This Row],[Total Construction Cost ($)]]+Table1[[#This Row],[Land Value]]),0) -> 516217 | P155: =_xlfn.IFS(Table1[[#This Row],[Asset Class]]<>"Local","y",P$11=$E155,"y",Table1[[#This Row],[Asset Class]]="Local","") ->  | Q155: =_xlfn.IFS(Table1[[#This Row],[Asset Class]]<>"Local","y",Q$11=$E155,"y",Table1[[#This Row],[Asset Class]]="Local","") -> y | R155: =_xlfn.IFS(Table1[[#This Row],[Asset Class]]<>"Local","y",R$11=$E155,"y",Table1[[#This Row],[Asset Class]]="Local","") ->  | S155: =_xlfn.IFS(Table1[[#This Row],[Asset Class]]<>"Local","y",S$11=$E155,"y",Table1[[#This Row],[Asset Class]]="Local","") ->  | U155: =IF(Table1[[#This Row],[Asset Class]]<>"Local",0.25,IF(P155="y",1,"")) ->  | V155: =IF(Table1[[#This Row],[Asset Class]]<>"Local",0.25,IF(Q155="y",1,"")) -> 1 | W155: =IF(Table1[[#This Row],[Asset Class]]<>"Local",0.25,IF(R155="y",1,"")) ->  | X155: =IF(Table1[[#This Row],[Asset Class]]<>"Local",0.25,IF(S155="y",1,"")) ->  | Y155: 1 | AB155: 516217 | AE155: 516217
B156: D0085 North District | C156: EXIT-PK-3937 | D156: District | E156: North | F156: General Outdoor Sport | G156: 0.5 | H156: 9379.325762 | I156: 406.7929851 | J156: =Table1[[#This Row],[Embellishment Area (m2)]]*Table1[[#This Row],[Construction Unit Rate ($/m)]]*Table1[[#This Row],[Embellishment Area Factor]] -> 1907721.962 | K156: 18758.65152 | L156: 77.24906051 | M156: =Table1[[#This Row],[Size of land (m2)]]*Table1[[#This Row],[Land Unit Rate ($/m2)]] -> 1449088.207 | N156: 2021 | O156: =ROUND(IF(Table1[[#This Row],[Valuation Year]]=2016,(Table1[[#This Row],[Total Construction Cost ($)]]+Table1[[#This Row],[Land Value]])*('General Input Sheet'!$G$38/'General Input Sheet'!$G$43),Table1[[#This Row],[Total Construction Cost ($)]]+Table1[[#This Row],[Land Value]]),0) -> 3356810 | P156: =_xlfn.IFS(Table1[[#This Row],[Asset Class]]<>"Local","y",P$11=$E156,"y",Table1[[#This Row],[Asset Class]]="Local","") -> y | Q156: =_xlfn.IFS(Table1[[#This Row],[Asset Class]]<>"Local","y",Q$11=$E156,"y",Table1[[#This Row],[Asset Class]]="Local","") -> y | R156: =_xlfn.IFS(Table1[[#This Row],[Asset Class]]<>"Local","y",R$11=$E156,"y",Table1[[#This Row],[Asset Class]]="Local","") -> y | S156: =_xlfn.IFS(Table1[[#This Row],[Asset Class]]<>"Local","y",S$11=$E156,"y",Table1[[#This Row],[Asset Class]]="Local","") -> y | U156: =IF(Table1[[#This Row],[Asset Class]]<>"Local",0.25,IF(P156="y",1,"")) -> 0.25 | V156: =IF(Table1[[#This Row],[Asset Class]]<>"Local",0.25,IF(Q156="y",1,"")) -> 0.25 | W156: =IF(Table1[[#This Row],[Asset Class]]<>"Local",0.25,IF(R156="y",1,"")) -> 0.25 | X156: =IF(Table1[[#This Row],[Asset Class]]<>"Local",0.25,IF(S156="y",1,"")) -> 0.25 | Y156: 1 | AA156: 839202.5 | AB156: 839202.5 | AC156: 839202.5 | AD156: 839202.5 | AE156: 3356810
B157: D0086 North District | C157: EXIT-PK-3938 | D157: District | E157: North | F157: Specialised Outdoor Sport | G157: 0.5 | H157: 3269.795019 | I157: 406.7929851 | J157: =Table1[[#This Row],[Embellishment Area (m2)]]*Table1[[#This Row],[Construction Unit Rate ($/m)]]*Table1[[#This Row],[Embellishment Area Factor]] -> 665064.8383 | K157: 0 | L157: 77.24906051 | M157: =Table1[[#This Row],[Size of land (m2)]]*Table1[[#This Row],[Land Unit Rate ($/m2)]] -> 0 | N157: 2021 | O157: =ROUND(IF(Table1[[#This Row],[Valuation Year]]=2016,(Table1[[#This Row],[Total Construction Cost ($)]]+Table1[[#This Row],[Land Value]])*('General Input Sheet'!$G$38/'General Input Sheet'!$G$43),Table1[[#This Row],[Total Construction Cost ($)]]+Table1[[#This Row],[Land Value]]),0) -> 665065 | P157: =_xlfn.IFS(Table1[[#This Row],[Asset Class]]<>"Local","y",P$11=$E157,"y",Table1[[#This Row],[Asset Class]]="Local","") -> y | Q157: =_xlfn.IFS(Table1[[#This Row],[Asset Class]]<>"Local","y",Q$11=$E157,"y",Table1[[#This Row],[Asset Class]]="Local","") -> y | R157: =_xlfn.IFS(Table1[[#This Row],[Asset Class]]<>"Local","y",R$11=$E157,"y",Table1[[#This Row],[Asset Class]]="Local","") -> y | S157: =_xlfn.IFS(Table1[[#This Row],[Asset Class]]<>"Local","y",S$11=$E157,"y",Table1[[#This Row],[Asset Class]]="Local","") -> y | U157: =IF(Table1[[#This Row],[Asset Class]]<>"Local",0.25,IF(P157="y",1,"")) -> 0.25 | V157: =IF(Table1[[#This Row],[Asset Class]]<>"Local",0.25,IF(Q157="y",1,"")) -> 0.25 | W157: =IF(Table1[[#This Row],[Asset Class]]<>"Local",0.25,IF(R157="y",1,"")) -> 0.25 | X157: =IF(Table1[[#This Row],[Asset Class]]<>"Local",0.25,IF(S157="y",1,"")) -> 0.25 | Y157: 1 | AA157: 166266.25 | AB157: 166266.25 | AC157: 166266.25 | AD157: 166266.25 | AE157: 665065
B158: D0087 North Metropolitan | C158: EXIT-PK-3939 | D158: Metropolitan | E158: North | F158: General Recreation | G158: 0.5 | H158: 11495.18437 | I158: 236.896962 | J158: =Table1[[#This Row],[Embellishment Area (m2)]]*Table1[[#This Row],[Construction Unit Rate ($/m)]]*Table1[[#This Row],[Embellishment Area Factor]] -> 1361587.128 | K158: 22990.36875 | L158: 76.2692688 | M158: =Table1[[#This Row],[Size of land (m2)]]*Table1[[#This Row],[Land Unit Rate ($/m2)]] -> 1753458.614 | N158: 2021 | O158: =ROUND(IF(Table1[[#This Row],[Valuation Year]]=2016,(Table1[[#This Row],[Total Construction Cost ($)]]+Table1[[#This Row],[Land Value]])*('General Input Sheet'!$G$38/'General Input Sheet'!$G$43),Table1[[#This Row],[Total Construction Cost ($)]]+Table1[[#This Row],[Land Value]]),0) -> 3115046 | P158: =_xlfn.IFS(Table1[[#This Row],[Asset Class]]<>"Local","y",P$11=$E158,"y",Table1[[#This Row],[Asset Class]]="Local","") -> y | Q158: =_xlfn.IFS(Table1[[#This Row],[Asset Class]]<>"Local","y",Q$11=$E158,"y",Table1[[#This Row],[Asset Class]]="Local","") -> y | R158: =_xlfn.IFS(Table1[[#This Row],[Asset Class]]<>"Local","y",R$11=$E158,"y",Table1[[#This Row],[Asset Class]]="Local","") -> y | S158: =_xlfn.IFS(Table1[[#This Row],[Asset Class]]<>"Local","y",S$11=$E158,"y",Table1[[#This Row],[Asset Class]]="Local","") -> y | U158: =IF(Table1[[#This Row],[Asset Class]]<>"Local",0.25,IF(P158="y",1,"")) -> 0.25 | V158: =IF(Table1[[#This Row],[Asset Class]]<>"Local",0.25,IF(Q158="y",1,"")) -> 0.25 | W158: =IF(Table1[[#This Row],[Asset Class]]<>"Local",0.25,IF(R158="y",1,"")) -> 0.25 | X158: =IF(Table1[[#This Row],[Asset Class]]<>"Local",0.25,IF(S158="y",1,"")) -> 0.25 | Y158: 1 | AA158: 778761.5 | AB158: 778761.5 | AC158: 778761.5 | AD158: 778761.5 | AE158: 3115046
B159: D0088 East District | C159: EXIT-PK-3940 | D159: District | E159: East | F159: General Recreation | G159: 0.5 | H159: 2248.870494 | I159: 295.9181569 | J159: =Table1[[#This Row],[Embellishment Area (m2)]]*Table1[[#This Row],[Construction Unit Rate ($/m)]]*Table1[[#This Row],[Embellishment Area Factor]] -> 332740.8059 | K159: 4497.740987 | L159: 157.2622192 | M159: =Table1[[#This Row],[Size of land (m2)]]*Table1[[#This Row],[Land Unit Rate ($/m2)]] -> 707324.729 | N159: 2021 | O159: =ROUND(IF(Table1[[#This Row],[Valuation Year]]=2016,(Table1[[#This Row],[Total Construction Cost ($)]]+Table1[[#This Row],[Land Value]])*('General Input Sheet'!$G$38/'General Input Sheet'!$G$43),Table1[[#This Row],[Total Construction Cost ($)]]+Table1[[#This Row],[Land Value]]),0) -> 1040066 | P159: =_xlfn.IFS(Table1[[#This Row],[Asset Class]]<>"Local","y",P$11=$E159,"y",Table1[[#This Row],[Asset Class]]="Local","") -> y | Q159: =_xlfn.IFS(Table1[[#This Row],[Asset Class]]<>"Local","y",Q$11=$E159,"y",Table1[[#This Row],[Asset Class]]="Local","") -> y | R159: =_xlfn.IFS(Table1[[#This Row],[Asset Class]]<>"Local","y",R$11=$E159,"y",Table1[[#This Row],[Asset Class]]="Local","") -> y | S159: =_xlfn.IFS(Table1[[#This Row],[Asset Class]]<>"Local","y",S$11=$E159,"y",Table1[[#This Row],[Asset Class]]="Local","") -> y | U159: =IF(Table1[[#This Row],[Asset Class]]<>"Local",0.25,IF(P159="y",1,"")) -> 0.25 | V159: =IF(Table1[[#This Row],[Asset Class]]<>"Local",0.25,IF(Q159="y",1,"")) -> 0.25 | W159: =IF(Table1[[#This Row],[Asset Class]]<>"Local",0.25,IF(R159="y",1,"")) -> 0.25 | X159: =IF(Table1[[#This Row],[Asset Class]]<>"Local",0.25,IF(S159="y",1,"")) -> 0.25 | Y159: 1 | AA159: 260016.5 | AB159: 260016.5 | AC159: 260016.5 | AD159: 260016.5 | AE159: 1040066
B160: D0089 North Metropolitan | C160: EXIT-PK-3941 | D160: Metropolitan | E160: North | F160: Access Recreation Corridor | G160: 0.5 | H160: 2224.868854 | I160: 236.896962 | J160: =Table1[[#This Row],[Embellishment Area (m2)]]*Table1[[#This Row],[Construction Unit Rate ($/m)]]*Table1[[#This Row],[Embellishment Area Factor]] -> 263532.3361 | K160: 4449.737707 | L160: 76.2692688 | M160: =Table1[[#This Row],[Size of land (m2)]]*Table1[[#This Row],[Land Unit Rate ($/m2)]] -> 339378.2413 | N160: 2021 | O160: =ROUND(IF(Table1[[#This Row],[Valuation Year]]=2016,(Table1[[#This Row],[Total Construction Cost ($)]]+Table1[[#This Row],[Land Value]])*('General Input Sheet'!$G$38/'General Input Sheet'!$G$43),Table1[[#This Row],[Total Construction Cost ($)]]+Table1[[#This Row],[Land Value]]),0) -> 602911 | P160: =_xlfn.IFS(Table1[[#This Row],[Asset Class]]<>"Local","y",P$11=$E160,"y",Table1[[#This Row],[Asset Class]]="Local","") -> y | Q160: =_xlfn.IFS(Table1[[#This Row],[Asset Class]]<>"Local","y",Q$11=$E160,"y",Table1[[#This Row],[Asset Class]]="Local","") -> y | R160: =_xlfn.IFS(Table1[[#This Row],[Asset Class]]<>"Local","y",R$11=$E160,"y",Table1[[#This Row],[Asset Class]]="Local","") -> y | S160: =_xlfn.IFS(Table1[[#This Row],[Asset Class]]<>"Local","y",S$11=$E160,"y",Table1[[#This Row],[Asset Class]]="Local","") -> y | U160: =IF(Table1[[#This Row],[Asset Class]]<>"Local",0.25,IF(P160="y",1,"")) -> 0.25 | V160: =IF(Table1[[#This Row],[Asset Class]]<>"Local",0.25,IF(Q160="y",1,"")) -> 0.25 | W160: =IF(Table1[[#This Row],[Asset Class]]<>"Local",0.25,IF(R160="y",1,"")) -> 0.25 | X160: =IF(Table1[[#This Row],[Asset Class]]<>"Local",0.25,IF(S160="y",1,"")) -> 0.25 | Y160: 1 | AA160: 150727.75 | AB160: 150727.75 | AC160: 150727.75 | AD160: 150727.75 | AE160: 602911
B161: D0090 East Metropolitan | C161: EXIT-PK-3942 | D161: Metropolitan | E161: East | F161: Access Recreation Corridor | G161: 0.5 | H161: 3289.378013 | I161: 407.0646101 | J161: =Table1[[#This Row],[Embellishment Area (m2)]]*Table1[[#This Row],[Construction Unit Rate ($/m)]]*Table1[[#This Row],[Embellishment Area Factor]] -> 669494.6891 | K161: 6578.756025 | L161: 112.7890879 | M161: =Table1[[#This Row],[Size of land (m2)]]*Table1[[#This Row],[Land Unit Rate ($/m2)]] -> 742011.8919 | N161: 2021 | O161: =ROUND(IF(Table1[[#This Row],[Valuation Year]]=2016,(Table1[[#This Row],[Total Construction Cost ($)]]+Table1[[#This Row],[Land Value]])*('General Input Sheet'!$G$38/'General Input Sheet'!$G$43),Table1[[#This Row],[Total Construction Cost ($)]]+Table1[[#This Row],[Land Value]]),0) -> 1411507 | P161: =_xlfn.IFS(Table1[[#This Row],[Asset Class]]<>"Local","y",P$11=$E161,"y",Table1[[#This Row],[Asset Class]]="Local","") -> y | Q161: =_xlfn.IFS(Table1[[#This Row],[Asset Class]]<>"Local","y",Q$11=$E161,"y",Table1[[#This Row],[Asset Class]]="Local","") -> y | R161: =_xlfn.IFS(Table1[[#This Row],[Asset Class]]<>"Local","y",R$11=$E161,"y",Table1[[#This Row],[Asset Class]]="Local","") -> y | S161: =_xlfn.IFS(Table1[[#This Row],[Asset Class]]<>"Local","y",S$11=$E161,"y",Table1[[#This Row],[Asset Class]]="Local","") -> y | U161: =IF(Table1[[#This Row],[Asset Class]]<>"Local",0.25,IF(P161="y",1,"")) -> 0.25 | V161: =IF(Table1[[#This Row],[Asset Class]]<>"Local",0.25,IF(Q161="y",1,"")) -> 0.25 | W161: =IF(Table1[[#This Row],[Asset Class]]<>"Local",0.25,IF(R161="y",1,"")) -> 0.25 | X161: =IF(Table1[[#This Row],[Asset Class]]<>"Local",0.25,IF(S161="y",1,"")) -> 0.25 | Y161: 1 | AA161: 352876.75 | AB161: 352876.75 | AC161: 352876.75 | AD161: 352876.75 | AE161: 1411507
B162: D0090 East District | C162: EXIT-PK-3943 | D162: District | E162: East | F162: General Recreation | G162: 0.5 | H162: 3440.755606 | I162: 295.9181569 | J162: =Table1[[#This Row],[Embellishment Area (m2)]]*Table1[[#This Row],[Construction Unit Rate ($/m)]]*Table1[[#This Row],[Embellishment Area Factor]] -> 509091.0287 | K162: 6881.511211 | L162: 157.2622192 | M162: =Table1[[#This Row],[Size of land (m2)]]*Table1[[#This Row],[Land Unit Rate ($/m2)]] -> 1082201.724 | N162: 2021 | O162: =ROUND(IF(Table1[[#This Row],[Valuation Year]]=2016,(Table1[[#This Row],[Total Construction Cost ($)]]+Table1[[#This Row],[Land Value]])*('General Input Sheet'!$G$38/'General Input Sheet'!$G$43),Table1[[#This Row],[Total Construction Cost ($)]]+Table1[[#This Row],[Land Value]]),0) -> 1591293 | P162: =_xlfn.IFS(Table1[[#This Row],[Asset Class]]<>"Local","y",P$11=$E162,"y",Table1[[#This Row],[Asset Class]]="Local","") -> y | Q162: =_xlfn.IFS(Table1[[#This Row],[Asset Class]]<>"Local","y",Q$11=$E162,"y",Table1[[#This Row],[Asset Class]]="Local","") -> y | R162: =_xlfn.IFS(Table1[[#This Row],[Asset Class]]<>"Local","y",R$11=$E162,"y",Table1[[#This Row],[Asset Class]]="Local","") -> y | S162: =_xlfn.IFS(Table1[[#This Row],[Asset Class]]<>"Local","y",S$11=$E162,"y",Table1[[#This Row],[Asset Class]]="Local","") -> y | U162: =IF(Table1[[#This Row],[Asset Class]]<>"Local",0.25,IF(P162="y",1,"")) -> 0.25 | V162: =IF(Table1[[#This Row],[Asset Class]]<>"Local",0.25,IF(Q162="y",1,"")) -> 0.25 | W162: =IF(Table1[[#This Row],[Asset Class]]<>"Local",0.25,IF(R162="y",1,"")) -> 0.25 | X162: =IF(Table1[[#This Row],[Asset Class]]<>"Local",0.25,IF(S162="y",1,"")) -> 0.25 | Y162: 1 | AA162: 397823.25 | AB162: 397823.25 | AC162: 397823.25 | AD162: 397823.25 | AE162: 1591293
B163: D0090 East District | C163: EXIT-PK-3944 | D163: District | E163: East | F163: General Recreation | G163: 0.5 | H163: 5549.766201 | I163: 295.9181569 | J163: =Table1[[#This Row],[Embellishment Area (m2)]]*Table1[[#This Row],[Construction Unit Rate ($/m)]]*Table1[[#This Row],[Embellishment Area Factor]] -> 821138.2929 | K163: 11099.5324 | L163: 157.2622192 | M163: =Table1[[#This Row],[Size of land (m2)]]*Table1[[#This Row],[Land Unit Rate ($/m2)]] -> 1745537.098 | N163: 2021 | O163: =ROUND(IF(Table1[[#This Row],[Valuation Year]]=2016,(Table1[[#This Row],[Total Construction Cost ($)]]+Table1[[#This Row],[Land Value]])*('General Input Sheet'!$G$38/'General Input Sheet'!$G$43),Table1[[#This Row],[Total Construction Cost ($)]]+Table1[[#This Row],[Land Value]]),0) -> 2566675 | P163: =_xlfn.IFS(Table1[[#This Row],[Asset Class]]<>"Local","y",P$11=$E163,"y",Table1[[#This Row],[Asset Class]]="Local","") -> y | Q163: =_xlfn.IFS(Table1[[#This Row],[Asset Class]]<>"Local","y",Q$11=$E163,"y",Table1[[#This Row],[Asset Class]]="Local","") -> y | R163: =_xlfn.IFS(Table1[[#This Row],[Asset Class]]<>"Local","y",R$11=$E163,"y",Table1[[#This Row],[Asset Class]]="Local","") -> y | S163: =_xlfn.IFS(Table1[[#This Row],[Asset Class]]<>"Local","y",S$11=$E163,"y",Table1[[#This Row],[Asset Class]]="Local","") -> y | U163: =IF(Table1[[#This Row],[Asset Class]]<>"Local",0.25,IF(P163="y",1,"")) -> 0.25 | V163: =IF(Table1[[#This Row],[Asset Class]]<>"Local",0.25,IF(Q163="y",1,"")) -> 0.25 | W163: =IF(Table1[[#This Row],[Asset Class]]<>"Local",0.25,IF(R163="y",1,"")) -> 0.25 | X163: =IF(Table1[[#This Row],[Asset Class]]<>"Local",0.25,IF(S163="y",1,"")) -> 0.25 | Y163: 1 | AA163: 641668.75 | AB163: 641668.75 | AC163: 641668.75 | AD163: 641668.75 | AE163: 2566675
B164: D0092 West Metropolitan | C164: EXIT-PK-3945 | D164: Metropolitan | E164: West | F164: General Recreation | G164: 0.5 | H164: 3107.844553 | I164: 557.4011464 | J164: =Table1[[#This Row],[Embellishment Area (m2)]]*Table1[[#This Row],[Construction Unit Rate ($/m)]]*Table1[[#This Row],[Embellishment Area Factor]] -> 866158.0585 | K164: 0 | L164: 132.9926274 | M164: =Table1[[#This Row],[Size of land (m2)]]*Table1[[#This Row],[Land Unit Rate ($/m2)]] -> 0 | N164: 2021 | O164: =ROUND(IF(Table1[[#This Row],[Valuation Year]]=2016,(Table1[[#This Row],[Total Construction Cost ($)]]+Table1[[#This Row],[Land Value]])*('General Input Sheet'!$G$38/'General Input Sheet'!$G$43),Table1[[#This Row],[Total Construction Cost ($)]]+Table1[[#This Row],[Land Value]]),0) -> 866158 | P164: =_xlfn.IFS(Table1[[#This Row],[Asset Class]]<>"Local","y",P$11=$E164,"y",Table1[[#This Row],[Asset Class]]="Local","") -> y | Q164: =_xlfn.IFS(Table1[[#This Row],[Asset Class]]<>"Local","y",Q$11=$E164,"y",Table1[[#This Row],[Asset Class]]="Local","") -> y | R164: =_xlfn.IFS(Table1[[#This Row],[Asset Class]]<>"Local","y",R$11=$E164,"y",Table1[[#This Row],[Asset Class]]="Local","") -> y | S164: =_xlfn.IFS(Table1[[#This Row],[Asset Class]]<>"Local","y",S$11=$E164,"y",Table1[[#This Row],[Asset Class]]="Local","") -> y | U164: =IF(Table1[[#This Row],[Asset Class]]<>"Local",0.25,IF(P164="y",1,"")) -> 0.25 | V164: =IF(Table1[[#This Row],[Asset Class]]<>"Local",0.25,IF(Q164="y",1,"")) -> 0.25 | W164: =IF(Table1[[#This Row],[Asset Class]]<>"Local",0.25,IF(R164="y",1,"")) -> 0.25 | X164: =IF(Table1[[#This Row],[Asset Class]]<>"Local",0.25,IF(S164="y",1,"")) -> 0.25 | Y164: 1 | AA164: 216539.5 | AB164: 216539.5 | AC164: 216539.5 | AD164: 216539.5 | AE164: 866158
B165: D0093 West Metropolitan | C165: EXIT-PK-3946 | D165: Metropolitan | E165: West | F165: Urban Common | G165: 0.5 | H165: 5739.581634 | I165: 557.4011464 | J165: =Table1[[#This Row],[Embellishment Area (m2)]]*Table1[[#This Row],[Construction Unit Rate ($/m)]]*Table1[[#This Row],[Embellishment Area Factor]] -> 1599624.691 | K165: 11479.16327 | L165: 132.9926274 | M165: =Table1[[#This Row],[Size of land (m2)]]*Table1[[#This Row],[Land Unit Rate ($/m2)]] -> 1526644.084 | N165: 2021 | O165: =ROUND(IF(Table1[[#This Row],[Valuation Year]]=2016,(Table1[[#This Row],[Total Construction Cost ($)]]+Table1[[#This Row],[Land Value]])*('General Input Sheet'!$G$38/'General Input Sheet'!$G$43),Table1[[#This Row],[Total Construction Cost ($)]]+Table1[[#This Row],[Land Value]]),0) -> 3126269 | P165: =_xlfn.IFS(Table1[[#This Row],[Asset Class]]<>"Local","y",P$11=$E165,"y",Table1[[#This Row],[Asset Class]]="Local","") -> y | Q165: =_xlfn.IFS(Table1[[#This Row],[Asset Class]]<>"Local","y",Q$11=$E165,"y",Table1[[#This Row],[Asset Class]]="Local","") -> y | R165: =_xlfn.IFS(Table1[[#This Row],[Asset Class]]<>"Local","y",R$11=$E165,"y",Table1[[#This Row],[Asset Class]]="Local","") -> y | S165: =_xlfn.IFS(Table1[[#This Row],[Asset Class]]<>"Local","y",S$11=$E165,"y",Table1[[#This Row],[Asset Class]]="Local","") -> y | U165: =IF(Table1[[#This Row],[Asset Class]]<>"Local",0.25,IF(P165="y",1,"")) -> 0.25 | V165: =IF(Table1[[#This Row],[Asset Class]]<>"Local",0.25,IF(Q165="y",1,"")) -> 0.25 | W165: =IF(Table1[[#This Row],[Asset Class]]<>"Local",0.25,IF(R165="y",1,"")) -> 0.25 | X165: =IF(Table1[[#This Row],[Asset Class]]<>"Local",0.25,IF(S165="y",1,"")) -> 0.25 | Y165: 1 | AA165: 781567.25 | AB165: 781567.25 | AC165: 781567.25 | AD165: 781567.25 | AE165: 3126269
B166: D0094 West Metropolitan | C166: EXIT-PK-3947 | D166: Metropolitan | E166: West | F166: Urban Common | G166: 0.5 | H166: 4061.448399 | I166: 557.4011464 | J166: =Table1[[#This Row],[Embellishment Area (m2)]]*Table1[[#This Row],[Construction Unit Rate ($/m)]]*Table1[[#This Row],[Embellishment Area Factor]] -> 1131927.997 | K166: 0 | L166: 132.9926274 | M166: =Table1[[#This Row],[Size of land (m2)]]*Table1[[#This Row],[Land Unit Rate ($/m2)]] -> 0 | N166: 2021 | O166: =ROUND(IF(Table1[[#This Row],[Valuation Year]]=2016,(Table1[[#This Row],[Total Construction Cost ($)]]+Table1[[#This Row],[Land Value]])*('General Input Sheet'!$G$38/'General Input Sheet'!$G$43),Table1[[#This Row],[Total Construction Cost ($)]]+Table1[[#This Row],[Land Value]]),0) -> 1131928 | P166: =_xlfn.IFS(Table1[[#This Row],[Asset Class]]<>"Local","y",P$11=$E166,"y",Table1[[#This Row],[Asset Class]]="Local","") -> y | Q166: =_xlfn.IFS(Table1[[#This Row],[Asset Class]]<>"Local","y",Q$11=$E166,"y",Table1[[#This Row],[Asset Class]]="Local","") -> y | R166: =_xlfn.IFS(Table1[[#This Row],[Asset Class]]<>"Local","y",R$11=$E166,"y",Table1[[#This Row],[Asset Class]]="Local","") -> y | S166: =_xlfn.IFS(Table1[[#This Row],[Asset Class]]<>"Local","y",S$11=$E166,"y",Table1[[#This Row],[Asset Class]]="Local","") -> y | U166: =IF(Table1[[#This Row],[Asset Class]]<>"Local",0.25,IF(P166="y",1,"")) -> 0.25 | V166: =IF(Table1[[#This Row],[Asset Class]]<>"Local",0.25,IF(Q166="y",1,"")) -> 0.25 | W166: =IF(Table1[[#This Row],[Asset Class]]<>"Local",0.25,IF(R166="y",1,"")) -> 0.25 | X166: =IF(Table1[[#This Row],[Asset Class]]<>"Local",0.25,IF(S166="y",1,"")) -> 0.25 | Y166: 1 | AA166: 282982 | AB166: 282982 | AC166: 282982 | AD166: 282982 | AE166: 1131928
B167: D0095 North Metropolitan | C167: EXIT-PK-3951 | D167: Metropolitan | E167: North | F167: General Recreation | G167: 0.5 | H167: 84578.17241 | I167: 236.896962 | J167: =Table1[[#This Row],[Embellishment Area (m2)]]*Table1[[#This Row],[Construction Unit Rate ($/m)]]*Table1[[#This Row],[Embellishment Area Factor]] -> 10018156.05 | K167: 169156.3448 | L167: 76.2692688 | M167: =Table1[[#This Row],[Size of land (m2)]]*Table1[[#This Row],[Land Unit Rate ($/m2)]] -> 12901430.73 | N167: 2021 | O167: =ROUND(IF(Table1[[#This Row],[Valuation Year]]=2016,(Table1[[#This Row],[Total Construction Cost ($)]]+Table1[[#This Row],[Land Value]])*('General Input Sheet'!$G$38/'General Input Sheet'!$G$43),Table1[[#This Row],[Total Construction Cost ($)]]+Table1[[#This Row],[Land Value]]),0) -> 22919587 | P167: =_xlfn.IFS(Table1[[#This Row],[Asset Class]]<>"Local","y",P$11=$E167,"y",Table1[[#This Row],[Asset Class]]="Local","") -> y | Q167: =_xlfn.IFS(Table1[[#This Row],[Asset Class]]<>"Local","y",Q$11=$E167,"y",Table1[[#This Row],[Asset Class]]="Local","") -> y | R167: =_xlfn.IFS(Table1[[#This Row],[Asset Class]]<>"Local","y",R$11=$E167,"y",Table1[[#This Row],[Asset Class]]="Local","") -> y | S167: =_xlfn.IFS(Table1[[#This Row],[Asset Class]]<>"Local","y",S$11=$E167,"y",Table1[[#This Row],[Asset Class]]="Local","") -> y | U167: =IF(Table1[[#This Row],[Asset Class]]<>"Local",0.25,IF(P167="y",1,"")) -> 0.25 | V167: =IF(Table1[[#This Row],[Asset Class]]<>"Local",0.25,IF(Q167="y",1,"")) -> 0.25 | W167: =IF(Table1[[#This Row],[Asset Class]]<>"Local",0.25,IF(R167="y",1,"")) -> 0.25 | X167: =IF(Table1[[#This Row],[Asset Class]]<>"Local",0.25,IF(S167="y",1,"")) -> 0.25 | Y167: 1 | AA167: 5729896.75 | AB167: 5729896.75 | AC167: 5729896.75 | AD167: 5729896.75 | AE167: 22919587
B168: D0095 North District | C168: EXIT-PK-3952 | D168: District | E168: North | F168: General Outdoor Sport | G168: 0.5 | H168: 1298.952772 | I168: 406.7929851 | J168: =Table1[[#This Row],[Embellishment Area (m2)]]*Table1[[#This Row],[Construction Unit Rate ($/m)]]*Table1[[#This Row],[Embellishment Area Factor]] -> 264202.4377 | K168: 2597.905543 | L168: 77.24906051 | M168: =Table1[[#This Row],[Size of land (m2)]]*Table1[[#This Row],[Land Unit Rate ($/m2)]] -> 200685.7625 | N168: 2021 | O168: =ROUND(IF(Table1[[#This Row],[Valuation Year]]=2016,(Table1[[#This Row],[Total Construction Cost ($)]]+Table1[[#This Row],[Land Value]])*('General Input Sheet'!$G$38/'General Input Sheet'!$G$43),Table1[[#This Row],[Total Construction Cost ($)]]+Table1[[#This Row],[Land Value]]),0) -> 464888 | P168: =_xlfn.IFS(Table1[[#This Row],[Asset Class]]<>"Local","y",P$11=$E168,"y",Table1[[#This Row],[Asset Class]]="Local","") -> y | Q168: =_xlfn.IFS(Table1[[#This Row],[Asset Class]]<>"Local","y",Q$11=$E168,"y",Table1[[#This Row],[Asset Class]]="Local","") -> y | R168: =_xlfn.IFS(Table1[[#This Row],[Asset Class]]<>"Local","y",R$11=$E168,"y",Table1[[#This Row],[Asset Class]]="Local","") -> y | S168: =_xlfn.IFS(Table1[[#This Row],[Asset Class]]<>"Local","y",S$11=$E168,"y",Table1[[#This Row],[Asset Class]]="Local","") -> y | U168: =IF(Table1[[#This Row],[Asset Class]]<>"Local",0.25,IF(P168="y",1,"")) -> 0.25 | V168: =IF(Table1[[#This Row],[Asset Class]]<>"Local",0.25,IF(Q168="y",1,"")) -> 0.25 | W168: =IF(Table1[[#This Row],[Asset Class]]<>"Local",0.25,IF(R168="y",1,"")) -> 0.25 | X168: =IF(Table1[[#This Row],[Asset Class]]<>"Local",0.25,IF(S168="y",1,"")) -> 0.25 | Y168: 1 | AA168: 116222 | AB168: 116222 | AC168: 116222 | AD168: 116222 | AE168: 464888
B169: D0095 North District | C169: EXIT-PK-3953 | D169: District | E169: North | F169: Specialised Outdoor Sport | G169: 0.5 | H169: 1712.056441 | I169: 406.7929851 | J169: =Table1[[#This Row],[Embellishment Area (m2)]]*Table1[[#This Row],[Construction Unit Rate ($/m)]]*Table1[[#This Row],[Embellishment Area Factor]] -> 348226.2751 | K169: 3424.112881 | L169: 77.24906051 | M169: =Table1[[#This Row],[Size of land (m2)]]*Table1[[#This Row],[Land Unit Rate ($/m2)]] -> 264509.5032 | N169: 2021 | O169: =ROUND(IF(Table1[[#This Row],[Valuation Year]]=2016,(Table1[[#This Row],[Total Construction Cost ($)]]+Table1[[#This Row],[Land Value]])*('General Input Sheet'!$G$38/'General Input Sheet'!$G$43),Table1[[#This Row],[Total Construction Cost ($)]]+Table1[[#This Row],[Land Value]]),0) -> 612736 | P169: =_xlfn.IFS(Table1[[#This Row],[Asset Class]]<>"Local","y",P$11=$E169,"y",Table1[[#This Row],[Asset Class]]="Local","") -> y | Q169: =_xlfn.IFS(Table1[[#This Row],[Asset Class]]<>"Local","y",Q$11=$E169,"y",Table1[[#This Row],[Asset Class]]="Local","") -> y | R169: =_xlfn.IFS(Table1[[#This Row],[Asset Class]]<>"Local","y",R$11=$E169,"y",Table1[[#This Row],[Asset Class]]="Local","") -> y | S169: =_xlfn.IFS(Table1[[#This Row],[Asset Class]]<>"Local","y",S$11=$E169,"y",Table1[[#This Row],[Asset Class]]="Local","") -> y | U169: =IF(Table1[[#This Row],[Asset Class]]<>"Local",0.25,IF(P169="y",1,"")) -> 0.25 | V169: =IF(Table1[[#This Row],[Asset Class]]<>"Local",0.25,IF(Q169="y",1,"")) -> 0.25 | W169: =IF(Table1[[#This Row],[Asset Class]]<>"Local",0.25,IF(R169="y",1,"")) -> 0.25 | X169: =IF(Table1[[#This Row],[Asset Class]]<>"Local",0.25,IF(S169="y",1,"")) -> 0.25 | Y169: 1 | AA169: 153184 | AB169: 153184 | AC169: 153184 | AD169: 153184 | AE169: 612736
B170: D0095 North District | C170: EXIT-PK-3954 | D170: District | E170: North | F170: General Outdoor Sport | G170: 0.5 | H170: 10108.87376 | I170: 406.7929851 | J170: =Table1[[#This Row],[Embellishment Area (m2)]]*Table1[[#This Row],[Construction Unit Rate ($/m)]]*Table1[[#This Row],[Embellishment Area Factor]] -> 2056109.466 | K170: 20217.74752 | L170: 77.24906051 | M170: =Table1[[#This Row],[Size of land (m2)]]*Table1[[#This Row],[Land Unit Rate ($/m2)]] -> 1561802.001 | N170: 2021 | O170: =ROUND(IF(Table1[[#This Row],[Valuation Year]]=2016,(Table1[[#This Row],[Total Construction Cost ($)]]+Table1[[#This Row],[Land Value]])*('General Input Sheet'!$G$38/'General Input Sheet'!$G$43),Table1[[#This Row],[Total Construction Cost ($)]]+Table1[[#This Row],[Land Value]]),0) -> 3617911 | P170: =_xlfn.IFS(Table1[[#This Row],[Asset Class]]<>"Local","y",P$11=$E170,"y",Table1[[#This Row],[Asset Class]]="Local","") -> y | Q170: =_xlfn.IFS(Table1[[#This Row],[Asset Class]]<>"Local","y",Q$11=$E170,"y",Table1[[#This Row],[Asset Class]]="Local","") -> y | R170: =_xlfn.IFS(Table1[[#This Row],[Asset Class]]<>"Local","y",R$11=$E170,"y",Table1[[#This Row],[Asset Class]]="Local","") -> y | S170: =_xlfn.IFS(Table1[[#This Row],[Asset Class]]<>"Local","y",S$11=$E170,"y",Table1[[#This Row],[Asset Class]]="Local","") -> y | U170: =IF(Table1[[#This Row],[Asset Class]]<>"Local",0.25,IF(P170="y",1,"")) -> 0.25 | V170: =IF(Table1[[#This Row],[Asset Class]]<>"Local",0.25,IF(Q170="y",1,"")) -> 0.25 | W170: =IF(Table1[[#This Row],[Asset Class]]<>"Local",0.25,IF(R170="y",1,"")) -> 0.25 | X170: =IF(Table1[[#This Row],[Asset Class]]<>"Local",0.25,IF(S170="y",1,"")) -> 0.25 | Y170: 1 | AA170: 904477.75 | AB170: 904477.75 | AC170: 904477.75 | AD170: 904477.75 | AE170: 3617911
B171: D0096 West Metropolitan | C171: EXIT-PK-3957 | D171: Metropolitan | E171: West | F171: Botanic Garden Arboretum | G171: 0.5 | H171: 106535.9516 | I171: 557.4011464 | J171: =Table1[[#This Row],[Embellishment Area (m2)]]*Table1[[#This Row],[Construction Unit Rate ($/m)]]*Table1[[#This Row],[Embellishment Area Factor]] -> 29691630.78 | K171: 0 | L171: 132.9926274 | M171: =Table1[[#This Row],[Size of land (m2)]]*Table1[[#This Row],[Land Unit Rate ($/m2)]] -> 0 | N171: 2021 | O171: =ROUND(IF(Table1[[#This Row],[Valuation Year]]=2016,(Table1[[#This Row],[Total Construction Cost ($)]]+Table1[[#This Row],[Land Value]])*('General Input Sheet'!$G$38/'General Input Sheet'!$G$43),Table1[[#This Row],[Total Construction Cost ($)]]+Table1[[#This Row],[Land Value]]),0) -> 29691631 | P171: =_xlfn.IFS(Table1[[#This Row],[Asset Class]]<>"Local","y",P$11=$E171,"y",Table1[[#This Row],[Asset Class]]="Local","") -> y | Q171: =_xlfn.IFS(Table1[[#This Row],[Asset Class]]<>"Local","y",Q$11=$E171,"y",Table1[[#This Row],[Asset Class]]="Local","") -> y | R171: =_xlfn.IFS(Table1[[#This Row],[Asset Class]]<>"Local","y",R$11=$E171,"y",Table1[[#This Row],[Asset Class]]="Local","") -> y | S171: =_xlfn.IFS(Table1[[#This Row],[Asset Class]]<>"Local","y",S$11=$E171,"y",Table1[[#This Row],[Asset Class]]="Local","") -> y | U171: =IF(Table1[[#This Row],[Asset Class]]<>"Local",0.25,IF(P171="y",1,"")) -> 0.25 | V171: =IF(Table1[[#This Row],[Asset Class]]<>"Local",0.25,IF(Q171="y",1,"")) -> 0.25 | W171: =IF(Table1[[#This Row],[Asset Class]]<>"Local",0.25,IF(R171="y",1,"")) -> 0.25 | X171: =IF(Table1[[#This Row],[Asset Class]]<>"Local",0.25,IF(S171="y",1,"")) -> 0.25 | Y171: 1 | AA171: 7422907.75 | AB171: 7422907.75 | AC171: 7422907.75 | AD171: 7422907.75 | AE171: 29691631
B172: D0097 East Local | C172: EXIT-PK-3959 | D172: Local | E172: East | F172: General Outdoor Sport | G172: 0.5 | H172: 5765.202004 | I172: 111.6204104 | J172: =Table1[[#This Row],[Embellishment Area (m2)]]*Table1[[#This Row],[Construction Unit Rate ($/m)]]*Table1[[#This Row],[Embellishment Area Factor]] -> 321757.1067 | K172: 11530.40401 | L172: 66.12572262 | M172: =Table1[[#This Row],[Size of land (m2)]]*Table1[[#This Row],[Land Unit Rate ($/m2)]] -> 762456.2971 | N172: 2021 | O172: =ROUND(IF(Table1[[#This Row],[Valuation Year]]=2016,(Table1[[#This Row],[Total Construction Cost ($)]]+Table1[[#This Row],[Land Value]])*('General Input Sheet'!$G$38/'General Input Sheet'!$G$43),Table1[[#This Row],[Total Construction Cost ($)]]+Table1[[#This Row],[Land Value]]),0) -> 1084213 | P172: =_xlfn.IFS(Table1[[#This Row],[Asset Class]]<>"Local","y",P$11=$E172,"y",Table1[[#This Row],[Asset Class]]="Local","") -> y | Q172: =_xlfn.IFS(Table1[[#This Row],[Asset Class]]<>"Local","y",Q$11=$E172,"y",Table1[[#This Row],[Asset Class]]="Local","") ->  | R172: =_xlfn.IFS(Table1[[#This Row],[Asset Class]]<>"Local","y",R$11=$E172,"y",Table1[[#This Row],[Asset Class]]="Local","") ->  | S172: =_xlfn.IFS(Table1[[#This Row],[Asset Class]]<>"Local","y",S$11=$E172,"y",Table1[[#This Row],[Asset Class]]="Local","") ->  | U172: =IF(Table1[[#This Row],[Asset Class]]<>"Local",0.25,IF(P172="y",1,"")) -> 1 | V172: =IF(Table1[[#This Row],[Asset Class]]<>"Local",0.25,IF(Q172="y",1,"")) ->  | W172: =IF(Table1[[#This Row],[Asset Class]]<>"Local",0.25,IF(R172="y",1,"")) ->  | X172: =IF(Table1[[#This Row],[Asset Class]]<>"Local",0.25,IF(S172="y",1,"")) ->  | Y172: 1 | AA172: 1084213 | AE172: 1084213
B173: D0097 East Local | C173: EXIT-PK-3960 | D173: Local | E173: East | F173: General Recreation | G173: 0.5 | H173: 80.92122845 | I173: 111.6204104 | J173: =Table1[[#This Row],[Embellishment Area (m2)]]*Table1[[#This Row],[Construction Unit Rate ($/m)]]*Table1[[#This Row],[Embellishment Area Factor]] -> 4516.230363 | K173: 161.8424569 | L173: 66.12572262 | M173: =Table1[[#This Row],[Size of land (m2)]]*Table1[[#This Row],[Land Unit Rate ($/m2)]] -> 10701.94941 | N173: 2021 | O173: =ROUND(IF(Table1[[#This Row],[Valuation Year]]=2016,(Table1[[#This Row],[Total Construction Cost ($)]]+Table1[[#This Row],[Land Value]])*('General Input Sheet'!$G$38/'General Input Sheet'!$G$43),Table1[[#This Row],[Total Construction Cost ($)]]+Table1[[#This Row],[Land Value]]),0) -> 15218 | P173: =_xlfn.IFS(Table1[[#This Row],[Asset Class]]<>"Local","y",P$11=$E173,"y",Table1[[#This Row],[Asset Class]]="Local","") -> y | Q173: =_xlfn.IFS(Table1[[#This Row],[Asset Class]]<>"Local","y",Q$11=$E173,"y",Table1[[#This Row],[Asset Class]]="Local","") ->  | R173: =_xlfn.IFS(Table1[[#This Row],[Asset Class]]<>"Local","y",R$11=$E173,"y",Table1[[#This Row],[Asset Class]]="Local","") ->  | S173: =_xlfn.IFS(Table1[[#This Row],[Asset Class]]<>"Local","y",S$11=$E173,"y",Table1[[#This Row],[Asset Class]]="Local","") ->  | U173: =IF(Table1[[#This Row],[Asset Class]]<>"Local",0.25,IF(P173="y",1,"")) -> 1 | V173: =IF(Table1[[#This Row],[Asset Class]]<>"Local",0.25,IF(Q173="y",1,"")) ->  | W173: =IF(Table1[[#This Row],[Asset Class]]<>"Local",0.25,IF(R173="y",1,"")) ->  | X173: =IF(Table1[[#This Row],[Asset Class]]<>"Local",0.25,IF(S173="y",1,"")) ->  | Y173: 1 | AA173: 15218 | AE173: 15218
B174: D0097 East Local | C174: EXIT-PK-3961 | D174: Local | E174: East | F174: General Outdoor Sport | G174: 0.5 | H174: 6395.250959 | I174: 111.6204104 | J174: =Table1[[#This Row],[Embellishment Area (m2)]]*Table1[[#This Row],[Construction Unit Rate ($/m)]]*Table1[[#This Row],[Embellishment Area Factor]] -> 356920.2682 | K174: 12790.50192 | L174: 66.12572262 | M174: =Table1[[#This Row],[Size of land (m2)]]*Table1[[#This Row],[Land Unit Rate ($/m2)]] -> 845781.1819 | N174: 2021 | O174: =ROUND(IF(Table1[[#This Row],[Valuation Year]]=2016,(Table1[[#This Row],[Total Construction Cost ($)]]+Table1[[#This Row],[Land Value]])*('General Input Sheet'!$G$38/'General Input Sheet'!$G$43),Table1[[#This Row],[Total Construction Cost ($)]]+Table1[[#This Row],[Land Value]]),0) -> 1202701 | P174: =_xlfn.IFS(Table1[[#This Row],[Asset Class]]<>"Local","y",P$11=$E174,"y",Table1[[#This Row],[Asset Class]]="Local","") -> y | Q174: =_xlfn.IFS(Table1[[#This Row],[Asset Class]]<>"Local","y",Q$11=$E174,"y",Table1[[#This Row],[Asset Class]]="Local","") ->  | R174: =_xlfn.IFS(Table1[[#This Row],[Asset Class]]<>"Local","y",R$11=$E174,"y",Table1[[#This Row],[Asset Class]]="Local","") ->  | S174: =_xlfn.IFS(Table1[[#This Row],[Asset Class]]<>"Local","y",S$11=$E174,"y",Table1[[#This Row],[Asset Class]]="Local","") ->  | U174: =IF(Table1[[#This Row],[Asset Class]]<>"Local",0.25,IF(P174="y",1,"")) -> 1 | V174: =IF(Table1[[#This Row],[Asset Class]]<>"Local",0.25,IF(Q174="y",1,"")) ->  | W174: =IF(Table1[[#This Row],[Asset Class]]<>"Local",0.25,IF(R174="y",1,"")) ->  | X174: =IF(Table1[[#This Row],[Asset Class]]<>"Local",0.25,IF(S174="y",1,"")) ->  | Y174: 1 | AA174: 1202701 | AE174: 1202701
B175: D0097 East District | C175: EXIT-PK-3962 | D175: District | E175: East | F175: General Recreation | G175: 0.5 | H175: 20226.97097 | I175: 295.9181569 | J175: =Table1[[#This Row],[Embellishment Area (m2)]]*Table1[[#This Row],[Construction Unit Rate ($/m)]]*Table1[[#This Row],[Embellishment Area Factor]] -> 2992763.985 | K175: 40453.94194 | L175: 157.2622192 | M175: =Table1[[#This Row],[Size of land (m2)]]*Table1[[#This Row],[Land Unit Rate ($/m2)]] -> 6361876.684 | N175: 2021 | O175: =ROUND(IF(Table1[[#This Row],[Valuation Year]]=2016,(Table1[[#This Row],[Total Construction Cost ($)]]+Table1[[#This Row],[Land Value]])*('General Input Sheet'!$G$38/'General Input Sheet'!$G$43),Table1[[#This Row],[Total Construction Cost ($)]]+Table1[[#This Row],[Land Value]]),0) -> 9354641 | P175: =_xlfn.IFS(Table1[[#This Row],[Asset Class]]<>"Local","y",P$11=$E175,"y",Table1[[#This Row],[Asset Class]]="Local","") -> y | Q175: =_xlfn.IFS(Table1[[#This Row],[Asset Class]]<>"Local","y",Q$11=$E175,"y",Table1[[#This Row],[Asset Class]]="Local","") -> y | R175: =_xlfn.IFS(Table1[[#This Row],[Asset Class]]<>"Local","y",R$11=$E175,"y",Table1[[#This Row],[Asset Class]]="Local","") -> y | S175: =_xlfn.IFS(Table1[[#This Row],[Asset Class]]<>"Local","y",S$11=$E175,"y",Table1[[#This Row],[Asset Class]]="Local","") -> y | U175: =IF(Table1[[#This Row],[Asset Class]]<>"Local",0.25,IF(P175="y",1,"")) -> 0.25 | V175: =IF(Table1[[#This Row],[Asset Class]]<>"Local",0.25,IF(Q175="y",1,"")) -> 0.25 | W175: =IF(Table1[[#This Row],[Asset Class]]<>"Local",0.25,IF(R175="y",1,"")) -> 0.25 | X175: =IF(Table1[[#This Row],[Asset Class]]<>"Local",0.25,IF(S175="y",1,"")) -> 0.25 | Y175: 1 | AA175: 2338660.25 | AB175: 2338660.25 | AC175: 2338660.25 | AD175: 2338660.25 | AE175: 9354641
B176: D0099 West Metropolitan | C176: EXIT-PK-3963 | D176: Metropolitan | E176: West | F176: Urban Common | G176: 0.5 | H176: 4469.165965 | I176: 557.4011464 | J176: =Table1[[#This Row],[Embellishment Area (m2)]]*Table1[[#This Row],[Construction Unit Rate ($/m)]]*Table1[[#This Row],[Embellishment Area Factor]] -> 1245559.116 | K176: 8938.331931 | L176: 132.9926274 | M176: =Table1[[#This Row],[Size of land (m2)]]*Table1[[#This Row],[Land Unit Rate ($/m2)]] -> 1188732.248 | N176: 2021 | O176: =ROUND(IF(Table1[[#This Row],[Valuation Year]]=2016,(Table1[[#This Row],[Total Construction Cost ($)]]+Table1[[#This Row],[Land Value]])*('General Input Sheet'!$G$38/'General Input Sheet'!$G$43),Table1[[#This Row],[Total Construction Cost ($)]]+Table1[[#This Row],[Land Value]]),0) -> 2434291 | P176: =_xlfn.IFS(Table1[[#This Row],[Asset Class]]<>"Local","y",P$11=$E176,"y",Table1[[#This Row],[Asset Class]]="Local","") -> y | Q176: =_xlfn.IFS(Table1[[#This Row],[Asset Class]]<>"Local","y",Q$11=$E176,"y",Table1[[#This Row],[Asset Class]]="Local","") -> y | R176: =_xlfn.IFS(Table1[[#This Row],[Asset Class]]<>"Local","y",R$11=$E176,"y",Table1[[#This Row],[Asset Class]]="Local","") -> y | S176: =_xlfn.IFS(Table1[[#This Row],[Asset Class]]<>"Local","y",S$11=$E176,"y",Table1[[#This Row],[Asset Class]]="Local","") -> y | U176: =IF(Table1[[#This Row],[Asset Class]]<>"Local",0.25,IF(P176="y",1,"")) -> 0.25 | V176: =IF(Table1[[#This Row],[Asset Class]]<>"Local",0.25,IF(Q176="y",1,"")) -> 0.25 | W176: =IF(Table1[[#This Row],[Asset Class]]<>"Local",0.25,IF(R176="y",1,"")) -> 0.25 | X176: =IF(Table1[[#This Row],[Asset Class]]<>"Local",0.25,IF(S176="y",1,"")) -> 0.25 | Y176: 1 | AA176: 608572.75 | AB176: 608572.75 | AC176: 608572.75 | AD176: 608572.75 | AE176: 2434291
B177: D0103 West Local | C177: EXIT-PK-3968 | D177: Local | E177: West | F177: General Recreation | G177: 0.5 | H177: 8220.087756 | I177: 77.37164549 | J177: =Table1[[#This Row],[Embellishment Area (m2)]]*Table1[[#This Row],[Construction Unit Rate ($/m)]]*Table1[[#This Row],[Embellishment Area Factor]] -> 318000.8579 | K177: 16440.17551 | L177: 51.91969533 | M177: =Table1[[#This Row],[Size of land (m2)]]*Table1[[#This Row],[Land Unit Rate ($/m2)]] -> 853568.9037 | N177: 2021 | O177: =ROUND(IF(Table1[[#This Row],[Valuation Year]]=2016,(Table1[[#This Row],[Total Construction Cost ($)]]+Table1[[#This Row],[Land Value]])*('General Input Sheet'!$G$38/'General Input Sheet'!$G$43),Table1[[#This Row],[Total Construction Cost ($)]]+Table1[[#This Row],[Land Value]]),0) -> 1171570 | P177: =_xlfn.IFS(Table1[[#This Row],[Asset Class]]<>"Local","y",P$11=$E177,"y",Table1[[#This Row],[Asset Class]]="Local","") ->  | Q177: =_xlfn.IFS(Table1[[#This Row],[Asset Class]]<>"Local","y",Q$11=$E177,"y",Table1[[#This Row],[Asset Class]]="Local","") ->  | R177: =_xlfn.IFS(Table1[[#This Row],[Asset Class]]<>"Local","y",R$11=$E177,"y",Table1[[#This Row],[Asset Class]]="Local","") ->  | S177: =_xlfn.IFS(Table1[[#This Row],[Asset Class]]<>"Local","y",S$11=$E177,"y",Table1[[#This Row],[Asset Class]]="Local","") -> y | U177: =IF(Table1[[#This Row],[Asset Class]]<>"Local",0.25,IF(P177="y",1,"")) ->  | V177: =IF(Table1[[#This Row],[Asset Class]]<>"Local",0.25,IF(Q177="y",1,"")) ->  | W177: =IF(Table1[[#This Row],[Asset Class]]<>"Local",0.25,IF(R177="y",1,"")) ->  | X177: =IF(Table1[[#This Row],[Asset Class]]<>"Local",0.25,IF(S177="y",1,"")) -> 1 | Y177: 1 | AD177: 1171570 | AE177: 1171570
B178: D0105 East Local | C178: EXIT-PK-3971 | D178: Local | E178: East | F178: Access Recreation Corridor | G178: 0.5 | H178: 8100.406038 | I178: 111.6204104 | J178: =Table1[[#This Row],[Embellishment Area (m2)]]*Table1[[#This Row],[Construction Unit Rate ($/m)]]*Table1[[#This Row],[Embellishment Area Factor]] -> 452085.323 | K178: 16200.81208 | L178: 66.12572262 | M178: =Table1[[#This Row],[Size of land (m2)]]*Table1[[#This Row],[Land Unit Rate ($/m2)]] -> 1071290.406 | N178: 2021 | O178: =ROUND(IF(Table1[[#This Row],[Valuation Year]]=2016,(Table1[[#This Row],[Total Construction Cost ($)]]+Table1[[#This Row],[Land Value]])*('General Input Sheet'!$G$38/'General Input Sheet'!$G$43),Table1[[#This Row],[Total Construction Cost ($)]]+Table1[[#This Row],[Land Value]]),0) -> 1523376 | P178: =_xlfn.IFS(Table1[[#This Row],[Asset Class]]<>"Local","y",P$11=$E178,"y",Table1[[#This Row],[Asset Class]]="Local","") -> y | Q178: =_xlfn.IFS(Table1[[#This Row],[Asset Class]]<>"Local","y",Q$11=$E178,"y",Table1[[#This Row],[Asset Class]]="Local","") ->  | R178: =_xlfn.IFS(Table1[[#This Row],[Asset Class]]<>"Local","y",R$11=$E178,"y",Table1[[#This Row],[Asset Class]]="Local","") ->  | S178: =_xlfn.IFS(Table1[[#This Row],[Asset Class]]<>"Local","y",S$11=$E178,"y",Table1[[#This Row],[Asset Class]]="Local","") ->  | U178: =IF(Table1[[#This Row],[Asset Class]]<>"Local",0.25,IF(P178="y",1,"")) -> 1 | V178: =IF(Table1[[#This Row],[Asset Class]]<>"Local",0.25,IF(Q178="y",1,"")) ->  | W178: =IF(Table1[[#This Row],[Asset Class]]<>"Local",0.25,IF(R178="y",1,"")) ->  | X178: =IF(Table1[[#This Row],[Asset Class]]<>"Local",0.25,IF(S178="y",1,"")) ->  | Y178: 1 | AA178: 1523376 | AE178: 1523376
B179: D0105 East Local | C179: EXIT-PK-3973 | D179: Local | E179: East | F179: General Recreation | G179: 0.5 | H179: 832.8506321 | I179: 111.6204104 | J179: =Table1[[#This Row],[Embellishment Area (m2)]]*Table1[[#This Row],[Construction Unit Rate ($/m)]]*Table1[[#This Row],[Embellishment Area Factor]] -> 46481.56466 | K179: 1665.701264 | L179: 66.12572262 | M179: =Table1[[#This Row],[Size of land (m2)]]*Table1[[#This Row],[Land Unit Rate ($/m2)]] -> 110145.6998 | N179: 2021 | O179: =ROUND(IF(Table1[[#This Row],[Valuation Year]]=2016,(Table1[[#This Row],[Total Construction Cost ($)]]+Table1[[#This Row],[Land Value]])*('General Input Sheet'!$G$38/'General Input Sheet'!$G$43),Table1[[#This Row],[Total Construction Cost ($)]]+Table1[[#This Row],[Land Value]]),0) -> 156627 | P179: =_xlfn.IFS(Table1[[#This Row],[Asset Class]]<>"Local","y",P$11=$E179,"y",Table1[[#This Row],[Asset Class]]="Local","") -> y | Q179: =_xlfn.IFS(Table1[[#This Row],[Asset Class]]<>"Local","y",Q$11=$E179,"y",Table1[[#This Row],[Asset Class]]="Local","") ->  | R179: =_xlfn.IFS(Table1[[#This Row],[Asset Class]]<>"Local","y",R$11=$E179,"y",Table1[[#This Row],[Asset Class]]="Local","") ->  | S179: =_xlfn.IFS(Table1[[#This Row],[Asset Class]]<>"Local","y",S$11=$E179,"y",Table1[[#This Row],[Asset Class]]="Local","") ->  | U179: =IF(Table1[[#This Row],[Asset Class]]<>"Local",0.25,IF(P179="y",1,"")) -> 1 | V179: =IF(Table1[[#This Row],[Asset Class]]<>"Local",0.25,IF(Q179="y",1,"")) ->  | W179: =IF(Table1[[#This Row],[Asset Class]]<>"Local",0.25,IF(R179="y",1,"")) ->  | X179: =IF(Table1[[#This Row],[Asset Class]]<>"Local",0.25,IF(S179="y",1,"")) ->  | Y179: 1 | AA179: 156627 | AE179: 156627
B180: D0106 East Local | C180: EXIT-PK-3975 | D180: Local | E180: East | F180: General Recreation | G180: 0.5 | H180: 3461.361059 | I180: 111.6204104 | J180: =Table1[[#This Row],[Embellishment Area (m2)]]*Table1[[#This Row],[Construction Unit Rate ($/m)]]*Table1[[#This Row],[Embellishment Area Factor]] -> 193179.2709 | K180: 6922.722119 | L180: 66.12572262 | M180: =Table1[[#This Row],[Size of land (m2)]]*Table1[[#This Row],[Land Unit Rate ($/m2)]] -> 457770.0026 | N180: 2021 | O180: =ROUND(IF(Table1[[#This Row],[Valuation Year]]=2016,(Table1[[#This Row],[Total Construction Cost ($)]]+Table1[[#This Row],[Land Value]])*('General Input Sheet'!$G$38/'General Input Sheet'!$G$43),Table1[[#This Row],[Total Construction Cost ($)]]+Table1[[#This Row],[Land Value]]),0) -> 650949 | P180: =_xlfn.IFS(Table1[[#This Row],[Asset Class]]<>"Local","y",P$11=$E180,"y",Table1[[#This Row],[Asset Class]]="Local","") -> y | Q180: =_xlfn.IFS(Table1[[#This Row],[Asset Class]]<>"Local","y",Q$11=$E180,"y",Table1[[#This Row],[Asset Class]]="Local","") ->  | R180: =_xlfn.IFS(Table1[[#This Row],[Asset Class]]<>"Local","y",R$11=$E180,"y",Table1[[#This Row],[Asset Class]]="Local","") ->  | S180: =_xlfn.IFS(Table1[[#This Row],[Asset Class]]<>"Local","y",S$11=$E180,"y",Table1[[#This Row],[Asset Class]]="Local","") ->  | U180: =IF(Table1[[#This Row],[Asset Class]]<>"Local",0.25,IF(P180="y",1,"")) -> 1 | V180: =IF(Table1[[#This Row],[Asset Class]]<>"Local",0.25,IF(Q180="y",1,"")) ->  | W180: =IF(Table1[[#This Row],[Asset Class]]<>"Local",0.25,IF(R180="y",1,"")) ->  | X180: =IF(Table1[[#This Row],[Asset Class]]<>"Local",0.25,IF(S180="y",1,"")) ->  | Y180: 1 | AA180: 650949 | AE180: 650949
B181: D0109 East Local | C181: EXIT-PK-3977 | D181: Local | E181: East | F181: General Recreation | G181: 0.5 | H181: 2404.653846 | I181: 111.6204104 | J181: =Table1[[#This Row],[Embellishment Area (m2)]]*Table1[[#This Row],[Construction Unit Rate ($/m)]]*Table1[[#This Row],[Embellishment Area Factor]] -> 134204.2245 | K181: 4809.307692 | L181: 66.12572262 | M181: =Table1[[#This Row],[Size of land (m2)]]*Table1[[#This Row],[Land Unit Rate ($/m2)]] -> 318018.9464 | N181: 2021 | O181: =ROUND(IF(Table1[[#This Row],[Valuation Year]]=2016,(Table1[[#This Row],[Total Construction Cost ($)]]+Table1[[#This Row],[Land Value]])*('General Input Sheet'!$G$38/'General Input Sheet'!$G$43),Table1[[#This Row],[Total Construction Cost ($)]]+Table1[[#This Row],[Land Value]]),0) -> 452223 | P181: =_xlfn.IFS(Table1[[#This Row],[Asset Class]]<>"Local","y",P$11=$E181,"y",Table1[[#This Row],[Asset Class]]="Local","") -> y | Q181: =_xlfn.IFS(Table1[[#This Row],[Asset Class]]<>"Local","y",Q$11=$E181,"y",Table1[[#This Row],[Asset Class]]="Local","") ->  | R181: =_xlfn.IFS(Table1[[#This Row],[Asset Class]]<>"Local","y",R$11=$E181,"y",Table1[[#This Row],[Asset Class]]="Local","") ->  | S181: =_xlfn.IFS(Table1[[#This Row],[Asset Class]]<>"Local","y",S$11=$E181,"y",Table1[[#This Row],[Asset Class]]="Local","") ->  | U181: =IF(Table1[[#This Row],[Asset Class]]<>"Local",0.25,IF(P181="y",1,"")) -> 1 | V181: =IF(Table1[[#This Row],[Asset Class]]<>"Local",0.25,IF(Q181="y",1,"")) ->  | W181: =IF(Table1[[#This Row],[Asset Class]]<>"Local",0.25,IF(R181="y",1,"")) ->  | X181: =IF(Table1[[#This Row],[Asset Class]]<>"Local",0.25,IF(S181="y",1,"")) ->  | Y181: 1 | AA181: 452223 | AE181: 452223
B182: D0109 East Local | C182: EXIT-PK-3978 | D182: Local | E182: East | F182: General Recreation | G182: 0.5 | H182: 7110.136661 | I182: 111.6204104 | J182: =Table1[[#This Row],[Embellishment Area (m2)]]*Table1[[#This Row],[Construction Unit Rate ($/m)]]*Table1[[#This Row],[Embellishment Area Factor]] -> 396818.1859 | K182: 14220.27332 | L182: 66.12572262 | M182: =Table1[[#This Row],[Size of land (m2)]]*Table1[[#This Row],[Land Unit Rate ($/m2)]] -> 940325.8493 | N182: 2021 | O182: =ROUND(IF(Table1[[#This Row],[Valuation Year]]=2016,(Table1[[#This Row],[Total Construction Cost ($)]]+Table1[[#This Row],[Land Value]])*('General Input Sheet'!$G$38/'General Input Sheet'!$G$43),Table1[[#This Row],[Total Construction Cost ($)]]+Table1[[#This Row],[Land Value]]),0) -> 1337144 | P182: =_xlfn.IFS(Table1[[#This Row],[Asset Class]]<>"Local","y",P$11=$E182,"y",Table1[[#This Row],[Asset Class]]="Local","") -> y | Q182: =_xlfn.IFS(Table1[[#This Row],[Asset Class]]<>"Local","y",Q$11=$E182,"y",Table1[[#This Row],[Asset Class]]="Local","") ->  | R182: =_xlfn.IFS(Table1[[#This Row],[Asset Class]]<>"Local","y",R$11=$E182,"y",Table1[[#This Row],[Asset Class]]="Local","") ->  | S182: =_xlfn.IFS(Table1[[#This Row],[Asset Class]]<>"Local","y",S$11=$E182,"y",Table1[[#This Row],[Asset Class]]="Local","") ->  | U182: =IF(Table1[[#This Row],[Asset Class]]<>"Local",0.25,IF(P182="y",1,"")) -> 1 | V182: =IF(Table1[[#This Row],[Asset Class]]<>"Local",0.25,IF(Q182="y",1,"")) ->  | W182: =IF(Table1[[#This Row],[Asset Class]]<>"Local",0.25,IF(R182="y",1,"")) ->  | X182: =IF(Table1[[#This Row],[Asset Class]]<>"Local",0.25,IF(S182="y",1,"")) ->  | Y182: 1 | AA182: 1337144 | AE182: 1337144
B183: D0109 East Metropolitan | C183: EXIT-PK-3979 | D183: Metropolitan | E183: East | F183: General Outdoor Sport | G183: 0.5 | H183: 21901.18469 | I183: 407.0646101 | J183: =Table1[[#This Row],[Embellishment Area (m2)]]*Table1[[#This Row],[Construction Unit Rate ($/m)]]*Table1[[#This Row],[Embellishment Area Factor]] -> 4457598.603 | K183: 43802.36938 | L183: 112.7890879 | M183: =Table1[[#This Row],[Size of land (m2)]]*Table1[[#This Row],[Land Unit Rate ($/m2)]] -> 4940429.292 | N183: 2021 | O183: =ROUND(IF(Table1[[#This Row],[Valuation Year]]=2016,(Table1[[#This Row],[Total Construction Cost ($)]]+Table1[[#This Row],[Land Value]])*('General Input Sheet'!$G$38/'General Input Sheet'!$G$43),Table1[[#This Row],[Total Construction Cost ($)]]+Table1[[#This Row],[Land Value]]),0) -> 9398028 | P183: =_xlfn.IFS(Table1[[#This Row],[Asset Class]]<>"Local","y",P$11=$E183,"y",Table1[[#This Row],[Asset Class]]="Local","") -> y | Q183: =_xlfn.IFS(Table1[[#This Row],[Asset Class]]<>"Local","y",Q$11=$E183,"y",Table1[[#This Row],[Asset Class]]="Local","") -> y | R183: =_xlfn.IFS(Table1[[#This Row],[Asset Class]]<>"Local","y",R$11=$E183,"y",Table1[[#This Row],[Asset Class]]="Local","") -> y | S183: =_xlfn.IFS(Table1[[#This Row],[Asset Class]]<>"Local","y",S$11=$E183,"y",Table1[[#This Row],[Asset Class]]="Local","") -> y | U183: =IF(Table1[[#This Row],[Asset Class]]<>"Local",0.25,IF(P183="y",1,"")) -> 0.25 | V183: =IF(Table1[[#This Row],[Asset Class]]<>"Local",0.25,IF(Q183="y",1,"")) -> 0.25 | W183: =IF(Table1[[#This Row],[Asset Class]]<>"Local",0.25,IF(R183="y",1,"")) -> 0.25 | X183: =IF(Table1[[#This Row],[Asset Class]]<>"Local",0.25,IF(S183="y",1,"")) -> 0.25 | Y183: 1 | AA183: 2349507 | AB183: 2349507 | AC183: 2349507 | AD183: 2349507 | AE183: 9398028
B184: D0109 East Local | C184: EXIT-PK-3980 | D184: Local | E184: East | F184: Access Recreation Corridor | G184: 0.5 | H184: 36706.8241 | I184: 111.6204104 | J184: =Table1[[#This Row],[Embellishment Area (m2)]]*Table1[[#This Row],[Construction Unit Rate ($/m)]]*Table1[[#This Row],[Embellishment Area Factor]] -> 2048615.385 | K184: 73413.64821 | L184: 66.12572262 | M184: =Table1[[#This Row],[Size of land (m2)]]*Table1[[#This Row],[Land Unit Rate ($/m2)]] -> 4854530.538 | N184: 2021 | O184: =ROUND(IF(Table1[[#This Row],[Valuation Year]]=2016,(Table1[[#This Row],[Total Construction Cost ($)]]+Table1[[#This Row],[Land Value]])*('General Input Sheet'!$G$38/'General Input Sheet'!$G$43),Table1[[#This Row],[Total Construction Cost ($)]]+Table1[[#This Row],[Land Value]]),0) -> 6903146 | P184: =_xlfn.IFS(Table1[[#This Row],[Asset Class]]<>"Local","y",P$11=$E184,"y",Table1[[#This Row],[Asset Class]]="Local","") -> y | Q184: =_xlfn.IFS(Table1[[#This Row],[Asset Class]]<>"Local","y",Q$11=$E184,"y",Table1[[#This Row],[Asset Class]]="Local","") ->  | R184: =_xlfn.IFS(Table1[[#This Row],[Asset Class]]<>"Local","y",R$11=$E184,"y",Table1[[#This Row],[Asset Class]]="Local","") ->  | S184: =_xlfn.IFS(Table1[[#This Row],[Asset Class]]<>"Local","y",S$11=$E184,"y",Table1[[#This Row],[Asset Class]]="Local","") ->  | U184: =IF(Table1[[#This Row],[Asset Class]]<>"Local",0.25,IF(P184="y",1,"")) -> 1 | V184: =IF(Table1[[#This Row],[Asset Class]]<>"Local",0.25,IF(Q184="y",1,"")) ->  | W184: =IF(Table1[[#This Row],[Asset Class]]<>"Local",0.25,IF(R184="y",1,"")) ->  | X184: =IF(Table1[[#This Row],[Asset Class]]<>"Local",0.25,IF(S184="y",1,"")) ->  | Y184: 1 | AA184: 6903146 | AE184: 6903146
B185: D0109 East Local | C185: EXIT-PK-3981 | D185: Local | E185: East | F185: General Recreation | G185: 0.5 | H185: 6608.107981 | I185: 111.6204104 | J185: =Table1[[#This Row],[Embellishment Area (m2)]]*Table1[[#This Row],[Construction Unit Rate ($/m)]]*Table1[[#This Row],[Embellishment Area Factor]] -> 368799.8623 | K185: 13216.21596 | L185: 66.12572262 | M185: =Table1[[#This Row],[Size of land (m2)]]*Table1[[#This Row],[Land Unit Rate ($/m2)]] -> 873931.8308 | N185: 2021 | O185: =ROUND(IF(Table1[[#This Row],[Valuation Year]]=2016,(Table1[[#This Row],[Total Construction Cost ($)]]+Table1[[#This Row],[Land Value]])*('General Input Sheet'!$G$38/'General Input Sheet'!$G$43),Table1[[#This Row],[Total Construction Cost ($)]]+Table1[[#This Row],[Land Value]]),0) -> 1242732 | P185: =_xlfn.IFS(Table1[[#This Row],[Asset Class]]<>"Local","y",P$11=$E185,"y",Table1[[#This Row],[Asset Class]]="Local","") -> y | Q185: =_xlfn.IFS(Table1[[#This Row],[Asset Class]]<>"Local","y",Q$11=$E185,"y",Table1[[#This Row],[Asset Class]]="Local","") ->  | R185: =_xlfn.IFS(Table1[[#This Row],[Asset Class]]<>"Local","y",R$11=$E185,"y",Table1[[#This Row],[Asset Class]]="Local","") ->  | S185: =_xlfn.IFS(Table1[[#This Row],[Asset Class]]<>"Local","y",S$11=$E185,"y",Table1[[#This Row],[Asset Class]]="Local","") ->  | U185: =IF(Table1[[#This Row],[Asset Class]]<>"Local",0.25,IF(P185="y",1,"")) -> 1 | V185: =IF(Table1[[#This Row],[Asset Class]]<>"Local",0.25,IF(Q185="y",1,"")) ->  | W185: =IF(Table1[[#This Row],[Asset Class]]<>"Local",0.25,IF(R185="y",1,"")) ->  | X185: =IF(Table1[[#This Row],[Asset Class]]<>"Local",0.25,IF(S185="y",1,"")) ->  | Y185: 1 | AA185: 1242732 | AE185: 1242732
B186: D0110 East Local | C186: EXIT-PK-3983 | D186: Local | E186: East | F186: General Recreation | G186: 0.5 | H186: 952.2452681 | I186: 111.6204104 | J186: =Table1[[#This Row],[Embellishment Area (m2)]]*Table1[[#This Row],[Construction Unit Rate ($/m)]]*Table1[[#This Row],[Embellishment Area Factor]] -> 53145.00379 | K186: 1904.490536 | L186: 66.12572262 | M186: =Table1[[#This Row],[Size of land (m2)]]*Table1[[#This Row],[Land Unit Rate ($/m2)]] -> 125935.8129 | N186: 2021 | O186: =ROUND(IF(Table1[[#This Row],[Valuation Year]]=2016,(Table1[[#This Row],[Total Construction Cost ($)]]+Table1[[#This Row],[Land Value]])*('General Input Sheet'!$G$38/'General Input Sheet'!$G$43),Table1[[#This Row],[Total Construction Cost ($)]]+Table1[[#This Row],[Land Value]]),0) -> 179081 | P186: =_xlfn.IFS(Table1[[#This Row],[Asset Class]]<>"Local","y",P$11=$E186,"y",Table1[[#This Row],[Asset Class]]="Local","") -> y | Q186: =_xlfn.IFS(Table1[[#This Row],[Asset Class]]<>"Local","y",Q$11=$E186,"y",Table1[[#This Row],[Asset Class]]="Local","") ->  | R186: =_xlfn.IFS(Table1[[#This Row],[Asset Class]]<>"Local","y",R$11=$E186,"y",Table1[[#This Row],[Asset Class]]="Local","") ->  | S186: =_xlfn.IFS(Table1[[#This Row],[Asset Class]]<>"Local","y",S$11=$E186,"y",Table1[[#This Row],[Asset Class]]="Local","") ->  | U186: =IF(Table1[[#This Row],[Asset Class]]<>"Local",0.25,IF(P186="y",1,"")) -> 1 | V186: =IF(Table1[[#This Row],[Asset Class]]<>"Local",0.25,IF(Q186="y",1,"")) ->  | W186: =IF(Table1[[#This Row],[Asset Class]]<>"Local",0.25,IF(R186="y",1,"")) ->  | X186: =IF(Table1[[#This Row],[Asset Class]]<>"Local",0.25,IF(S186="y",1,"")) ->  | Y186: 1 | AA186: 179081 | AE186: 179081
